Workbook

Sheet ATUAL
B8: AÇÕES | D8: RISCO BRASIL | E8: RISCO BRASIL | F8: ÍNDICE | K8: JUROS DI | N8: FLUXO INDICE | R8: VOLUME BIG PLAYER WIN | T8: QTD | V8: BOOKMAP
H9: %
B10: POSITIVAS | C10: =AÇÕES!$H$99 -> 15 | D10: =MUNDIAIS!$G$21 -> -1.030927835 | F10: IBOV | G10: ='IBOV-WINV22'!$C$5 -> 112473.24 | H10: ='IBOV-WINV22'!$H$5 -> -0.9323209408 | K10: ='DI FUT'!B5 -> DI1F23 | L10: ='DI FUT'!H5 -> 0.03644314869 | N10: ESTRANGEIROS | P10: =ESTRANGEIROS!$G$19 -> -3445819790 | R10: UBS | S10: =ESTRANGEIROS!$G$11 -> 722017100 | T10: =ESTRANGEIROS!$F$11 -> 6354
B11: NEGATIVAS | C11: =AÇÕES!$H$100 -> 75 | D11: COMO | F11: WINFUT | G11: ='IBOV-WINV22'!$C$7 -> 114100 | H11: ='IBOV-WINV22'!$G$7 -> -0.9204584925 | K11: ='DI FUT'!B6 -> DI1F24 | L11: ='DI FUT'!H6 -> -0.303030303 | N11: BANCOS | P11: =BANCOS!$H$22 -> -204082280 | R11: IDEAL | S11: =ESTRANGEIROS!$G$15 -> -430692130 | T11: =ESTRANGEIROS!$F$15 -> -3646
C12: % | K12: ='DI FUT'!B7 -> DI1F25 | L12: ='DI FUT'!H7 -> -0.2061005771 | N12: CPF | P12: =PF!$G$15 -> 3349397675 | R12: JP MORGAN | S12: =ESTRANGEIROS!$G$8 -> -27859155 | T12: =ESTRANGEIROS!$F$8 -> -246
B13: VALE3 | C13: =AÇÕES!$H$104 -> -0.6496318753 | F13: SALDO AGRESSÃO | G13: ='IBOV-WINV22'!$J$7 -> -77.684 | K13: ='DI FUT'!B8 -> DI1F26 | L13: ='DI FUT'!H8 -> -0.1677852349 | R13: =ESTRANGEIROS!$D$10 -> GOLDMAN SACHS | S13: =ESTRANGEIROS!$G$10 -> -1298778600 | T13: =ESTRANGEIROS!$F$12 -> -3593
B14: PETR4 | C14: =AÇÕES!$H$106 -> -0.78125 | K14: ='DI FUT'!B9 -> DI1F27 | L14: ='DI FUT'!H9 -> -0.126156434 | N14: FLUXO DÓLAR | R14: TULLET | S14: =ESTRANGEIROS!$G$13 -> -749790360 | T14: =ESTRANGEIROS!$F$13 -> -6617
B15: ITUB4 | C15: =AÇÕES!$H$105 -> -0.52141527 | F15: AGRESSÃO IBOV | G15: ='AGRESSÃO IBOV'!$L$17 -> -30135500 | K15: ='DI FUT'!B10 -> DI1F28 | L15: ='DI FUT'!H10 -> -1.421085472e-14 | R15: =ESTRANGEIROS!$D$14 -> MERRILL LYNCH | S15: =ESTRANGEIROS!$G$14 -> -121097000 | T15: =ESTRANGEIROS!$F$14 -> -1061
K16: ='DI FUT'!B11 -> DI1F29 | L16: ='DI FUT'!H11 -> -1.421085472e-14 | N16: ESTRANGEIROS | P16: ='ESTRANG-WDO'!$H$16 -> -19839858.5 | R16: BRADESCO | S16: =BANCOS!$G$6 -> 409709335 | T16: =BANCOS!$F$6 -> 3689
B17: VOL($) | D17: AGRESS | K17: ='DI FUT'!B12 -> DI1F30 | L17: ='DI FUT'!H12 -> 0.2502085071 | N17: BANCOS | P17: ='BANCO- WDO'!$F$22 -> 14043896.5 | R17: XP | S17: =PF!$F$4 -> 3209898645 | T17: =PF!$E$4 -> 27875
F18: DÓLAR | K18: ='DI FUT'!B13 -> DI1F31 | L18: ='DI FUT'!H13 -> -0.0826446281 | N18: CPF | P18: ='CPF-DOLAR'!$E$23 -> 24804149.5 | R18: TOTAL | S18: =SUM(S10+S11+S12+S13+S14+S15+S16) -> -1496490810 | T18: =SUM(T10+T11+T12+T13+T14+T15+T16) -> -5120
B19: VALE3 | C19: =AÇÕES!$J$104 -> 1083210323 | D19: =AÇÕES!$K$111 -> -244.400,00 | H19: % | K19: VARIA | L19: ='DI FUT'!$I$15 -> -0.075
B20: PETR4 | C20: =AÇÕES!$J$106 -> 1128576330 | D20: =AÇÕES!$K$110 -> 814.700,00 | F20: WDOFUT | G20: ='IBOV-WINV22'!$C$8 -> 5089 | H20: ='IBOV-WINV22'!$H$8 -> -0.5860519633 | R20: VOLUME BIG PLAYER WDO QTD
B21: ITUB4 | C21: =AÇÕES!$J$105 -> 165061652 | D21: =AÇÕES!$K$112 -> -196.400,00 | R21: UBS | S21: ='ESTRANG-WDO'!$F$9 -> -48518352 | T21: ='ESTRANG-WDO'!$E$9 -> -9565
B22: TOTAL | C22: =AÇÕES!$K$102 -> 2376848305 | D22: =AÇÕES!$K$114 -> 373900 | F22: SALDO DE AGRESSÃO | H22: ='IBOV-WINV22'!$L$8 -> 29.591 | R22: IDEAL | S22: ='ESTRANG-WDO'!$F$14 -> 95041644 | T22: ='ESTRANG-WDO'!$E$14 -> 18644
R23: BRADESCO | S23: ='BANCO- WDO'!$E$20 -> 5968655 | T23: ='BANCO- WDO'!$D$20 -> 1165
B24: ESTRANGEIROS AÇÕES | R24: XP | S24: ='CORRETORAS-DL'!$S$36 -> -18022634 | T24: ='CORRETORAS-DL'!$R$36 -> -3510
B25: VALE3 | C25: =TESTES!$Q$77 -> -85028752 | D25: =TESTES!$N$75 -> -2231 | F25: COMMODITIES
B26: PETR4 | C26: =TESTES!$P$58 -> 53519944 | D26: =TESTES!$Q$58 -> 2794 | F26: OURO % | G26: =MUNDIAIS!$F$33 -> -0.8607528597 | R26: VARIAÇÃO MACRO | T26: WIN
B27: ITUB4 | C27: =TESTES!$Q$131 -> 9456261 | D27: =TESTES!$N$134 -> 2168 | F27: PRATA % | G27: =MUNDIAIS!$F$34 -> -1.029213016 | R27: DOW JONES | S27: =MUNDIAIS!$G$24 -> -1.534853348
B28: WINFUT | C28: MÁXIMA | D28: MÍNIMA | F28: ÓLEO % | G28: =MUNDIAIS!$F$37 -> -1.402648554 | R28: SP500 | S28: =MUNDIAIS!$G$25 -> -1.905637372 | T28: =MUNDIAIS!$F$29 -> 0
B29: WDOFUT | C29: ='IBOV-WINV22'!$E$24 -> 115850 | D29: ='IBOV-WINV22'!$F$24 -> 114065 | R29: NASDAQ | S29: =MUNDIAIS!$G$26 -> 1.400634689
C30: ='IBOV-WINV22'!$D$8 -> 5118 | D30: ='IBOV-WINV22'!$E$8 -> 5124.5

Sheet DELAY
B8: AÇÕES | D8: RISCO BRASIL | E8: RISCO BRASIL | F8: ÍNDICE | K8: JUROS DI | N8: FLUXO INDICE | R8: VOLUME BIG PLAYER WIN | T8: QTD | V8: BOOKMAP
H9: %
B10: POSITIVAS | C10: =AÇÕES!$H$99 -> 15 | D10: =MUNDIAIS!$G$21 -> -1.030927835 | F10: IBOV | G10: ='IBOV-WINV22'!$C$5 -> 112473.24 | H10: ='IBOV-WINV22'!$H$5 -> -0.9323209408 | K10: ='DI FUT'!B5 -> DI1F23 | L10: ='DI FUT'!H5 -> 0.03644314869 | N10: ESTRANGEIROS | P10: =ESTRANGEIROS!$G$19 -> -3445819790 | R10: UBS | S10: =ESTRANGEIROS!$G$11 -> 722017100 | T10: =ESTRANGEIROS!$F$11 -> 6354
B11: NEGATIVAS | C11: =AÇÕES!$H$100 -> 75 | D11: COMO | F11: WINFUT | G11: ='IBOV-WINV22'!$C$7 -> 114100 | H11: ='IBOV-WINV22'!$G$7 -> -0.9204584925 | K11: ='DI FUT'!B6 -> DI1F24 | L11: ='DI FUT'!H6 -> -0.303030303 | N11: BANCOS | P11: =BANCOS!$H$22 -> -204082280 | R11: IDEAL | S11: =ESTRANGEIROS!$G$15 -> -430692130 | T11: =ESTRANGEIROS!$F$15 -> -3646
C12: % | K12: ='DI FUT'!B7 -> DI1F25 | L12: ='DI FUT'!H7 -> -0.2061005771 | N12: CPF | P12: =PF!$G$15 -> 3349397675 | R12: JP MORGAN | S12: =ESTRANGEIROS!$G$8 -> -27859155 | T12: =ESTRANGEIROS!$F$8 -> -246
B13: VALE3 | C13: =AÇÕES!$H$104 -> -0.6496318753 | F13: SALDO AGRESSÃO | G13: ='IBOV-WINV22'!$J$7 -> -77.684 | K13: ='DI FUT'!B8 -> DI1F26 | L13: ='DI FUT'!H8 -> -0.1677852349 | R13: =ESTRANGEIROS!$D$10 -> GOLDMAN SACHS | S13: =ESTRANGEIROS!$G$10 -> -1298778600 | T13: =ESTRANGEIROS!$F$12 -> -3593
B14: PETR4 | C14: =AÇÕES!$H$106 -> -0.78125 | K14: ='DI FUT'!B9 -> DI1F27 | L14: ='DI FUT'!H9 -> -0.126156434 | N14: FLUXO DÓLAR | R14: TULLET | S14: =ESTRANGEIROS!$G$13 -> -749790360 | T14: =ESTRANGEIROS!$F$13 -> -6617
B15: ITUB4 | C15: =AÇÕES!$H$105 -> -0.52141527 | F15: AGRESSÃO IBOV | G15: ='AGRESSÃO IBOV'!$L$17 -> -30135500 | K15: ='DI FUT'!B10 -> DI1F28 | L15: ='DI FUT'!H10 -> -1.421085472e-14 | R15: =ESTRANGEIROS!$D$14 -> MERRILL LYNCH | S15: =ESTRANGEIROS!$G$14 -> -121097000 | T15: =ESTRANGEIROS!$F$14 -> -1061
K16: ='DI FUT'!B11 -> DI1F29 | L16: ='DI FUT'!H11 -> -1.421085472e-14 | N16: ESTRANGEIROS | P16: ='ESTRANG-WDO'!$H$16 -> -19839858.5 | R16: BRADESCO | S16: =BANCOS!$G$6 -> 409709335 | T16: =BANCOS!$F$6 -> 3689
B17: VOL($) | D17: AGRESS | K17: ='DI FUT'!B12 -> DI1F30 | L17: ='DI FUT'!H12 -> 0.2502085071 | N17: BANCOS | P17: ='BANCO- WDO'!$F$22 -> 14043896.5 | R17: XP | S17: =PF!$F$4 -> 3209898645 | T17: =PF!$E$4 -> 27875
F18: DÓLAR | K18: ='DI FUT'!B13 -> DI1F31 | L18: ='DI FUT'!H13 -> -0.0826446281 | N18: CPF | P18: ='CPF-DOLAR'!$E$23 -> 24804149.5 | R18: TOTAL | S18: =SUM(S10+S11+S12+S13+S14+S15+S16) -> -1496490810 | T18: =SUM(T10+T11+T12+T13+T14+T15+T16) -> -5120
B19: VALE3 | C19: =AÇÕES!$J$104 -> 1083210323 | D19: =AÇÕES!$K$111 -> -244.400,00 | H19: % | K19: VARIA | L19: ='DI FUT'!$I$15 -> -0.075
B20: PETR4 | C20: =AÇÕES!$J$106 -> 1128576330 | D20: =AÇÕES!$K$110 -> 814.700,00 | F20: WDOFUT | G20: ='IBOV-WINV22'!$C$8 -> 5089 | H20: ='IBOV-WINV22'!$H$8 -> -0.5860519633 | R20: VOLUME BIG PLAYER WDO QTD
B21: ITUB4 | C21: =AÇÕES!$J$105 -> 165061652 | D21: =AÇÕES!$K$112 -> -196.400,00 | R21: UBS | S21: ='ESTRANG-WDO'!$F$9 -> -48518352 | T21: ='ESTRANG-WDO'!$E$9 -> -9565
B22: TOTAL | C22: =AÇÕES!$K$102 -> 2376848305 | D22: =AÇÕES!$K$114 -> 373900 | F22: SALDO DE AGRESSÃO | H22: ='IBOV-WINV22'!$L$8 -> 29.591 | R22: IDEAL | S22: ='ESTRANG-WDO'!$F$14 -> 95041644 | T22: ='ESTRANG-WDO'!$E$14 -> 18644
R23: BRADESCO | S23: ='BANCO- WDO'!$E$20 -> 5968655 | T23: ='BANCO- WDO'!$D$20 -> 1165
B24: ESTRANGEIROS AÇÕES | R24: XP | S24: ='CORRETORAS-DL'!$S$36 -> -18022634 | T24: ='CORRETORAS-DL'!$R$36 -> -3510
B25: VALE3 | C25: =TESTES!$Q$77 -> -85028752 | D25: =TESTES!$N$75 -> -2231 | F25: COMMODITIES
B26: PETR4 | C26: =TESTES!$P$58 -> 53519944 | D26: =TESTES!$Q$58 -> 2794 | F26: OURO % | G26: =MUNDIAIS!$F$33 -> -0.8607528597 | R26: VARIAÇÃO MACRO | T26: WIN
B27: ITUB4 | C27: =TESTES!$Q$131 -> 9456261 | D27: =TESTES!$N$134 -> 2168 | F27: PRATA % | G27: =MUNDIAIS!$F$34 -> -1.029213016 | R27: DOW JONES | S27: =MUNDIAIS!$G$24 -> -1.534853348
B28: WINFUT | C28: MÁXIMA | D28: MÍNIMA | F28: ÓLEO % | G28: =MUNDIAIS!$F$37 -> -1.402648554 | R28: SP500 | S28: =MUNDIAIS!$G$25 -> -1.905637372 | T28: =MUNDIAIS!$F$29 -> 0
B29: WDOFUT | C29: ='IBOV-WINV22'!$E$24 -> 115850 | D29: ='IBOV-WINV22'!$F$24 -> 114065 | R29: NASDAQ | S29: =MUNDIAIS!$G$26 -> 1.400634689
C30: ='IBOV-WINV22'!$D$8 -> 5118 | D30: ='IBOV-WINV22'!$E$8 -> 5124.5

Sheet FUTURO
A1: AGRESS | B1: JUROS | C1: =PF!$G$15 -> 3349397675 | D1: CPF
A2: ='IBOV-WINV22'!$J$7 -> -77.684 | B2: ='DI FUT'!$I$15 -> -0.075 | C2: =ESTRANGEIROS!$G$19 -> -3445819790 | D2: EST
A3: ='[1]IBOV-WINV22'!$G$7 -> -0.3343174713 | B3: ='[1]IBOV-WINV22'!$H$5 -> -0.3764938997 | C3: ='AGRESSÃO IBOV'!$L$17 -> -30135500 | D3: IBOV
A4: WINFUT | B4: IBOV
A7: Delay
A8: ='IBOV-WINV22'!$J$7 -> -77.684
A9: =PF!$G$15 -> 3349397675

Sheet AÇÕES (hidden)
B4: Asset | C4: Último | D4: Abertura | E4: Máximo | F4: Mínimo | G4: Fechamento Anterior | H4: Variação | I4: Variação(pts) | J4: Volume
B5: RRRP3 | C5: =RTD("rtdtrading.rtdserver",, "RRRP3_B_0", "ULT") -> 36.89 | D5: =RTD("rtdtrading.rtdserver",, "RRRP3_B_0", "ABE") -> 37 | E5: =RTD("rtdtrading.rtdserver",, "RRRP3_B_0", "MAX") -> 37.43 | F5: =RTD("rtdtrading.rtdserver",, "RRRP3_B_0", "MIN") -> 36.66 | G5: =RTD("rtdtrading.rtdserver",, "RRRP3_B_0", "FEC") -> 36.95 | H5: =RTD("rtdtrading.rtdserver",, "RRRP3_B_0", "VAR") -> -0.1623815968 | I5: =RTD("rtdtrading.rtdserver",, "RRRP3_B_0", "VARPTS") -> -0.06 | J5: =RTD("rtdtrading.rtdserver",, "RRRP3_B_0", "VOL") -> 28322505
B6: LWSA3 | C6: =RTD("rtdtrading.rtdserver",, "LWSA3_B_0", "ULT") -> 9.73 | D6: =RTD("rtdtrading.rtdserver",, "LWSA3_B_0", "ABE") -> 10.02 | E6: =RTD("rtdtrading.rtdserver",, "LWSA3_B_0", "MAX") -> 10.15 | F6: =RTD("rtdtrading.rtdserver",, "LWSA3_B_0", "MIN") -> 9.72 | G6: =RTD("rtdtrading.rtdserver",, "LWSA3_B_0", "FEC") -> 10.02 | H6: =RTD("rtdtrading.rtdserver",, "LWSA3_B_0", "VAR") -> -2.894211577 | I6: =RTD("rtdtrading.rtdserver",, "LWSA3_B_0", "VARPTS") -> -0.29 | J6: =RTD("rtdtrading.rtdserver",, "LWSA3_B_0", "VOL") -> 36698054
B7: ENEV3 | C7: =RTD("rtdtrading.rtdserver",, "ENEV3_B_0", "ULT") -> 15.28 | D7: =RTD("rtdtrading.rtdserver",, "ENEV3_B_0", "ABE") -> 15.46 | E7: =RTD("rtdtrading.rtdserver",, "ENEV3_B_0", "MAX") -> 15.52 | F7: =RTD("rtdtrading.rtdserver",, "ENEV3_B_0", "MIN") -> 15.24 | G7: =RTD("rtdtrading.rtdserver",, "ENEV3_B_0", "FEC") -> 15.38 | H7: =RTD("rtdtrading.rtdserver",, "ENEV3_B_0", "VAR") -> -0.6501950585 | I7: =RTD("rtdtrading.rtdserver",, "ENEV3_B_0", "VARPTS") -> -0.1 | J7: =RTD("rtdtrading.rtdserver",, "ENEV3_B_0", "VOL") -> 5241772
B8: EMBR3 | C8: =RTD("rtdtrading.rtdserver",, "EMBR3_B_0", "ULT") -> 14.5 | D8: =RTD("rtdtrading.rtdserver",, "EMBR3_B_0", "ABE") -> 14.85 | E8: =RTD("rtdtrading.rtdserver",, "EMBR3_B_0", "MAX") -> 14.98 | F8: =RTD("rtdtrading.rtdserver",, "EMBR3_B_0", "MIN") -> 14.49 | G8: =RTD("rtdtrading.rtdserver",, "EMBR3_B_0", "FEC") -> 14.73 | H8: =RTD("rtdtrading.rtdserver",, "EMBR3_B_0", "VAR") -> -1.56143924 | I8: =RTD("rtdtrading.rtdserver",, "EMBR3_B_0", "VARPTS") -> -0.23 | J8: =RTD("rtdtrading.rtdserver",, "EMBR3_B_0", "VOL") -> 46933390
B9: COGN3 | C9: =RTD("rtdtrading.rtdserver",, "COGN3_B_0", "ULT") -> 2.62 | D9: =RTD("rtdtrading.rtdserver",, "COGN3_B_0", "ABE") -> 2.69 | E9: =RTD("rtdtrading.rtdserver",, "COGN3_B_0", "MAX") -> 2.73 | F9: =RTD("rtdtrading.rtdserver",, "COGN3_B_0", "MIN") -> 2.62 | G9: =RTD("rtdtrading.rtdserver",, "COGN3_B_0", "FEC") -> 2.67 | H9: =RTD("rtdtrading.rtdserver",, "COGN3_B_0", "VAR") -> -1.872659176 | I9: =RTD("rtdtrading.rtdserver",, "COGN3_B_0", "VARPTS") -> -0.05 | J9: =RTD("rtdtrading.rtdserver",, "COGN3_B_0", "VOL") -> 18909049
B10: PRIO3 | C10: =RTD("rtdtrading.rtdserver",, "PRIO3_B_0", "ULT") -> 26.35 | D10: =RTD("rtdtrading.rtdserver",, "PRIO3_B_0", "ABE") -> 26.48 | E10: =RTD("rtdtrading.rtdserver",, "PRIO3_B_0", "MAX") -> 26.69 | F10: =RTD("rtdtrading.rtdserver",, "PRIO3_B_0", "MIN") -> 26.23 | G10: =RTD("rtdtrading.rtdserver",, "PRIO3_B_0", "FEC") -> 26.39 | H10: =RTD("rtdtrading.rtdserver",, "PRIO3_B_0", "VAR") -> -0.1515725654 | I10: =RTD("rtdtrading.rtdserver",, "PRIO3_B_0", "VARPTS") -> -0.04 | J10: =RTD("rtdtrading.rtdserver",, "PRIO3_B_0", "VOL") -> 71222902
B11: BRFS3 | C11: =RTD("rtdtrading.rtdserver",, "BRFS3_B_0", "ULT") -> 16.1 | D11: =RTD("rtdtrading.rtdserver",, "BRFS3_B_0", "ABE") -> 16.55 | E11: =RTD("rtdtrading.rtdserver",, "BRFS3_B_0", "MAX") -> 16.61 | F11: =RTD("rtdtrading.rtdserver",, "BRFS3_B_0", "MIN") -> 16.05 | G11: =RTD("rtdtrading.rtdserver",, "BRFS3_B_0", "FEC") -> 16.47 | H11: =RTD("rtdtrading.rtdserver",, "BRFS3_B_0", "VAR") -> -2.246508804 | I11: =RTD("rtdtrading.rtdserver",, "BRFS3_B_0", "VARPTS") -> -0.37 | J11: =RTD("rtdtrading.rtdserver",, "BRFS3_B_0", "VOL") -> 40998140
B12: CVCB3 | C12: =RTD("rtdtrading.rtdserver",, "CVCB3_B_0", "ULT") -> 7.9 | D12: =RTD("rtdtrading.rtdserver",, "CVCB3_B_0", "ABE") -> 8.29 | E12: =RTD("rtdtrading.rtdserver",, "CVCB3_B_0", "MAX") -> 8.43 | F12: =RTD("rtdtrading.rtdserver",, "CVCB3_B_0", "MIN") -> 7.88 | G12: =RTD("rtdtrading.rtdserver",, "CVCB3_B_0", "FEC") -> 8.22 | H12: =RTD("rtdtrading.rtdserver",, "CVCB3_B_0", "VAR") -> -3.892944039 | I12: =RTD("rtdtrading.rtdserver",, "CVCB3_B_0", "VARPTS") -> -0.32 | J12: =RTD("rtdtrading.rtdserver",, "CVCB3_B_0", "VOL") -> 55956218
B13: CASH3 | C13: =RTD("rtdtrading.rtdserver",, "CASH3_B_0", "ULT") -> 1.34 | D13: =RTD("rtdtrading.rtdserver",, "CASH3_B_0", "ABE") -> 1.36 | E13: =RTD("rtdtrading.rtdserver",, "CASH3_B_0", "MAX") -> 1.39 | F13: =RTD("rtdtrading.rtdserver",, "CASH3_B_0", "MIN") -> 1.33 | G13: =RTD("rtdtrading.rtdserver",, "CASH3_B_0", "FEC") -> 1.36 | H13: =RTD("rtdtrading.rtdserver",, "CASH3_B_0", "VAR") -> -1.470588235 | I13: =RTD("rtdtrading.rtdserver",, "CASH3_B_0", "VARPTS") -> -0.02 | J13: =RTD("rtdtrading.rtdserver",, "CASH3_B_0", "VOL") -> 19715677
B14: AZUL4 | C14: =RTD("rtdtrading.rtdserver",, "AZUL4_B_0", "ULT") -> 17.53 | D14: =RTD("rtdtrading.rtdserver",, "AZUL4_B_0", "ABE") -> 18.3 | E14: =RTD("rtdtrading.rtdserver",, "AZUL4_B_0", "MAX") -> 18.61 | F14: =RTD("rtdtrading.rtdserver",, "AZUL4_B_0", "MIN") -> 17.5 | G14: =RTD("rtdtrading.rtdserver",, "AZUL4_B_0", "FEC") -> 18.23 | H14: =RTD("rtdtrading.rtdserver",, "AZUL4_B_0", "VAR") -> -3.839824465 | I14: =RTD("rtdtrading.rtdserver",, "AZUL4_B_0", "VARPTS") -> -0.7 | J14: =RTD("rtdtrading.rtdserver",, "AZUL4_B_0", "VOL") -> 82822952
B15: ECOR3 | C15: =RTD("rtdtrading.rtdserver",, "ECOR3_B_0", "ULT") -> 6.13 | D15: =RTD("rtdtrading.rtdserver",, "ECOR3_B_0", "ABE") -> 6.21 | E15: =RTD("rtdtrading.rtdserver",, "ECOR3_B_0", "MAX") -> 6.26 | F15: =RTD("rtdtrading.rtdserver",, "ECOR3_B_0", "MIN") -> 6.1 | G15: =RTD("rtdtrading.rtdserver",, "ECOR3_B_0", "FEC") -> 6.19 | H15: =RTD("rtdtrading.rtdserver",, "ECOR3_B_0", "VAR") -> -0.9693053312 | I15: =RTD("rtdtrading.rtdserver",, "ECOR3_B_0", "VARPTS") -> -0.06 | J15: =RTD("rtdtrading.rtdserver",, "ECOR3_B_0", "VOL") -> 5708984
B16: MRVE3 | C16: =RTD("rtdtrading.rtdserver",, "MRVE3_B_0", "ULT") -> 10.25 | D16: =RTD("rtdtrading.rtdserver",, "MRVE3_B_0", "ABE") -> 10.31 | E16: =RTD("rtdtrading.rtdserver",, "MRVE3_B_0", "MAX") -> 10.65 | F16: =RTD("rtdtrading.rtdserver",, "MRVE3_B_0", "MIN") -> 10.18 | G16: =RTD("rtdtrading.rtdserver",, "MRVE3_B_0", "FEC") -> 10.26 | H16: =RTD("rtdtrading.rtdserver",, "MRVE3_B_0", "VAR") -> -0.09746588694 | I16: =RTD("rtdtrading.rtdserver",, "MRVE3_B_0", "VARPTS") -> -0.01 | J16: =RTD("rtdtrading.rtdserver",, "MRVE3_B_0", "VOL") -> 39634808
B17: DXCO3 | C17: =RTD("rtdtrading.rtdserver",, "DXCO3_B_0", "ULT") -> 10.74 | D17: =RTD("rtdtrading.rtdserver",, "DXCO3_B_0", "ABE") -> 10.85 | E17: =RTD("rtdtrading.rtdserver",, "DXCO3_B_0", "MAX") -> 10.95 | F17: =RTD("rtdtrading.rtdserver",, "DXCO3_B_0", "MIN") -> 10.73 | G17: =RTD("rtdtrading.rtdserver",, "DXCO3_B_0", "FEC") -> 10.8 | H17: =RTD("rtdtrading.rtdserver",, "DXCO3_B_0", "VAR") -> -0.5555555556 | I17: =RTD("rtdtrading.rtdserver",, "DXCO3_B_0", "VARPTS") -> -0.06 | J17: =RTD("rtdtrading.rtdserver",, "DXCO3_B_0", "VOL") -> 7761307
B18: ABEV3 | C18: =RTD("rtdtrading.rtdserver",, "ABEV3_B_0", "ULT") -> 15.68 | D18: =RTD("rtdtrading.rtdserver",, "ABEV3_B_0", "ABE") -> 15.89 | E18: =RTD("rtdtrading.rtdserver",, "ABEV3_B_0", "MAX") -> 15.9 | F18: =RTD("rtdtrading.rtdserver",, "ABEV3_B_0", "MIN") -> 15.68 | G18: =RTD("rtdtrading.rtdserver",, "ABEV3_B_0", "FEC") -> 15.82 | H18: =RTD("rtdtrading.rtdserver",, "ABEV3_B_0", "VAR") -> -0.8849557522 | I18: =RTD("rtdtrading.rtdserver",, "ABEV3_B_0", "VARPTS") -> -0.14 | J18: =RTD("rtdtrading.rtdserver",, "ABEV3_B_0", "VOL") -> 63533250
B19: HAPV3 | C19: =RTD("rtdtrading.rtdserver",, "HAPV3_B_0", "ULT") -> 8.09 | D19: =RTD("rtdtrading.rtdserver",, "HAPV3_B_0", "ABE") -> 8.16 | E19: =RTD("rtdtrading.rtdserver",, "HAPV3_B_0", "MAX") -> 8.33 | F19: =RTD("rtdtrading.rtdserver",, "HAPV3_B_0", "MIN") -> 7.97 | G19: =RTD("rtdtrading.rtdserver",, "HAPV3_B_0", "FEC") -> 8.07 | H19: =RTD("rtdtrading.rtdserver",, "HAPV3_B_0", "VAR") -> 0.2478314746 | I19: =RTD("rtdtrading.rtdserver",, "HAPV3_B_0", "VARPTS") -> 0.02 | J19: =RTD("rtdtrading.rtdserver",, "HAPV3_B_0", "VOL") -> 224251769
B20: SULA11 | C20: =RTD("rtdtrading.rtdserver",, "SULA11_B_0", "ULT") -> 24.82 | D20: =RTD("rtdtrading.rtdserver",, "SULA11_B_0", "ABE") -> 25.37 | E20: =RTD("rtdtrading.rtdserver",, "SULA11_B_0", "MAX") -> 25.68 | F20: =RTD("rtdtrading.rtdserver",, "SULA11_B_0", "MIN") -> 24.81 | G20: =RTD("rtdtrading.rtdserver",, "SULA11_B_0", "FEC") -> 25.34 | H20: =RTD("rtdtrading.rtdserver",, "SULA11_B_0", "VAR") -> -2.052091555 | I20: =RTD("rtdtrading.rtdserver",, "SULA11_B_0", "VARPTS") -> -0.52 | J20: =RTD("rtdtrading.rtdserver",, "SULA11_B_0", "VOL") -> 8019000
B21: TOTS3 | C21: =RTD("rtdtrading.rtdserver",, "TOTS3_B_0", "ULT") -> 30.27 | D21: =RTD("rtdtrading.rtdserver",, "TOTS3_B_0", "ABE") -> 31 | E21: =RTD("rtdtrading.rtdserver",, "TOTS3_B_0", "MAX") -> 31 | F21: =RTD("rtdtrading.rtdserver",, "TOTS3_B_0", "MIN") -> 30.27 | G21: =RTD("rtdtrading.rtdserver",, "TOTS3_B_0", "FEC") -> 30.93 | H21: =RTD("rtdtrading.rtdserver",, "TOTS3_B_0", "VAR") -> -2.13385063 | I21: =RTD("rtdtrading.rtdserver",, "TOTS3_B_0", "VARPTS") -> -0.66 | J21: =RTD("rtdtrading.rtdserver",, "TOTS3_B_0", "VOL") -> 27272183
B22: MULT3 | C22: =RTD("rtdtrading.rtdserver",, "MULT3_B_0", "ULT") -> 25.48 | D22: =RTD("rtdtrading.rtdserver",, "MULT3_B_0", "ABE") -> 25.61 | E22: =RTD("rtdtrading.rtdserver",, "MULT3_B_0", "MAX") -> 25.8 | F22: =RTD("rtdtrading.rtdserver",, "MULT3_B_0", "MIN") -> 25.41 | G22: =RTD("rtdtrading.rtdserver",, "MULT3_B_0", "FEC") -> 25.5 | H22: =RTD("rtdtrading.rtdserver",, "MULT3_B_0", "VAR") -> -0.07843137255 | I22: =RTD("rtdtrading.rtdserver",, "MULT3_B_0", "VARPTS") -> -0.02 | J22: =RTD("rtdtrading.rtdserver",, "MULT3_B_0", "VOL") -> 9874848
B23: ALPA4 | C23: =RTD("rtdtrading.rtdserver",, "ALPA4_B_0", "ULT") -> 21.87 | D23: =RTD("rtdtrading.rtdserver",, "ALPA4_B_0", "ABE") -> 20.92 | E23: =RTD("rtdtrading.rtdserver",, "ALPA4_B_0", "MAX") -> 22.07 | F23: =RTD("rtdtrading.rtdserver",, "ALPA4_B_0", "MIN") -> 20.73 | G23: =RTD("rtdtrading.rtdserver",, "ALPA4_B_0", "FEC") -> 20.9 | H23: =RTD("rtdtrading.rtdserver",, "ALPA4_B_0", "VAR") -> 4.641148325 | I23: =RTD("rtdtrading.rtdserver",, "ALPA4_B_0", "VARPTS") -> 0.97 | J23: =RTD("rtdtrading.rtdserver",, "ALPA4_B_0", "VOL") -> 92286258
B24: ENGI11 | C24: =RTD("rtdtrading.rtdserver",, "ENGI11_B_0", "ULT") -> 42.81 | D24: =RTD("rtdtrading.rtdserver",, "ENGI11_B_0", "ABE") -> 42.92 | E24: =RTD("rtdtrading.rtdserver",, "ENGI11_B_0", "MAX") -> 43.59 | F24: =RTD("rtdtrading.rtdserver",, "ENGI11_B_0", "MIN") -> 42.73 | G24: =RTD("rtdtrading.rtdserver",, "ENGI11_B_0", "FEC") -> 42.8 | H24: =RTD("rtdtrading.rtdserver",, "ENGI11_B_0", "VAR") -> 0.02336448598 | I24: =RTD("rtdtrading.rtdserver",, "ENGI11_B_0", "VARPTS") -> 0.01 | J24: =RTD("rtdtrading.rtdserver",, "ENGI11_B_0", "VOL") -> 53614726
B25: BPAC11 | C25: =RTD("rtdtrading.rtdserver",, "BPAC11_B_0", "ULT") -> 25.61 | D25: =RTD("rtdtrading.rtdserver",, "BPAC11_B_0", "ABE") -> 26 | E25: =RTD("rtdtrading.rtdserver",, "BPAC11_B_0", "MAX") -> 26.11 | F25: =RTD("rtdtrading.rtdserver",, "BPAC11_B_0", "MIN") -> 25.57 | G25: =RTD("rtdtrading.rtdserver",, "BPAC11_B_0", "FEC") -> 25.88 | H25: =RTD("rtdtrading.rtdserver",, "BPAC11_B_0", "VAR") -> -1.043276662 | I25: =RTD("rtdtrading.rtdserver",, "BPAC11_B_0", "VARPTS") -> -0.27 | J25: =RTD("rtdtrading.rtdserver",, "BPAC11_B_0", "VOL") -> 78072416
B26: AMER3 | C26: =RTD("rtdtrading.rtdserver",, "AMER3_B_0", "ULT") -> 18.02 | D26: =RTD("rtdtrading.rtdserver",, "AMER3_B_0", "ABE") -> 19 | E26: =RTD("rtdtrading.rtdserver",, "AMER3_B_0", "MAX") -> 19.09 | F26: =RTD("rtdtrading.rtdserver",, "AMER3_B_0", "MIN") -> 17.94 | G26: =RTD("rtdtrading.rtdserver",, "AMER3_B_0", "FEC") -> 18.79 | H26: =RTD("rtdtrading.rtdserver",, "AMER3_B_0", "VAR") -> -4.097924428 | I26: =RTD("rtdtrading.rtdserver",, "AMER3_B_0", "VARPTS") -> -0.77 | J26: =RTD("rtdtrading.rtdserver",, "AMER3_B_0", "VOL") -> 249343594
B27: BBSE3 | C27: =RTD("rtdtrading.rtdserver",, "BBSE3_B_0", "ULT") -> 28.33 | D27: =RTD("rtdtrading.rtdserver",, "BBSE3_B_0", "ABE") -> 28.23 | E27: =RTD("rtdtrading.rtdserver",, "BBSE3_B_0", "MAX") -> 28.54 | F27: =RTD("rtdtrading.rtdserver",, "BBSE3_B_0", "MIN") -> 28.23 | G27: =RTD("rtdtrading.rtdserver",, "BBSE3_B_0", "FEC") -> 28.15 | H27: =RTD("rtdtrading.rtdserver",, "BBSE3_B_0", "VAR") -> 0.6394316163 | I27: =RTD("rtdtrading.rtdserver",, "BBSE3_B_0", "VARPTS") -> 0.18 | J27: =RTD("rtdtrading.rtdserver",, "BBSE3_B_0", "VOL") -> 26719723
B28: JHSF3 | C28: =RTD("rtdtrading.rtdserver",, "JHSF3_B_0", "ULT") -> 6.51 | D28: =RTD("rtdtrading.rtdserver",, "JHSF3_B_0", "ABE") -> 6.58 | E28: =RTD("rtdtrading.rtdserver",, "JHSF3_B_0", "MAX") -> 6.63 | F28: =RTD("rtdtrading.rtdserver",, "JHSF3_B_0", "MIN") -> 6.51 | G28: =RTD("rtdtrading.rtdserver",, "JHSF3_B_0", "FEC") -> 6.55 | H28: =RTD("rtdtrading.rtdserver",, "JHSF3_B_0", "VAR") -> -0.6106870229 | I28: =RTD("rtdtrading.rtdserver",, "JHSF3_B_0", "VARPTS") -> -0.04 | J28: =RTD("rtdtrading.rtdserver",, "JHSF3_B_0", "VOL") -> 3000592
B29: VALE3 | C29: =RTD("rtdtrading.rtdserver",, "VALE3_B_0", "ULT") -> 68.82 | D29: =RTD("rtdtrading.rtdserver",, "VALE3_B_0", "ABE") -> 69.65 | E29: =RTD("rtdtrading.rtdserver",, "VALE3_B_0", "MAX") -> 71.2 | F29: =RTD("rtdtrading.rtdserver",, "VALE3_B_0", "MIN") -> 68.71 | G29: =RTD("rtdtrading.rtdserver",, "VALE3_B_0", "FEC") -> 69.27 | H29: =RTD("rtdtrading.rtdserver",, "VALE3_B_0", "VAR") -> -0.6496318753 | I29: =RTD("rtdtrading.rtdserver",, "VALE3_B_0", "VARPTS") -> -0.45 | J29: =RTD("rtdtrading.rtdserver",, "VALE3_B_0", "VOL") -> 1083210323
B30: BIDI11 | C30: =RTD("rtdtrading.rtdserver",, "BIDI11_B_0", "ULT") -> 10.4 | D30: =RTD("rtdtrading.rtdserver",, "BIDI11_B_0", "ABE") -> 10.07 | E30: =RTD("rtdtrading.rtdserver",, "BIDI11_B_0", "MAX") -> 10.4 | F30: =RTD("rtdtrading.rtdserver",, "BIDI11_B_0", "MIN") -> 9.78 | G30: =RTD("rtdtrading.rtdserver",, "BIDI11_B_0", "FEC") -> 10.4 | H30: =RTD("rtdtrading.rtdserver",, "BIDI11_B_0", "VAR") -> 0 | I30: =RTD("rtdtrading.rtdserver",, "BIDI11_B_0", "VARPTS") -> 0 | J30: =RTD("rtdtrading.rtdserver",, "BIDI11_B_0", "VOL") -> 815436264
B31: FLRY3 | C31: =RTD("rtdtrading.rtdserver",, "FLRY3_B_0", "ULT") -> 16.63 | D31: =RTD("rtdtrading.rtdserver",, "FLRY3_B_0", "ABE") -> 16.76 | E31: =RTD("rtdtrading.rtdserver",, "FLRY3_B_0", "MAX") -> 17.05 | F31: =RTD("rtdtrading.rtdserver",, "FLRY3_B_0", "MIN") -> 16.54 | G31: =RTD("rtdtrading.rtdserver",, "FLRY3_B_0", "FEC") -> 16.75 | H31: =RTD("rtdtrading.rtdserver",, "FLRY3_B_0", "VAR") -> -0.7164179104 | I31: =RTD("rtdtrading.rtdserver",, "FLRY3_B_0", "VARPTS") -> -0.12 | J31: =RTD("rtdtrading.rtdserver",, "FLRY3_B_0", "VOL") -> 10175561
B32: LREN3 | C32: =RTD("rtdtrading.rtdserver",, "LREN3_B_0", "ULT") -> 27.6 | D32: =RTD("rtdtrading.rtdserver",, "LREN3_B_0", "ABE") -> 27.67 | E32: =RTD("rtdtrading.rtdserver",, "LREN3_B_0", "MAX") -> 27.99 | F32: =RTD("rtdtrading.rtdserver",, "LREN3_B_0", "MIN") -> 27.42 | G32: =RTD("rtdtrading.rtdserver",, "LREN3_B_0", "FEC") -> 27.6 | H32: =RTD("rtdtrading.rtdserver",, "LREN3_B_0", "VAR") -> 4.263256415e-14 | I32: =RTD("rtdtrading.rtdserver",, "LREN3_B_0", "VARPTS") -> 1.421085472e-14 | J32: =RTD("rtdtrading.rtdserver",, "LREN3_B_0", "VOL") -> 69015590
B33: B3SA3 | C33: =RTD("rtdtrading.rtdserver",, "B3SA3_B_0", "ULT") -> 12.52 | D33: =RTD("rtdtrading.rtdserver",, "B3SA3_B_0", "ABE") -> 12.82 | E33: =RTD("rtdtrading.rtdserver",, "B3SA3_B_0", "MAX") -> 12.85 | F33: =RTD("rtdtrading.rtdserver",, "B3SA3_B_0", "MIN") -> 12.5 | G33: =RTD("rtdtrading.rtdserver",, "B3SA3_B_0", "FEC") -> 12.77 | H33: =RTD("rtdtrading.rtdserver",, "B3SA3_B_0", "VAR") -> -1.957713391 | I33: =RTD("rtdtrading.rtdserver",, "B3SA3_B_0", "VARPTS") -> -0.25 | J33: =RTD("rtdtrading.rtdserver",, "B3SA3_B_0", "VOL") -> 82877164
B34: WEGE3 | C34: =RTD("rtdtrading.rtdserver",, "WEGE3_B_0", "ULT") -> 28.83 | D34: =RTD("rtdtrading.rtdserver",, "WEGE3_B_0", "ABE") -> 29.18 | E34: =RTD("rtdtrading.rtdserver",, "WEGE3_B_0", "MAX") -> 29.23 | F34: =RTD("rtdtrading.rtdserver",, "WEGE3_B_0", "MIN") -> 28.61 | G34: =RTD("rtdtrading.rtdserver",, "WEGE3_B_0", "FEC") -> 28.95 | H34: =RTD("rtdtrading.rtdserver",, "WEGE3_B_0", "VAR") -> -0.414507772 | I34: =RTD("rtdtrading.rtdserver",, "WEGE3_B_0", "VARPTS") -> -0.12 | J34: =RTD("rtdtrading.rtdserver",, "WEGE3_B_0", "VOL") -> 48809144
B35: TIMS3 | C35: =RTD("rtdtrading.rtdserver",, "TIMS3_B_0", "ULT") -> 12.02 | D35: =RTD("rtdtrading.rtdserver",, "TIMS3_B_0", "ABE") -> 12.1 | E35: =RTD("rtdtrading.rtdserver",, "TIMS3_B_0", "MAX") -> 12.12 | F35: =RTD("rtdtrading.rtdserver",, "TIMS3_B_0", "MIN") -> 11.98 | G35: =RTD("rtdtrading.rtdserver",, "TIMS3_B_0", "FEC") -> 12.06 | H35: =RTD("rtdtrading.rtdserver",, "TIMS3_B_0", "VAR") -> -0.3316749585 | I35: =RTD("rtdtrading.rtdserver",, "TIMS3_B_0", "VARPTS") -> -0.04 | J35: =RTD("rtdtrading.rtdserver",, "TIMS3_B_0", "VOL") -> 15219825
B36: HYPE3 | C36: =RTD("rtdtrading.rtdserver",, "HYPE3_B_0", "ULT") -> 43.91 | D36: =RTD("rtdtrading.rtdserver",, "HYPE3_B_0", "ABE") -> 44.06 | E36: =RTD("rtdtrading.rtdserver",, "HYPE3_B_0", "MAX") -> 44.25 | F36: =RTD("rtdtrading.rtdserver",, "HYPE3_B_0", "MIN") -> 43.64 | G36: =RTD("rtdtrading.rtdserver",, "HYPE3_B_0", "FEC") -> 43.9 | H36: =RTD("rtdtrading.rtdserver",, "HYPE3_B_0", "VAR") -> 0.02277904328 | I36: =RTD("rtdtrading.rtdserver",, "HYPE3_B_0", "VARPTS") -> 0.01 | J36: =RTD("rtdtrading.rtdserver",, "HYPE3_B_0", "VOL") -> 18468322
B37: RDOR3 | C37: =RTD("rtdtrading.rtdserver",, "RDOR3_B_0", "ULT") -> 33.85 | D37: =RTD("rtdtrading.rtdserver",, "RDOR3_B_0", "ABE") -> 34.62 | E37: =RTD("rtdtrading.rtdserver",, "RDOR3_B_0", "MAX") -> 35.13 | F37: =RTD("rtdtrading.rtdserver",, "RDOR3_B_0", "MIN") -> 33.83 | G37: =RTD("rtdtrading.rtdserver",, "RDOR3_B_0", "FEC") -> 34.45 | H37: =RTD("rtdtrading.rtdserver",, "RDOR3_B_0", "VAR") -> -1.741654572 | I37: =RTD("rtdtrading.rtdserver",, "RDOR3_B_0", "VARPTS") -> -0.6 | J37: =RTD("rtdtrading.rtdserver",, "RDOR3_B_0", "VOL") -> 19535045
B38: RADL3 | C38: =RTD("rtdtrading.rtdserver",, "RADL3_B_0", "ULT") -> 22.31 | D38: =RTD("rtdtrading.rtdserver",, "RADL3_B_0", "ABE") -> 22.78 | E38: =RTD("rtdtrading.rtdserver",, "RADL3_B_0", "MAX") -> 22.85 | F38: =RTD("rtdtrading.rtdserver",, "RADL3_B_0", "MIN") -> 22.27 | G38: =RTD("rtdtrading.rtdserver",, "RADL3_B_0", "FEC") -> 22.62 | H38: =RTD("rtdtrading.rtdserver",, "RADL3_B_0", "VAR") -> -1.370468612 | I38: =RTD("rtdtrading.rtdserver",, "RADL3_B_0", "VARPTS") -> -0.31 | J38: =RTD("rtdtrading.rtdserver",, "RADL3_B_0", "VOL") -> 12659965
B39: ENBR3 | C39: =RTD("rtdtrading.rtdserver",, "ENBR3_B_0", "ULT") -> 23.2 | D39: =RTD("rtdtrading.rtdserver",, "ENBR3_B_0", "ABE") -> 23.14 | E39: =RTD("rtdtrading.rtdserver",, "ENBR3_B_0", "MAX") -> 23.3 | F39: =RTD("rtdtrading.rtdserver",, "ENBR3_B_0", "MIN") -> 23.08 | G39: =RTD("rtdtrading.rtdserver",, "ENBR3_B_0", "FEC") -> 23.12 | H39: =RTD("rtdtrading.rtdserver",, "ENBR3_B_0", "VAR") -> 0.3460207612 | I39: =RTD("rtdtrading.rtdserver",, "ENBR3_B_0", "VARPTS") -> 0.08 | J39: =RTD("rtdtrading.rtdserver",, "ENBR3_B_0", "VOL") -> 12918337
B40: GOLL4 | C40: =RTD("rtdtrading.rtdserver",, "GOLL4_B_0", "ULT") -> 11.51 | D40: =RTD("rtdtrading.rtdserver",, "GOLL4_B_0", "ABE") -> 12.01 | E40: =RTD("rtdtrading.rtdserver",, "GOLL4_B_0", "MAX") -> 12.2 | F40: =RTD("rtdtrading.rtdserver",, "GOLL4_B_0", "MIN") -> 11.48 | G40: =RTD("rtdtrading.rtdserver",, "GOLL4_B_0", "FEC") -> 11.92 | H40: =RTD("rtdtrading.rtdserver",, "GOLL4_B_0", "VAR") -> -3.439597315 | I40: =RTD("rtdtrading.rtdserver",, "GOLL4_B_0", "VARPTS") -> -0.41 | J40: =RTD("rtdtrading.rtdserver",, "GOLL4_B_0", "VOL") -> 69130877
B41: MRFG3 | C41: =RTD("rtdtrading.rtdserver",, "MRFG3_B_0", "ULT") -> 14.09 | D41: =RTD("rtdtrading.rtdserver",, "MRFG3_B_0", "ABE") -> 14.37 | E41: =RTD("rtdtrading.rtdserver",, "MRFG3_B_0", "MAX") -> 14.46 | F41: =RTD("rtdtrading.rtdserver",, "MRFG3_B_0", "MIN") -> 13.86 | G41: =RTD("rtdtrading.rtdserver",, "MRFG3_B_0", "FEC") -> 14.31 | H41: =RTD("rtdtrading.rtdserver",, "MRFG3_B_0", "VAR") -> -1.537386443 | I41: =RTD("rtdtrading.rtdserver",, "MRFG3_B_0", "VARPTS") -> -0.22 | J41: =RTD("rtdtrading.rtdserver",, "MRFG3_B_0", "VOL") -> 47225217
B42: CCRO3 | C42: =RTD("rtdtrading.rtdserver",, "CCRO3_B_0", "ULT") -> 13.95 | D42: =RTD("rtdtrading.rtdserver",, "CCRO3_B_0", "ABE") -> 14.07 | E42: =RTD("rtdtrading.rtdserver",, "CCRO3_B_0", "MAX") -> 14.12 | F42: =RTD("rtdtrading.rtdserver",, "CCRO3_B_0", "MIN") -> 13.94 | G42: =RTD("rtdtrading.rtdserver",, "CCRO3_B_0", "FEC") -> 14.01 | H42: =RTD("rtdtrading.rtdserver",, "CCRO3_B_0", "VAR") -> -0.4282655246 | I42: =RTD("rtdtrading.rtdserver",, "CCRO3_B_0", "VARPTS") -> -0.06 | J42: =RTD("rtdtrading.rtdserver",, "CCRO3_B_0", "VOL") -> 32521020
B43: BRKM5 | C43: =RTD("rtdtrading.rtdserver",, "BRKM5_B_0", "ULT") -> 32.85 | D43: =RTD("rtdtrading.rtdserver",, "BRKM5_B_0", "ABE") -> 33.34 | E43: =RTD("rtdtrading.rtdserver",, "BRKM5_B_0", "MAX") -> 33.52 | F43: =RTD("rtdtrading.rtdserver",, "BRKM5_B_0", "MIN") -> 32.82 | G43: =RTD("rtdtrading.rtdserver",, "BRKM5_B_0", "FEC") -> 33.17 | H43: =RTD("rtdtrading.rtdserver",, "BRKM5_B_0", "VAR") -> -0.9647271631 | I43: =RTD("rtdtrading.rtdserver",, "BRKM5_B_0", "VARPTS") -> -0.32 | J43: =RTD("rtdtrading.rtdserver",, "BRKM5_B_0", "VOL") -> 13520978
B44: SANB11 | C44: =RTD("rtdtrading.rtdserver",, "SANB11_B_0", "ULT") -> 30.25 | D44: =RTD("rtdtrading.rtdserver",, "SANB11_B_0", "ABE") -> 30.38 | E44: =RTD("rtdtrading.rtdserver",, "SANB11_B_0", "MAX") -> 30.65 | F44: =RTD("rtdtrading.rtdserver",, "SANB11_B_0", "MIN") -> 30.25 | G44: =RTD("rtdtrading.rtdserver",, "SANB11_B_0", "FEC") -> 30.23 | H44: =RTD("rtdtrading.rtdserver",, "SANB11_B_0", "VAR") -> 0.06615944426 | I44: =RTD("rtdtrading.rtdserver",, "SANB11_B_0", "VARPTS") -> 0.02 | J44: =RTD("rtdtrading.rtdserver",, "SANB11_B_0", "VOL") -> 12720024
B45: NTCO3 | C45: =RTD("rtdtrading.rtdserver",, "NTCO3_B_0", "ULT") -> 15.63 | D45: =RTD("rtdtrading.rtdserver",, "NTCO3_B_0", "ABE") -> 16.7 | E45: =RTD("rtdtrading.rtdserver",, "NTCO3_B_0", "MAX") -> 16.78 | F45: =RTD("rtdtrading.rtdserver",, "NTCO3_B_0", "MIN") -> 15.56 | G45: =RTD("rtdtrading.rtdserver",, "NTCO3_B_0", "FEC") -> 16.64 | H45: =RTD("rtdtrading.rtdserver",, "NTCO3_B_0", "VAR") -> -6.069711538 | I45: =RTD("rtdtrading.rtdserver",, "NTCO3_B_0", "VARPTS") -> -1.01 | J45: =RTD("rtdtrading.rtdserver",, "NTCO3_B_0", "VOL") -> 61229207
B46: CYRE3 | C46: =RTD("rtdtrading.rtdserver",, "CYRE3_B_0", "ULT") -> 14.41 | D46: =RTD("rtdtrading.rtdserver",, "CYRE3_B_0", "ABE") -> 14.6 | E46: =RTD("rtdtrading.rtdserver",, "CYRE3_B_0", "MAX") -> 14.72 | F46: =RTD("rtdtrading.rtdserver",, "CYRE3_B_0", "MIN") -> 14.34 | G46: =RTD("rtdtrading.rtdserver",, "CYRE3_B_0", "FEC") -> 14.52 | H46: =RTD("rtdtrading.rtdserver",, "CYRE3_B_0", "VAR") -> -0.7575757576 | I46: =RTD("rtdtrading.rtdserver",, "CYRE3_B_0", "VARPTS") -> -0.11 | J46: =RTD("rtdtrading.rtdserver",, "CYRE3_B_0", "VOL") -> 16425426
B47: ELET3 | C47: =RTD("rtdtrading.rtdserver",, "ELET3_B_0", "ULT") -> 46.58 | D47: =RTD("rtdtrading.rtdserver",, "ELET3_B_0", "ABE") -> 47.09 | E47: =RTD("rtdtrading.rtdserver",, "ELET3_B_0", "MAX") -> 47.18 | F47: =RTD("rtdtrading.rtdserver",, "ELET3_B_0", "MIN") -> 46.41 | G47: =RTD("rtdtrading.rtdserver",, "ELET3_B_0", "FEC") -> 46.79 | H47: =RTD("rtdtrading.rtdserver",, "ELET3_B_0", "VAR") -> -0.4488138491 | I47: =RTD("rtdtrading.rtdserver",, "ELET3_B_0", "VARPTS") -> -0.21 | J47: =RTD("rtdtrading.rtdserver",, "ELET3_B_0", "VOL") -> 73123685
B48: IRBR3 | C48: =RTD("rtdtrading.rtdserver",, "IRBR3_B_0", "ULT") -> 1.95 | D48: =RTD("rtdtrading.rtdserver",, "IRBR3_B_0", "ABE") -> 2.07 | E48: =RTD("rtdtrading.rtdserver",, "IRBR3_B_0", "MAX") -> 2.1 | F48: =RTD("rtdtrading.rtdserver",, "IRBR3_B_0", "MIN") -> 1.95 | G48: =RTD("rtdtrading.rtdserver",, "IRBR3_B_0", "FEC") -> 2.06 | H48: =RTD("rtdtrading.rtdserver",, "IRBR3_B_0", "VAR") -> -5.339805825 | I48: =RTD("rtdtrading.rtdserver",, "IRBR3_B_0", "VARPTS") -> -0.11 | J48: =RTD("rtdtrading.rtdserver",, "IRBR3_B_0", "VOL") -> 49574199
B49: ELET6 | C49: =RTD("rtdtrading.rtdserver",, "ELET6_B_0", "ULT") -> 47.56 | D49: =RTD("rtdtrading.rtdserver",, "ELET6_B_0", "ABE") -> 47.93 | E49: =RTD("rtdtrading.rtdserver",, "ELET6_B_0", "MAX") -> 48.19 | F49: =RTD("rtdtrading.rtdserver",, "ELET6_B_0", "MIN") -> 47.23 | G49: =RTD("rtdtrading.rtdserver",, "ELET6_B_0", "FEC") -> 47.92 | H49: =RTD("rtdtrading.rtdserver",, "ELET6_B_0", "VAR") -> -0.7512520868 | I49: =RTD("rtdtrading.rtdserver",, "ELET6_B_0", "VARPTS") -> -0.36 | J49: =RTD("rtdtrading.rtdserver",, "ELET6_B_0", "VOL") -> 37331340
B50: PETZ3 | C50: =RTD("rtdtrading.rtdserver",, "PETZ3_B_0", "ULT") -> 10.64 | D50: =RTD("rtdtrading.rtdserver",, "PETZ3_B_0", "ABE") -> 10.97 | E50: =RTD("rtdtrading.rtdserver",, "PETZ3_B_0", "MAX") -> 11.15 | F50: =RTD("rtdtrading.rtdserver",, "PETZ3_B_0", "MIN") -> 10.5 | G50: =RTD("rtdtrading.rtdserver",, "PETZ3_B_0", "FEC") -> 10.93 | H50: =RTD("rtdtrading.rtdserver",, "PETZ3_B_0", "VAR") -> -2.653247941 | I50: =RTD("rtdtrading.rtdserver",, "PETZ3_B_0", "VARPTS") -> -0.29 | J50: =RTD("rtdtrading.rtdserver",, "PETZ3_B_0", "VOL") -> 77009297
B51: CRFB3 | C51: =RTD("rtdtrading.rtdserver",, "CRFB3_B_0", "ULT") -> 20.03 | D51: =RTD("rtdtrading.rtdserver",, "CRFB3_B_0", "ABE") -> 20.18 | E51: =RTD("rtdtrading.rtdserver",, "CRFB3_B_0", "MAX") -> 20.37 | F51: =RTD("rtdtrading.rtdserver",, "CRFB3_B_0", "MIN") -> 19.96 | G51: =RTD("rtdtrading.rtdserver",, "CRFB3_B_0", "FEC") -> 20.08 | H51: =RTD("rtdtrading.rtdserver",, "CRFB3_B_0", "VAR") -> -0.2490039841 | I51: =RTD("rtdtrading.rtdserver",, "CRFB3_B_0", "VARPTS") -> -0.05 | J51: =RTD("rtdtrading.rtdserver",, "CRFB3_B_0", "VOL") -> 14902513
B52: BEEF3 | C52: =RTD("rtdtrading.rtdserver",, "BEEF3_B_0", "ULT") -> 15.94 | D52: =RTD("rtdtrading.rtdserver",, "BEEF3_B_0", "ABE") -> 15.98 | E52: =RTD("rtdtrading.rtdserver",, "BEEF3_B_0", "MAX") -> 16.1 | F52: =RTD("rtdtrading.rtdserver",, "BEEF3_B_0", "MIN") -> 15.83 | G52: =RTD("rtdtrading.rtdserver",, "BEEF3_B_0", "FEC") -> 16.06 | H52: =RTD("rtdtrading.rtdserver",, "BEEF3_B_0", "VAR") -> -0.7471980075 | I52: =RTD("rtdtrading.rtdserver",, "BEEF3_B_0", "VARPTS") -> -0.12 | J52: =RTD("rtdtrading.rtdserver",, "BEEF3_B_0", "VOL") -> 24593298
B53: PCAR3 | C53: =RTD("rtdtrading.rtdserver",, "PCAR3_B_0", "ULT") -> 20.2 | D53: =RTD("rtdtrading.rtdserver",, "PCAR3_B_0", "ABE") -> 19.91 | E53: =RTD("rtdtrading.rtdserver",, "PCAR3_B_0", "MAX") -> 20.48 | F53: =RTD("rtdtrading.rtdserver",, "PCAR3_B_0", "MIN") -> 19.89 | G53: =RTD("rtdtrading.rtdserver",, "PCAR3_B_0", "FEC") -> 19.9 | H53: =RTD("rtdtrading.rtdserver",, "PCAR3_B_0", "VAR") -> 1.507537688 | I53: =RTD("rtdtrading.rtdserver",, "PCAR3_B_0", "VARPTS") -> 0.3 | J53: =RTD("rtdtrading.rtdserver",, "PCAR3_B_0", "VOL") -> 35390884
B54: RAIL3 | C54: =RTD("rtdtrading.rtdserver",, "RAIL3_B_0", "ULT") -> 20.18 | D54: =RTD("rtdtrading.rtdserver",, "RAIL3_B_0", "ABE") -> 20.49 | E54: =RTD("rtdtrading.rtdserver",, "RAIL3_B_0", "MAX") -> 20.52 | F54: =RTD("rtdtrading.rtdserver",, "RAIL3_B_0", "MIN") -> 20.15 | G54: =RTD("rtdtrading.rtdserver",, "RAIL3_B_0", "FEC") -> 20.29 | H54: =RTD("rtdtrading.rtdserver",, "RAIL3_B_0", "VAR") -> -0.5421389847 | I54: =RTD("rtdtrading.rtdserver",, "RAIL3_B_0", "VARPTS") -> -0.11 | J54: =RTD("rtdtrading.rtdserver",, "RAIL3_B_0", "VOL") -> 47322151
B55: YDUQ3 | C55: =RTD("rtdtrading.rtdserver",, "YDUQ3_B_0", "ULT") -> 12.78 | D55: =RTD("rtdtrading.rtdserver",, "YDUQ3_B_0", "ABE") -> 13 | E55: =RTD("rtdtrading.rtdserver",, "YDUQ3_B_0", "MAX") -> 13.34 | F55: =RTD("rtdtrading.rtdserver",, "YDUQ3_B_0", "MIN") -> 12.73 | G55: =RTD("rtdtrading.rtdserver",, "YDUQ3_B_0", "FEC") -> 13 | H55: =RTD("rtdtrading.rtdserver",, "YDUQ3_B_0", "VAR") -> -1.692307692 | I55: =RTD("rtdtrading.rtdserver",, "YDUQ3_B_0", "VARPTS") -> -0.22 | J55: =RTD("rtdtrading.rtdserver",, "YDUQ3_B_0", "VOL") -> 17226065
B56: SBSP3 | C56: =RTD("rtdtrading.rtdserver",, "SBSP3_B_0", "ULT") -> 48.17 | D56: =RTD("rtdtrading.rtdserver",, "SBSP3_B_0", "ABE") -> 48.65 | E56: =RTD("rtdtrading.rtdserver",, "SBSP3_B_0", "MAX") -> 48.65 | F56: =RTD("rtdtrading.rtdserver",, "SBSP3_B_0", "MIN") -> 47.88 | G56: =RTD("rtdtrading.rtdserver",, "SBSP3_B_0", "FEC") -> 48.46 | H56: =RTD("rtdtrading.rtdserver",, "SBSP3_B_0", "VAR") -> -0.5984316962 | I56: =RTD("rtdtrading.rtdserver",, "SBSP3_B_0", "VARPTS") -> -0.29 | J56: =RTD("rtdtrading.rtdserver",, "SBSP3_B_0", "VOL") -> 34449621
B57: ASAI3 | C57: =RTD("rtdtrading.rtdserver",, "ASAI3_B_0", "ULT") -> 17.83 | D57: =RTD("rtdtrading.rtdserver",, "ASAI3_B_0", "ABE") -> 17.96 | E57: =RTD("rtdtrading.rtdserver",, "ASAI3_B_0", "MAX") -> 18.08 | F57: =RTD("rtdtrading.rtdserver",, "ASAI3_B_0", "MIN") -> 17.81 | G57: =RTD("rtdtrading.rtdserver",, "ASAI3_B_0", "FEC") -> 17.95 | H57: =RTD("rtdtrading.rtdserver",, "ASAI3_B_0", "VAR") -> -0.6685236769 | I57: =RTD("rtdtrading.rtdserver",, "ASAI3_B_0", "VARPTS") -> -0.12 | J57: =RTD("rtdtrading.rtdserver",, "ASAI3_B_0", "VOL") -> 20569825
B58: VBBR3 | C58: =RTD("rtdtrading.rtdserver",, "VBBR3_B_0", "ULT") -> 18.47 | D58: =RTD("rtdtrading.rtdserver",, "VBBR3_B_0", "ABE") -> 18.72 | E58: =RTD("rtdtrading.rtdserver",, "VBBR3_B_0", "MAX") -> 18.88 | F58: =RTD("rtdtrading.rtdserver",, "VBBR3_B_0", "MIN") -> 18.43 | G58: =RTD("rtdtrading.rtdserver",, "VBBR3_B_0", "FEC") -> 18.67 | H58: =RTD("rtdtrading.rtdserver",, "VBBR3_B_0", "VAR") -> -1.071237279 | I58: =RTD("rtdtrading.rtdserver",, "VBBR3_B_0", "VARPTS") -> -0.2 | J58: =RTD("rtdtrading.rtdserver",, "VBBR3_B_0", "VOL") -> 30889121
B59: USIM5 | C59: =RTD("rtdtrading.rtdserver",, "USIM5_B_0", "ULT") -> 8.78 | D59: =RTD("rtdtrading.rtdserver",, "USIM5_B_0", "ABE") -> 8.8 | E59: =RTD("rtdtrading.rtdserver",, "USIM5_B_0", "MAX") -> 8.98 | F59: =RTD("rtdtrading.rtdserver",, "USIM5_B_0", "MIN") -> 8.72 | G59: =RTD("rtdtrading.rtdserver",, "USIM5_B_0", "FEC") -> 9.29 | H59: =RTD("rtdtrading.rtdserver",, "USIM5_B_0", "VAR") -> -5.48977395 | I59: =RTD("rtdtrading.rtdserver",, "USIM5_B_0", "VARPTS") -> -0.51 | J59: =RTD("rtdtrading.rtdserver",, "USIM5_B_0", "VOL") -> 311107024
B60: VIVT3 | C60: =RTD("rtdtrading.rtdserver",, "VIVT3_B_0", "ULT") -> 42.68 | D60: =RTD("rtdtrading.rtdserver",, "VIVT3_B_0", "ABE") -> 43.02 | E60: =RTD("rtdtrading.rtdserver",, "VIVT3_B_0", "MAX") -> 43.06 | F60: =RTD("rtdtrading.rtdserver",, "VIVT3_B_0", "MIN") -> 42.61 | G60: =RTD("rtdtrading.rtdserver",, "VIVT3_B_0", "FEC") -> 42.85 | H60: =RTD("rtdtrading.rtdserver",, "VIVT3_B_0", "VAR") -> -0.3967327888 | I60: =RTD("rtdtrading.rtdserver",, "VIVT3_B_0", "VARPTS") -> -0.17 | J60: =RTD("rtdtrading.rtdserver",, "VIVT3_B_0", "VOL") -> 18789333
B61: EQTL3 | C61: =RTD("rtdtrading.rtdserver",, "EQTL3_B_0", "ULT") -> 24.27 | D61: =RTD("rtdtrading.rtdserver",, "EQTL3_B_0", "ABE") -> 24.45 | E61: =RTD("rtdtrading.rtdserver",, "EQTL3_B_0", "MAX") -> 24.56 | F61: =RTD("rtdtrading.rtdserver",, "EQTL3_B_0", "MIN") -> 24.17 | G61: =RTD("rtdtrading.rtdserver",, "EQTL3_B_0", "FEC") -> 24.45 | H61: =RTD("rtdtrading.rtdserver",, "EQTL3_B_0", "VAR") -> -0.736196319 | I61: =RTD("rtdtrading.rtdserver",, "EQTL3_B_0", "VARPTS") -> -0.18 | J61: =RTD("rtdtrading.rtdserver",, "EQTL3_B_0", "VOL") -> 28647339
B62: CSNA3 | C62: =RTD("rtdtrading.rtdserver",, "CSNA3_B_0", "ULT") -> 15.23 | D62: =RTD("rtdtrading.rtdserver",, "CSNA3_B_0", "ABE") -> 16 | E62: =RTD("rtdtrading.rtdserver",, "CSNA3_B_0", "MAX") -> 16.14 | F62: =RTD("rtdtrading.rtdserver",, "CSNA3_B_0", "MIN") -> 15.2 | G62: =RTD("rtdtrading.rtdserver",, "CSNA3_B_0", "FEC") -> 15.96 | H62: =RTD("rtdtrading.rtdserver",, "CSNA3_B_0", "VAR") -> -4.573934837 | I62: =RTD("rtdtrading.rtdserver",, "CSNA3_B_0", "VARPTS") -> -0.73 | J62: =RTD("rtdtrading.rtdserver",, "CSNA3_B_0", "VOL") -> 106565459
B63: CMIN3 | C63: =RTD("rtdtrading.rtdserver",, "CMIN3_B_0", "ULT") -> 3.9 | D63: =RTD("rtdtrading.rtdserver",, "CMIN3_B_0", "ABE") -> 3.94 | E63: =RTD("rtdtrading.rtdserver",, "CMIN3_B_0", "MAX") -> 4.03 | F63: =RTD("rtdtrading.rtdserver",, "CMIN3_B_0", "MIN") -> 3.9 | G63: =RTD("rtdtrading.rtdserver",, "CMIN3_B_0", "FEC") -> 3.92 | H63: =RTD("rtdtrading.rtdserver",, "CMIN3_B_0", "VAR") -> -0.5102040816 | I63: =RTD("rtdtrading.rtdserver",, "CMIN3_B_0", "VARPTS") -> -0.02 | J63: =RTD("rtdtrading.rtdserver",, "CMIN3_B_0", "VOL") -> 14859052
B64: BRML3 | C64: =RTD("rtdtrading.rtdserver",, "BRML3_B_0", "ULT") -> 8.68 | D64: =RTD("rtdtrading.rtdserver",, "BRML3_B_0", "ABE") -> 8.77 | E64: =RTD("rtdtrading.rtdserver",, "BRML3_B_0", "MAX") -> 8.81 | F64: =RTD("rtdtrading.rtdserver",, "BRML3_B_0", "MIN") -> 8.64 | G64: =RTD("rtdtrading.rtdserver",, "BRML3_B_0", "FEC") -> 8.76 | H64: =RTD("rtdtrading.rtdserver",, "BRML3_B_0", "VAR") -> -0.9132420091 | I64: =RTD("rtdtrading.rtdserver",, "BRML3_B_0", "VARPTS") -> -0.08 | J64: =RTD("rtdtrading.rtdserver",, "BRML3_B_0", "VOL") -> 9499320
B65: LCAM3 | C65: =RTD("rtdtrading.rtdserver",, "LCAM3_B_0", "ULT") -> 23.3125 | D65: =RTD("rtdtrading.rtdserver",, "LCAM3_B_0", "ABE") -> 23.82 | E65: =RTD("rtdtrading.rtdserver",, "LCAM3_B_0", "MAX") -> 24.22 | F65: =RTD("rtdtrading.rtdserver",, "LCAM3_B_0", "MIN") -> 23.72 | G65: =RTD("rtdtrading.rtdserver",, "LCAM3_B_0", "FEC") -> 23.3125 | H65: =RTD("rtdtrading.rtdserver",, "LCAM3_B_0", "VAR") -> 0 | I65: =RTD("rtdtrading.rtdserver",, "LCAM3_B_0", "VARPTS") -> 0 | J65: =RTD("rtdtrading.rtdserver",, "LCAM3_B_0", "VOL") -> 629464014
B66: CMIG4 | C66: =RTD("rtdtrading.rtdserver",, "CMIG4_B_0", "ULT") -> 12.44 | D66: =RTD("rtdtrading.rtdserver",, "CMIG4_B_0", "ABE") -> 12.65 | E66: =RTD("rtdtrading.rtdserver",, "CMIG4_B_0", "MAX") -> 12.66 | F66: =RTD("rtdtrading.rtdserver",, "CMIG4_B_0", "MIN") -> 12.35 | G66: =RTD("rtdtrading.rtdserver",, "CMIG4_B_0", "FEC") -> 12.63 | H66: =RTD("rtdtrading.rtdserver",, "CMIG4_B_0", "VAR") -> -1.504354711 | I66: =RTD("rtdtrading.rtdserver",, "CMIG4_B_0", "VARPTS") -> -0.19 | J66: =RTD("rtdtrading.rtdserver",, "CMIG4_B_0", "VOL") -> 24986589
B67: POSI3 | C67: =RTD("rtdtrading.rtdserver",, "POSI3_B_0", "ULT") -> 11.56 | D67: =RTD("rtdtrading.rtdserver",, "POSI3_B_0", "ABE") -> 11.44 | E67: =RTD("rtdtrading.rtdserver",, "POSI3_B_0", "MAX") -> 11.75 | F67: =RTD("rtdtrading.rtdserver",, "POSI3_B_0", "MIN") -> 11.41 | G67: =RTD("rtdtrading.rtdserver",, "POSI3_B_0", "FEC") -> 11.47 | H67: =RTD("rtdtrading.rtdserver",, "POSI3_B_0", "VAR") -> 0.7846556234 | I67: =RTD("rtdtrading.rtdserver",, "POSI3_B_0", "VARPTS") -> 0.09 | J67: =RTD("rtdtrading.rtdserver",, "POSI3_B_0", "VOL") -> 10362779
B68: CPLE6 | C68: =RTD("rtdtrading.rtdserver",, "CPLE6_B_0", "ULT") -> 7.08 | D68: =RTD("rtdtrading.rtdserver",, "CPLE6_B_0", "ABE") -> 7.07 | E68: =RTD("rtdtrading.rtdserver",, "CPLE6_B_0", "MAX") -> 7.11 | F68: =RTD("rtdtrading.rtdserver",, "CPLE6_B_0", "MIN") -> 7.02 | G68: =RTD("rtdtrading.rtdserver",, "CPLE6_B_0", "FEC") -> 7.04 | H68: =RTD("rtdtrading.rtdserver",, "CPLE6_B_0", "VAR") -> 0.5681818182 | I68: =RTD("rtdtrading.rtdserver",, "CPLE6_B_0", "VARPTS") -> 0.04 | J68: =RTD("rtdtrading.rtdserver",, "CPLE6_B_0", "VOL") -> 11187074
B69: RENT3 | C69: =RTD("rtdtrading.rtdserver",, "RENT3_B_0", "ULT") -> 61.76 | D69: =RTD("rtdtrading.rtdserver",, "RENT3_B_0", "ABE") -> 63.4 | E69: =RTD("rtdtrading.rtdserver",, "RENT3_B_0", "MAX") -> 63.53 | F69: =RTD("rtdtrading.rtdserver",, "RENT3_B_0", "MIN") -> 61.53 | G69: =RTD("rtdtrading.rtdserver",, "RENT3_B_0", "FEC") -> 63.65 | H69: =RTD("rtdtrading.rtdserver",, "RENT3_B_0", "VAR") -> -2.969363708 | I69: =RTD("rtdtrading.rtdserver",, "RENT3_B_0", "VARPTS") -> -1.89 | J69: =RTD("rtdtrading.rtdserver",, "RENT3_B_0", "VOL") -> 151679192
B70: BRAP4 | C70: =RTD("rtdtrading.rtdserver",, "BRAP4_B_0", "ULT") -> 23.15 | D70: =RTD("rtdtrading.rtdserver",, "BRAP4_B_0", "ABE") -> 23.69 | E70: =RTD("rtdtrading.rtdserver",, "BRAP4_B_0", "MAX") -> 23.98 | F70: =RTD("rtdtrading.rtdserver",, "BRAP4_B_0", "MIN") -> 23.13 | G70: =RTD("rtdtrading.rtdserver",, "BRAP4_B_0", "FEC") -> 23.51 | H70: =RTD("rtdtrading.rtdserver",, "BRAP4_B_0", "VAR") -> -1.531263292 | I70: =RTD("rtdtrading.rtdserver",, "BRAP4_B_0", "VARPTS") -> -0.36 | J70: =RTD("rtdtrading.rtdserver",, "BRAP4_B_0", "VOL") -> 24247888
B71: CPFE3 | C71: =RTD("rtdtrading.rtdserver",, "CPFE3_B_0", "ULT") -> 35.7 | D71: =RTD("rtdtrading.rtdserver",, "CPFE3_B_0", "ABE") -> 35.63 | E71: =RTD("rtdtrading.rtdserver",, "CPFE3_B_0", "MAX") -> 35.82 | F71: =RTD("rtdtrading.rtdserver",, "CPFE3_B_0", "MIN") -> 35.08 | G71: =RTD("rtdtrading.rtdserver",, "CPFE3_B_0", "FEC") -> 35.6 | H71: =RTD("rtdtrading.rtdserver",, "CPFE3_B_0", "VAR") -> 0.2808988764 | I71: =RTD("rtdtrading.rtdserver",, "CPFE3_B_0", "VARPTS") -> 0.1 | J71: =RTD("rtdtrading.rtdserver",, "CPFE3_B_0", "VOL") -> 22956300
B72: SOMA3 | C72: =RTD("rtdtrading.rtdserver",, "SOMA3_B_0", "ULT") -> 13.1 | D72: =RTD("rtdtrading.rtdserver",, "SOMA3_B_0", "ABE") -> 13.43 | E72: =RTD("rtdtrading.rtdserver",, "SOMA3_B_0", "MAX") -> 13.53 | F72: =RTD("rtdtrading.rtdserver",, "SOMA3_B_0", "MIN") -> 13.09 | G72: =RTD("rtdtrading.rtdserver",, "SOMA3_B_0", "FEC") -> 13.33 | H72: =RTD("rtdtrading.rtdserver",, "SOMA3_B_0", "VAR") -> -1.725431358 | I72: =RTD("rtdtrading.rtdserver",, "SOMA3_B_0", "VARPTS") -> -0.23 | J72: =RTD("rtdtrading.rtdserver",, "SOMA3_B_0", "VOL") -> 12113057
B73: IGTI11 | C73: =RTD("rtdtrading.rtdserver",, "IGTI11_B_0", "ULT") -> 20.65 | D73: =RTD("rtdtrading.rtdserver",, "IGTI11_B_0", "ABE") -> 20.93 | E73: =RTD("rtdtrading.rtdserver",, "IGTI11_B_0", "MAX") -> 21.03 | F73: =RTD("rtdtrading.rtdserver",, "IGTI11_B_0", "MIN") -> 20.6 | G73: =RTD("rtdtrading.rtdserver",, "IGTI11_B_0", "FEC") -> 20.92 | H73: =RTD("rtdtrading.rtdserver",, "IGTI11_B_0", "VAR") -> -1.290630975 | I73: =RTD("rtdtrading.rtdserver",, "IGTI11_B_0", "VARPTS") -> -0.27 | J73: =RTD("rtdtrading.rtdserver",, "IGTI11_B_0", "VOL") -> 10895206
B74: SLCE3 | C74: =RTD("rtdtrading.rtdserver",, "SLCE3_B_0", "ULT") -> 47.73 | D74: =RTD("rtdtrading.rtdserver",, "SLCE3_B_0", "ABE") -> 48.12 | E74: =RTD("rtdtrading.rtdserver",, "SLCE3_B_0", "MAX") -> 48.36 | F74: =RTD("rtdtrading.rtdserver",, "SLCE3_B_0", "MIN") -> 47.57 | G74: =RTD("rtdtrading.rtdserver",, "SLCE3_B_0", "FEC") -> 47.89 | H74: =RTD("rtdtrading.rtdserver",, "SLCE3_B_0", "VAR") -> -0.3340989768 | I74: =RTD("rtdtrading.rtdserver",, "SLCE3_B_0", "VARPTS") -> -0.16 | J74: =RTD("rtdtrading.rtdserver",, "SLCE3_B_0", "VOL") -> 17273380
B75: SUZB3 | C75: =RTD("rtdtrading.rtdserver",, "SUZB3_B_0", "ULT") -> 45.88 | D75: =RTD("rtdtrading.rtdserver",, "SUZB3_B_0", "ABE") -> 47.37 | E75: =RTD("rtdtrading.rtdserver",, "SUZB3_B_0", "MAX") -> 47.69 | F75: =RTD("rtdtrading.rtdserver",, "SUZB3_B_0", "MIN") -> 45.87 | G75: =RTD("rtdtrading.rtdserver",, "SUZB3_B_0", "FEC") -> 47.32 | H75: =RTD("rtdtrading.rtdserver",, "SUZB3_B_0", "VAR") -> -3.043110735 | I75: =RTD("rtdtrading.rtdserver",, "SUZB3_B_0", "VARPTS") -> -1.44 | J75: =RTD("rtdtrading.rtdserver",, "SUZB3_B_0", "VOL") -> 225653126
B76: QUAL3 | C76: =RTD("rtdtrading.rtdserver",, "QUAL3_B_0", "ULT") -> 10.29 | D76: =RTD("rtdtrading.rtdserver",, "QUAL3_B_0", "ABE") -> 10.5 | E76: =RTD("rtdtrading.rtdserver",, "QUAL3_B_0", "MAX") -> 10.61 | F76: =RTD("rtdtrading.rtdserver",, "QUAL3_B_0", "MIN") -> 10.28 | G76: =RTD("rtdtrading.rtdserver",, "QUAL3_B_0", "FEC") -> 10.44 | H76: =RTD("rtdtrading.rtdserver",, "QUAL3_B_0", "VAR") -> -1.436781609 | I76: =RTD("rtdtrading.rtdserver",, "QUAL3_B_0", "VARPTS") -> -0.15 | J76: =RTD("rtdtrading.rtdserver",, "QUAL3_B_0", "VOL") -> 5444848
B77: CSAN3 | C77: =RTD("rtdtrading.rtdserver",, "CSAN3_B_0", "ULT") -> 20.49 | D77: =RTD("rtdtrading.rtdserver",, "CSAN3_B_0", "ABE") -> 20.87 | E77: =RTD("rtdtrading.rtdserver",, "CSAN3_B_0", "MAX") -> 20.97 | F77: =RTD("rtdtrading.rtdserver",, "CSAN3_B_0", "MIN") -> 20.46 | G77: =RTD("rtdtrading.rtdserver",, "CSAN3_B_0", "FEC") -> 20.77 | H77: =RTD("rtdtrading.rtdserver",, "CSAN3_B_0", "VAR") -> -1.348098219 | I77: =RTD("rtdtrading.rtdserver",, "CSAN3_B_0", "VARPTS") -> -0.28 | J77: =RTD("rtdtrading.rtdserver",, "CSAN3_B_0", "VOL") -> 14739691
B78: VIIA3 | C78: =RTD("rtdtrading.rtdserver",, "VIIA3_B_0", "ULT") -> 3.28 | D78: =RTD("rtdtrading.rtdserver",, "VIIA3_B_0", "ABE") -> 3.41 | E78: =RTD("rtdtrading.rtdserver",, "VIIA3_B_0", "MAX") -> 3.43 | F78: =RTD("rtdtrading.rtdserver",, "VIIA3_B_0", "MIN") -> 3.26 | G78: =RTD("rtdtrading.rtdserver",, "VIIA3_B_0", "FEC") -> 3.38 | H78: =RTD("rtdtrading.rtdserver",, "VIIA3_B_0", "VAR") -> -2.958579882 | I78: =RTD("rtdtrading.rtdserver",, "VIIA3_B_0", "VARPTS") -> -0.1 | J78: =RTD("rtdtrading.rtdserver",, "VIIA3_B_0", "VOL") -> 108588203
B79: KLBN11 | C79: =RTD("rtdtrading.rtdserver",, "KLBN11_B_0", "ULT") -> 19.76 | D79: =RTD("rtdtrading.rtdserver",, "KLBN11_B_0", "ABE") -> 20.13 | E79: =RTD("rtdtrading.rtdserver",, "KLBN11_B_0", "MAX") -> 20.34 | F79: =RTD("rtdtrading.rtdserver",, "KLBN11_B_0", "MIN") -> 19.72 | G79: =RTD("rtdtrading.rtdserver",, "KLBN11_B_0", "FEC") -> 20.09 | H79: =RTD("rtdtrading.rtdserver",, "KLBN11_B_0", "VAR") -> -1.642608263 | I79: =RTD("rtdtrading.rtdserver",, "KLBN11_B_0", "VARPTS") -> -0.33 | J79: =RTD("rtdtrading.rtdserver",, "KLBN11_B_0", "VOL") -> 53727164
B80: TAEE11 | C80: =RTD("rtdtrading.rtdserver",, "TAEE11_B_0", "ULT") -> 40.59 | D80: =RTD("rtdtrading.rtdserver",, "TAEE11_B_0", "ABE") -> 40.38 | E80: =RTD("rtdtrading.rtdserver",, "TAEE11_B_0", "MAX") -> 40.66 | F80: =RTD("rtdtrading.rtdserver",, "TAEE11_B_0", "MIN") -> 40.36 | G80: =RTD("rtdtrading.rtdserver",, "TAEE11_B_0", "FEC") -> 40.37 | H80: =RTD("rtdtrading.rtdserver",, "TAEE11_B_0", "VAR") -> 0.5449591281 | I80: =RTD("rtdtrading.rtdserver",, "TAEE11_B_0", "VARPTS") -> 0.22 | J80: =RTD("rtdtrading.rtdserver",, "TAEE11_B_0", "VOL") -> 12096280
B81: CIEL3 | C81: =RTD("rtdtrading.rtdserver",, "CIEL3_B_0", "ULT") -> 5.94 | D81: =RTD("rtdtrading.rtdserver",, "CIEL3_B_0", "ABE") -> 5.87 | E81: =RTD("rtdtrading.rtdserver",, "CIEL3_B_0", "MAX") -> 6.22 | F81: =RTD("rtdtrading.rtdserver",, "CIEL3_B_0", "MIN") -> 5.86 | G81: =RTD("rtdtrading.rtdserver",, "CIEL3_B_0", "FEC") -> 5.79 | H81: =RTD("rtdtrading.rtdserver",, "CIEL3_B_0", "VAR") -> 2.590673575 | I81: =RTD("rtdtrading.rtdserver",, "CIEL3_B_0", "VARPTS") -> 0.15 | J81: =RTD("rtdtrading.rtdserver",, "CIEL3_B_0", "VOL") -> 196919216
B82: BPAN4 | C82: =RTD("rtdtrading.rtdserver",, "BPAN4_B_0", "ULT") -> 7.13 | D82: =RTD("rtdtrading.rtdserver",, "BPAN4_B_0", "ABE") -> 7.36 | E82: =RTD("rtdtrading.rtdserver",, "BPAN4_B_0", "MAX") -> 7.36 | F82: =RTD("rtdtrading.rtdserver",, "BPAN4_B_0", "MIN") -> 7.13 | G82: =RTD("rtdtrading.rtdserver",, "BPAN4_B_0", "FEC") -> 7.32 | H82: =RTD("rtdtrading.rtdserver",, "BPAN4_B_0", "VAR") -> -2.595628415 | I82: =RTD("rtdtrading.rtdserver",, "BPAN4_B_0", "VARPTS") -> -0.19 | J82: =RTD("rtdtrading.rtdserver",, "BPAN4_B_0", "VOL") -> 4493131
B83: EGIE3 | C83: =RTD("rtdtrading.rtdserver",, "EGIE3_B_0", "ULT") -> 40.71 | D83: =RTD("rtdtrading.rtdserver",, "EGIE3_B_0", "ABE") -> 40.65 | E83: =RTD("rtdtrading.rtdserver",, "EGIE3_B_0", "MAX") -> 40.75 | F83: =RTD("rtdtrading.rtdserver",, "EGIE3_B_0", "MIN") -> 40.25 | G83: =RTD("rtdtrading.rtdserver",, "EGIE3_B_0", "FEC") -> 40.61 | H83: =RTD("rtdtrading.rtdserver",, "EGIE3_B_0", "VAR") -> 0.2462447673 | I83: =RTD("rtdtrading.rtdserver",, "EGIE3_B_0", "VARPTS") -> 0.1 | J83: =RTD("rtdtrading.rtdserver",, "EGIE3_B_0", "VOL") -> 15310211
B84: JBSS3 | C84: =RTD("rtdtrading.rtdserver",, "JBSS3_B_0", "ULT") -> 29.92 | D84: =RTD("rtdtrading.rtdserver",, "JBSS3_B_0", "ABE") -> 30.88 | E84: =RTD("rtdtrading.rtdserver",, "JBSS3_B_0", "MAX") -> 30.94 | F84: =RTD("rtdtrading.rtdserver",, "JBSS3_B_0", "MIN") -> 29.9 | G84: =RTD("rtdtrading.rtdserver",, "JBSS3_B_0", "FEC") -> 30.72 | H84: =RTD("rtdtrading.rtdserver",, "JBSS3_B_0", "VAR") -> -2.604166667 | I84: =RTD("rtdtrading.rtdserver",, "JBSS3_B_0", "VARPTS") -> -0.8 | J84: =RTD("rtdtrading.rtdserver",, "JBSS3_B_0", "VOL") -> 67856101
B85: GOAU4 | C85: =RTD("rtdtrading.rtdserver",, "GOAU4_B_0", "ULT") -> 10.13 | D85: =RTD("rtdtrading.rtdserver",, "GOAU4_B_0", "ABE") -> 10.38 | E85: =RTD("rtdtrading.rtdserver",, "GOAU4_B_0", "MAX") -> 10.48 | F85: =RTD("rtdtrading.rtdserver",, "GOAU4_B_0", "MIN") -> 10.12 | G85: =RTD("rtdtrading.rtdserver",, "GOAU4_B_0", "FEC") -> 10.32 | H85: =RTD("rtdtrading.rtdserver",, "GOAU4_B_0", "VAR") -> -1.841085271 | I85: =RTD("rtdtrading.rtdserver",, "GOAU4_B_0", "VARPTS") -> -0.19 | J85: =RTD("rtdtrading.rtdserver",, "GOAU4_B_0", "VOL") -> 17936376
B86: GGBR4 | C86: =RTD("rtdtrading.rtdserver",, "GGBR4_B_0", "ULT") -> 24.22 | D86: =RTD("rtdtrading.rtdserver",, "GGBR4_B_0", "ABE") -> 24.99 | E86: =RTD("rtdtrading.rtdserver",, "GGBR4_B_0", "MAX") -> 25.11 | F86: =RTD("rtdtrading.rtdserver",, "GGBR4_B_0", "MIN") -> 24.16 | G86: =RTD("rtdtrading.rtdserver",, "GGBR4_B_0", "FEC") -> 24.67 | H86: =RTD("rtdtrading.rtdserver",, "GGBR4_B_0", "VAR") -> -1.824077827 | I86: =RTD("rtdtrading.rtdserver",, "GGBR4_B_0", "VARPTS") -> -0.45 | J86: =RTD("rtdtrading.rtdserver",, "GGBR4_B_0", "VOL") -> 91207233
B87: EZTC3 | C87: =RTD("rtdtrading.rtdserver",, "EZTC3_B_0", "ULT") -> 18.26 | D87: =RTD("rtdtrading.rtdserver",, "EZTC3_B_0", "ABE") -> 18.47 | E87: =RTD("rtdtrading.rtdserver",, "EZTC3_B_0", "MAX") -> 18.69 | F87: =RTD("rtdtrading.rtdserver",, "EZTC3_B_0", "MIN") -> 18.19 | G87: =RTD("rtdtrading.rtdserver",, "EZTC3_B_0", "FEC") -> 18.47 | H87: =RTD("rtdtrading.rtdserver",, "EZTC3_B_0", "VAR") -> -1.136978885 | I87: =RTD("rtdtrading.rtdserver",, "EZTC3_B_0", "VARPTS") -> -0.21 | J87: =RTD("rtdtrading.rtdserver",, "EZTC3_B_0", "VOL") -> 7025746
B88: PETR4 | C88: =RTD("rtdtrading.rtdserver",, "PETR4_B_0", "ULT") -> 33.02 | D88: =RTD("rtdtrading.rtdserver",, "PETR4_B_0", "ABE") -> 33.28 | E88: =RTD("rtdtrading.rtdserver",, "PETR4_B_0", "MAX") -> 33.39 | F88: =RTD("rtdtrading.rtdserver",, "PETR4_B_0", "MIN") -> 32.57 | G88: =RTD("rtdtrading.rtdserver",, "PETR4_B_0", "FEC") -> 33.28 | H88: =RTD("rtdtrading.rtdserver",, "PETR4_B_0", "VAR") -> -0.78125 | I88: =RTD("rtdtrading.rtdserver",, "PETR4_B_0", "VARPTS") -> -0.26 | J88: =RTD("rtdtrading.rtdserver",, "PETR4_B_0", "VOL") -> 1128576330
B89: PETR3 | C89: =RTD("rtdtrading.rtdserver",, "PETR3_B_0", "ULT") -> 36.94 | D89: =RTD("rtdtrading.rtdserver",, "PETR3_B_0", "ABE") -> 37.21 | E89: =RTD("rtdtrading.rtdserver",, "PETR3_B_0", "MAX") -> 37.21 | F89: =RTD("rtdtrading.rtdserver",, "PETR3_B_0", "MIN") -> 36.37 | G89: =RTD("rtdtrading.rtdserver",, "PETR3_B_0", "FEC") -> 37.09 | H89: =RTD("rtdtrading.rtdserver",, "PETR3_B_0", "VAR") -> -0.404421677 | I89: =RTD("rtdtrading.rtdserver",, "PETR3_B_0", "VARPTS") -> -0.15 | J89: =RTD("rtdtrading.rtdserver",, "PETR3_B_0", "VOL") -> 189412943
B90: UGPA3 | C90: =RTD("rtdtrading.rtdserver",, "UGPA3_B_0", "ULT") -> 13.99 | D90: =RTD("rtdtrading.rtdserver",, "UGPA3_B_0", "ABE") -> 14.11 | E90: =RTD("rtdtrading.rtdserver",, "UGPA3_B_0", "MAX") -> 14.2 | F90: =RTD("rtdtrading.rtdserver",, "UGPA3_B_0", "MIN") -> 13.95 | G90: =RTD("rtdtrading.rtdserver",, "UGPA3_B_0", "FEC") -> 14.05 | H90: =RTD("rtdtrading.rtdserver",, "UGPA3_B_0", "VAR") -> -0.4270462633 | I90: =RTD("rtdtrading.rtdserver",, "UGPA3_B_0", "VARPTS") -> -0.06 | J90: =RTD("rtdtrading.rtdserver",, "UGPA3_B_0", "VOL") -> 9946781
B91: ITSA4 | C91: =RTD("rtdtrading.rtdserver",, "ITSA4_B_0", "ULT") -> 9.32 | D91: =RTD("rtdtrading.rtdserver",, "ITSA4_B_0", "ABE") -> 9.39 | E91: =RTD("rtdtrading.rtdserver",, "ITSA4_B_0", "MAX") -> 9.46 | F91: =RTD("rtdtrading.rtdserver",, "ITSA4_B_0", "MIN") -> 9.32 | G91: =RTD("rtdtrading.rtdserver",, "ITSA4_B_0", "FEC") -> 9.38 | H91: =RTD("rtdtrading.rtdserver",, "ITSA4_B_0", "VAR") -> -0.6396588486 | I91: =RTD("rtdtrading.rtdserver",, "ITSA4_B_0", "VARPTS") -> -0.06 | J91: =RTD("rtdtrading.rtdserver",, "ITSA4_B_0", "VOL") -> 38640120
B92: ITUB4 | C92: =RTD("rtdtrading.rtdserver",, "ITUB4_B_0", "ULT") -> 26.71 | D92: =RTD("rtdtrading.rtdserver",, "ITUB4_B_0", "ABE") -> 26.9 | E92: =RTD("rtdtrading.rtdserver",, "ITUB4_B_0", "MAX") -> 27.14 | F92: =RTD("rtdtrading.rtdserver",, "ITUB4_B_0", "MIN") -> 26.71 | G92: =RTD("rtdtrading.rtdserver",, "ITUB4_B_0", "FEC") -> 26.85 | H92: =RTD("rtdtrading.rtdserver",, "ITUB4_B_0", "VAR") -> -0.52141527 | I92: =RTD("rtdtrading.rtdserver",, "ITUB4_B_0", "VARPTS") -> -0.14 | J92: =RTD("rtdtrading.rtdserver",, "ITUB4_B_0", "VOL") -> 165061652
B93: BBDC3 | C93: =RTD("rtdtrading.rtdserver",, "BBDC3_B_0", "ULT") -> 16.12 | D93: =RTD("rtdtrading.rtdserver",, "BBDC3_B_0", "ABE") -> 16.19 | E93: =RTD("rtdtrading.rtdserver",, "BBDC3_B_0", "MAX") -> 16.37 | F93: =RTD("rtdtrading.rtdserver",, "BBDC3_B_0", "MIN") -> 16.12 | G93: =RTD("rtdtrading.rtdserver",, "BBDC3_B_0", "FEC") -> 16.17 | H93: =RTD("rtdtrading.rtdserver",, "BBDC3_B_0", "VAR") -> -0.3092145949 | I93: =RTD("rtdtrading.rtdserver",, "BBDC3_B_0", "VARPTS") -> -0.05 | J93: =RTD("rtdtrading.rtdserver",, "BBDC3_B_0", "VOL") -> 32927660
B94: BBDC4 | C94: =RTD("rtdtrading.rtdserver",, "BBDC4_B_0", "ULT") -> 19.5 | D94: =RTD("rtdtrading.rtdserver",, "BBDC4_B_0", "ABE") -> 19.6 | E94: =RTD("rtdtrading.rtdserver",, "BBDC4_B_0", "MAX") -> 19.82 | F94: =RTD("rtdtrading.rtdserver",, "BBDC4_B_0", "MIN") -> 19.5 | G94: =RTD("rtdtrading.rtdserver",, "BBDC4_B_0", "FEC") -> 19.51 | H94: =RTD("rtdtrading.rtdserver",, "BBDC4_B_0", "VAR") -> -0.05125576627 | I94: =RTD("rtdtrading.rtdserver",, "BBDC4_B_0", "VARPTS") -> -0.01 | J94: =RTD("rtdtrading.rtdserver",, "BBDC4_B_0", "VOL") -> 293906597
B95: MGLU3 | C95: =RTD("rtdtrading.rtdserver",, "MGLU3_B_0", "ULT") -> 4.51 | D95: =RTD("rtdtrading.rtdserver",, "MGLU3_B_0", "ABE") -> 4.73 | E95: =RTD("rtdtrading.rtdserver",, "MGLU3_B_0", "MAX") -> 4.76 | F95: =RTD("rtdtrading.rtdserver",, "MGLU3_B_0", "MIN") -> 4.49 | G95: =RTD("rtdtrading.rtdserver",, "MGLU3_B_0", "FEC") -> 4.68 | H95: =RTD("rtdtrading.rtdserver",, "MGLU3_B_0", "VAR") -> -3.632478632 | I95: =RTD("rtdtrading.rtdserver",, "MGLU3_B_0", "VARPTS") -> -0.17 | J95: =RTD("rtdtrading.rtdserver",, "MGLU3_B_0", "VOL") -> 377307001
B96: BBAS3 | C96: =RTD("rtdtrading.rtdserver",, "BBAS3_B_0", "ULT") -> 41.38 | D96: =RTD("rtdtrading.rtdserver",, "BBAS3_B_0", "ABE") -> 41.88 | E96: =RTD("rtdtrading.rtdserver",, "BBAS3_B_0", "MAX") -> 42.03 | F96: =RTD("rtdtrading.rtdserver",, "BBAS3_B_0", "MIN") -> 41.12 | G96: =RTD("rtdtrading.rtdserver",, "BBAS3_B_0", "FEC") -> 41.8 | H96: =RTD("rtdtrading.rtdserver",, "BBAS3_B_0", "VAR") -> -1.004784689 | I96: =RTD("rtdtrading.rtdserver",, "BBAS3_B_0", "VARPTS") -> -0.42 | J96: =RTD("rtdtrading.rtdserver",, "BBAS3_B_0", "VOL") -> 157061208
G99: POSITIVAS | H99: =COUNTIF(H5:H96,">0") -> 15
G100: NEGATIVAS | H100: =COUNTIF(H5:H96,"<0") -> 75
B102: PRINCIPAIS AÇOES | K102: =SUM(J104:J106) -> 2376848305
B103: Asset | C103: Último | D103: Abertura | E103: Máximo | F103: Mínimo | G103: Fechamento Anterior | H103: Variação | I103: Variação(pts) | J103: Volume
B104: =B29 -> VALE3 | C104: 68.82 | D104: 69.65 | E104: 71.2 | F104: 68.71 | G104: 69.27 | H104: -0.6496318753 | I104: -0.45 | J104: 1083210323 | K104: =SUM(H104:H106) -> -1.952297145
B105: ITUB4 | C105: =RTD("rtdtrading.rtdserver",, "ITUB4_B_0", "ULT") -> 26.71 | D105: =RTD("rtdtrading.rtdserver",, "ITUB4_B_0", "ABE") -> 26.9 | E105: =RTD("rtdtrading.rtdserver",, "ITUB4_B_0", "MAX") -> 27.14 | F105: =RTD("rtdtrading.rtdserver",, "ITUB4_B_0", "MIN") -> 26.71 | G105: =RTD("rtdtrading.rtdserver",, "ITUB4_B_0", "FEC") -> 26.85 | H105: =RTD("rtdtrading.rtdserver",, "ITUB4_B_0", "VAR") -> -0.52141527 | I105: =RTD("rtdtrading.rtdserver",, "ITUB4_B_0", "VARPTS") -> -0.14 | J105: =RTD("rtdtrading.rtdserver",, "ITUB4_B_0", "VOL") -> 165061652
B106: PETR4 | C106: =RTD("rtdtrading.rtdserver",, "PETR4_B_0", "ULT") -> 33.02 | D106: =RTD("rtdtrading.rtdserver",, "PETR4_B_0", "ABE") -> 33.28 | E106: =RTD("rtdtrading.rtdserver",, "PETR4_B_0", "MAX") -> 33.39 | F106: =RTD("rtdtrading.rtdserver",, "PETR4_B_0", "MIN") -> 32.57 | G106: =RTD("rtdtrading.rtdserver",, "PETR4_B_0", "FEC") -> 33.28 | H106: =RTD("rtdtrading.rtdserver",, "PETR4_B_0", "VAR") -> -0.78125 | I106: =RTD("rtdtrading.rtdserver",, "PETR4_B_0", "VARPTS") -> -0.26 | J106: =RTD("rtdtrading.rtdserver",, "PETR4_B_0", "VOL") -> 1128576330
B109: Asset | C109: Último | D109: Abertura | E109: Máximo | F109: Mínimo | G109: Fechamento Anterior | H109: Variação | I109: Variação(pts) | J109: Volume | K109: TR - Acúmulo de Agressão - Saldo | L109: TR - Volume de Agressão - Saldo
B110: PETR4 | C110: =RTD("rtdtrading.rtdserver",, "PETR4_B_0", "ULT") -> 33.02 | D110: =RTD("rtdtrading.rtdserver",, "PETR4_B_0", "ABE") -> 33.28 | E110: =RTD("rtdtrading.rtdserver",, "PETR4_B_0", "MAX") -> 33.39 | F110: =RTD("rtdtrading.rtdserver",, "PETR4_B_0", "MIN") -> 32.57 | G110: =RTD("rtdtrading.rtdserver",, "PETR4_B_0", "FEC") -> 33.28 | H110: =RTD("rtdtrading.rtdserver",, "PETR4_B_0", "VAR") -> -0.78125 | I110: =RTD("rtdtrading.rtdserver",, "PETR4_B_0", "VARPTS") -> -0.26 | J110: =RTD("rtdtrading.rtdserver",, "PETR4_B_0", "VOL") -> 1128576330 | K110: =RTD("rtdtrading.rtdserver",, "PETR4_B_0", "103") -> 814.700,00 | L110: =RTD("rtdtrading.rtdserver",, "PETR4_B_0", "100") -> 814.700
B111: VALE3 | C111: =RTD("rtdtrading.rtdserver",, "VALE3_B_0", "ULT") -> 68.82 | D111: =RTD("rtdtrading.rtdserver",, "VALE3_B_0", "ABE") -> 69.65 | E111: =RTD("rtdtrading.rtdserver",, "VALE3_B_0", "MAX") -> 71.2 | F111: =RTD("rtdtrading.rtdserver",, "VALE3_B_0", "MIN") -> 68.71 | G111: =RTD("rtdtrading.rtdserver",, "VALE3_B_0", "FEC") -> 69.27 | H111: =RTD("rtdtrading.rtdserver",, "VALE3_B_0", "VAR") -> -0.6496318753 | I111: =RTD("rtdtrading.rtdserver",, "VALE3_B_0", "VARPTS") -> -0.45 | J111: =RTD("rtdtrading.rtdserver",, "VALE3_B_0", "VOL") -> 1083210323 | K111: =RTD("rtdtrading.rtdserver",, "VALE3_B_0", "103") -> -244.400,00 | L111: =RTD("rtdtrading.rtdserver",, "VALE3_B_0", "100") -> -244.400
B112: ITUB4 | C112: =RTD("rtdtrading.rtdserver",, "ITUB4_B_0", "ULT") -> 26.71 | D112: =RTD("rtdtrading.rtdserver",, "ITUB4_B_0", "ABE") -> 26.9 | E112: =RTD("rtdtrading.rtdserver",, "ITUB4_B_0", "MAX") -> 27.14 | F112: =RTD("rtdtrading.rtdserver",, "ITUB4_B_0", "MIN") -> 26.71 | G112: =RTD("rtdtrading.rtdserver",, "ITUB4_B_0", "FEC") -> 26.85 | H112: =RTD("rtdtrading.rtdserver",, "ITUB4_B_0", "VAR") -> -0.52141527 | I112: =RTD("rtdtrading.rtdserver",, "ITUB4_B_0", "VARPTS") -> -0.14 | J112: =RTD("rtdtrading.rtdserver",, "ITUB4_B_0", "VOL") -> 165061652 | K112: =RTD("rtdtrading.rtdserver",, "ITUB4_B_0", "103") -> -196.400,00 | L112: =RTD("rtdtrading.rtdserver",, "ITUB4_B_0", "100") -> -196.400
K114: =SUM(K112+K111+K110) -> 373900

Sheet Profit (hidden)
D6: Asset | E6: Último | F6: Abertura | G6: Máximo | H6: Mínimo | I6: Fechamento Anterior | J6: Variação | K6: Aj. Anterior | L6: Preço Teórico | M6: SE | N6: QTD TEORICO | O6: TOTAL IBOV | R6: IBOV ONLINE | T6: =O97/O99 -> 
D7: RRRP3 | E7: =RTD("rtdtrading.rtdserver",, "RRRP3_B_0", "ULT") -> 36.89 | F7: =RTD("rtdtrading.rtdserver",, "RRRP3_B_0", "ABE") -> 37 | G7: =RTD("rtdtrading.rtdserver",, "RRRP3_B_0", "MAX") -> 37.43 | H7: =RTD("rtdtrading.rtdserver",, "RRRP3_B_0", "MIN") -> 36.66 | I7: =RTD("rtdtrading.rtdserver",, "RRRP3_B_0", "FEC") -> 36.95 | J7: =RTD("rtdtrading.rtdserver",, "RRRP3_B_0", "VAR") -> -0.1623815968 | K7: =RTD("rtdtrading.rtdserver",, "RRRP3_B_0", "AJA") -> 0 | L7: 0 | M7: =IF(L7=0,E7,L7) -> 36.89 | N7: 200372163 | O7: =M7*N7 -> 7391729093
D8: LWSA3 | E8: =RTD("rtdtrading.rtdserver",, "LWSA3_B_0", "ULT") -> 9.73 | F8: =RTD("rtdtrading.rtdserver",, "LWSA3_B_0", "ABE") -> 10.02 | G8: =RTD("rtdtrading.rtdserver",, "LWSA3_B_0", "MAX") -> 10.15 | H8: =RTD("rtdtrading.rtdserver",, "LWSA3_B_0", "MIN") -> 9.72 | I8: =RTD("rtdtrading.rtdserver",, "LWSA3_B_0", "FEC") -> 10.02 | J8: =RTD("rtdtrading.rtdserver",, "LWSA3_B_0", "VAR") -> -2.894211577 | K8: =RTD("rtdtrading.rtdserver",, "LWSA3_B_0", "AJA") -> 0 | L8: =RTD("rtdtrading.rtdserver",, "LWSA3_B_0", "PRT") -> 0 | M8: =IF(L8=0,E8,L8) -> 9.73 | N8: 201257220 | O8: =M8*N8 -> 1958232751
D9: ENEV3 | E9: =RTD("rtdtrading.rtdserver",, "ENEV3_B_0", "ULT") -> 15.28 | F9: =RTD("rtdtrading.rtdserver",, "ENEV3_B_0", "ABE") -> 15.46 | G9: =RTD("rtdtrading.rtdserver",, "ENEV3_B_0", "MAX") -> 15.52 | H9: =RTD("rtdtrading.rtdserver",, "ENEV3_B_0", "MIN") -> 15.24 | I9: =RTD("rtdtrading.rtdserver",, "ENEV3_B_0", "FEC") -> 15.38 | J9: =RTD("rtdtrading.rtdserver",, "ENEV3_B_0", "VAR") -> -0.6501950585 | K9: =RTD("rtdtrading.rtdserver",, "ENEV3_B_0", "AJA") -> 0 | L9: =RTD("rtdtrading.rtdserver",, "ENEV3_B_0", "PRT") -> 0 | M9: 15.28 | N9: 4380195841 | O9: 6.692939245e+10
D10: EMBR3 | E10: =RTD("rtdtrading.rtdserver",, "EMBR3_B_0", "ULT") -> 14.5 | F10: =RTD("rtdtrading.rtdserver",, "EMBR3_B_0", "ABE") -> 14.85 | G10: =RTD("rtdtrading.rtdserver",, "EMBR3_B_0", "MAX") -> 14.98 | H10: =RTD("rtdtrading.rtdserver",, "EMBR3_B_0", "MIN") -> 14.49 | I10: =RTD("rtdtrading.rtdserver",, "EMBR3_B_0", "FEC") -> 14.73 | J10: =RTD("rtdtrading.rtdserver",, "EMBR3_B_0", "VAR") -> -1.56143924 | K10: =RTD("rtdtrading.rtdserver",, "EMBR3_B_0", "AJA") -> 0 | L10: =RTD("rtdtrading.rtdserver",, "EMBR3_B_0", "PRT") -> 0 | M10: 14.5 | N10: 596875824 | O10: 8654699448
D11: COGN3 | E11: =RTD("rtdtrading.rtdserver",, "COGN3_B_0", "ULT") -> 2.62 | F11: =RTD("rtdtrading.rtdserver",, "COGN3_B_0", "ABE") -> 2.69 | G11: =RTD("rtdtrading.rtdserver",, "COGN3_B_0", "MAX") -> 2.73 | H11: =RTD("rtdtrading.rtdserver",, "COGN3_B_0", "MIN") -> 2.62 | I11: =RTD("rtdtrading.rtdserver",, "COGN3_B_0", "FEC") -> 2.67 | J11: =RTD("rtdtrading.rtdserver",, "COGN3_B_0", "VAR") -> -1.872659176 | K11: =RTD("rtdtrading.rtdserver",, "COGN3_B_0", "AJA") -> 0 | L11: =RTD("rtdtrading.rtdserver",, "COGN3_B_0", "PRT") -> 0 | M11: 2.62 | N11: 794531367 | O11: 2081672182
D12: PRIO3 | E12: =RTD("rtdtrading.rtdserver",, "PRIO3_B_0", "ULT") -> 26.35 | F12: =RTD("rtdtrading.rtdserver",, "PRIO3_B_0", "ABE") -> 26.48 | G12: =RTD("rtdtrading.rtdserver",, "PRIO3_B_0", "MAX") -> 26.69 | H12: =RTD("rtdtrading.rtdserver",, "PRIO3_B_0", "MIN") -> 26.23 | I12: =RTD("rtdtrading.rtdserver",, "PRIO3_B_0", "FEC") -> 26.39 | J12: =RTD("rtdtrading.rtdserver",, "PRIO3_B_0", "VAR") -> -0.1515725654 | K12: =RTD("rtdtrading.rtdserver",, "PRIO3_B_0", "AJA") -> 0 | L12: =RTD("rtdtrading.rtdserver",, "PRIO3_B_0", "PRT") -> 0 | M12: 26.35 | N12: 327741172 | O12: 8635979882
D13: BRFS3 | E13: =RTD("rtdtrading.rtdserver",, "BRFS3_B_0", "ULT") -> 16.1 | F13: =RTD("rtdtrading.rtdserver",, "BRFS3_B_0", "ABE") -> 16.55 | G13: =RTD("rtdtrading.rtdserver",, "BRFS3_B_0", "MAX") -> 16.61 | H13: =RTD("rtdtrading.rtdserver",, "BRFS3_B_0", "MIN") -> 16.05 | I13: =RTD("rtdtrading.rtdserver",, "BRFS3_B_0", "FEC") -> 16.47 | J13: =RTD("rtdtrading.rtdserver",, "BRFS3_B_0", "VAR") -> -2.246508804 | K13: =RTD("rtdtrading.rtdserver",, "BRFS3_B_0", "AJA") -> 0 | L13: =RTD("rtdtrading.rtdserver",, "BRFS3_B_0", "PRT") -> 0 | M13: 16.1 | N13: 5987625321 | O13: 9.640076767e+10 | Q13: =RTD("srv.rtd","","SQT","INDQ22","ARROWVAR") -> 1 | R13: INDQ22 | S13: =RTD("srv.rtd","","SQT","INDQ22","FLAG") -> 0 | T13: =RTD("srv.rtd","","SQT","INDQ22","DESC") -> IBOVESPA AGO/22 | U13: =RTD("srv.rtd","","SQT","INDQ22","LAST") -> 0 | V13: =RTD("srv.rtd","","SQT","INDQ22","TICK") -> 0 | W13: =RTD("srv.rtd","","SQT","INDQ22","VAR") -> 0 | X13: =RTD("srv.rtd","","SQT","INDQ22","TIME") -> 0.8125 | Y13: =RTD("srv.rtd","","SQT","INDQ22","BID") -> 0 | Z13: =RTD("srv.rtd","","SQT","INDQ22","ASK") -> 0 | AA13: =RTD("srv.rtd","","SQT","INDQ22","HIGH") -> 0 | AB13: =RTD("srv.rtd","","SQT","INDQ22","LOW") -> 0 | AC13: =RTD("srv.rtd","","SQT","INDQ22","OPEN") -> 0 | AD13: =RTD("srv.rtd","","SQT","INDQ22","CLOSE") -> 113780 | AE13: =RTD("srv.rtd","","SQT","INDQ22","VOLQ") -> 0 | AF13: =RTD("srv.rtd","","SQT","INDQ22","VOLF") -> 0 | AG13: =RTD("srv.rtd","","SQT","INDQ22","QTT") -> 0 | AH13: =RTD("srv.rtd","","SQT","INDQ22","DATE") -> 44790 | AI13: =RTD("srv.rtd","","SQT","INDQ22","ST") -> Fechado | AJ13: =RTD("srv.rtd","","SQT","INDQ22","TEOPR") -> 0 | AK13: =RTD("srv.rtd","","SQT","INDQ22","TEOVOL") -> 0 | AL13: =RTD("srv.rtd","","SQT","INDQ22","AJU") -> 0 | AM13: =RTD("srv.rtd","","SQT","INDQ22","AJULAST") -> 113589 | AN13: =RTD("srv.rtd","","SQT","INDQ22","DIF") -> 0
D14: CVCB3 | E14: =RTD("rtdtrading.rtdserver",, "CVCB3_B_0", "ULT") -> 7.9 | F14: =RTD("rtdtrading.rtdserver",, "CVCB3_B_0", "ABE") -> 8.29 | G14: =RTD("rtdtrading.rtdserver",, "CVCB3_B_0", "MAX") -> 8.43 | H14: =RTD("rtdtrading.rtdserver",, "CVCB3_B_0", "MIN") -> 7.88 | I14: =RTD("rtdtrading.rtdserver",, "CVCB3_B_0", "FEC") -> 8.22 | J14: =RTD("rtdtrading.rtdserver",, "CVCB3_B_0", "VAR") -> -3.892944039 | K14: =RTD("rtdtrading.rtdserver",, "CVCB3_B_0", "AJA") -> 0 | L14: =RTD("rtdtrading.rtdserver",, "CVCB3_B_0", "PRT") -> 0 | M14: 7.9 | N14: 341124068 | O14: 2694880137 | Q14: =RTD("srv.rtd","","SQT","INDV22","ARROWVAR") -> 0 | R14: INDV22 | S14: =RTD("srv.rtd","","SQT","INDV22","FLAG") -> 0 | T14: =RTD("srv.rtd","","SQT","INDV22","DESC") -> IBOVESPA OUT/22 | U14: =RTD("srv.rtd","","SQT","INDV22","LAST") -> 114115 | V14: =RTD("srv.rtd","","SQT","INDV22","TICK") -> - | W14: =RTD("srv.rtd","","SQT","INDV22","VAR") -> -0.9160371625 | X14: =RTD("srv.rtd","","SQT","INDV22","TIME") -> 0.505474537 | Y14: =RTD("srv.rtd","","SQT","INDV22","BID") -> 114100 | Z14: =RTD("srv.rtd","","SQT","INDV22","ASK") -> 114115 | AA14: =RTD("srv.rtd","","SQT","INDV22","HIGH") -> 115845 | AB14: =RTD("srv.rtd","","SQT","INDV22","LOW") -> 114070 | AC14: =RTD("srv.rtd","","SQT","INDV22","OPEN") -> 114960 | AD14: =RTD("srv.rtd","","SQT","INDV22","CLOSE") -> 115170 | AE14: =RTD("srv.rtd","","SQT","INDV22","VOLQ") -> 85725 | AF14: =RTD("srv.rtd","","SQT","INDV22","VOLF") -> 9826941700 | AG14: =RTD("srv.rtd","","SQT","INDV22","QTT") -> 15645 | AH14: =RTD("srv.rtd","","SQT","INDV22","DATE") -> 44799 | AI14: =RTD("srv.rtd","","SQT","INDV22","ST") -> Aberto | AJ14: =RTD("srv.rtd","","SQT","INDV22","TEOPR") -> 0 | AK14: =RTD("srv.rtd","","SQT","INDV22","TEOVOL") -> 0 | AL14: =RTD("srv.rtd","","SQT","INDV22","AJU") -> 0 | AM14: =RTD("srv.rtd","","SQT","INDV22","AJULAST") -> 115198 | AN14: =RTD("srv.rtd","","SQT","INDV22","DIF") -> -1055
D15: CASH3 | E15: =RTD("rtdtrading.rtdserver",, "CASH3_B_0", "ULT") -> 1.34 | F15: =RTD("rtdtrading.rtdserver",, "CASH3_B_0", "ABE") -> 1.36 | G15: =RTD("rtdtrading.rtdserver",, "CASH3_B_0", "MAX") -> 1.39 | H15: =RTD("rtdtrading.rtdserver",, "CASH3_B_0", "MIN") -> 1.33 | I15: =RTD("rtdtrading.rtdserver",, "CASH3_B_0", "FEC") -> 1.36 | J15: =RTD("rtdtrading.rtdserver",, "CASH3_B_0", "VAR") -> -1.470588235 | K15: =RTD("rtdtrading.rtdserver",, "CASH3_B_0", "AJA") -> 0 | L15: =RTD("rtdtrading.rtdserver",, "CASH3_B_0", "PRT") -> 0 | M15: 1.34 | N15: 671629692 | O15: 899983787.3 | Q15: =RTD("srv.rtd","","SQT","INDZ22","ARROWVAR") -> 1 | R15: INDZ22 | S15: =RTD("srv.rtd","","SQT","INDZ22","FLAG") -> 0 | T15: =RTD("srv.rtd","","SQT","INDZ22","DESC") -> IBOVESPA DEZ/22 | U15: =RTD("srv.rtd","","SQT","INDZ22","LAST") -> 0 | V15: =RTD("srv.rtd","","SQT","INDZ22","TICK") -> 0 | W15: =RTD("srv.rtd","","SQT","INDZ22","VAR") -> 0 | X15: =RTD("srv.rtd","","SQT","INDZ22","TIME") -> 0.375 | Y15: =RTD("srv.rtd","","SQT","INDZ22","BID") -> 0 | Z15: =RTD("srv.rtd","","SQT","INDZ22","ASK") -> 0 | AA15: =RTD("srv.rtd","","SQT","INDZ22","HIGH") -> 0 | AB15: =RTD("srv.rtd","","SQT","INDZ22","LOW") -> 0 | AC15: =RTD("srv.rtd","","SQT","INDZ22","OPEN") -> 0 | AD15: =RTD("srv.rtd","","SQT","INDZ22","CLOSE") -> 117393 | AE15: =RTD("srv.rtd","","SQT","INDZ22","VOLQ") -> 0 | AF15: =RTD("srv.rtd","","SQT","INDZ22","VOLF") -> 0 | AG15: =RTD("srv.rtd","","SQT","INDZ22","QTT") -> 0 | AH15: =RTD("srv.rtd","","SQT","INDZ22","DATE") -> 44799 | AI15: =RTD("srv.rtd","","SQT","INDZ22","ST") -> Aberto | AJ15: =RTD("srv.rtd","","SQT","INDZ22","TEOPR") -> 0 | AK15: =RTD("srv.rtd","","SQT","INDZ22","TEOVOL") -> 0 | AL15: =RTD("srv.rtd","","SQT","INDZ22","AJU") -> 0 | AM15: =RTD("srv.rtd","","SQT","INDZ22","AJULAST") -> 117393 | AN15: =RTD("srv.rtd","","SQT","INDZ22","DIF") -> 0
D16: AZUL4 | E16: =RTD("rtdtrading.rtdserver",, "AZUL4_B_0", "ULT") -> 17.53 | F16: =RTD("rtdtrading.rtdserver",, "AZUL4_B_0", "ABE") -> 18.3 | G16: =RTD("rtdtrading.rtdserver",, "AZUL4_B_0", "MAX") -> 18.61 | H16: =RTD("rtdtrading.rtdserver",, "AZUL4_B_0", "MIN") -> 17.5 | I16: =RTD("rtdtrading.rtdserver",, "AZUL4_B_0", "FEC") -> 18.23 | J16: =RTD("rtdtrading.rtdserver",, "AZUL4_B_0", "VAR") -> -3.839824465 | K16: =RTD("rtdtrading.rtdserver",, "AZUL4_B_0", "AJA") -> 0 | L16: =RTD("rtdtrading.rtdserver",, "AZUL4_B_0", "PRT") -> 0 | M16: 17.53 | N16: 828273884 | O16: 1.451964119e+10 | Q16: =RTD("srv.rtd","","SQT","INDG23","ARROWVAR") -> 1 | R16: INDG23 | S16: =RTD("srv.rtd","","SQT","INDG23","FLAG") -> 0 | T16: =RTD("srv.rtd","","SQT","INDG23","DESC") -> IBOVESPA FEV/23 | U16: =RTD("srv.rtd","","SQT","INDG23","LAST") -> 0 | V16: =RTD("srv.rtd","","SQT","INDG23","TICK") -> 0 | W16: =RTD("srv.rtd","","SQT","INDG23","VAR") -> 0 | X16: =RTD("srv.rtd","","SQT","INDG23","TIME") -> 0.375 | Y16: =RTD("srv.rtd","","SQT","INDG23","BID") -> 0 | Z16: =RTD("srv.rtd","","SQT","INDG23","ASK") -> 0 | AA16: =RTD("srv.rtd","","SQT","INDG23","HIGH") -> 0 | AB16: =RTD("srv.rtd","","SQT","INDG23","LOW") -> 0 | AC16: =RTD("srv.rtd","","SQT","INDG23","OPEN") -> 0 | AD16: =RTD("srv.rtd","","SQT","INDG23","CLOSE") -> 119798 | AE16: =RTD("srv.rtd","","SQT","INDG23","VOLQ") -> 0 | AF16: =RTD("srv.rtd","","SQT","INDG23","VOLF") -> 0 | AG16: =RTD("srv.rtd","","SQT","INDG23","QTT") -> 0 | AH16: =RTD("srv.rtd","","SQT","INDG23","DATE") -> 44799 | AI16: =RTD("srv.rtd","","SQT","INDG23","ST") -> Aberto | AJ16: =RTD("srv.rtd","","SQT","INDG23","TEOPR") -> 0 | AK16: =RTD("srv.rtd","","SQT","INDG23","TEOVOL") -> 0 | AL16: =RTD("srv.rtd","","SQT","INDG23","AJU") -> 0 | AM16: =RTD("srv.rtd","","SQT","INDG23","AJULAST") -> 119798 | AN16: =RTD("srv.rtd","","SQT","INDG23","DIF") -> 0
D17: ECOR3 | E17: =RTD("rtdtrading.rtdserver",, "ECOR3_B_0", "ULT") -> 6.13 | F17: =RTD("rtdtrading.rtdserver",, "ECOR3_B_0", "ABE") -> 6.21 | G17: =RTD("rtdtrading.rtdserver",, "ECOR3_B_0", "MAX") -> 6.26 | H17: =RTD("rtdtrading.rtdserver",, "ECOR3_B_0", "MIN") -> 6.1 | I17: =RTD("rtdtrading.rtdserver",, "ECOR3_B_0", "FEC") -> 6.19 | J17: =RTD("rtdtrading.rtdserver",, "ECOR3_B_0", "VAR") -> -0.9693053312 | K17: =RTD("rtdtrading.rtdserver",, "ECOR3_B_0", "AJA") -> 0 | L17: =RTD("rtdtrading.rtdserver",, "ECOR3_B_0", "PRT") -> 0 | M17: 6.13 | N17: 1516726535 | O17: 9297533660 | Q17: =RTD("srv.rtd","","SQT","INDJ23","ARROWVAR") -> 1 | R17: INDJ23 | S17: =RTD("srv.rtd","","SQT","INDJ23","FLAG") -> 0 | T17: =RTD("srv.rtd","","SQT","INDJ23","DESC") -> IBOVESPA ABR/23 | U17: =RTD("srv.rtd","","SQT","INDJ23","LAST") -> 0 | V17: =RTD("srv.rtd","","SQT","INDJ23","TICK") -> 0 | W17: =RTD("srv.rtd","","SQT","INDJ23","VAR") -> 0 | X17: =RTD("srv.rtd","","SQT","INDJ23","TIME") -> 0.375 | Y17: =RTD("srv.rtd","","SQT","INDJ23","BID") -> 0 | Z17: =RTD("srv.rtd","","SQT","INDJ23","ASK") -> 0 | AA17: =RTD("srv.rtd","","SQT","INDJ23","HIGH") -> 0 | AB17: =RTD("srv.rtd","","SQT","INDJ23","LOW") -> 0 | AC17: =RTD("srv.rtd","","SQT","INDJ23","OPEN") -> 0 | AD17: =RTD("srv.rtd","","SQT","INDJ23","CLOSE") -> 121805 | AE17: =RTD("srv.rtd","","SQT","INDJ23","VOLQ") -> 0 | AF17: =RTD("srv.rtd","","SQT","INDJ23","VOLF") -> 0 | AG17: =RTD("srv.rtd","","SQT","INDJ23","QTT") -> 0 | AH17: =RTD("srv.rtd","","SQT","INDJ23","DATE") -> 44799 | AI17: =RTD("srv.rtd","","SQT","INDJ23","ST") -> Aberto | AJ17: =RTD("srv.rtd","","SQT","INDJ23","TEOPR") -> 0 | AK17: =RTD("srv.rtd","","SQT","INDJ23","TEOVOL") -> 0 | AL17: =RTD("srv.rtd","","SQT","INDJ23","AJU") -> 0 | AM17: =RTD("srv.rtd","","SQT","INDJ23","AJULAST") -> 121805 | AN17: =RTD("srv.rtd","","SQT","INDJ23","DIF") -> 0
D18: DXCO3 | E18: =RTD("rtdtrading.rtdserver",, "DXCO3_B_0", "ULT") -> 10.74 | F18: =RTD("rtdtrading.rtdserver",, "DXCO3_B_0", "ABE") -> 10.85 | G18: =RTD("rtdtrading.rtdserver",, "DXCO3_B_0", "MAX") -> 10.95 | H18: =RTD("rtdtrading.rtdserver",, "DXCO3_B_0", "MIN") -> 10.73 | I18: =RTD("rtdtrading.rtdserver",, "DXCO3_B_0", "FEC") -> 10.8 | J18: =RTD("rtdtrading.rtdserver",, "DXCO3_B_0", "VAR") -> -0.5555555556 | K18: =RTD("rtdtrading.rtdserver",, "DXCO3_B_0", "AJA") -> 0 | L18: =RTD("rtdtrading.rtdserver",, "DXCO3_B_0", "PRT") -> 0 | M18: 10.74 | N18: 5160570290 | O18: 5.542452491e+10 | Q18: =RTD("srv.rtd","","SQT","INDM23","ARROWVAR") -> 1 | R18: INDM23 | S18: =RTD("srv.rtd","","SQT","INDM23","FLAG") -> 0 | T18: =RTD("srv.rtd","","SQT","INDM23","DESC") -> IBOVESPA JUN/23 | U18: =RTD("srv.rtd","","SQT","INDM23","LAST") -> 0 | V18: =RTD("srv.rtd","","SQT","INDM23","TICK") -> 0 | W18: =RTD("srv.rtd","","SQT","INDM23","VAR") -> 0 | X18: =RTD("srv.rtd","","SQT","INDM23","TIME") -> 0.375 | Y18: =RTD("srv.rtd","","SQT","INDM23","BID") -> 0 | Z18: =RTD("srv.rtd","","SQT","INDM23","ASK") -> 0 | AA18: =RTD("srv.rtd","","SQT","INDM23","HIGH") -> 0 | AB18: =RTD("srv.rtd","","SQT","INDM23","LOW") -> 0 | AC18: =RTD("srv.rtd","","SQT","INDM23","OPEN") -> 0 | AD18: =RTD("srv.rtd","","SQT","INDM23","CLOSE") -> 124107 | AE18: =RTD("srv.rtd","","SQT","INDM23","VOLQ") -> 0 | AF18: =RTD("srv.rtd","","SQT","INDM23","VOLF") -> 0 | AG18: =RTD("srv.rtd","","SQT","INDM23","QTT") -> 0 | AH18: =RTD("srv.rtd","","SQT","INDM23","DATE") -> 44799 | AI18: =RTD("srv.rtd","","SQT","INDM23","ST") -> Aberto | AJ18: =RTD("srv.rtd","","SQT","INDM23","TEOPR") -> 0 | AK18: =RTD("srv.rtd","","SQT","INDM23","TEOVOL") -> 0 | AL18: =RTD("srv.rtd","","SQT","INDM23","AJU") -> 0 | AM18: =RTD("srv.rtd","","SQT","INDM23","AJULAST") -> 124107 | AN18: =RTD("srv.rtd","","SQT","INDM23","DIF") -> 0
D19: ABEV3 | E19: =RTD("rtdtrading.rtdserver",, "ABEV3_B_0", "ULT") -> 15.68 | F19: =RTD("rtdtrading.rtdserver",, "ABEV3_B_0", "ABE") -> 15.89 | G19: =RTD("rtdtrading.rtdserver",, "ABEV3_B_0", "MAX") -> 15.9 | H19: =RTD("rtdtrading.rtdserver",, "ABEV3_B_0", "MIN") -> 15.68 | I19: =RTD("rtdtrading.rtdserver",, "ABEV3_B_0", "FEC") -> 15.82 | J19: =RTD("rtdtrading.rtdserver",, "ABEV3_B_0", "VAR") -> -0.8849557522 | K19: =RTD("rtdtrading.rtdserver",, "ABEV3_B_0", "AJA") -> 0 | L19: =RTD("rtdtrading.rtdserver",, "ABEV3_B_0", "PRT") -> 0 | M19: 15.68 | N19: 251402249 | O19: 3941987264 | Q19: =RTD("srv.rtd","","SQT","INDQ23","ARROWVAR") -> 1 | R19: INDQ23 | S19: =RTD("srv.rtd","","SQT","INDQ23","FLAG") -> 0 | T19: =RTD("srv.rtd","","SQT","INDQ23","DESC") -> IBOVESPA AGO/23 | U19: =RTD("srv.rtd","","SQT","INDQ23","LAST") -> 0 | V19: =RTD("srv.rtd","","SQT","INDQ23","TICK") -> 0 | W19: =RTD("srv.rtd","","SQT","INDQ23","VAR") -> 0 | X19: =RTD("srv.rtd","","SQT","INDQ23","TIME") -> 0.375 | Y19: =RTD("srv.rtd","","SQT","INDQ23","BID") -> 0 | Z19: =RTD("srv.rtd","","SQT","INDQ23","ASK") -> 0 | AA19: =RTD("srv.rtd","","SQT","INDQ23","HIGH") -> 0 | AB19: =RTD("srv.rtd","","SQT","INDQ23","LOW") -> 0 | AC19: =RTD("srv.rtd","","SQT","INDQ23","OPEN") -> 0 | AD19: =RTD("srv.rtd","","SQT","INDQ23","CLOSE") -> 126515 | AE19: =RTD("srv.rtd","","SQT","INDQ23","VOLQ") -> 0 | AF19: =RTD("srv.rtd","","SQT","INDQ23","VOLF") -> 0 | AG19: =RTD("srv.rtd","","SQT","INDQ23","QTT") -> 0 | AH19: =RTD("srv.rtd","","SQT","INDQ23","DATE") -> 44799 | AI19: =RTD("srv.rtd","","SQT","INDQ23","ST") -> Aberto | AJ19: =RTD("srv.rtd","","SQT","INDQ23","TEOPR") -> 0 | AK19: =RTD("srv.rtd","","SQT","INDQ23","TEOVOL") -> 0 | AL19: =RTD("srv.rtd","","SQT","INDQ23","AJU") -> 0 | AM19: =RTD("srv.rtd","","SQT","INDQ23","AJULAST") -> 126515 | AN19: =RTD("srv.rtd","","SQT","INDQ23","DIF") -> 0
D20: HAPV3 | E20: =RTD("rtdtrading.rtdserver",, "HAPV3_B_0", "ULT") -> 8.09 | F20: =RTD("rtdtrading.rtdserver",, "HAPV3_B_0", "ABE") -> 8.16 | G20: =RTD("rtdtrading.rtdserver",, "HAPV3_B_0", "MAX") -> 8.33 | H20: =RTD("rtdtrading.rtdserver",, "HAPV3_B_0", "MIN") -> 7.97 | I20: =RTD("rtdtrading.rtdserver",, "HAPV3_B_0", "FEC") -> 8.07 | J20: =RTD("rtdtrading.rtdserver",, "HAPV3_B_0", "VAR") -> 0.2478314746 | K20: =RTD("rtdtrading.rtdserver",, "HAPV3_B_0", "AJA") -> 0 | L20: =RTD("rtdtrading.rtdserver",, "HAPV3_B_0", "PRT") -> 0 | M20: 8.09 | N20: 1420530937 | O20: 1.149209528e+10 | Q20: =RTD("srv.rtd","","SQT","INDV23","ARROWVAR") -> 1 | R20: INDV23 | S20: =RTD("srv.rtd","","SQT","INDV23","FLAG") -> 0 | T20: =RTD("srv.rtd","","SQT","INDV23","DESC") -> IBOVESPA OUT/23 | U20: =RTD("srv.rtd","","SQT","INDV23","LAST") -> 0 | V20: =RTD("srv.rtd","","SQT","INDV23","TICK") -> 0 | W20: =RTD("srv.rtd","","SQT","INDV23","VAR") -> 0 | X20: =RTD("srv.rtd","","SQT","INDV23","TIME") -> 0.375 | Y20: =RTD("srv.rtd","","SQT","INDV23","BID") -> 0 | Z20: =RTD("srv.rtd","","SQT","INDV23","ASK") -> 0 | AA20: =RTD("srv.rtd","","SQT","INDV23","HIGH") -> 0 | AB20: =RTD("srv.rtd","","SQT","INDV23","LOW") -> 0 | AC20: =RTD("srv.rtd","","SQT","INDV23","OPEN") -> 0 | AD20: =RTD("srv.rtd","","SQT","INDV23","CLOSE") -> 128728 | AE20: =RTD("srv.rtd","","SQT","INDV23","VOLQ") -> 0 | AF20: =RTD("srv.rtd","","SQT","INDV23","VOLF") -> 0 | AG20: =RTD("srv.rtd","","SQT","INDV23","QTT") -> 0 | AH20: =RTD("srv.rtd","","SQT","INDV23","DATE") -> 44799 | AI20: =RTD("srv.rtd","","SQT","INDV23","ST") -> Aberto | AJ20: =RTD("srv.rtd","","SQT","INDV23","TEOPR") -> 0 | AK20: =RTD("srv.rtd","","SQT","INDV23","TEOVOL") -> 0 | AL20: =RTD("srv.rtd","","SQT","INDV23","AJU") -> 0 | AM20: =RTD("srv.rtd","","SQT","INDV23","AJULAST") -> 128728 | AN20: =RTD("srv.rtd","","SQT","INDV23","DIF") -> 0
D21: SULA11 | E21: =RTD("rtdtrading.rtdserver",, "SULA11_B_0", "ULT") -> 24.82 | F21: =RTD("rtdtrading.rtdserver",, "SULA11_B_0", "ABE") -> 25.37 | G21: =RTD("rtdtrading.rtdserver",, "SULA11_B_0", "MAX") -> 25.68 | H21: =RTD("rtdtrading.rtdserver",, "SULA11_B_0", "MIN") -> 24.81 | I21: =RTD("rtdtrading.rtdserver",, "SULA11_B_0", "FEC") -> 25.34 | J21: =RTD("rtdtrading.rtdserver",, "SULA11_B_0", "VAR") -> -2.052091555 | K21: =RTD("rtdtrading.rtdserver",, "SULA11_B_0", "AJA") -> 0 | L21: =RTD("rtdtrading.rtdserver",, "SULA11_B_0", "PRT") -> 0 | M21: 24.82 | N21: 264975728 | O21: 6576697569 | Q21: =RTD("srv.rtd","","SQT","INDZ23","ARROWVAR") -> 1 | R21: INDZ23 | S21: =RTD("srv.rtd","","SQT","INDZ23","FLAG") -> 0 | T21: =RTD("srv.rtd","","SQT","INDZ23","DESC") -> IBOVESPA DEZ/23 | U21: =RTD("srv.rtd","","SQT","INDZ23","LAST") -> 0 | V21: =RTD("srv.rtd","","SQT","INDZ23","TICK") -> 0 | W21: =RTD("srv.rtd","","SQT","INDZ23","VAR") -> 0 | X21: =RTD("srv.rtd","","SQT","INDZ23","TIME") -> 0.375 | Y21: =RTD("srv.rtd","","SQT","INDZ23","BID") -> 0 | Z21: =RTD("srv.rtd","","SQT","INDZ23","ASK") -> 0 | AA21: =RTD("srv.rtd","","SQT","INDZ23","HIGH") -> 0 | AB21: =RTD("srv.rtd","","SQT","INDZ23","LOW") -> 0 | AC21: =RTD("srv.rtd","","SQT","INDZ23","OPEN") -> 0 | AD21: =RTD("srv.rtd","","SQT","INDZ23","CLOSE") -> 130617 | AE21: =RTD("srv.rtd","","SQT","INDZ23","VOLQ") -> 0 | AF21: =RTD("srv.rtd","","SQT","INDZ23","VOLF") -> 0 | AG21: =RTD("srv.rtd","","SQT","INDZ23","QTT") -> 0 | AH21: =RTD("srv.rtd","","SQT","INDZ23","DATE") -> 44799 | AI21: =RTD("srv.rtd","","SQT","INDZ23","ST") -> Aberto | AJ21: =RTD("srv.rtd","","SQT","INDZ23","TEOPR") -> 0 | AK21: =RTD("srv.rtd","","SQT","INDZ23","TEOVOL") -> 0 | AL21: =RTD("srv.rtd","","SQT","INDZ23","AJU") -> 0 | AM21: =RTD("srv.rtd","","SQT","INDZ23","AJULAST") -> 130617 | AN21: =RTD("srv.rtd","","SQT","INDZ23","DIF") -> 0
D22: TOTS3 | E22: =RTD("rtdtrading.rtdserver",, "TOTS3_B_0", "ULT") -> 30.27 | F22: =RTD("rtdtrading.rtdserver",, "TOTS3_B_0", "ABE") -> 31 | G22: =RTD("rtdtrading.rtdserver",, "TOTS3_B_0", "MAX") -> 31 | H22: =RTD("rtdtrading.rtdserver",, "TOTS3_B_0", "MIN") -> 30.27 | I22: =RTD("rtdtrading.rtdserver",, "TOTS3_B_0", "FEC") -> 30.93 | J22: =RTD("rtdtrading.rtdserver",, "TOTS3_B_0", "VAR") -> -2.13385063 | K22: =RTD("rtdtrading.rtdserver",, "TOTS3_B_0", "AJA") -> 0 | L22: =RTD("rtdtrading.rtdserver",, "TOTS3_B_0", "PRT") -> 0 | M22: 30.27 | N22: 1076512610 | O22: 3.25860367e+10 | Q22: =RTD("srv.rtd","","SQT","INDG24","ARROWVAR") -> 1 | R22: INDG24 | S22: =RTD("srv.rtd","","SQT","INDG24","FLAG") -> 0 | T22: =RTD("srv.rtd","","SQT","INDG24","DESC") -> IBOVESPA FEV/24 | U22: =RTD("srv.rtd","","SQT","INDG24","LAST") -> 0 | V22: =RTD("srv.rtd","","SQT","INDG24","TICK") -> 0 | W22: =RTD("srv.rtd","","SQT","INDG24","VAR") -> 0 | X22: =RTD("srv.rtd","","SQT","INDG24","TIME") -> 0.375 | Y22: =RTD("srv.rtd","","SQT","INDG24","BID") -> 0 | Z22: =RTD("srv.rtd","","SQT","INDG24","ASK") -> 0 | AA22: =RTD("srv.rtd","","SQT","INDG24","HIGH") -> 0 | AB22: =RTD("srv.rtd","","SQT","INDG24","LOW") -> 0 | AC22: =RTD("srv.rtd","","SQT","INDG24","OPEN") -> 0 | AD22: =RTD("srv.rtd","","SQT","INDG24","CLOSE") -> 132639 | AE22: =RTD("srv.rtd","","SQT","INDG24","VOLQ") -> 0 | AF22: =RTD("srv.rtd","","SQT","INDG24","VOLF") -> 0 | AG22: =RTD("srv.rtd","","SQT","INDG24","QTT") -> 0 | AH22: =RTD("srv.rtd","","SQT","INDG24","DATE") -> 44799 | AI22: =RTD("srv.rtd","","SQT","INDG24","ST") -> Aberto | AJ22: =RTD("srv.rtd","","SQT","INDG24","TEOPR") -> 0 | AK22: =RTD("srv.rtd","","SQT","INDG24","TEOVOL") -> 0 | AL22: =RTD("srv.rtd","","SQT","INDG24","AJU") -> 0 | AM22: =RTD("srv.rtd","","SQT","INDG24","AJULAST") -> 132639 | AN22: =RTD("srv.rtd","","SQT","INDG24","DIF") -> 0
D23: ALPA4 | E23: =RTD("rtdtrading.rtdserver",, "ALPA4_B_0", "ULT") -> 21.87 | F23: =RTD("rtdtrading.rtdserver",, "ALPA4_B_0", "ABE") -> 20.92 | G23: =RTD("rtdtrading.rtdserver",, "ALPA4_B_0", "MAX") -> 22.07 | H23: =RTD("rtdtrading.rtdserver",, "ALPA4_B_0", "MIN") -> 20.73 | I23: =RTD("rtdtrading.rtdserver",, "ALPA4_B_0", "FEC") -> 20.9 | J23: =RTD("rtdtrading.rtdserver",, "ALPA4_B_0", "VAR") -> 4.641148325 | K23: =RTD("rtdtrading.rtdserver",, "ALPA4_B_0", "AJA") -> 0 | L23: =RTD("rtdtrading.rtdserver",, "ALPA4_B_0", "PRT") -> 0 | M23: 21.87 | N23: 1301655996 | O23: 2.846721663e+10
D24: ENGI11 | E24: =RTD("rtdtrading.rtdserver",, "ENGI11_B_0", "ULT") -> 42.81 | F24: =RTD("rtdtrading.rtdserver",, "ENGI11_B_0", "ABE") -> 42.92 | G24: =RTD("rtdtrading.rtdserver",, "ENGI11_B_0", "MAX") -> 43.59 | H24: =RTD("rtdtrading.rtdserver",, "ENGI11_B_0", "MIN") -> 42.73 | I24: =RTD("rtdtrading.rtdserver",, "ENGI11_B_0", "FEC") -> 42.8 | J24: =RTD("rtdtrading.rtdserver",, "ENGI11_B_0", "VAR") -> 0.02336448598 | K24: =RTD("rtdtrading.rtdserver",, "ENGI11_B_0", "AJA") -> 0 | L24: =RTD("rtdtrading.rtdserver",, "ENGI11_B_0", "PRT") -> 0 | M24: 42.81 | N24: 410988561 | O24: 1.75944203e+10
D25: BPAC11 | E25: =RTD("rtdtrading.rtdserver",, "BPAC11_B_0", "ULT") -> 25.61 | F25: =RTD("rtdtrading.rtdserver",, "BPAC11_B_0", "ABE") -> 26 | G25: =RTD("rtdtrading.rtdserver",, "BPAC11_B_0", "MAX") -> 26.11 | H25: =RTD("rtdtrading.rtdserver",, "BPAC11_B_0", "MIN") -> 25.57 | I25: =RTD("rtdtrading.rtdserver",, "BPAC11_B_0", "FEC") -> 25.88 | J25: =RTD("rtdtrading.rtdserver",, "BPAC11_B_0", "VAR") -> -1.043276662 | K25: =RTD("rtdtrading.rtdserver",, "BPAC11_B_0", "AJA") -> 0 | L25: =RTD("rtdtrading.rtdserver",, "BPAC11_B_0", "PRT") -> 0 | M25: 25.61 | N25: 1115693556 | O25: 2.857291197e+10
D26: AMER3 | E26: =RTD("rtdtrading.rtdserver",, "AMER3_B_0", "ULT") -> 18.02 | F26: =RTD("rtdtrading.rtdserver",, "AMER3_B_0", "ABE") -> 19 | G26: =RTD("rtdtrading.rtdserver",, "AMER3_B_0", "MAX") -> 19.09 | H26: =RTD("rtdtrading.rtdserver",, "AMER3_B_0", "MIN") -> 17.94 | I26: =RTD("rtdtrading.rtdserver",, "AMER3_B_0", "FEC") -> 18.79 | J26: =RTD("rtdtrading.rtdserver",, "AMER3_B_0", "VAR") -> -4.097924428 | K26: =RTD("rtdtrading.rtdserver",, "AMER3_B_0", "AJA") -> 0 | L26: =RTD("rtdtrading.rtdserver",, "AMER3_B_0", "PRT") -> 0 | M26: 18.02 | N26: 1448479060 | O26: 2.610159266e+10
D27: BBSE3 | E27: =RTD("rtdtrading.rtdserver",, "BBSE3_B_0", "ULT") -> 28.33 | F27: =RTD("rtdtrading.rtdserver",, "BBSE3_B_0", "ABE") -> 28.23 | G27: =RTD("rtdtrading.rtdserver",, "BBSE3_B_0", "MAX") -> 28.54 | H27: =RTD("rtdtrading.rtdserver",, "BBSE3_B_0", "MIN") -> 28.23 | I27: =RTD("rtdtrading.rtdserver",, "BBSE3_B_0", "FEC") -> 28.15 | J27: =RTD("rtdtrading.rtdserver",, "BBSE3_B_0", "VAR") -> 0.6394316163 | K27: =RTD("rtdtrading.rtdserver",, "BBSE3_B_0", "AJA") -> 0 | L27: =RTD("rtdtrading.rtdserver",, "BBSE3_B_0", "PRT") -> 0 | M27: 28.33 | N27: 1144359228 | O27: 3.241969693e+10
D28: JHSF3 | E28: =RTD("rtdtrading.rtdserver",, "JHSF3_B_0", "ULT") -> 6.51 | F28: =RTD("rtdtrading.rtdserver",, "JHSF3_B_0", "ABE") -> 6.58 | G28: =RTD("rtdtrading.rtdserver",, "JHSF3_B_0", "MAX") -> 6.63 | H28: =RTD("rtdtrading.rtdserver",, "JHSF3_B_0", "MIN") -> 6.51 | I28: =RTD("rtdtrading.rtdserver",, "JHSF3_B_0", "FEC") -> 6.55 | J28: =RTD("rtdtrading.rtdserver",, "JHSF3_B_0", "VAR") -> -0.6106870229 | K28: =RTD("rtdtrading.rtdserver",, "JHSF3_B_0", "AJA") -> 0 | L28: =RTD("rtdtrading.rtdserver",, "JHSF3_B_0", "PRT") -> 0 | M28: 6.51 | N28: 1828106676 | O28: 1.190097446e+10
D29: VALE3 | E29: =RTD("rtdtrading.rtdserver",, "VALE3_B_0", "ULT") -> 68.82 | F29: =RTD("rtdtrading.rtdserver",, "VALE3_B_0", "ABE") -> 69.65 | G29: =RTD("rtdtrading.rtdserver",, "VALE3_B_0", "MAX") -> 71.2 | H29: =RTD("rtdtrading.rtdserver",, "VALE3_B_0", "MIN") -> 68.71 | I29: =RTD("rtdtrading.rtdserver",, "VALE3_B_0", "FEC") -> 69.27 | J29: =RTD("rtdtrading.rtdserver",, "VALE3_B_0", "VAR") -> -0.6496318753 | K29: =RTD("rtdtrading.rtdserver",, "VALE3_B_0", "AJA") -> 0 | L29: =RTD("rtdtrading.rtdserver",, "VALE3_B_0", "PRT") -> 0 | M29: 68.82 | N29: 1563365506 | O29: 1.075908141e+11
D30: FLRY3 | E30: =RTD("rtdtrading.rtdserver",, "FLRY3_B_0", "ULT") -> 16.63 | F30: =RTD("rtdtrading.rtdserver",, "FLRY3_B_0", "ABE") -> 16.76 | G30: =RTD("rtdtrading.rtdserver",, "FLRY3_B_0", "MAX") -> 17.05 | H30: =RTD("rtdtrading.rtdserver",, "FLRY3_B_0", "MIN") -> 16.54 | I30: =RTD("rtdtrading.rtdserver",, "FLRY3_B_0", "FEC") -> 16.75 | J30: =RTD("rtdtrading.rtdserver",, "FLRY3_B_0", "VAR") -> -0.7164179104 | K30: =RTD("rtdtrading.rtdserver",, "FLRY3_B_0", "AJA") -> 0 | L30: =RTD("rtdtrading.rtdserver",, "FLRY3_B_0", "PRT") -> 0 | M30: 16.63 | N30: 1171063698 | O30: 1.94747893e+10
D31: ENBR3 | E31: =RTD("rtdtrading.rtdserver",, "ENBR3_B_0", "ULT") -> 23.2 | F31: =RTD("rtdtrading.rtdserver",, "ENBR3_B_0", "ABE") -> 23.14 | G31: =RTD("rtdtrading.rtdserver",, "ENBR3_B_0", "MAX") -> 23.3 | H31: =RTD("rtdtrading.rtdserver",, "ENBR3_B_0", "MIN") -> 23.08 | I31: =RTD("rtdtrading.rtdserver",, "ENBR3_B_0", "FEC") -> 23.12 | J31: =RTD("rtdtrading.rtdserver",, "ENBR3_B_0", "VAR") -> 0.3460207612 | K31: =RTD("rtdtrading.rtdserver",, "ENBR3_B_0", "AJA") -> 0 | L31: =RTD("rtdtrading.rtdserver",, "ENBR3_B_0", "PRT") -> 0 | M31: 23.2 | N31: 187732538 | O31: 4355394882
D32: GOLL4 | E32: =RTD("rtdtrading.rtdserver",, "GOLL4_B_0", "ULT") -> 11.51 | F32: =RTD("rtdtrading.rtdserver",, "GOLL4_B_0", "ABE") -> 12.01 | G32: =RTD("rtdtrading.rtdserver",, "GOLL4_B_0", "MAX") -> 12.2 | H32: =RTD("rtdtrading.rtdserver",, "GOLL4_B_0", "MIN") -> 11.48 | I32: =RTD("rtdtrading.rtdserver",, "GOLL4_B_0", "FEC") -> 11.92 | J32: =RTD("rtdtrading.rtdserver",, "GOLL4_B_0", "VAR") -> -3.439597315 | K32: =RTD("rtdtrading.rtdserver",, "GOLL4_B_0", "AJA") -> 0 | L32: =RTD("rtdtrading.rtdserver",, "GOLL4_B_0", "PRT") -> 0 | M32: 11.51 | N32: 1120593365 | O32: 1.289802963e+10
D33: MRFG3 | E33: =RTD("rtdtrading.rtdserver",, "MRFG3_B_0", "ULT") -> 14.09 | F33: =RTD("rtdtrading.rtdserver",, "MRFG3_B_0", "ABE") -> 14.37 | G33: =RTD("rtdtrading.rtdserver",, "MRFG3_B_0", "MAX") -> 14.46 | H33: =RTD("rtdtrading.rtdserver",, "MRFG3_B_0", "MIN") -> 13.86 | I33: =RTD("rtdtrading.rtdserver",, "MRFG3_B_0", "FEC") -> 14.31 | J33: =RTD("rtdtrading.rtdserver",, "MRFG3_B_0", "VAR") -> -1.537386443 | K33: =RTD("rtdtrading.rtdserver",, "MRFG3_B_0", "AJA") -> 0 | L33: =RTD("rtdtrading.rtdserver",, "MRFG3_B_0", "PRT") -> 0 | M33: 14.09 | N33: 276543929 | O33: 3896503960
D34: CCRO3 | E34: =RTD("rtdtrading.rtdserver",, "CCRO3_B_0", "ULT") -> 13.95 | F34: =RTD("rtdtrading.rtdserver",, "CCRO3_B_0", "ABE") -> 14.07 | G34: =RTD("rtdtrading.rtdserver",, "CCRO3_B_0", "MAX") -> 14.12 | H34: =RTD("rtdtrading.rtdserver",, "CCRO3_B_0", "MIN") -> 13.94 | I34: =RTD("rtdtrading.rtdserver",, "CCRO3_B_0", "FEC") -> 14.01 | J34: =RTD("rtdtrading.rtdserver",, "CCRO3_B_0", "VAR") -> -0.4282655246 | K34: =RTD("rtdtrading.rtdserver",, "CCRO3_B_0", "AJA") -> 0 | L34: =RTD("rtdtrading.rtdserver",, "CCRO3_B_0", "PRT") -> 0 | M34: 13.95 | N34: 281609283 | O34: 3928449498
D35: BRKM5 | E35: =RTD("rtdtrading.rtdserver",, "BRKM5_B_0", "ULT") -> 32.85 | F35: =RTD("rtdtrading.rtdserver",, "BRKM5_B_0", "ABE") -> 33.34 | G35: =RTD("rtdtrading.rtdserver",, "BRKM5_B_0", "MAX") -> 33.52 | H35: =RTD("rtdtrading.rtdserver",, "BRKM5_B_0", "MIN") -> 32.82 | I35: =RTD("rtdtrading.rtdserver",, "BRKM5_B_0", "FEC") -> 33.17 | J35: =RTD("rtdtrading.rtdserver",, "BRKM5_B_0", "VAR") -> -0.9647271631 | K35: =RTD("rtdtrading.rtdserver",, "BRKM5_B_0", "AJA") -> 0 | L35: =RTD("rtdtrading.rtdserver",, "BRKM5_B_0", "PRT") -> 0 | M35: 32.85 | N35: 295712871 | O35: 9714167812
D36: SANB11 | E36: =RTD("rtdtrading.rtdserver",, "SANB11_B_0", "ULT") -> 30.25 | F36: =RTD("rtdtrading.rtdserver",, "SANB11_B_0", "ABE") -> 30.38 | G36: =RTD("rtdtrading.rtdserver",, "SANB11_B_0", "MAX") -> 30.65 | H36: =RTD("rtdtrading.rtdserver",, "SANB11_B_0", "MIN") -> 30.25 | I36: =RTD("rtdtrading.rtdserver",, "SANB11_B_0", "FEC") -> 30.23 | J36: =RTD("rtdtrading.rtdserver",, "SANB11_B_0", "VAR") -> 0.06615944426 | K36: =RTD("rtdtrading.rtdserver",, "SANB11_B_0", "AJA") -> 0 | L36: =RTD("rtdtrading.rtdserver",, "SANB11_B_0", "PRT") -> 0 | M36: 30.25 | N36: 339237914 | O36: 1.02619469e+10
D37: NTCO3 | E37: =RTD("rtdtrading.rtdserver",, "NTCO3_B_0", "ULT") -> 15.63 | F37: =RTD("rtdtrading.rtdserver",, "NTCO3_B_0", "ABE") -> 16.7 | G37: =RTD("rtdtrading.rtdserver",, "NTCO3_B_0", "MAX") -> 16.78 | H37: =RTD("rtdtrading.rtdserver",, "NTCO3_B_0", "MIN") -> 15.56 | I37: =RTD("rtdtrading.rtdserver",, "NTCO3_B_0", "FEC") -> 16.64 | J37: =RTD("rtdtrading.rtdserver",, "NTCO3_B_0", "VAR") -> -6.069711538 | K37: =RTD("rtdtrading.rtdserver",, "NTCO3_B_0", "AJA") -> 0 | L37: =RTD("rtdtrading.rtdserver",, "NTCO3_B_0", "PRT") -> 0 | M37: 15.63 | N37: 985704248 | O37: 1.54065574e+10
D38: CYRE3 | E38: =RTD("rtdtrading.rtdserver",, "CYRE3_B_0", "ULT") -> 14.41 | F38: =RTD("rtdtrading.rtdserver",, "CYRE3_B_0", "ABE") -> 14.6 | G38: =RTD("rtdtrading.rtdserver",, "CYRE3_B_0", "MAX") -> 14.72 | H38: =RTD("rtdtrading.rtdserver",, "CYRE3_B_0", "MIN") -> 14.34 | I38: =RTD("rtdtrading.rtdserver",, "CYRE3_B_0", "FEC") -> 14.52 | J38: =RTD("rtdtrading.rtdserver",, "CYRE3_B_0", "VAR") -> -0.7575757576 | K38: =RTD("rtdtrading.rtdserver",, "CYRE3_B_0", "AJA") -> 0 | L38: =RTD("rtdtrading.rtdserver",, "CYRE3_B_0", "PRT") -> 0 | M38: 14.41 | N38: 242987127 | O38: 3501444500
D39: ELET3 | E39: =RTD("rtdtrading.rtdserver",, "ELET3_B_0", "ULT") -> 46.58 | F39: =RTD("rtdtrading.rtdserver",, "ELET3_B_0", "ABE") -> 47.09 | G39: =RTD("rtdtrading.rtdserver",, "ELET3_B_0", "MAX") -> 47.18 | H39: =RTD("rtdtrading.rtdserver",, "ELET3_B_0", "MIN") -> 46.41 | I39: =RTD("rtdtrading.rtdserver",, "ELET3_B_0", "FEC") -> 46.79 | J39: =RTD("rtdtrading.rtdserver",, "ELET3_B_0", "VAR") -> -0.4488138491 | K39: =RTD("rtdtrading.rtdserver",, "ELET3_B_0", "AJA") -> 0 | L39: =RTD("rtdtrading.rtdserver",, "ELET3_B_0", "PRT") -> 0 | M39: 46.58 | N39: 734588205 | O39: 3.421711859e+10
D40: IRBR3 | E40: =RTD("rtdtrading.rtdserver",, "IRBR3_B_0", "ULT") -> 1.95 | F40: =RTD("rtdtrading.rtdserver",, "IRBR3_B_0", "ABE") -> 2.07 | G40: =RTD("rtdtrading.rtdserver",, "IRBR3_B_0", "MAX") -> 2.1 | H40: =RTD("rtdtrading.rtdserver",, "IRBR3_B_0", "MIN") -> 1.95 | I40: =RTD("rtdtrading.rtdserver",, "IRBR3_B_0", "FEC") -> 2.06 | J40: =RTD("rtdtrading.rtdserver",, "IRBR3_B_0", "VAR") -> -5.339805825 | K40: =RTD("rtdtrading.rtdserver",, "IRBR3_B_0", "AJA") -> 0 | L40: =RTD("rtdtrading.rtdserver",, "IRBR3_B_0", "PRT") -> 0 | M40: 1.95 | N40: 230931405 | O40: 450316239.8
D41: ELET6 | E41: =RTD("rtdtrading.rtdserver",, "ELET6_B_0", "ULT") -> 47.56 | F41: =RTD("rtdtrading.rtdserver",, "ELET6_B_0", "ABE") -> 47.93 | G41: =RTD("rtdtrading.rtdserver",, "ELET6_B_0", "MAX") -> 48.19 | H41: =RTD("rtdtrading.rtdserver",, "ELET6_B_0", "MIN") -> 47.23 | I41: =RTD("rtdtrading.rtdserver",, "ELET6_B_0", "FEC") -> 47.92 | J41: =RTD("rtdtrading.rtdserver",, "ELET6_B_0", "VAR") -> -0.7512520868 | K41: =RTD("rtdtrading.rtdserver",, "ELET6_B_0", "AJA") -> 0 | L41: =RTD("rtdtrading.rtdserver",, "ELET6_B_0", "PRT") -> 0 | M41: 47.56 | N41: 248477689 | O41: 1.181759889e+10
D42: BEEF3 | E42: =RTD("rtdtrading.rtdserver",, "BEEF3_B_0", "ULT") -> 15.94 | F42: =RTD("rtdtrading.rtdserver",, "BEEF3_B_0", "ABE") -> 15.98 | G42: =RTD("rtdtrading.rtdserver",, "BEEF3_B_0", "MAX") -> 16.1 | H42: =RTD("rtdtrading.rtdserver",, "BEEF3_B_0", "MIN") -> 15.83 | I42: =RTD("rtdtrading.rtdserver",, "BEEF3_B_0", "FEC") -> 16.06 | J42: =RTD("rtdtrading.rtdserver",, "BEEF3_B_0", "VAR") -> -0.7471980075 | K42: =RTD("rtdtrading.rtdserver",, "BEEF3_B_0", "AJA") -> 0 | L42: =RTD("rtdtrading.rtdserver",, "BEEF3_B_0", "PRT") -> 0 | M42: 15.94 | N42: 1557479978 | O42: 2.482623085e+10
D43: PCAR3 | E43: =RTD("rtdtrading.rtdserver",, "PCAR3_B_0", "ULT") -> 20.2 | F43: =RTD("rtdtrading.rtdserver",, "PCAR3_B_0", "ABE") -> 19.91 | G43: =RTD("rtdtrading.rtdserver",, "PCAR3_B_0", "MAX") -> 20.48 | H43: =RTD("rtdtrading.rtdserver",, "PCAR3_B_0", "MIN") -> 19.89 | I43: =RTD("rtdtrading.rtdserver",, "PCAR3_B_0", "FEC") -> 19.9 | J43: =RTD("rtdtrading.rtdserver",, "PCAR3_B_0", "VAR") -> 1.507537688 | K43: =RTD("rtdtrading.rtdserver",, "PCAR3_B_0", "AJA") -> 0 | L43: =RTD("rtdtrading.rtdserver",, "PCAR3_B_0", "PRT") -> 0 | M43: 20.2 | N43: 255217329 | O43: 5155390046
D44: RAIL3 | E44: =RTD("rtdtrading.rtdserver",, "RAIL3_B_0", "ULT") -> 20.18 | F44: =RTD("rtdtrading.rtdserver",, "RAIL3_B_0", "ABE") -> 20.49 | G44: =RTD("rtdtrading.rtdserver",, "RAIL3_B_0", "MAX") -> 20.52 | H44: =RTD("rtdtrading.rtdserver",, "RAIL3_B_0", "MIN") -> 20.15 | I44: =RTD("rtdtrading.rtdserver",, "RAIL3_B_0", "FEC") -> 20.29 | J44: =RTD("rtdtrading.rtdserver",, "RAIL3_B_0", "VAR") -> -0.5421389847 | K44: =RTD("rtdtrading.rtdserver",, "RAIL3_B_0", "AJA") -> 0 | L44: =RTD("rtdtrading.rtdserver",, "RAIL3_B_0", "PRT") -> 0 | M44: 20.18 | N44: 1100513485 | O44: 2.220836213e+10
D45: YDUQ3 | E45: =RTD("rtdtrading.rtdserver",, "YDUQ3_B_0", "ULT") -> 12.78 | F45: =RTD("rtdtrading.rtdserver",, "YDUQ3_B_0", "ABE") -> 13 | G45: =RTD("rtdtrading.rtdserver",, "YDUQ3_B_0", "MAX") -> 13.34 | H45: =RTD("rtdtrading.rtdserver",, "YDUQ3_B_0", "MIN") -> 12.73 | I45: =RTD("rtdtrading.rtdserver",, "YDUQ3_B_0", "FEC") -> 13 | J45: =RTD("rtdtrading.rtdserver",, "YDUQ3_B_0", "VAR") -> -1.692307692 | K45: =RTD("rtdtrading.rtdserver",, "YDUQ3_B_0", "AJA") -> 0 | L45: =RTD("rtdtrading.rtdserver",, "YDUQ3_B_0", "PRT") -> 0 | M45: 12.78 | N45: 101618236 | O45: 1298681056
D46: SBSP3 | E46: =RTD("rtdtrading.rtdserver",, "SBSP3_B_0", "ULT") -> 48.17 | F46: =RTD("rtdtrading.rtdserver",, "SBSP3_B_0", "ABE") -> 48.65 | G46: =RTD("rtdtrading.rtdserver",, "SBSP3_B_0", "MAX") -> 48.65 | H46: =RTD("rtdtrading.rtdserver",, "SBSP3_B_0", "MIN") -> 47.88 | I46: =RTD("rtdtrading.rtdserver",, "SBSP3_B_0", "FEC") -> 48.46 | J46: =RTD("rtdtrading.rtdserver",, "SBSP3_B_0", "VAR") -> -0.5984316962 | K46: =RTD("rtdtrading.rtdserver",, "SBSP3_B_0", "AJA") -> 0 | L46: =RTD("rtdtrading.rtdserver",, "SBSP3_B_0", "PRT") -> 0 | M46: 48.17 | N46: 303373882 | O46: 1.46135199e+10
D47: ASAI3 | E47: =RTD("rtdtrading.rtdserver",, "ASAI3_B_0", "ULT") -> 17.83 | F47: =RTD("rtdtrading.rtdserver",, "ASAI3_B_0", "ABE") -> 17.96 | G47: =RTD("rtdtrading.rtdserver",, "ASAI3_B_0", "MAX") -> 18.08 | H47: =RTD("rtdtrading.rtdserver",, "ASAI3_B_0", "MIN") -> 17.81 | I47: =RTD("rtdtrading.rtdserver",, "ASAI3_B_0", "FEC") -> 17.95 | J47: =RTD("rtdtrading.rtdserver",, "ASAI3_B_0", "VAR") -> -0.6685236769 | K47: =RTD("rtdtrading.rtdserver",, "ASAI3_B_0", "AJA") -> 0 | L47: =RTD("rtdtrading.rtdserver",, "ASAI3_B_0", "PRT") -> 0 | M47: 17.83 | N47: 1097534498 | O47: 1.95690401e+10
D48: VBBR3 | E48: =RTD("rtdtrading.rtdserver",, "VBBR3_B_0", "ULT") -> 18.47 | F48: =RTD("rtdtrading.rtdserver",, "VBBR3_B_0", "ABE") -> 18.72 | G48: =RTD("rtdtrading.rtdserver",, "VBBR3_B_0", "MAX") -> 18.88 | H48: =RTD("rtdtrading.rtdserver",, "VBBR3_B_0", "MIN") -> 18.43 | I48: =RTD("rtdtrading.rtdserver",, "VBBR3_B_0", "FEC") -> 18.67 | J48: =RTD("rtdtrading.rtdserver",, "VBBR3_B_0", "VAR") -> -1.071237279 | K48: =RTD("rtdtrading.rtdserver",, "VBBR3_B_0", "AJA") -> 0 | L48: =RTD("rtdtrading.rtdserver",, "VBBR3_B_0", "PRT") -> 0 | M48: 18.47 | N48: 698275321 | O48: 1.289714518e+10
D49: USIM5 | E49: =RTD("rtdtrading.rtdserver",, "USIM5_B_0", "ULT") -> 8.78 | F49: =RTD("rtdtrading.rtdserver",, "USIM5_B_0", "ABE") -> 8.8 | G49: =RTD("rtdtrading.rtdserver",, "USIM5_B_0", "MAX") -> 8.98 | H49: =RTD("rtdtrading.rtdserver",, "USIM5_B_0", "MIN") -> 8.72 | I49: =RTD("rtdtrading.rtdserver",, "USIM5_B_0", "FEC") -> 9.29 | J49: =RTD("rtdtrading.rtdserver",, "USIM5_B_0", "VAR") -> -5.48977395 | K49: =RTD("rtdtrading.rtdserver",, "USIM5_B_0", "AJA") -> 0 | L49: =RTD("rtdtrading.rtdserver",, "USIM5_B_0", "PRT") -> 0 | M49: 8.78 | N49: 167095214 | O49: 1467095979
D50: EQTL3 | E50: =RTD("rtdtrading.rtdserver",, "EQTL3_B_0", "ULT") -> 24.27 | F50: =RTD("rtdtrading.rtdserver",, "EQTL3_B_0", "ABE") -> 24.45 | G50: =RTD("rtdtrading.rtdserver",, "EQTL3_B_0", "MAX") -> 24.56 | H50: =RTD("rtdtrading.rtdserver",, "EQTL3_B_0", "MIN") -> 24.17 | I50: =RTD("rtdtrading.rtdserver",, "EQTL3_B_0", "FEC") -> 24.45 | J50: =RTD("rtdtrading.rtdserver",, "EQTL3_B_0", "VAR") -> -0.736196319 | K50: =RTD("rtdtrading.rtdserver",, "EQTL3_B_0", "AJA") -> 0 | L50: =RTD("rtdtrading.rtdserver",, "EQTL3_B_0", "PRT") -> 0 | M50: 24.27 | N50: 834914221 | O50: 2.026336814e+10
D51: CSNA3 | E51: =RTD("rtdtrading.rtdserver",, "CSNA3_B_0", "ULT") -> 15.23 | F51: =RTD("rtdtrading.rtdserver",, "CSNA3_B_0", "ABE") -> 16 | G51: =RTD("rtdtrading.rtdserver",, "CSNA3_B_0", "MAX") -> 16.14 | H51: =RTD("rtdtrading.rtdserver",, "CSNA3_B_0", "MIN") -> 15.2 | I51: =RTD("rtdtrading.rtdserver",, "CSNA3_B_0", "FEC") -> 15.96 | J51: =RTD("rtdtrading.rtdserver",, "CSNA3_B_0", "VAR") -> -4.573934837 | K51: =RTD("rtdtrading.rtdserver",, "CSNA3_B_0", "AJA") -> 0 | L51: =RTD("rtdtrading.rtdserver",, "CSNA3_B_0", "PRT") -> 0 | M51: 15.23 | N51: 489316435 | O51: 7452289305
D52: CMIN3 | E52: =RTD("rtdtrading.rtdserver",, "CMIN3_B_0", "ULT") -> 3.9 | F52: =RTD("rtdtrading.rtdserver",, "CMIN3_B_0", "ABE") -> 3.94 | G52: =RTD("rtdtrading.rtdserver",, "CMIN3_B_0", "MAX") -> 4.03 | H52: =RTD("rtdtrading.rtdserver",, "CMIN3_B_0", "MIN") -> 3.9 | I52: =RTD("rtdtrading.rtdserver",, "CMIN3_B_0", "FEC") -> 3.92 | J52: =RTD("rtdtrading.rtdserver",, "CMIN3_B_0", "VAR") -> -0.5102040816 | K52: =RTD("rtdtrading.rtdserver",, "CMIN3_B_0", "AJA") -> 0 | L52: =RTD("rtdtrading.rtdserver",, "CMIN3_B_0", "PRT") -> 0 | M52: 3.9 | N52: 4454692382 | O52: 1.737330029e+10
D53: BRML3 | E53: =RTD("rtdtrading.rtdserver",, "BRML3_B_0", "ULT") -> 8.68 | F53: =RTD("rtdtrading.rtdserver",, "BRML3_B_0", "ABE") -> 8.77 | G53: =RTD("rtdtrading.rtdserver",, "BRML3_B_0", "MAX") -> 8.81 | H53: =RTD("rtdtrading.rtdserver",, "BRML3_B_0", "MIN") -> 8.64 | I53: =RTD("rtdtrading.rtdserver",, "BRML3_B_0", "FEC") -> 8.76 | J53: =RTD("rtdtrading.rtdserver",, "BRML3_B_0", "VAR") -> -0.9132420091 | K53: =RTD("rtdtrading.rtdserver",, "BRML3_B_0", "AJA") -> 0 | L53: =RTD("rtdtrading.rtdserver",, "BRML3_B_0", "PRT") -> 0 | M53: 8.68 | N53: 410253528 | O53: 3561000623
D54: POSI3 | E54: =RTD("rtdtrading.rtdserver",, "POSI3_B_0", "ULT") -> 11.56 | F54: =RTD("rtdtrading.rtdserver",, "POSI3_B_0", "ABE") -> 11.44 | G54: =RTD("rtdtrading.rtdserver",, "POSI3_B_0", "MAX") -> 11.75 | H54: =RTD("rtdtrading.rtdserver",, "POSI3_B_0", "MIN") -> 11.41 | I54: =RTD("rtdtrading.rtdserver",, "POSI3_B_0", "FEC") -> 11.47 | J54: =RTD("rtdtrading.rtdserver",, "POSI3_B_0", "VAR") -> 0.7846556234 | K54: =RTD("rtdtrading.rtdserver",, "POSI3_B_0", "AJA") -> 0 | L54: =RTD("rtdtrading.rtdserver",, "POSI3_B_0", "PRT") -> 0 | M54: 11.56 | N54: 180013980 | O54: 2080961609
D55: CPLE6 | E55: =RTD("rtdtrading.rtdserver",, "CPLE6_B_0", "ULT") -> 7.08 | F55: =RTD("rtdtrading.rtdserver",, "CPLE6_B_0", "ABE") -> 7.07 | G55: =RTD("rtdtrading.rtdserver",, "CPLE6_B_0", "MAX") -> 7.11 | H55: =RTD("rtdtrading.rtdserver",, "CPLE6_B_0", "MIN") -> 7.02 | I55: =RTD("rtdtrading.rtdserver",, "CPLE6_B_0", "FEC") -> 7.04 | J55: =RTD("rtdtrading.rtdserver",, "CPLE6_B_0", "VAR") -> 0.5681818182 | K55: =RTD("rtdtrading.rtdserver",, "CPLE6_B_0", "AJA") -> 0 | L55: =RTD("rtdtrading.rtdserver",, "CPLE6_B_0", "PRT") -> 0 | M55: 7.08 | N55: 1255286531 | O55: 8887428639
D56: BRAP4 | E56: =RTD("rtdtrading.rtdserver",, "BRAP4_B_0", "ULT") -> 23.15 | F56: =RTD("rtdtrading.rtdserver",, "BRAP4_B_0", "ABE") -> 23.69 | G56: =RTD("rtdtrading.rtdserver",, "BRAP4_B_0", "MAX") -> 23.98 | H56: =RTD("rtdtrading.rtdserver",, "BRAP4_B_0", "MIN") -> 23.13 | I56: =RTD("rtdtrading.rtdserver",, "BRAP4_B_0", "FEC") -> 23.51 | J56: =RTD("rtdtrading.rtdserver",, "BRAP4_B_0", "VAR") -> -1.531263292 | K56: =RTD("rtdtrading.rtdserver",, "BRAP4_B_0", "AJA") -> 0 | L56: =RTD("rtdtrading.rtdserver",, "BRAP4_B_0", "PRT") -> 0 | M56: 23.15 | N56: 4736140654 | O56: 1.096416561e+11
D57: CPFE3 | E57: =RTD("rtdtrading.rtdserver",, "CPFE3_B_0", "ULT") -> 35.7 | F57: =RTD("rtdtrading.rtdserver",, "CPFE3_B_0", "ABE") -> 35.63 | G57: =RTD("rtdtrading.rtdserver",, "CPFE3_B_0", "MAX") -> 35.82 | H57: =RTD("rtdtrading.rtdserver",, "CPFE3_B_0", "MIN") -> 35.08 | I57: =RTD("rtdtrading.rtdserver",, "CPFE3_B_0", "FEC") -> 35.6 | J57: =RTD("rtdtrading.rtdserver",, "CPFE3_B_0", "VAR") -> 0.2808988764 | K57: =RTD("rtdtrading.rtdserver",, "CPFE3_B_0", "AJA") -> 0 | L57: =RTD("rtdtrading.rtdserver",, "CPFE3_B_0", "PRT") -> 0 | M57: 35.7 | N57: 4781077143 | O57: 1.70684454e+11
D58: SOMA3 | E58: =RTD("rtdtrading.rtdserver",, "SOMA3_B_0", "ULT") -> 13.1 | F58: =RTD("rtdtrading.rtdserver",, "SOMA3_B_0", "ABE") -> 13.43 | G58: =RTD("rtdtrading.rtdserver",, "SOMA3_B_0", "MAX") -> 13.53 | H58: =RTD("rtdtrading.rtdserver",, "SOMA3_B_0", "MIN") -> 13.09 | I58: =RTD("rtdtrading.rtdserver",, "SOMA3_B_0", "FEC") -> 13.33 | J58: =RTD("rtdtrading.rtdserver",, "SOMA3_B_0", "VAR") -> -1.725431358 | K58: =RTD("rtdtrading.rtdserver",, "SOMA3_B_0", "AJA") -> 0 | L58: =RTD("rtdtrading.rtdserver",, "SOMA3_B_0", "PRT") -> 0 | M58: 13.1 | N58: 1290736673 | O58: 1.690865042e+10
D59: IGTI11 | E59: =RTD("rtdtrading.rtdserver",, "IGTI11_B_0", "ULT") -> 20.65 | F59: =RTD("rtdtrading.rtdserver",, "IGTI11_B_0", "ABE") -> 20.93 | G59: =RTD("rtdtrading.rtdserver",, "IGTI11_B_0", "MAX") -> 21.03 | H59: =RTD("rtdtrading.rtdserver",, "IGTI11_B_0", "MIN") -> 20.6 | I59: =RTD("rtdtrading.rtdserver",, "IGTI11_B_0", "FEC") -> 20.92 | J59: =RTD("rtdtrading.rtdserver",, "IGTI11_B_0", "VAR") -> -1.290630975 | K59: =RTD("rtdtrading.rtdserver",, "IGTI11_B_0", "AJA") -> 0 | L59: =RTD("rtdtrading.rtdserver",, "IGTI11_B_0", "PRT") -> 0 | M59: 20.65 | N59: 305915142 | O59: 6317147682
D60: SLCE3 | E60: =RTD("rtdtrading.rtdserver",, "SLCE3_B_0", "ULT") -> 47.73 | F60: =RTD("rtdtrading.rtdserver",, "SLCE3_B_0", "ABE") -> 48.12 | G60: =RTD("rtdtrading.rtdserver",, "SLCE3_B_0", "MAX") -> 48.36 | H60: =RTD("rtdtrading.rtdserver",, "SLCE3_B_0", "MIN") -> 47.57 | I60: =RTD("rtdtrading.rtdserver",, "SLCE3_B_0", "FEC") -> 47.89 | J60: =RTD("rtdtrading.rtdserver",, "SLCE3_B_0", "VAR") -> -0.3340989768 | K60: =RTD("rtdtrading.rtdserver",, "SLCE3_B_0", "AJA") -> 0 | L60: =RTD("rtdtrading.rtdserver",, "SLCE3_B_0", "PRT") -> 0 | M60: 47.73 | N60: 812994397 | O60: 3.880422257e+10
D61: SUZB3 | E61: =RTD("rtdtrading.rtdserver",, "SUZB3_B_0", "ULT") -> 45.88 | F61: =RTD("rtdtrading.rtdserver",, "SUZB3_B_0", "ABE") -> 47.37 | G61: =RTD("rtdtrading.rtdserver",, "SUZB3_B_0", "MAX") -> 47.69 | H61: =RTD("rtdtrading.rtdserver",, "SUZB3_B_0", "MIN") -> 45.87 | I61: =RTD("rtdtrading.rtdserver",, "SUZB3_B_0", "FEC") -> 47.32 | J61: =RTD("rtdtrading.rtdserver",, "SUZB3_B_0", "VAR") -> -3.043110735 | K61: =RTD("rtdtrading.rtdserver",, "SUZB3_B_0", "AJA") -> 0 | L61: =RTD("rtdtrading.rtdserver",, "SUZB3_B_0", "PRT") -> 0 | M61: 45.88 | N61: 735708470 | O61: 3.37543046e+10
D62: QUAL3 | E62: =RTD("rtdtrading.rtdserver",, "QUAL3_B_0", "ULT") -> 10.29 | F62: =RTD("rtdtrading.rtdserver",, "QUAL3_B_0", "ABE") -> 10.5 | G62: =RTD("rtdtrading.rtdserver",, "QUAL3_B_0", "MAX") -> 10.61 | H62: =RTD("rtdtrading.rtdserver",, "QUAL3_B_0", "MIN") -> 10.28 | I62: =RTD("rtdtrading.rtdserver",, "QUAL3_B_0", "FEC") -> 10.44 | J62: =RTD("rtdtrading.rtdserver",, "QUAL3_B_0", "VAR") -> -1.436781609 | K62: =RTD("rtdtrading.rtdserver",, "QUAL3_B_0", "AJA") -> 0 | L62: =RTD("rtdtrading.rtdserver",, "QUAL3_B_0", "PRT") -> 0 | M62: 10.29 | N62: 418965264 | O62: 4311152567
D63: CSAN3 | E63: =RTD("rtdtrading.rtdserver",, "CSAN3_B_0", "ULT") -> 20.49 | F63: =RTD("rtdtrading.rtdserver",, "CSAN3_B_0", "ABE") -> 20.87 | G63: =RTD("rtdtrading.rtdserver",, "CSAN3_B_0", "MAX") -> 20.97 | H63: =RTD("rtdtrading.rtdserver",, "CSAN3_B_0", "MIN") -> 20.46 | I63: =RTD("rtdtrading.rtdserver",, "CSAN3_B_0", "FEC") -> 20.77 | J63: =RTD("rtdtrading.rtdserver",, "CSAN3_B_0", "VAR") -> -1.348098219 | K63: =RTD("rtdtrading.rtdserver",, "CSAN3_B_0", "AJA") -> 0 | L63: =RTD("rtdtrading.rtdserver",, "CSAN3_B_0", "PRT") -> 0 | M63: 20.49 | N63: 977821540 | O63: 2.003556335e+10
D64: VIIA3 | E64: =RTD("rtdtrading.rtdserver",, "VIIA3_B_0", "ULT") -> 3.28 | F64: =RTD("rtdtrading.rtdserver",, "VIIA3_B_0", "ABE") -> 3.41 | G64: =RTD("rtdtrading.rtdserver",, "VIIA3_B_0", "MAX") -> 3.43 | H64: =RTD("rtdtrading.rtdserver",, "VIIA3_B_0", "MIN") -> 3.26 | I64: =RTD("rtdtrading.rtdserver",, "VIIA3_B_0", "FEC") -> 3.38 | J64: =RTD("rtdtrading.rtdserver",, "VIIA3_B_0", "VAR") -> -2.958579882 | K64: =RTD("rtdtrading.rtdserver",, "VIIA3_B_0", "AJA") -> 0 | L64: =RTD("rtdtrading.rtdserver",, "VIIA3_B_0", "PRT") -> 0 | M64: 3.28 | N64: 2896234638 | O64: 9499649613
D65: KLBN11 | E65: =RTD("rtdtrading.rtdserver",, "KLBN11_B_0", "ULT") -> 19.76 | F65: =RTD("rtdtrading.rtdserver",, "KLBN11_B_0", "ABE") -> 20.13 | G65: =RTD("rtdtrading.rtdserver",, "KLBN11_B_0", "MAX") -> 20.34 | H65: =RTD("rtdtrading.rtdserver",, "KLBN11_B_0", "MIN") -> 19.72 | I65: =RTD("rtdtrading.rtdserver",, "KLBN11_B_0", "FEC") -> 20.09 | J65: =RTD("rtdtrading.rtdserver",, "KLBN11_B_0", "VAR") -> -1.642608263 | K65: =RTD("rtdtrading.rtdserver",, "KLBN11_B_0", "AJA") -> 0 | L65: =RTD("rtdtrading.rtdserver",, "KLBN11_B_0", "PRT") -> 0 | M65: 19.76 | N65: 348234011 | O65: 6881104057
D66: TAEE11 | E66: =RTD("rtdtrading.rtdserver",, "TAEE11_B_0", "ULT") -> 40.59 | F66: =RTD("rtdtrading.rtdserver",, "TAEE11_B_0", "ABE") -> 40.38 | G66: =RTD("rtdtrading.rtdserver",, "TAEE11_B_0", "MAX") -> 40.66 | H66: =RTD("rtdtrading.rtdserver",, "TAEE11_B_0", "MIN") -> 40.36 | I66: =RTD("rtdtrading.rtdserver",, "TAEE11_B_0", "FEC") -> 40.37 | J66: =RTD("rtdtrading.rtdserver",, "TAEE11_B_0", "VAR") -> 0.5449591281 | K66: =RTD("rtdtrading.rtdserver",, "TAEE11_B_0", "AJA") -> 0 | L66: =RTD("rtdtrading.rtdserver",, "TAEE11_B_0", "PRT") -> 0 | M66: 40.59 | N66: 548153725 | O66: 2.22495597e+10
D67: CIEL3 | E67: =RTD("rtdtrading.rtdserver",, "CIEL3_B_0", "ULT") -> 5.94 | F67: =RTD("rtdtrading.rtdserver",, "CIEL3_B_0", "ABE") -> 5.87 | G67: =RTD("rtdtrading.rtdserver",, "CIEL3_B_0", "MAX") -> 6.22 | H67: =RTD("rtdtrading.rtdserver",, "CIEL3_B_0", "MIN") -> 5.86 | I67: =RTD("rtdtrading.rtdserver",, "CIEL3_B_0", "FEC") -> 5.79 | J67: =RTD("rtdtrading.rtdserver",, "CIEL3_B_0", "VAR") -> 2.590673575 | K67: =RTD("rtdtrading.rtdserver",, "CIEL3_B_0", "AJA") -> 0 | L67: =RTD("rtdtrading.rtdserver",, "CIEL3_B_0", "PRT") -> 0 | M67: 5.94 | N67: 260409710 | O67: 1546833677
D68: BPAN4 | E68: =RTD("rtdtrading.rtdserver",, "BPAN4_B_0", "ULT") -> 7.13 | F68: =RTD("rtdtrading.rtdserver",, "BPAN4_B_0", "ABE") -> 7.36 | G68: =RTD("rtdtrading.rtdserver",, "BPAN4_B_0", "MAX") -> 7.36 | H68: =RTD("rtdtrading.rtdserver",, "BPAN4_B_0", "MIN") -> 7.13 | I68: =RTD("rtdtrading.rtdserver",, "BPAN4_B_0", "FEC") -> 7.32 | J68: =RTD("rtdtrading.rtdserver",, "BPAN4_B_0", "VAR") -> -2.595628415 | K68: =RTD("rtdtrading.rtdserver",, "BPAN4_B_0", "AJA") -> 0 | L68: =RTD("rtdtrading.rtdserver",, "BPAN4_B_0", "PRT") -> 0 | M68: 7.13 | N68: 294647234 | O68: 2100834778
D69: EGIE3 | E69: =RTD("rtdtrading.rtdserver",, "EGIE3_B_0", "ULT") -> 40.71 | F69: =RTD("rtdtrading.rtdserver",, "EGIE3_B_0", "ABE") -> 40.65 | G69: =RTD("rtdtrading.rtdserver",, "EGIE3_B_0", "MAX") -> 40.75 | H69: =RTD("rtdtrading.rtdserver",, "EGIE3_B_0", "MIN") -> 40.25 | I69: =RTD("rtdtrading.rtdserver",, "EGIE3_B_0", "FEC") -> 40.61 | J69: =RTD("rtdtrading.rtdserver",, "EGIE3_B_0", "VAR") -> 0.2462447673 | K69: =RTD("rtdtrading.rtdserver",, "EGIE3_B_0", "AJA") -> 0 | L69: =RTD("rtdtrading.rtdserver",, "EGIE3_B_0", "PRT") -> 0 | M69: 40.71 | N69: 272718548 | O69: 1.110237209e+10
D70: JBSS3 | E70: =RTD("rtdtrading.rtdserver",, "JBSS3_B_0", "ULT") -> 29.92 | F70: =RTD("rtdtrading.rtdserver",, "JBSS3_B_0", "ABE") -> 30.88 | G70: =RTD("rtdtrading.rtdserver",, "JBSS3_B_0", "MAX") -> 30.94 | H70: =RTD("rtdtrading.rtdserver",, "JBSS3_B_0", "MIN") -> 29.9 | I70: =RTD("rtdtrading.rtdserver",, "JBSS3_B_0", "FEC") -> 30.72 | J70: =RTD("rtdtrading.rtdserver",, "JBSS3_B_0", "VAR") -> -2.604166667 | K70: =RTD("rtdtrading.rtdserver",, "JBSS3_B_0", "AJA") -> 0 | L70: =RTD("rtdtrading.rtdserver",, "JBSS3_B_0", "PRT") -> 0 | M70: 29.92 | N70: 156946474 | O70: 4695838502
D71: GOAU4 | E71: =RTD("rtdtrading.rtdserver",, "GOAU4_B_0", "ULT") -> 10.13 | F71: =RTD("rtdtrading.rtdserver",, "GOAU4_B_0", "ABE") -> 10.38 | G71: =RTD("rtdtrading.rtdserver",, "GOAU4_B_0", "MAX") -> 10.48 | H71: =RTD("rtdtrading.rtdserver",, "GOAU4_B_0", "MIN") -> 10.12 | I71: =RTD("rtdtrading.rtdserver",, "GOAU4_B_0", "FEC") -> 10.32 | J71: =RTD("rtdtrading.rtdserver",, "GOAU4_B_0", "VAR") -> -1.841085271 | K71: =RTD("rtdtrading.rtdserver",, "GOAU4_B_0", "AJA") -> 0 | L71: =RTD("rtdtrading.rtdserver",, "GOAU4_B_0", "PRT") -> 0 | M71: 10.13 | N71: 2706334382 | O71: 2.741516729e+10
D72: GGBR4 | E72: =RTD("rtdtrading.rtdserver",, "GGBR4_B_0", "ULT") -> 24.22 | F72: =RTD("rtdtrading.rtdserver",, "GGBR4_B_0", "ABE") -> 24.99 | G72: =RTD("rtdtrading.rtdserver",, "GGBR4_B_0", "MAX") -> 25.11 | H72: =RTD("rtdtrading.rtdserver",, "GGBR4_B_0", "MIN") -> 24.16 | I72: =RTD("rtdtrading.rtdserver",, "GGBR4_B_0", "FEC") -> 24.67 | J72: =RTD("rtdtrading.rtdserver",, "GGBR4_B_0", "VAR") -> -1.824077827 | K72: =RTD("rtdtrading.rtdserver",, "GGBR4_B_0", "AJA") -> 0 | L72: =RTD("rtdtrading.rtdserver",, "GGBR4_B_0", "PRT") -> 0 | M72: =IF(L72=0,E72,L72) -> 24.22 | N72: 4566442248 | O72: =M72*N72 -> 1.105992312e+11
D73: EZTC3 | E73: =RTD("rtdtrading.rtdserver",, "EZTC3_B_0", "ULT") -> 18.26 | F73: =RTD("rtdtrading.rtdserver",, "EZTC3_B_0", "ABE") -> 18.47 | G73: =RTD("rtdtrading.rtdserver",, "EZTC3_B_0", "MAX") -> 18.69 | H73: =RTD("rtdtrading.rtdserver",, "EZTC3_B_0", "MIN") -> 18.19 | I73: =RTD("rtdtrading.rtdserver",, "EZTC3_B_0", "FEC") -> 18.47 | J73: =RTD("rtdtrading.rtdserver",, "EZTC3_B_0", "VAR") -> -1.136978885 | K73: =RTD("rtdtrading.rtdserver",, "EZTC3_B_0", "AJA") -> 0 | L73: =RTD("rtdtrading.rtdserver",, "EZTC3_B_0", "PRT") -> 0 | M73: 18.26 | N73: 839159130 | O73: 1.532304571e+10
D74: PETR4 | E74: =RTD("rtdtrading.rtdserver",, "PETR4_B_0", "ULT") -> 33.02 | F74: =RTD("rtdtrading.rtdserver",, "PETR4_B_0", "ABE") -> 33.28 | G74: =RTD("rtdtrading.rtdserver",, "PETR4_B_0", "MAX") -> 33.39 | H74: =RTD("rtdtrading.rtdserver",, "PETR4_B_0", "MIN") -> 32.57 | I74: =RTD("rtdtrading.rtdserver",, "PETR4_B_0", "FEC") -> 33.28 | J74: =RTD("rtdtrading.rtdserver",, "PETR4_B_0", "VAR") -> -0.78125 | K74: =RTD("rtdtrading.rtdserver",, "PETR4_B_0", "AJA") -> 0 | L74: =RTD("rtdtrading.rtdserver",, "PETR4_B_0", "PRT") -> 0 | M74: 33.02 | N74: 336154589 | O74: 1.109982453e+10
D75: PETR3 | E75: =RTD("rtdtrading.rtdserver",, "PETR3_B_0", "ULT") -> 36.94 | F75: =RTD("rtdtrading.rtdserver",, "PETR3_B_0", "ABE") -> 37.21 | G75: =RTD("rtdtrading.rtdserver",, "PETR3_B_0", "MAX") -> 37.21 | H75: =RTD("rtdtrading.rtdserver",, "PETR3_B_0", "MIN") -> 36.37 | I75: =RTD("rtdtrading.rtdserver",, "PETR3_B_0", "FEC") -> 37.09 | J75: =RTD("rtdtrading.rtdserver",, "PETR3_B_0", "VAR") -> -0.404421677 | K75: =RTD("rtdtrading.rtdserver",, "PETR3_B_0", "AJA") -> 0 | L75: =RTD("rtdtrading.rtdserver",, "PETR3_B_0", "PRT") -> 0 | M75: 36.94 | N75: 78053723 | O75: 2883304528
D76: UGPA3 | E76: =RTD("rtdtrading.rtdserver",, "UGPA3_B_0", "ULT") -> 13.99 | F76: =RTD("rtdtrading.rtdserver",, "UGPA3_B_0", "ABE") -> 14.11 | G76: =RTD("rtdtrading.rtdserver",, "UGPA3_B_0", "MAX") -> 14.2 | H76: =RTD("rtdtrading.rtdserver",, "UGPA3_B_0", "MIN") -> 13.95 | I76: =RTD("rtdtrading.rtdserver",, "UGPA3_B_0", "FEC") -> 14.05 | J76: =RTD("rtdtrading.rtdserver",, "UGPA3_B_0", "VAR") -> -0.4270462633 | K76: =RTD("rtdtrading.rtdserver",, "UGPA3_B_0", "AJA") -> 0 | L76: =RTD("rtdtrading.rtdserver",, "UGPA3_B_0", "PRT") -> 0 | M76: 13.99 | N76: 277027077 | O76: 3875608807
D77: ITSA4 | E77: =RTD("rtdtrading.rtdserver",, "ITSA4_B_0", "ULT") -> 9.32 | F77: =RTD("rtdtrading.rtdserver",, "ITSA4_B_0", "ABE") -> 9.39 | G77: =RTD("rtdtrading.rtdserver",, "ITSA4_B_0", "MAX") -> 9.46 | H77: =RTD("rtdtrading.rtdserver",, "ITSA4_B_0", "MIN") -> 9.32 | I77: =RTD("rtdtrading.rtdserver",, "ITSA4_B_0", "FEC") -> 9.38 | J77: =RTD("rtdtrading.rtdserver",, "ITSA4_B_0", "VAR") -> -0.6396588486 | K77: =RTD("rtdtrading.rtdserver",, "ITSA4_B_0", "AJA") -> 0 | L77: =RTD("rtdtrading.rtdserver",, "ITSA4_B_0", "PRT") -> 0 | M77: 9.32 | N77: 1071076905 | O77: 9982436755
D78: MGLU3 | E78: =RTD("rtdtrading.rtdserver",, "MGLU3_B_0", "ULT") -> 4.51 | F78: =RTD("rtdtrading.rtdserver",, "MGLU3_B_0", "ABE") -> 4.73 | G78: =RTD("rtdtrading.rtdserver",, "MGLU3_B_0", "MAX") -> 4.76 | H78: =RTD("rtdtrading.rtdserver",, "MGLU3_B_0", "MIN") -> 4.49 | I78: =RTD("rtdtrading.rtdserver",, "MGLU3_B_0", "FEC") -> 4.68 | J78: =RTD("rtdtrading.rtdserver",, "MGLU3_B_0", "VAR") -> -3.632478632 | K78: =RTD("rtdtrading.rtdserver",, "MGLU3_B_0", "AJA") -> 0 | L78: =RTD("rtdtrading.rtdserver",, "MGLU3_B_0", "PRT") -> 0 | M78: 4.51 | N78: 772010260 | O78: 3481766273
D79: BBAS3 | E79: =RTD("rtdtrading.rtdserver",, "BBAS3_B_0", "ULT") -> 41.38 | F79: =RTD("rtdtrading.rtdserver",, "BBAS3_B_0", "ABE") -> 41.88 | G79: =RTD("rtdtrading.rtdserver",, "BBAS3_B_0", "MAX") -> 42.03 | H79: =RTD("rtdtrading.rtdserver",, "BBAS3_B_0", "MIN") -> 41.12 | I79: =RTD("rtdtrading.rtdserver",, "BBAS3_B_0", "FEC") -> 41.8 | J79: =RTD("rtdtrading.rtdserver",, "BBAS3_B_0", "VAR") -> -1.004784689 | K79: =RTD("rtdtrading.rtdserver",, "BBAS3_B_0", "AJA") -> 0 | L79: =RTD("rtdtrading.rtdserver",, "BBAS3_B_0", "PRT") -> 0 | M79: 41.38 | N79: 1216056103 | O79: 5.032040154e+10
D80: CRFB3 | E80: =RTD("rtdtrading.rtdserver",, "CRFB3_B_0", "ULT") -> 20.03 | F80: =RTD("rtdtrading.rtdserver",, "CRFB3_B_0", "ABE") -> 20.18 | G80: =RTD("rtdtrading.rtdserver",, "CRFB3_B_0", "MAX") -> 20.37 | H80: =RTD("rtdtrading.rtdserver",, "CRFB3_B_0", "MIN") -> 19.96 | I80: =RTD("rtdtrading.rtdserver",, "CRFB3_B_0", "FEC") -> 20.08 | J80: =RTD("rtdtrading.rtdserver",, "CRFB3_B_0", "VAR") -> -0.2490039841 | K80: =RTD("rtdtrading.rtdserver",, "CRFB3_B_0", "AJA") -> 0 | L80: =RTD("rtdtrading.rtdserver",, "CRFB3_B_0", "PRT") -> 0 | M80: 20.03 | N80: 340001934 | O80: 6810238738
D81: MRVE3 | E81: =RTD("rtdtrading.rtdserver",, "MRVE3_B_0", "ULT") -> 10.25 | F81: =RTD("rtdtrading.rtdserver",, "MRVE3_B_0", "ABE") -> 10.31 | G81: =RTD("rtdtrading.rtdserver",, "MRVE3_B_0", "MAX") -> 10.65 | H81: =RTD("rtdtrading.rtdserver",, "MRVE3_B_0", "MIN") -> 10.18 | I81: =RTD("rtdtrading.rtdserver",, "MRVE3_B_0", "FEC") -> 10.26 | J81: =RTD("rtdtrading.rtdserver",, "MRVE3_B_0", "VAR") -> -0.09746588694 | K81: =RTD("rtdtrading.rtdserver",, "MRVE3_B_0", "AJA") -> 0 | L81: =RTD("rtdtrading.rtdserver",, "MRVE3_B_0", "PRT") -> 0 | M81: 10.25 | N81: 362703399 | O81: 3717709840
D82: TIMS3 | E82: =RTD("rtdtrading.rtdserver",, "TIMS3_B_0", "ULT") -> 12.02 | F82: =RTD("rtdtrading.rtdserver",, "TIMS3_B_0", "ABE") -> 12.1 | G82: =RTD("rtdtrading.rtdserver",, "TIMS3_B_0", "MAX") -> 12.12 | H82: =RTD("rtdtrading.rtdserver",, "TIMS3_B_0", "MIN") -> 11.98 | I82: =RTD("rtdtrading.rtdserver",, "TIMS3_B_0", "FEC") -> 12.06 | J82: =RTD("rtdtrading.rtdserver",, "TIMS3_B_0", "VAR") -> -0.3316749585 | K82: =RTD("rtdtrading.rtdserver",, "TIMS3_B_0", "AJA") -> 0 | L82: =RTD("rtdtrading.rtdserver",, "TIMS3_B_0", "PRT") -> 0 | M82: 12.02 | N82: 642398790 | O82: 7721633456
D83: CMIG4 | E83: =RTD("rtdtrading.rtdserver",, "CMIG4_B_0", "ULT") -> 12.44 | F83: =RTD("rtdtrading.rtdserver",, "CMIG4_B_0", "ABE") -> 12.65 | G83: =RTD("rtdtrading.rtdserver",, "CMIG4_B_0", "MAX") -> 12.66 | H83: =RTD("rtdtrading.rtdserver",, "CMIG4_B_0", "MIN") -> 12.35 | I83: =RTD("rtdtrading.rtdserver",, "CMIG4_B_0", "FEC") -> 12.63 | J83: =RTD("rtdtrading.rtdserver",, "CMIG4_B_0", "VAR") -> -1.504354711 | K83: =RTD("rtdtrading.rtdserver",, "CMIG4_B_0", "AJA") -> 0 | L83: =RTD("rtdtrading.rtdserver",, "CMIG4_B_0", "PRT") -> 0 | M83: 12.44 | N83: 96270946 | O83: 1197610568
D84: WEGE3 | E84: =RTD("rtdtrading.rtdserver",, "WEGE3_B_0", "ULT") -> 28.83 | F84: =RTD("rtdtrading.rtdserver",, "WEGE3_B_0", "ABE") -> 29.18 | G84: =RTD("rtdtrading.rtdserver",, "WEGE3_B_0", "MAX") -> 29.23 | H84: =RTD("rtdtrading.rtdserver",, "WEGE3_B_0", "MIN") -> 28.61 | I84: =RTD("rtdtrading.rtdserver",, "WEGE3_B_0", "FEC") -> 28.95 | J84: =RTD("rtdtrading.rtdserver",, "WEGE3_B_0", "VAR") -> -0.414507772 | K84: =RTD("rtdtrading.rtdserver",, "WEGE3_B_0", "AJA") -> 0 | L84: =RTD("rtdtrading.rtdserver",, "WEGE3_B_0", "PRT") -> 0 | M84: 28.83 | N84: 283167854 | O84: 8163729231
D85: MULT3 | E85: =RTD("rtdtrading.rtdserver",, "MULT3_B_0", "ULT") -> 25.48 | F85: =RTD("rtdtrading.rtdserver",, "MULT3_B_0", "ABE") -> 25.61 | G85: =RTD("rtdtrading.rtdserver",, "MULT3_B_0", "MAX") -> 25.8 | H85: =RTD("rtdtrading.rtdserver",, "MULT3_B_0", "MIN") -> 25.41 | I85: =RTD("rtdtrading.rtdserver",, "MULT3_B_0", "FEC") -> 25.5 | J85: =RTD("rtdtrading.rtdserver",, "MULT3_B_0", "VAR") -> -0.07843137255 | K85: =RTD("rtdtrading.rtdserver",, "MULT3_B_0", "AJA") -> 0 | L85: =RTD("rtdtrading.rtdserver",, "MULT3_B_0", "PRT") -> 0 | M85: 25.48 | N85: 726779281 | O85: 1.851833608e+10
D86: HYPE3 | E86: =RTD("rtdtrading.rtdserver",, "HYPE3_B_0", "ULT") -> 43.91 | F86: =RTD("rtdtrading.rtdserver",, "HYPE3_B_0", "ABE") -> 44.06 | G86: =RTD("rtdtrading.rtdserver",, "HYPE3_B_0", "MAX") -> 44.25 | H86: =RTD("rtdtrading.rtdserver",, "HYPE3_B_0", "MIN") -> 43.64 | I86: =RTD("rtdtrading.rtdserver",, "HYPE3_B_0", "FEC") -> 43.9 | J86: =RTD("rtdtrading.rtdserver",, "HYPE3_B_0", "VAR") -> 0.02277904328 | K86: =RTD("rtdtrading.rtdserver",, "HYPE3_B_0", "AJA") -> 0 | L86: =RTD("rtdtrading.rtdserver",, "HYPE3_B_0", "PRT") -> 0 | M86: 43.91 | N86: 218568234 | O86: 9597331155
D87: LREN3 | E87: =RTD("rtdtrading.rtdserver",, "LREN3_B_0", "ULT") -> 27.6 | F87: =RTD("rtdtrading.rtdserver",, "LREN3_B_0", "ABE") -> 27.67 | G87: =RTD("rtdtrading.rtdserver",, "LREN3_B_0", "MAX") -> 27.99 | H87: =RTD("rtdtrading.rtdserver",, "LREN3_B_0", "MIN") -> 27.42 | I87: =RTD("rtdtrading.rtdserver",, "LREN3_B_0", "FEC") -> 27.6 | J87: =RTD("rtdtrading.rtdserver",, "LREN3_B_0", "VAR") -> 4.263256415e-14 | K87: =RTD("rtdtrading.rtdserver",, "LREN3_B_0", "AJA") -> 0 | L87: =RTD("rtdtrading.rtdserver",, "LREN3_B_0", "PRT") -> 0 | M87: 27.6 | N87: 413890875 | O87: 1.142338815e+10
D88: PETZ3 | E88: =RTD("rtdtrading.rtdserver",, "PETZ3_B_0", "ULT") -> 10.64 | F88: =RTD("rtdtrading.rtdserver",, "PETZ3_B_0", "ABE") -> 10.97 | G88: =RTD("rtdtrading.rtdserver",, "PETZ3_B_0", "MAX") -> 11.15 | H88: =RTD("rtdtrading.rtdserver",, "PETZ3_B_0", "MIN") -> 10.5 | I88: =RTD("rtdtrading.rtdserver",, "PETZ3_B_0", "FEC") -> 10.93 | J88: =RTD("rtdtrading.rtdserver",, "PETZ3_B_0", "VAR") -> -2.653247941 | K88: =RTD("rtdtrading.rtdserver",, "PETZ3_B_0", "AJA") -> 0 | L88: =RTD("rtdtrading.rtdserver",, "PETZ3_B_0", "PRT") -> 0 | M88: 10.64 | N88: 808619532 | O88: 8603711820
D89: B3SA3 | E89: =RTD("rtdtrading.rtdserver",, "B3SA3_B_0", "ULT") -> 12.52 | F89: =RTD("rtdtrading.rtdserver",, "B3SA3_B_0", "ABE") -> 12.82 | G89: =RTD("rtdtrading.rtdserver",, "B3SA3_B_0", "MAX") -> 12.85 | H89: =RTD("rtdtrading.rtdserver",, "B3SA3_B_0", "MIN") -> 12.5 | I89: =RTD("rtdtrading.rtdserver",, "B3SA3_B_0", "FEC") -> 12.77 | J89: =RTD("rtdtrading.rtdserver",, "B3SA3_B_0", "VAR") -> -1.957713391 | K89: =RTD("rtdtrading.rtdserver",, "B3SA3_B_0", "AJA") -> 0 | L89: =RTD("rtdtrading.rtdserver",, "B3SA3_B_0", "PRT") -> 0 | M89: 12.52 | N89: 519851955 | O89: 6508546477
D90: VIVT3 | E90: =RTD("rtdtrading.rtdserver",, "VIVT3_B_0", "ULT") -> 42.68 | F90: =RTD("rtdtrading.rtdserver",, "VIVT3_B_0", "ABE") -> 43.02 | G90: =RTD("rtdtrading.rtdserver",, "VIVT3_B_0", "MAX") -> 43.06 | H90: =RTD("rtdtrading.rtdserver",, "VIVT3_B_0", "MIN") -> 42.61 | I90: =RTD("rtdtrading.rtdserver",, "VIVT3_B_0", "FEC") -> 42.85 | J90: =RTD("rtdtrading.rtdserver",, "VIVT3_B_0", "VAR") -> -0.3967327888 | K90: =RTD("rtdtrading.rtdserver",, "VIVT3_B_0", "AJA") -> 0 | L90: =RTD("rtdtrading.rtdserver",, "VIVT3_B_0", "PRT") -> 0 | M90: 42.68 | N90: 1086067887 | O90: 4.635337742e+10
D91: ITUB4 | E91: =RTD("rtdtrading.rtdserver",, "ITUB4_B_0", "ULT") -> 26.71 | F91: =RTD("rtdtrading.rtdserver",, "ITUB4_B_0", "ABE") -> 26.9 | G91: =RTD("rtdtrading.rtdserver",, "ITUB4_B_0", "MAX") -> 27.14 | H91: =RTD("rtdtrading.rtdserver",, "ITUB4_B_0", "MIN") -> 26.71 | I91: =RTD("rtdtrading.rtdserver",, "ITUB4_B_0", "FEC") -> 26.85 | J91: =RTD("rtdtrading.rtdserver",, "ITUB4_B_0", "VAR") -> -0.52141527 | K91: =RTD("rtdtrading.rtdserver",, "ITUB4_B_0", "AJA") -> 0 | L91: =RTD("rtdtrading.rtdserver",, "ITUB4_B_0", "PRT") -> 0 | M91: 26.71 | N91: 514680651 | O91: 1.374712019e+10
D92: RENT3 | E92: =RTD("rtdtrading.rtdserver",, "RENT3_B_0", "ULT") -> 61.76 | F92: =RTD("rtdtrading.rtdserver",, "RENT3_B_0", "ABE") -> 63.4 | G92: =RTD("rtdtrading.rtdserver",, "RENT3_B_0", "MAX") -> 63.53 | H92: =RTD("rtdtrading.rtdserver",, "RENT3_B_0", "MIN") -> 61.53 | I92: =RTD("rtdtrading.rtdserver",, "RENT3_B_0", "FEC") -> 63.65 | J92: =RTD("rtdtrading.rtdserver",, "RENT3_B_0", "VAR") -> -2.969363708 | K92: =RTD("rtdtrading.rtdserver",, "RENT3_B_0", "AJA") -> 0 | L92: =RTD("rtdtrading.rtdserver",, "RENT3_B_0", "PRT") -> 0 | M92: 61.76 | N92: 3768748489 | O92: 2.327579067e+11
D93: BBDC3 | E93: =RTD("rtdtrading.rtdserver",, "BBDC3_B_0", "ULT") -> 16.12 | F93: =RTD("rtdtrading.rtdserver",, "BBDC3_B_0", "ABE") -> 16.19 | G93: =RTD("rtdtrading.rtdserver",, "BBDC3_B_0", "MAX") -> 16.37 | H93: =RTD("rtdtrading.rtdserver",, "BBDC3_B_0", "MIN") -> 16.12 | I93: =RTD("rtdtrading.rtdserver",, "BBDC3_B_0", "FEC") -> 16.17 | J93: =RTD("rtdtrading.rtdserver",, "BBDC3_B_0", "VAR") -> -0.3092145949 | K93: =RTD("rtdtrading.rtdserver",, "BBDC3_B_0", "AJA") -> 0 | L93: =RTD("rtdtrading.rtdserver",, "BBDC3_B_0", "PRT") -> 0 | M93: 16.12 | N93: 1596295753 | O93: 2.573228754e+10
D94: BBDC4 | E94: =RTD("rtdtrading.rtdserver",, "BBDC4_B_0", "ULT") -> 19.5 | F94: =RTD("rtdtrading.rtdserver",, "BBDC4_B_0", "ABE") -> 19.6 | G94: =RTD("rtdtrading.rtdserver",, "BBDC4_B_0", "MAX") -> 19.82 | H94: =RTD("rtdtrading.rtdserver",, "BBDC4_B_0", "MIN") -> 19.5 | I94: =RTD("rtdtrading.rtdserver",, "BBDC4_B_0", "FEC") -> 19.51 | J94: =RTD("rtdtrading.rtdserver",, "BBDC4_B_0", "VAR") -> -0.05125576627 | K94: =RTD("rtdtrading.rtdserver",, "BBDC4_B_0", "AJA") -> 0 | L94: =RTD("rtdtrading.rtdserver",, "BBDC4_B_0", "PRT") -> 0 | M94: 19.5 | N94: 1131883365 | O94: 2.207172562e+10
D95: RADL3 | E95: =RTD("rtdtrading.rtdserver",, "RADL3_B_0", "ULT") -> 22.31 | F95: =RTD("rtdtrading.rtdserver",, "RADL3_B_0", "ABE") -> 22.78 | G95: =RTD("rtdtrading.rtdserver",, "RADL3_B_0", "MAX") -> 22.85 | H95: =RTD("rtdtrading.rtdserver",, "RADL3_B_0", "MIN") -> 22.27 | I95: =RTD("rtdtrading.rtdserver",, "RADL3_B_0", "FEC") -> 22.62 | J95: =RTD("rtdtrading.rtdserver",, "RADL3_B_0", "VAR") -> -1.370468612 | K95: =RTD("rtdtrading.rtdserver",, "RADL3_B_0", "AJA") -> 0 | L95: =RTD("rtdtrading.rtdserver",, "RADL3_B_0", "PRT") -> 0 | M95: 22.31 | N95: 1484859030 | O95: 3.312720496e+10
D96: RDOR3 | E96: =RTD("rtdtrading.rtdserver",, "RDOR3_B_0", "ULT") -> 33.85 | F96: =RTD("rtdtrading.rtdserver",, "RDOR3_B_0", "ABE") -> 34.62 | G96: =RTD("rtdtrading.rtdserver",, "RDOR3_B_0", "MAX") -> 35.13 | H96: =RTD("rtdtrading.rtdserver",, "RDOR3_B_0", "MIN") -> 33.83 | I96: =RTD("rtdtrading.rtdserver",, "RDOR3_B_0", "FEC") -> 34.45 | J96: =RTD("rtdtrading.rtdserver",, "RDOR3_B_0", "VAR") -> -1.741654572 | K96: =RTD("rtdtrading.rtdserver",, "RDOR3_B_0", "AJA") -> 0 | L96: =RTD("rtdtrading.rtdserver",, "RDOR3_B_0", "PRT") -> 0 | M96: 33.85 | N96: 300833122 | O96: 1.018320118e+10
O97: =SUM(O7:O96) -> 2.033458802e+12
O99: =#REF! -> 
D105: Asset | E105: Último | F105: Abertura | G105: Máximo | H105: Mínimo | I105: Fechamento Anterior | J105: Variação | K105: Variação(pts) | L105: Negócios | M105: Quantidade | N105: Volume | O105: Aj. Anterior | P105: Preço Teórico | Q105: Limite Max | R105: Limite Min | S105: Prior Cote Ajuste | T105: TR - Acúmulo de Agressão - Saldo | U105: TR - Histograma de Agressão | V105: TR - Volume de Agressão - Saldo
D106: IBOV | E106: =RTD("rtdtrading.rtdserver",, "IBOV_B_0", "ULT") -> 112473.24 | F106: =RTD("rtdtrading.rtdserver",, "IBOV_B_0", "ABE") -> 113532.54 | G106: =RTD("rtdtrading.rtdserver",, "IBOV_B_0", "MAX") -> 114091.4 | H106: =RTD("rtdtrading.rtdserver",, "IBOV_B_0", "MIN") -> 112433.8 | I106: =RTD("rtdtrading.rtdserver",, "IBOV_B_0", "FEC") -> 113531.72 | J106: =RTD("rtdtrading.rtdserver",, "IBOV_B_0", "VAR") -> -0.9323209408 | K106: =RTD("rtdtrading.rtdserver",, "IBOV_B_0", "VARPTS") -> -1058.48 | L106: =RTD("rtdtrading.rtdserver",, "IBOV_B_0", "NEG") -> 587471 | M106: =RTD("rtdtrading.rtdserver",, "IBOV_B_0", "QTT") -> 494920900 | N106: =RTD("rtdtrading.rtdserver",, "IBOV_B_0", "VOL") -> 7355060301 | O106: Aj. Anterior | P106: =RTD("rtdtrading.rtdserver",, "IBOV_B_0", "PRT") -> 0 | Q106: =RTD("rtdtrading.rtdserver",, "IBOV_B_0", "LMAX") -> 0 | R106: =RTD("rtdtrading.rtdserver",, "IBOV_B_0", "LMIN") -> 0 | S106: =RTD("rtdtrading.rtdserver",, "IBOV_B_0", "190") -> Atributo Inválido | T106: =RTD("rtdtrading.rtdserver",, "IBOV_B_0", "103") -> 0,00 | U106: =RTD("rtdtrading.rtdserver",, "IBOV_B_0", "184") -> 0,00 | V106: =RTD("rtdtrading.rtdserver",, "IBOV_B_0", "100") -> 0
D112: Asset | E112: Último | F112: Abertura | G112: Máximo | H112: Mínimo | I112: Fechamento Anterior | J112: Variação | K112: Variação(pts) | L112: Negócios | M112: Quantidade | N112: Volume | O112: Aj. Anterior | P112: Preço Teórico | Q112: Limite Max | R112: Limite Min | S112: Afastamento Médio | T112: Estocástico Pleno | U112: Momentum | V112: Nelogica - Pullback Finder | W112: Prior Cote | X112: Prior Cote Ajuste | Y112: Stop ATR | Z112: TR - Acúmulo de Agressão - Saldo | AA112: TR - Histograma de Agressão | AB112: TR - Volume de Agressão - Saldo | AC112: Volatilidade Histórica
D113: WINQ22 | E113: =RTD("rtdtrading.rtdserver",, "WINQ22_F_0", "ULT") -> 113720 | F113: =RTD("rtdtrading.rtdserver",, "WINQ22_F_0", "ABE") -> 112900 | G113: =RTD("rtdtrading.rtdserver",, "WINQ22_F_0", "MAX") -> 114000 | H113: =RTD("rtdtrading.rtdserver",, "WINQ22_F_0", "MIN") -> 112255 | I113: =RTD("rtdtrading.rtdserver",, "WINQ22_F_0", "FEC") -> 113785 | J113: =RTD("rtdtrading.rtdserver",, "WINQ22_F_0", "VAR") -> -0.05712528013 | K113: =RTD("rtdtrading.rtdserver",, "WINQ22_F_0", "VARPTS") -> -65 | L113: =RTD("rtdtrading.rtdserver",, "WINQ22_F_0", "NEG") -> 788688 | M113: =RTD("rtdtrading.rtdserver",, "WINQ22_F_0", "QTT") -> 1976739 | N113: =RTD("rtdtrading.rtdserver",, "WINQ22_F_0", "VOL") -> 44759957817 | O113: =RTD("rtdtrading.rtdserver",, "WINQ22_F_0", "AJA") -> 0 | P113: =RTD("rtdtrading.rtdserver",, "WINQ22_F_0", "PRT") -> 0 | Q113: =RTD("rtdtrading.rtdserver",, "WINQ22_F_0", "LMAX") -> 0 | R113: =RTD("rtdtrading.rtdserver",, "WINQ22_F_0", "LMIN") -> 0 | S113: =RTD("rtdtrading.rtdserver",, "WINQ22_F_0", "126") -> Atributo Inválido | T113: =RTD("rtdtrading.rtdserver",, "WINQ22_F_0", "15") -> Atributo Inválido | U113: =RTD("rtdtrading.rtdserver",, "WINQ22_F_0", "33") -> Atributo Inválido | V113: =RTD("rtdtrading.rtdserver",, "WINQ22_F_0", "85") -> Atributo Inválido | W113: =RTD("rtdtrading.rtdserver",, "WINQ22_F_0", "86") -> Atributo Inválido | X113: =RTD("rtdtrading.rtdserver",, "WINQ22_F_0", "190") -> Atributo Inválido | Y113: =RTD("rtdtrading.rtdserver",, "WINQ22_F_0", "66") -> Atributo Inválido | Z113: =RTD("rtdtrading.rtdserver",, "WINQ22_F_0", "103") -> 16.716,00 | AA113: =RTD("rtdtrading.rtdserver",, "WINQ22_F_0", "184") -> 645.718,00 | AB113: =RTD("rtdtrading.rtdserver",, "WINQ22_F_0", "100") -> 16.716 | AC113: =RTD("rtdtrading.rtdserver",, "WINQ22_F_0", "45") -> Atributo Inválido

Sheet AGRESSÃO IBOV
B4: Asset | C4: Último | D4: Abertura | E4: Máximo | F4: Mínimo | G4: Variação | H4: Variação(pts) | I4: TR - Histograma de Agressão | J4: TR - Volume de Agressão - Saldo | K4: TR - Acúmulo de Agressão - Saldo | L4: Variação
B5: RRRP3 | C5: =RTD("rtdtrading.rtdserver",, "RRRP3_B_0", "ULT") -> 36.89 | D5: =RTD("rtdtrading.rtdserver",, "RRRP3_B_0", "ABE") -> 37 | E5: =RTD("rtdtrading.rtdserver",, "RRRP3_B_0", "MAX") -> 37.43 | F5: =RTD("rtdtrading.rtdserver",, "RRRP3_B_0", "MIN") -> 36.66 | G5: =RTD("rtdtrading.rtdserver",, "RRRP3_B_0", "VAR") -> -0.1623815968 | H5: =RTD("rtdtrading.rtdserver",, "RRRP3_B_0", "VARPTS") -> -0.06 | I5: =RTD("rtdtrading.rtdserver",, "RRRP3_B_0", "184") -> 268.000,00 | J5: =RTD("rtdtrading.rtdserver",, "RRRP3_B_0", "100") -> -245.100 | K5: =RTD("rtdtrading.rtdserver",, "RRRP3_B_0", "103") -> -245.100,00 | L5: =SUM(G5:G94) -> -104.0751447
B6: LWSA3 | C6: =RTD("rtdtrading.rtdserver",, "LWSA3_B_0", "ULT") -> 9.73 | D6: =RTD("rtdtrading.rtdserver",, "LWSA3_B_0", "ABE") -> 10.02 | E6: =RTD("rtdtrading.rtdserver",, "LWSA3_B_0", "MAX") -> 10.15 | F6: =RTD("rtdtrading.rtdserver",, "LWSA3_B_0", "MIN") -> 9.72 | G6: =RTD("rtdtrading.rtdserver",, "LWSA3_B_0", "VAR") -> -2.894211577 | H6: =RTD("rtdtrading.rtdserver",, "LWSA3_B_0", "VARPTS") -> -0.29 | I6: =RTD("rtdtrading.rtdserver",, "LWSA3_B_0", "184") -> 3.390.800,00 | J6: =RTD("rtdtrading.rtdserver",, "LWSA3_B_0", "100") -> -618.000 | K6: =RTD("rtdtrading.rtdserver",, "LWSA3_B_0", "103") -> -618.000,00 | L6: VOL Agressão
B7: ENEV3 | C7: =RTD("rtdtrading.rtdserver",, "ENEV3_B_0", "ULT") -> 15.28 | D7: =RTD("rtdtrading.rtdserver",, "ENEV3_B_0", "ABE") -> 15.46 | E7: =RTD("rtdtrading.rtdserver",, "ENEV3_B_0", "MAX") -> 15.52 | F7: =RTD("rtdtrading.rtdserver",, "ENEV3_B_0", "MIN") -> 15.24 | G7: =RTD("rtdtrading.rtdserver",, "ENEV3_B_0", "VAR") -> -0.6501950585 | H7: =RTD("rtdtrading.rtdserver",, "ENEV3_B_0", "VARPTS") -> -0.1 | I7: =RTD("rtdtrading.rtdserver",, "ENEV3_B_0", "184") -> 26.400,00 | J7: =RTD("rtdtrading.rtdserver",, "ENEV3_B_0", "100") -> -26.400 | K7: =RTD("rtdtrading.rtdserver",, "ENEV3_B_0", "103") -> -26.400,00 | L7: =SUM(J5+J6+J7+J8+J9+J10+J11+J12+J13+J14+J15+J16+J17+J18+J19+J20+J21+J22+J23+J24+J25+J26+J27+J28+J29+J30+J31+J32+J33+J34) -> -12948900
B8: EMBR3 | C8: =RTD("rtdtrading.rtdserver",, "EMBR3_B_0", "ULT") -> 14.5 | D8: =RTD("rtdtrading.rtdserver",, "EMBR3_B_0", "ABE") -> 14.85 | E8: =RTD("rtdtrading.rtdserver",, "EMBR3_B_0", "MAX") -> 14.98 | F8: =RTD("rtdtrading.rtdserver",, "EMBR3_B_0", "MIN") -> 14.49 | G8: =RTD("rtdtrading.rtdserver",, "EMBR3_B_0", "VAR") -> -1.56143924 | H8: =RTD("rtdtrading.rtdserver",, "EMBR3_B_0", "VARPTS") -> -0.23 | I8: =RTD("rtdtrading.rtdserver",, "EMBR3_B_0", "184") -> 510.200,00 | J8: =RTD("rtdtrading.rtdserver",, "EMBR3_B_0", "100") -> -510.200 | K8: =RTD("rtdtrading.rtdserver",, "EMBR3_B_0", "103") -> -510.200,00 | L8: =SUM(J35+J36+J37+J38+J39+J40+J41+J42+J43+J45+J46+J47+J44+J48+J49+J50+J51+J52+J53+J54+J53) -> -2065000
B9: PRIO3 | C9: =RTD("rtdtrading.rtdserver",, "PRIO3_B_0", "ULT") -> 26.35 | D9: =RTD("rtdtrading.rtdserver",, "PRIO3_B_0", "ABE") -> 26.48 | E9: =RTD("rtdtrading.rtdserver",, "PRIO3_B_0", "MAX") -> 26.69 | F9: =RTD("rtdtrading.rtdserver",, "PRIO3_B_0", "MIN") -> 26.23 | G9: =RTD("rtdtrading.rtdserver",, "PRIO3_B_0", "VAR") -> -0.1515725654 | H9: =RTD("rtdtrading.rtdserver",, "PRIO3_B_0", "VARPTS") -> -0.04 | I9: =RTD("rtdtrading.rtdserver",, "PRIO3_B_0", "184") -> 1.591.800,00 | J9: =RTD("rtdtrading.rtdserver",, "PRIO3_B_0", "100") -> -83.000 | K9: =RTD("rtdtrading.rtdserver",, "PRIO3_B_0", "103") -> -83.000,00 | L9: =SUM(J53+J54+J55+J56+J57+J58+J59+J60+J61+J62+J63+J64+J65+J66+J67+J68+J69+J70+J71+J72+J73+J74+J75+J76+J77+J78+J79+J80+J81+J82+J83+J84+J85+J86+J87+J88+J89+J90+J91+J92+J93+J94) -> -14706700
B10: BRFS3 | C10: =RTD("rtdtrading.rtdserver",, "BRFS3_B_0", "ULT") -> 16.1 | D10: =RTD("rtdtrading.rtdserver",, "BRFS3_B_0", "ABE") -> 16.55 | E10: =RTD("rtdtrading.rtdserver",, "BRFS3_B_0", "MAX") -> 16.61 | F10: =RTD("rtdtrading.rtdserver",, "BRFS3_B_0", "MIN") -> 16.05 | G10: =RTD("rtdtrading.rtdserver",, "BRFS3_B_0", "VAR") -> -2.246508804 | H10: =RTD("rtdtrading.rtdserver",, "BRFS3_B_0", "VARPTS") -> -0.37 | I10: =RTD("rtdtrading.rtdserver",, "BRFS3_B_0", "184") -> 99.200,00 | J10: =RTD("rtdtrading.rtdserver",, "BRFS3_B_0", "100") -> -99.200 | K10: =RTD("rtdtrading.rtdserver",, "BRFS3_B_0", "103") -> -99.200,00
B11: CVCB3 | C11: =RTD("rtdtrading.rtdserver",, "CVCB3_B_0", "ULT") -> 7.9 | D11: =RTD("rtdtrading.rtdserver",, "CVCB3_B_0", "ABE") -> 8.29 | E11: =RTD("rtdtrading.rtdserver",, "CVCB3_B_0", "MAX") -> 8.43 | F11: =RTD("rtdtrading.rtdserver",, "CVCB3_B_0", "MIN") -> 7.88 | G11: =RTD("rtdtrading.rtdserver",, "CVCB3_B_0", "VAR") -> -3.892944039 | H11: =RTD("rtdtrading.rtdserver",, "CVCB3_B_0", "VARPTS") -> -0.32 | I11: =RTD("rtdtrading.rtdserver",, "CVCB3_B_0", "184") -> 1.221.400,00 | J11: =RTD("rtdtrading.rtdserver",, "CVCB3_B_0", "100") -> -1.083.500 | K11: =RTD("rtdtrading.rtdserver",, "CVCB3_B_0", "103") -> -1.083.500,00 | L11: =SUM(L7+L8+L9) -> -29720600
B12: CASH3 | C12: =RTD("rtdtrading.rtdserver",, "CASH3_B_0", "ULT") -> 1.34 | D12: =RTD("rtdtrading.rtdserver",, "CASH3_B_0", "ABE") -> 1.36 | E12: =RTD("rtdtrading.rtdserver",, "CASH3_B_0", "MAX") -> 1.39 | F12: =RTD("rtdtrading.rtdserver",, "CASH3_B_0", "MIN") -> 1.33 | G12: =RTD("rtdtrading.rtdserver",, "CASH3_B_0", "VAR") -> -1.470588235 | H12: =RTD("rtdtrading.rtdserver",, "CASH3_B_0", "VARPTS") -> -0.02 | I12: =RTD("rtdtrading.rtdserver",, "CASH3_B_0", "184") -> 157.700,00 | J12: =RTD("rtdtrading.rtdserver",, "CASH3_B_0", "100") -> -9.200 | K12: =RTD("rtdtrading.rtdserver",, "CASH3_B_0", "103") -> -9.200,00
B13: AZUL4 | C13: =RTD("rtdtrading.rtdserver",, "AZUL4_B_0", "ULT") -> 17.53 | D13: =RTD("rtdtrading.rtdserver",, "AZUL4_B_0", "ABE") -> 18.3 | E13: =RTD("rtdtrading.rtdserver",, "AZUL4_B_0", "MAX") -> 18.61 | F13: =RTD("rtdtrading.rtdserver",, "AZUL4_B_0", "MIN") -> 17.5 | G13: =RTD("rtdtrading.rtdserver",, "AZUL4_B_0", "VAR") -> -3.839824465 | H13: =RTD("rtdtrading.rtdserver",, "AZUL4_B_0", "VARPTS") -> -0.7 | I13: =RTD("rtdtrading.rtdserver",, "AZUL4_B_0", "184") -> 971.900,00 | J13: =RTD("rtdtrading.rtdserver",, "AZUL4_B_0", "100") -> -971.900 | K13: =RTD("rtdtrading.rtdserver",, "AZUL4_B_0", "103") -> -971.900,00 | L13: HIST Agressão
B14: ECOR3 | C14: =RTD("rtdtrading.rtdserver",, "ECOR3_B_0", "ULT") -> 6.13 | D14: =RTD("rtdtrading.rtdserver",, "ECOR3_B_0", "ABE") -> 6.21 | E14: =RTD("rtdtrading.rtdserver",, "ECOR3_B_0", "MAX") -> 6.26 | F14: =RTD("rtdtrading.rtdserver",, "ECOR3_B_0", "MIN") -> 6.1 | G14: =RTD("rtdtrading.rtdserver",, "ECOR3_B_0", "VAR") -> -0.9693053312 | H14: =RTD("rtdtrading.rtdserver",, "ECOR3_B_0", "VARPTS") -> -0.06 | I14: =RTD("rtdtrading.rtdserver",, "ECOR3_B_0", "184") -> 22.700,00 | J14: =RTD("rtdtrading.rtdserver",, "ECOR3_B_0", "100") -> -22.700 | K14: =RTD("rtdtrading.rtdserver",, "ECOR3_B_0", "103") -> -22.700,00 | L14: =SUM(I5+I6+I7+I8+I9+I10+I11+I12+I13+I14+I15+I16+I17+I18+I19+I20+I21+I22+I23+I24+I25+I26+I27+I28+I29+I30+I31+I32+I33+I34+I35+I36+I37+I38+I39+I40+I41+I42+I43+I44+I45+I46+I47+I48+I49+I50+I51+I52+I53+I54+I55+I56+I57+I58+I59+I60+I61+I62+I63+I64+I65+I66+I67+I68+I69+I70+I71+I72+I73+I74+I76+I75+I77+I78+I79+I80+I81+I82+I83+I84+I85+I86+I87+I88+I89+I91+I90+I92+I93+I94) -> 165842400
B15: DXCO3 | C15: =RTD("rtdtrading.rtdserver",, "DXCO3_B_0", "ULT") -> 10.74 | D15: =RTD("rtdtrading.rtdserver",, "DXCO3_B_0", "ABE") -> 10.85 | E15: =RTD("rtdtrading.rtdserver",, "DXCO3_B_0", "MAX") -> 10.95 | F15: =RTD("rtdtrading.rtdserver",, "DXCO3_B_0", "MIN") -> 10.73 | G15: =RTD("rtdtrading.rtdserver",, "DXCO3_B_0", "VAR") -> -0.5555555556 | H15: =RTD("rtdtrading.rtdserver",, "DXCO3_B_0", "VARPTS") -> -0.06 | I15: =RTD("rtdtrading.rtdserver",, "DXCO3_B_0", "184") -> 17.600,00 | J15: =RTD("rtdtrading.rtdserver",, "DXCO3_B_0", "100") -> -17.600 | K15: =RTD("rtdtrading.rtdserver",, "DXCO3_B_0", "103") -> -17.600,00
B16: ABEV3 | C16: =RTD("rtdtrading.rtdserver",, "ABEV3_B_0", "ULT") -> 15.68 | D16: =RTD("rtdtrading.rtdserver",, "ABEV3_B_0", "ABE") -> 15.89 | E16: =RTD("rtdtrading.rtdserver",, "ABEV3_B_0", "MAX") -> 15.9 | F16: =RTD("rtdtrading.rtdserver",, "ABEV3_B_0", "MIN") -> 15.68 | G16: =RTD("rtdtrading.rtdserver",, "ABEV3_B_0", "VAR") -> -0.8849557522 | H16: =RTD("rtdtrading.rtdserver",, "ABEV3_B_0", "VARPTS") -> -0.14 | I16: =RTD("rtdtrading.rtdserver",, "ABEV3_B_0", "184") -> 558.700,00 | J16: =RTD("rtdtrading.rtdserver",, "ABEV3_B_0", "100") -> -558.700 | K16: =RTD("rtdtrading.rtdserver",, "ABEV3_B_0", "103") -> -558.700,00 | L16: Acúmulo de Agressão
B17: HAPV3 | C17: =RTD("rtdtrading.rtdserver",, "HAPV3_B_0", "ULT") -> 8.09 | D17: =RTD("rtdtrading.rtdserver",, "HAPV3_B_0", "ABE") -> 8.16 | E17: =RTD("rtdtrading.rtdserver",, "HAPV3_B_0", "MAX") -> 8.33 | F17: =RTD("rtdtrading.rtdserver",, "HAPV3_B_0", "MIN") -> 7.97 | G17: =RTD("rtdtrading.rtdserver",, "HAPV3_B_0", "VAR") -> 0.2478314746 | H17: =RTD("rtdtrading.rtdserver",, "HAPV3_B_0", "VARPTS") -> 0.02 | I17: =RTD("rtdtrading.rtdserver",, "HAPV3_B_0", "184") -> 1.214.900,00 | J17: =RTD("rtdtrading.rtdserver",, "HAPV3_B_0", "100") -> -634.600 | K17: =RTD("rtdtrading.rtdserver",, "HAPV3_B_0", "103") -> -634.600,00 | L17: =SUM(K5+K6+K7+K8+K9+K10+K11+K12+K13+K14+K15+K16+K17+K18+K19+K20+K21+K22+K23+K24+K25+K26+K27+K28+K29+K30+K31+K32+K33+K34+K35+K36+K37+K38+K39+K40+K41+K42+K43+K44+K45+K46+K47+K48+K49+K50+K51+K52+K53+K54+K55+K56+K57+K58+K59+K60+K61+K62+K63+K64+K65+K66+K67+K68+K69+K70+K71+K72+K73+K74+K75+K76+K77+K78+K79+K80+K81+K82+K83+K84+K85+K86+K87+K88+K89+K90+K91+K92+K93+K94) -> -30135500
B18: SULA11 | C18: =RTD("rtdtrading.rtdserver",, "SULA11_B_0", "ULT") -> 24.82 | D18: =RTD("rtdtrading.rtdserver",, "SULA11_B_0", "ABE") -> 25.37 | E18: =RTD("rtdtrading.rtdserver",, "SULA11_B_0", "MAX") -> 25.68 | F18: =RTD("rtdtrading.rtdserver",, "SULA11_B_0", "MIN") -> 24.81 | G18: =RTD("rtdtrading.rtdserver",, "SULA11_B_0", "VAR") -> -2.052091555 | H18: =RTD("rtdtrading.rtdserver",, "SULA11_B_0", "VARPTS") -> -0.52 | I18: =RTD("rtdtrading.rtdserver",, "SULA11_B_0", "184") -> 105.600,00 | J18: =RTD("rtdtrading.rtdserver",, "SULA11_B_0", "100") -> -24.400 | K18: =RTD("rtdtrading.rtdserver",, "SULA11_B_0", "103") -> -24.400,00
B19: ALPA4 | C19: =RTD("rtdtrading.rtdserver",, "ALPA4_B_0", "ULT") -> 21.87 | D19: =RTD("rtdtrading.rtdserver",, "ALPA4_B_0", "ABE") -> 20.92 | E19: =RTD("rtdtrading.rtdserver",, "ALPA4_B_0", "MAX") -> 22.07 | F19: =RTD("rtdtrading.rtdserver",, "ALPA4_B_0", "MIN") -> 20.73 | G19: =RTD("rtdtrading.rtdserver",, "ALPA4_B_0", "VAR") -> 4.641148325 | H19: =RTD("rtdtrading.rtdserver",, "ALPA4_B_0", "VARPTS") -> 0.97 | I19: =RTD("rtdtrading.rtdserver",, "ALPA4_B_0", "184") -> 387.600,00 | J19: =RTD("rtdtrading.rtdserver",, "ALPA4_B_0", "100") -> -387.600 | K19: =RTD("rtdtrading.rtdserver",, "ALPA4_B_0", "103") -> -387.600,00
B20: ENGI11 | C20: =RTD("rtdtrading.rtdserver",, "ENGI11_B_0", "ULT") -> 42.81 | D20: =RTD("rtdtrading.rtdserver",, "ENGI11_B_0", "ABE") -> 42.92 | E20: =RTD("rtdtrading.rtdserver",, "ENGI11_B_0", "MAX") -> 43.59 | F20: =RTD("rtdtrading.rtdserver",, "ENGI11_B_0", "MIN") -> 42.73 | G20: =RTD("rtdtrading.rtdserver",, "ENGI11_B_0", "VAR") -> 0.02336448598 | H20: =RTD("rtdtrading.rtdserver",, "ENGI11_B_0", "VARPTS") -> 0.01 | I20: =RTD("rtdtrading.rtdserver",, "ENGI11_B_0", "184") -> 899.300,00 | J20: =RTD("rtdtrading.rtdserver",, "ENGI11_B_0", "100") -> 211.300 | K20: =RTD("rtdtrading.rtdserver",, "ENGI11_B_0", "103") -> 211.300,00
B21: AMER3 | C21: =RTD("rtdtrading.rtdserver",, "AMER3_B_0", "ULT") -> 18.02 | D21: =RTD("rtdtrading.rtdserver",, "AMER3_B_0", "ABE") -> 19 | E21: =RTD("rtdtrading.rtdserver",, "AMER3_B_0", "MAX") -> 19.09 | F21: =RTD("rtdtrading.rtdserver",, "AMER3_B_0", "MIN") -> 17.94 | G21: =RTD("rtdtrading.rtdserver",, "AMER3_B_0", "VAR") -> -4.097924428 | H21: =RTD("rtdtrading.rtdserver",, "AMER3_B_0", "VARPTS") -> -0.77 | I21: =RTD("rtdtrading.rtdserver",, "AMER3_B_0", "184") -> 2.015.300,00 | J21: =RTD("rtdtrading.rtdserver",, "AMER3_B_0", "100") -> 252.800 | K21: =RTD("rtdtrading.rtdserver",, "AMER3_B_0", "103") -> 252.800,00
B22: BBSE3 | C22: =RTD("rtdtrading.rtdserver",, "BBSE3_B_0", "ULT") -> 28.33 | D22: =RTD("rtdtrading.rtdserver",, "BBSE3_B_0", "ABE") -> 28.23 | E22: =RTD("rtdtrading.rtdserver",, "BBSE3_B_0", "MAX") -> 28.54 | F22: =RTD("rtdtrading.rtdserver",, "BBSE3_B_0", "MIN") -> 28.23 | G22: =RTD("rtdtrading.rtdserver",, "BBSE3_B_0", "VAR") -> 0.6394316163 | H22: =RTD("rtdtrading.rtdserver",, "BBSE3_B_0", "VARPTS") -> 0.18 | I22: =RTD("rtdtrading.rtdserver",, "BBSE3_B_0", "184") -> 858.900,00 | J22: =RTD("rtdtrading.rtdserver",, "BBSE3_B_0", "100") -> 134.200 | K22: =RTD("rtdtrading.rtdserver",, "BBSE3_B_0", "103") -> 134.200,00
B23: JHSF3 | C23: =RTD("rtdtrading.rtdserver",, "JHSF3_B_0", "ULT") -> 6.51 | D23: =RTD("rtdtrading.rtdserver",, "JHSF3_B_0", "ABE") -> 6.58 | E23: =RTD("rtdtrading.rtdserver",, "JHSF3_B_0", "MAX") -> 6.63 | F23: =RTD("rtdtrading.rtdserver",, "JHSF3_B_0", "MIN") -> 6.51 | G23: =RTD("rtdtrading.rtdserver",, "JHSF3_B_0", "VAR") -> -0.6106870229 | H23: =RTD("rtdtrading.rtdserver",, "JHSF3_B_0", "VARPTS") -> -0.04 | I23: =RTD("rtdtrading.rtdserver",, "JHSF3_B_0", "184") -> 572.500,00 | J23: =RTD("rtdtrading.rtdserver",, "JHSF3_B_0", "100") -> -7.000 | K23: =RTD("rtdtrading.rtdserver",, "JHSF3_B_0", "103") -> -7.000,00
B24: FLRY3 | C24: =RTD("rtdtrading.rtdserver",, "FLRY3_B_0", "ULT") -> 16.63 | D24: =RTD("rtdtrading.rtdserver",, "FLRY3_B_0", "ABE") -> 16.76 | E24: =RTD("rtdtrading.rtdserver",, "FLRY3_B_0", "MAX") -> 17.05 | F24: =RTD("rtdtrading.rtdserver",, "FLRY3_B_0", "MIN") -> 16.54 | G24: =RTD("rtdtrading.rtdserver",, "FLRY3_B_0", "VAR") -> -0.7164179104 | H24: =RTD("rtdtrading.rtdserver",, "FLRY3_B_0", "VARPTS") -> -0.12 | I24: =RTD("rtdtrading.rtdserver",, "FLRY3_B_0", "184") -> 14.600,00 | J24: =RTD("rtdtrading.rtdserver",, "FLRY3_B_0", "100") -> 1.700 | K24: =RTD("rtdtrading.rtdserver",, "FLRY3_B_0", "103") -> 1.700,00
B25: ENBR3 | C25: =RTD("rtdtrading.rtdserver",, "ENBR3_B_0", "ULT") -> 23.2 | D25: =RTD("rtdtrading.rtdserver",, "ENBR3_B_0", "ABE") -> 23.14 | E25: =RTD("rtdtrading.rtdserver",, "ENBR3_B_0", "MAX") -> 23.3 | F25: =RTD("rtdtrading.rtdserver",, "ENBR3_B_0", "MIN") -> 23.08 | G25: =RTD("rtdtrading.rtdserver",, "ENBR3_B_0", "VAR") -> 0.3460207612 | H25: =RTD("rtdtrading.rtdserver",, "ENBR3_B_0", "VARPTS") -> 0.08 | I25: =RTD("rtdtrading.rtdserver",, "ENBR3_B_0", "184") -> 148.500,00 | J25: =RTD("rtdtrading.rtdserver",, "ENBR3_B_0", "100") -> 43.700 | K25: =RTD("rtdtrading.rtdserver",, "ENBR3_B_0", "103") -> 43.700,00
B26: GOLL4 | C26: =RTD("rtdtrading.rtdserver",, "GOLL4_B_0", "ULT") -> 11.51 | D26: =RTD("rtdtrading.rtdserver",, "GOLL4_B_0", "ABE") -> 12.01 | E26: =RTD("rtdtrading.rtdserver",, "GOLL4_B_0", "MAX") -> 12.2 | F26: =RTD("rtdtrading.rtdserver",, "GOLL4_B_0", "MIN") -> 11.48 | G26: =RTD("rtdtrading.rtdserver",, "GOLL4_B_0", "VAR") -> -3.439597315 | H26: =RTD("rtdtrading.rtdserver",, "GOLL4_B_0", "VARPTS") -> -0.41 | I26: =RTD("rtdtrading.rtdserver",, "GOLL4_B_0", "184") -> 1.449.300,00 | J26: =RTD("rtdtrading.rtdserver",, "GOLL4_B_0", "100") -> -1.140.600 | K26: =RTD("rtdtrading.rtdserver",, "GOLL4_B_0", "103") -> -1.140.600,00
B27: MRFG3 | C27: =RTD("rtdtrading.rtdserver",, "MRFG3_B_0", "ULT") -> 14.09 | D27: =RTD("rtdtrading.rtdserver",, "MRFG3_B_0", "ABE") -> 14.37 | E27: =RTD("rtdtrading.rtdserver",, "MRFG3_B_0", "MAX") -> 14.46 | F27: =RTD("rtdtrading.rtdserver",, "MRFG3_B_0", "MIN") -> 13.86 | G27: =RTD("rtdtrading.rtdserver",, "MRFG3_B_0", "VAR") -> -1.537386443 | H27: =RTD("rtdtrading.rtdserver",, "MRFG3_B_0", "VARPTS") -> -0.22 | I27: =RTD("rtdtrading.rtdserver",, "MRFG3_B_0", "184") -> 85.000,00 | J27: =RTD("rtdtrading.rtdserver",, "MRFG3_B_0", "100") -> -85.000 | K27: =RTD("rtdtrading.rtdserver",, "MRFG3_B_0", "103") -> -85.000,00
B28: CCRO3 | C28: =RTD("rtdtrading.rtdserver",, "CCRO3_B_0", "ULT") -> 13.95 | D28: =RTD("rtdtrading.rtdserver",, "CCRO3_B_0", "ABE") -> 14.07 | E28: =RTD("rtdtrading.rtdserver",, "CCRO3_B_0", "MAX") -> 14.12 | F28: =RTD("rtdtrading.rtdserver",, "CCRO3_B_0", "MIN") -> 13.94 | G28: =RTD("rtdtrading.rtdserver",, "CCRO3_B_0", "VAR") -> -0.4282655246 | H28: =RTD("rtdtrading.rtdserver",, "CCRO3_B_0", "VARPTS") -> -0.06 | I28: =RTD("rtdtrading.rtdserver",, "CCRO3_B_0", "184") -> 198.300,00 | J28: =RTD("rtdtrading.rtdserver",, "CCRO3_B_0", "100") -> -85.200 | K28: =RTD("rtdtrading.rtdserver",, "CCRO3_B_0", "103") -> -85.200,00
B29: BRKM5 | C29: =RTD("rtdtrading.rtdserver",, "BRKM5_B_0", "ULT") -> 32.85 | D29: =RTD("rtdtrading.rtdserver",, "BRKM5_B_0", "ABE") -> 33.34 | E29: =RTD("rtdtrading.rtdserver",, "BRKM5_B_0", "MAX") -> 33.52 | F29: =RTD("rtdtrading.rtdserver",, "BRKM5_B_0", "MIN") -> 32.82 | G29: =RTD("rtdtrading.rtdserver",, "BRKM5_B_0", "VAR") -> -0.9647271631 | H29: =RTD("rtdtrading.rtdserver",, "BRKM5_B_0", "VARPTS") -> -0.32 | I29: =RTD("rtdtrading.rtdserver",, "BRKM5_B_0", "184") -> 59.600,00 | J29: =RTD("rtdtrading.rtdserver",, "BRKM5_B_0", "100") -> -59.600 | K29: =RTD("rtdtrading.rtdserver",, "BRKM5_B_0", "103") -> -59.600,00
B30: NTCO3 | C30: =RTD("rtdtrading.rtdserver",, "NTCO3_B_0", "ULT") -> 15.63 | D30: =RTD("rtdtrading.rtdserver",, "NTCO3_B_0", "ABE") -> 16.7 | E30: =RTD("rtdtrading.rtdserver",, "NTCO3_B_0", "MAX") -> 16.78 | F30: =RTD("rtdtrading.rtdserver",, "NTCO3_B_0", "MIN") -> 15.56 | G30: =RTD("rtdtrading.rtdserver",, "NTCO3_B_0", "VAR") -> -6.069711538 | H30: =RTD("rtdtrading.rtdserver",, "NTCO3_B_0", "VARPTS") -> -1.01 | I30: =RTD("rtdtrading.rtdserver",, "NTCO3_B_0", "184") -> 921.400,00 | J30: =RTD("rtdtrading.rtdserver",, "NTCO3_B_0", "100") -> -921.400 | K30: =RTD("rtdtrading.rtdserver",, "NTCO3_B_0", "103") -> -921.400,00
B31: CYRE3 | C31: =RTD("rtdtrading.rtdserver",, "CYRE3_B_0", "ULT") -> 14.41 | D31: =RTD("rtdtrading.rtdserver",, "CYRE3_B_0", "ABE") -> 14.6 | E31: =RTD("rtdtrading.rtdserver",, "CYRE3_B_0", "MAX") -> 14.72 | F31: =RTD("rtdtrading.rtdserver",, "CYRE3_B_0", "MIN") -> 14.34 | G31: =RTD("rtdtrading.rtdserver",, "CYRE3_B_0", "VAR") -> -0.7575757576 | H31: =RTD("rtdtrading.rtdserver",, "CYRE3_B_0", "VARPTS") -> -0.11 | I31: =RTD("rtdtrading.rtdserver",, "CYRE3_B_0", "184") -> 1.491.900,00 | J31: =RTD("rtdtrading.rtdserver",, "CYRE3_B_0", "100") -> -50.100 | K31: =RTD("rtdtrading.rtdserver",, "CYRE3_B_0", "103") -> -50.100,00
B32: ELET3 | C32: =RTD("rtdtrading.rtdserver",, "ELET3_B_0", "ULT") -> 46.58 | D32: =RTD("rtdtrading.rtdserver",, "ELET3_B_0", "ABE") -> 47.09 | E32: =RTD("rtdtrading.rtdserver",, "ELET3_B_0", "MAX") -> 47.18 | F32: =RTD("rtdtrading.rtdserver",, "ELET3_B_0", "MIN") -> 46.41 | G32: =RTD("rtdtrading.rtdserver",, "ELET3_B_0", "VAR") -> -0.4488138491 | H32: =RTD("rtdtrading.rtdserver",, "ELET3_B_0", "VARPTS") -> -0.21 | I32: =RTD("rtdtrading.rtdserver",, "ELET3_B_0", "184") -> 2.171.400,00 | J32: =RTD("rtdtrading.rtdserver",, "ELET3_B_0", "100") -> -75.000 | K32: =RTD("rtdtrading.rtdserver",, "ELET3_B_0", "103") -> -75.000,00
B33: IRBR3 | C33: =RTD("rtdtrading.rtdserver",, "IRBR3_B_0", "ULT") -> 1.95 | D33: =RTD("rtdtrading.rtdserver",, "IRBR3_B_0", "ABE") -> 2.07 | E33: =RTD("rtdtrading.rtdserver",, "IRBR3_B_0", "MAX") -> 2.1 | F33: =RTD("rtdtrading.rtdserver",, "IRBR3_B_0", "MIN") -> 1.95 | G33: =RTD("rtdtrading.rtdserver",, "IRBR3_B_0", "VAR") -> -5.339805825 | H33: =RTD("rtdtrading.rtdserver",, "IRBR3_B_0", "VARPTS") -> -0.11 | I33: =RTD("rtdtrading.rtdserver",, "IRBR3_B_0", "184") -> 15.985.800,00 | J33: =RTD("rtdtrading.rtdserver",, "IRBR3_B_0", "100") -> -6.008.300 | K33: =RTD("rtdtrading.rtdserver",, "IRBR3_B_0", "103") -> -6.008.300,00
B34: ELET6 | C34: =RTD("rtdtrading.rtdserver",, "ELET6_B_0", "ULT") -> 47.56 | D34: =RTD("rtdtrading.rtdserver",, "ELET6_B_0", "ABE") -> 47.93 | E34: =RTD("rtdtrading.rtdserver",, "ELET6_B_0", "MAX") -> 48.19 | F34: =RTD("rtdtrading.rtdserver",, "ELET6_B_0", "MIN") -> 47.23 | G34: =RTD("rtdtrading.rtdserver",, "ELET6_B_0", "VAR") -> -0.7512520868 | H34: =RTD("rtdtrading.rtdserver",, "ELET6_B_0", "VARPTS") -> -0.36 | I34: =RTD("rtdtrading.rtdserver",, "ELET6_B_0", "184") -> 131.700,00 | J34: =RTD("rtdtrading.rtdserver",, "ELET6_B_0", "100") -> 131.700 | K34: =RTD("rtdtrading.rtdserver",, "ELET6_B_0", "103") -> 131.700,00
B35: BEEF3 | C35: =RTD("rtdtrading.rtdserver",, "BEEF3_B_0", "ULT") -> 15.94 | D35: =RTD("rtdtrading.rtdserver",, "BEEF3_B_0", "ABE") -> 15.98 | E35: =RTD("rtdtrading.rtdserver",, "BEEF3_B_0", "MAX") -> 16.1 | F35: =RTD("rtdtrading.rtdserver",, "BEEF3_B_0", "MIN") -> 15.83 | G35: =RTD("rtdtrading.rtdserver",, "BEEF3_B_0", "VAR") -> -0.7471980075 | H35: =RTD("rtdtrading.rtdserver",, "BEEF3_B_0", "VARPTS") -> -0.12 | I35: =RTD("rtdtrading.rtdserver",, "BEEF3_B_0", "184") -> 1.805.500,00 | J35: =RTD("rtdtrading.rtdserver",, "BEEF3_B_0", "100") -> 136.200 | K35: =RTD("rtdtrading.rtdserver",, "BEEF3_B_0", "103") -> 136.200,00
B36: PCAR3 | C36: =RTD("rtdtrading.rtdserver",, "PCAR3_B_0", "ULT") -> 20.2 | D36: =RTD("rtdtrading.rtdserver",, "PCAR3_B_0", "ABE") -> 19.91 | E36: =RTD("rtdtrading.rtdserver",, "PCAR3_B_0", "MAX") -> 20.48 | F36: =RTD("rtdtrading.rtdserver",, "PCAR3_B_0", "MIN") -> 19.89 | G36: =RTD("rtdtrading.rtdserver",, "PCAR3_B_0", "VAR") -> 1.507537688 | H36: =RTD("rtdtrading.rtdserver",, "PCAR3_B_0", "VARPTS") -> 0.3 | I36: =RTD("rtdtrading.rtdserver",, "PCAR3_B_0", "184") -> 322.200,00 | J36: =RTD("rtdtrading.rtdserver",, "PCAR3_B_0", "100") -> -240.200 | K36: =RTD("rtdtrading.rtdserver",, "PCAR3_B_0", "103") -> -240.200,00
B37: RAIL3 | C37: =RTD("rtdtrading.rtdserver",, "RAIL3_B_0", "ULT") -> 20.18 | D37: =RTD("rtdtrading.rtdserver",, "RAIL3_B_0", "ABE") -> 20.49 | E37: =RTD("rtdtrading.rtdserver",, "RAIL3_B_0", "MAX") -> 20.52 | F37: =RTD("rtdtrading.rtdserver",, "RAIL3_B_0", "MIN") -> 20.15 | G37: =RTD("rtdtrading.rtdserver",, "RAIL3_B_0", "VAR") -> -0.5421389847 | H37: =RTD("rtdtrading.rtdserver",, "RAIL3_B_0", "VARPTS") -> -0.11 | I37: =RTD("rtdtrading.rtdserver",, "RAIL3_B_0", "184") -> 1.203.700,00 | J37: =RTD("rtdtrading.rtdserver",, "RAIL3_B_0", "100") -> -234.000 | K37: =RTD("rtdtrading.rtdserver",, "RAIL3_B_0", "103") -> -234.000,00
B38: YDUQ3 | C38: =RTD("rtdtrading.rtdserver",, "YDUQ3_B_0", "ULT") -> 12.78 | D38: =RTD("rtdtrading.rtdserver",, "YDUQ3_B_0", "ABE") -> 13 | E38: =RTD("rtdtrading.rtdserver",, "YDUQ3_B_0", "MAX") -> 13.34 | F38: =RTD("rtdtrading.rtdserver",, "YDUQ3_B_0", "MIN") -> 12.73 | G38: =RTD("rtdtrading.rtdserver",, "YDUQ3_B_0", "VAR") -> -1.692307692 | H38: =RTD("rtdtrading.rtdserver",, "YDUQ3_B_0", "VARPTS") -> -0.22 | I38: =RTD("rtdtrading.rtdserver",, "YDUQ3_B_0", "184") -> 143.900,00 | J38: =RTD("rtdtrading.rtdserver",, "YDUQ3_B_0", "100") -> -143.900 | K38: =RTD("rtdtrading.rtdserver",, "YDUQ3_B_0", "103") -> -143.900,00
B39: SBSP3 | C39: =RTD("rtdtrading.rtdserver",, "SBSP3_B_0", "ULT") -> 48.17 | D39: =RTD("rtdtrading.rtdserver",, "SBSP3_B_0", "ABE") -> 48.65 | E39: =RTD("rtdtrading.rtdserver",, "SBSP3_B_0", "MAX") -> 48.65 | F39: =RTD("rtdtrading.rtdserver",, "SBSP3_B_0", "MIN") -> 47.88 | G39: =RTD("rtdtrading.rtdserver",, "SBSP3_B_0", "VAR") -> -0.5984316962 | H39: =RTD("rtdtrading.rtdserver",, "SBSP3_B_0", "VARPTS") -> -0.29 | I39: =RTD("rtdtrading.rtdserver",, "SBSP3_B_0", "184") -> 23.900,00 | J39: =RTD("rtdtrading.rtdserver",, "SBSP3_B_0", "100") -> -23.900 | K39: =RTD("rtdtrading.rtdserver",, "SBSP3_B_0", "103") -> -23.900,00
B40: ASAI3 | C40: =RTD("rtdtrading.rtdserver",, "ASAI3_B_0", "ULT") -> 17.83 | D40: =RTD("rtdtrading.rtdserver",, "ASAI3_B_0", "ABE") -> 17.96 | E40: =RTD("rtdtrading.rtdserver",, "ASAI3_B_0", "MAX") -> 18.08 | F40: =RTD("rtdtrading.rtdserver",, "ASAI3_B_0", "MIN") -> 17.81 | G40: =RTD("rtdtrading.rtdserver",, "ASAI3_B_0", "VAR") -> -0.6685236769 | H40: =RTD("rtdtrading.rtdserver",, "ASAI3_B_0", "VARPTS") -> -0.12 | I40: =RTD("rtdtrading.rtdserver",, "ASAI3_B_0", "184") -> 2.413.700,00 | J40: =RTD("rtdtrading.rtdserver",, "ASAI3_B_0", "100") -> 266.200 | K40: =RTD("rtdtrading.rtdserver",, "ASAI3_B_0", "103") -> 266.200,00
B41: VBBR3 | C41: =RTD("rtdtrading.rtdserver",, "VBBR3_B_0", "ULT") -> 18.47 | D41: =RTD("rtdtrading.rtdserver",, "VBBR3_B_0", "ABE") -> 18.72 | E41: =RTD("rtdtrading.rtdserver",, "VBBR3_B_0", "MAX") -> 18.88 | F41: =RTD("rtdtrading.rtdserver",, "VBBR3_B_0", "MIN") -> 18.43 | G41: =RTD("rtdtrading.rtdserver",, "VBBR3_B_0", "VAR") -> -1.071237279 | H41: =RTD("rtdtrading.rtdserver",, "VBBR3_B_0", "VARPTS") -> -0.2 | I41: =RTD("rtdtrading.rtdserver",, "VBBR3_B_0", "184") -> 354.500,00 | J41: =RTD("rtdtrading.rtdserver",, "VBBR3_B_0", "100") -> 354.500 | K41: =RTD("rtdtrading.rtdserver",, "VBBR3_B_0", "103") -> 354.500,00
B42: USIM5 | C42: =RTD("rtdtrading.rtdserver",, "USIM5_B_0", "ULT") -> 8.78 | D42: =RTD("rtdtrading.rtdserver",, "USIM5_B_0", "ABE") -> 8.8 | E42: =RTD("rtdtrading.rtdserver",, "USIM5_B_0", "MAX") -> 8.98 | F42: =RTD("rtdtrading.rtdserver",, "USIM5_B_0", "MIN") -> 8.72 | G42: =RTD("rtdtrading.rtdserver",, "USIM5_B_0", "VAR") -> -5.48977395 | H42: =RTD("rtdtrading.rtdserver",, "USIM5_B_0", "VARPTS") -> -0.51 | I42: =RTD("rtdtrading.rtdserver",, "USIM5_B_0", "184") -> 1.682.900,00 | J42: =RTD("rtdtrading.rtdserver",, "USIM5_B_0", "100") -> -1.682.900 | K42: =RTD("rtdtrading.rtdserver",, "USIM5_B_0", "103") -> -1.682.900,00
B43: EQTL3 | C43: =RTD("rtdtrading.rtdserver",, "EQTL3_B_0", "ULT") -> 24.27 | D43: =RTD("rtdtrading.rtdserver",, "EQTL3_B_0", "ABE") -> 24.45 | E43: =RTD("rtdtrading.rtdserver",, "EQTL3_B_0", "MAX") -> 24.56 | F43: =RTD("rtdtrading.rtdserver",, "EQTL3_B_0", "MIN") -> 24.17 | G43: =RTD("rtdtrading.rtdserver",, "EQTL3_B_0", "VAR") -> -0.736196319 | H43: =RTD("rtdtrading.rtdserver",, "EQTL3_B_0", "VARPTS") -> -0.18 | I43: =RTD("rtdtrading.rtdserver",, "EQTL3_B_0", "184") -> 318.300,00 | J43: =RTD("rtdtrading.rtdserver",, "EQTL3_B_0", "100") -> -30.300 | K43: =RTD("rtdtrading.rtdserver",, "EQTL3_B_0", "103") -> -30.300,00
B44: CSNA3 | C44: =RTD("rtdtrading.rtdserver",, "CSNA3_B_0", "ULT") -> 15.23 | D44: =RTD("rtdtrading.rtdserver",, "CSNA3_B_0", "ABE") -> 16 | E44: =RTD("rtdtrading.rtdserver",, "CSNA3_B_0", "MAX") -> 16.14 | F44: =RTD("rtdtrading.rtdserver",, "CSNA3_B_0", "MIN") -> 15.2 | G44: =RTD("rtdtrading.rtdserver",, "CSNA3_B_0", "VAR") -> -4.573934837 | H44: =RTD("rtdtrading.rtdserver",, "CSNA3_B_0", "VARPTS") -> -0.73 | I44: =RTD("rtdtrading.rtdserver",, "CSNA3_B_0", "184") -> 875.800,00 | J44: =RTD("rtdtrading.rtdserver",, "CSNA3_B_0", "100") -> -875.800 | K44: =RTD("rtdtrading.rtdserver",, "CSNA3_B_0", "103") -> -875.800,00
B45: CMIN3 | C45: =RTD("rtdtrading.rtdserver",, "CMIN3_B_0", "ULT") -> 3.9 | D45: =RTD("rtdtrading.rtdserver",, "CMIN3_B_0", "ABE") -> 3.94 | E45: =RTD("rtdtrading.rtdserver",, "CMIN3_B_0", "MAX") -> 4.03 | F45: =RTD("rtdtrading.rtdserver",, "CMIN3_B_0", "MIN") -> 3.9 | G45: =RTD("rtdtrading.rtdserver",, "CMIN3_B_0", "VAR") -> -0.5102040816 | H45: =RTD("rtdtrading.rtdserver",, "CMIN3_B_0", "VARPTS") -> -0.02 | I45: =RTD("rtdtrading.rtdserver",, "CMIN3_B_0", "184") -> 36.800,00 | J45: =RTD("rtdtrading.rtdserver",, "CMIN3_B_0", "100") -> 36.800 | K45: =RTD("rtdtrading.rtdserver",, "CMIN3_B_0", "103") -> 36.800,00
B46: BRML3 | C46: =RTD("rtdtrading.rtdserver",, "BRML3_B_0", "ULT") -> 8.68 | D46: =RTD("rtdtrading.rtdserver",, "BRML3_B_0", "ABE") -> 8.77 | E46: =RTD("rtdtrading.rtdserver",, "BRML3_B_0", "MAX") -> 8.81 | F46: =RTD("rtdtrading.rtdserver",, "BRML3_B_0", "MIN") -> 8.64 | G46: =RTD("rtdtrading.rtdserver",, "BRML3_B_0", "VAR") -> -0.9132420091 | H46: =RTD("rtdtrading.rtdserver",, "BRML3_B_0", "VARPTS") -> -0.08 | I46: =RTD("rtdtrading.rtdserver",, "BRML3_B_0", "184") -> 79.700,00 | J46: =RTD("rtdtrading.rtdserver",, "BRML3_B_0", "100") -> -79.700 | K46: =RTD("rtdtrading.rtdserver",, "BRML3_B_0", "103") -> -79.700,00
B47: POSI3 | C47: =RTD("rtdtrading.rtdserver",, "POSI3_B_0", "ULT") -> 11.56 | D47: =RTD("rtdtrading.rtdserver",, "POSI3_B_0", "ABE") -> 11.44 | E47: =RTD("rtdtrading.rtdserver",, "POSI3_B_0", "MAX") -> 11.75 | F47: =RTD("rtdtrading.rtdserver",, "POSI3_B_0", "MIN") -> 11.41 | G47: =RTD("rtdtrading.rtdserver",, "POSI3_B_0", "VAR") -> 0.7846556234 | H47: =RTD("rtdtrading.rtdserver",, "POSI3_B_0", "VARPTS") -> 0.09 | I47: =RTD("rtdtrading.rtdserver",, "POSI3_B_0", "184") -> 6.600,00 | J47: =RTD("rtdtrading.rtdserver",, "POSI3_B_0", "100") -> 6.600 | K47: =RTD("rtdtrading.rtdserver",, "POSI3_B_0", "103") -> 6.600,00
B48: CPLE6 | C48: =RTD("rtdtrading.rtdserver",, "CPLE6_B_0", "ULT") -> 7.08 | D48: =RTD("rtdtrading.rtdserver",, "CPLE6_B_0", "ABE") -> 7.07 | E48: =RTD("rtdtrading.rtdserver",, "CPLE6_B_0", "MAX") -> 7.11 | F48: =RTD("rtdtrading.rtdserver",, "CPLE6_B_0", "MIN") -> 7.02 | G48: =RTD("rtdtrading.rtdserver",, "CPLE6_B_0", "VAR") -> 0.5681818182 | H48: =RTD("rtdtrading.rtdserver",, "CPLE6_B_0", "VARPTS") -> 0.04 | I48: =RTD("rtdtrading.rtdserver",, "CPLE6_B_0", "184") -> 108.400,00 | J48: =RTD("rtdtrading.rtdserver",, "CPLE6_B_0", "100") -> 108.400 | K48: =RTD("rtdtrading.rtdserver",, "CPLE6_B_0", "103") -> 108.400,00
B49: BRAP4 | C49: =RTD("rtdtrading.rtdserver",, "BRAP4_B_0", "ULT") -> 23.15 | D49: =RTD("rtdtrading.rtdserver",, "BRAP4_B_0", "ABE") -> 23.69 | E49: =RTD("rtdtrading.rtdserver",, "BRAP4_B_0", "MAX") -> 23.98 | F49: =RTD("rtdtrading.rtdserver",, "BRAP4_B_0", "MIN") -> 23.13 | G49: =RTD("rtdtrading.rtdserver",, "BRAP4_B_0", "VAR") -> -1.531263292 | H49: =RTD("rtdtrading.rtdserver",, "BRAP4_B_0", "VARPTS") -> -0.36 | I49: =RTD("rtdtrading.rtdserver",, "BRAP4_B_0", "184") -> 163.500,00 | J49: =RTD("rtdtrading.rtdserver",, "BRAP4_B_0", "100") -> -163.500 | K49: =RTD("rtdtrading.rtdserver",, "BRAP4_B_0", "103") -> -163.500,00
B50: CPFE3 | C50: =RTD("rtdtrading.rtdserver",, "CPFE3_B_0", "ULT") -> 35.7 | D50: =RTD("rtdtrading.rtdserver",, "CPFE3_B_0", "ABE") -> 35.63 | E50: =RTD("rtdtrading.rtdserver",, "CPFE3_B_0", "MAX") -> 35.82 | F50: =RTD("rtdtrading.rtdserver",, "CPFE3_B_0", "MIN") -> 35.08 | G50: =RTD("rtdtrading.rtdserver",, "CPFE3_B_0", "VAR") -> 0.2808988764 | H50: =RTD("rtdtrading.rtdserver",, "CPFE3_B_0", "VARPTS") -> 0.1 | I50: =RTD("rtdtrading.rtdserver",, "CPFE3_B_0", "184") -> 540.000,00 | J50: =RTD("rtdtrading.rtdserver",, "CPFE3_B_0", "100") -> 221.800 | K50: =RTD("rtdtrading.rtdserver",, "CPFE3_B_0", "103") -> 221.800,00
B51: SOMA3 | C51: =RTD("rtdtrading.rtdserver",, "SOMA3_B_0", "ULT") -> 13.1 | D51: =RTD("rtdtrading.rtdserver",, "SOMA3_B_0", "ABE") -> 13.43 | E51: =RTD("rtdtrading.rtdserver",, "SOMA3_B_0", "MAX") -> 13.53 | F51: =RTD("rtdtrading.rtdserver",, "SOMA3_B_0", "MIN") -> 13.09 | G51: =RTD("rtdtrading.rtdserver",, "SOMA3_B_0", "VAR") -> -1.725431358 | H51: =RTD("rtdtrading.rtdserver",, "SOMA3_B_0", "VARPTS") -> -0.23 | I51: =RTD("rtdtrading.rtdserver",, "SOMA3_B_0", "184") -> 2.565.400,00 | J51: =RTD("rtdtrading.rtdserver",, "SOMA3_B_0", "100") -> -119.500 | K51: =RTD("rtdtrading.rtdserver",, "SOMA3_B_0", "103") -> -119.500,00
B52: IGTI11 | C52: =RTD("rtdtrading.rtdserver",, "IGTI11_B_0", "ULT") -> 20.65 | D52: =RTD("rtdtrading.rtdserver",, "IGTI11_B_0", "ABE") -> 20.93 | E52: =RTD("rtdtrading.rtdserver",, "IGTI11_B_0", "MAX") -> 21.03 | F52: =RTD("rtdtrading.rtdserver",, "IGTI11_B_0", "MIN") -> 20.6 | G52: =RTD("rtdtrading.rtdserver",, "IGTI11_B_0", "VAR") -> -1.290630975 | H52: =RTD("rtdtrading.rtdserver",, "IGTI11_B_0", "VARPTS") -> -0.27 | I52: =RTD("rtdtrading.rtdserver",, "IGTI11_B_0", "184") -> 344.300,00 | J52: =RTD("rtdtrading.rtdserver",, "IGTI11_B_0", "100") -> -16.700 | K52: =RTD("rtdtrading.rtdserver",, "IGTI11_B_0", "103") -> -16.700,00
B53: SLCE3 | C53: =RTD("rtdtrading.rtdserver",, "SLCE3_B_0", "ULT") -> 47.73 | D53: =RTD("rtdtrading.rtdserver",, "SLCE3_B_0", "ABE") -> 48.12 | E53: =RTD("rtdtrading.rtdserver",, "SLCE3_B_0", "MAX") -> 48.36 | F53: =RTD("rtdtrading.rtdserver",, "SLCE3_B_0", "MIN") -> 47.57 | G53: =RTD("rtdtrading.rtdserver",, "SLCE3_B_0", "VAR") -> -0.3340989768 | H53: =RTD("rtdtrading.rtdserver",, "SLCE3_B_0", "VARPTS") -> -0.16 | I53: =RTD("rtdtrading.rtdserver",, "SLCE3_B_0", "184") -> 6.300,00 | J53: =RTD("rtdtrading.rtdserver",, "SLCE3_B_0", "100") -> -6.300 | K53: =RTD("rtdtrading.rtdserver",, "SLCE3_B_0", "103") -> -6.300,00
B54: SUZB3 | C54: =RTD("rtdtrading.rtdserver",, "SUZB3_B_0", "ULT") -> 45.88 | D54: =RTD("rtdtrading.rtdserver",, "SUZB3_B_0", "ABE") -> 47.37 | E54: =RTD("rtdtrading.rtdserver",, "SUZB3_B_0", "MAX") -> 47.69 | F54: =RTD("rtdtrading.rtdserver",, "SUZB3_B_0", "MIN") -> 45.87 | G54: =RTD("rtdtrading.rtdserver",, "SUZB3_B_0", "VAR") -> -3.043110735 | H54: =RTD("rtdtrading.rtdserver",, "SUZB3_B_0", "VARPTS") -> -1.44 | I54: =RTD("rtdtrading.rtdserver",, "SUZB3_B_0", "184") -> 4.204.900,00 | J54: =RTD("rtdtrading.rtdserver",, "SUZB3_B_0", "100") -> 427.500 | K54: =RTD("rtdtrading.rtdserver",, "SUZB3_B_0", "103") -> 427.500,00
B55: QUAL3 | C55: =RTD("rtdtrading.rtdserver",, "QUAL3_B_0", "ULT") -> 10.29 | D55: =RTD("rtdtrading.rtdserver",, "QUAL3_B_0", "ABE") -> 10.5 | E55: =RTD("rtdtrading.rtdserver",, "QUAL3_B_0", "MAX") -> 10.61 | F55: =RTD("rtdtrading.rtdserver",, "QUAL3_B_0", "MIN") -> 10.28 | G55: =RTD("rtdtrading.rtdserver",, "QUAL3_B_0", "VAR") -> -1.436781609 | H55: =RTD("rtdtrading.rtdserver",, "QUAL3_B_0", "VARPTS") -> -0.15 | I55: =RTD("rtdtrading.rtdserver",, "QUAL3_B_0", "184") -> 480.400,00 | J55: =RTD("rtdtrading.rtdserver",, "QUAL3_B_0", "100") -> -40.600 | K55: =RTD("rtdtrading.rtdserver",, "QUAL3_B_0", "103") -> -40.600,00
B56: CSAN3 | C56: =RTD("rtdtrading.rtdserver",, "CSAN3_B_0", "ULT") -> 20.49 | D56: =RTD("rtdtrading.rtdserver",, "CSAN3_B_0", "ABE") -> 20.87 | E56: =RTD("rtdtrading.rtdserver",, "CSAN3_B_0", "MAX") -> 20.97 | F56: =RTD("rtdtrading.rtdserver",, "CSAN3_B_0", "MIN") -> 20.46 | G56: =RTD("rtdtrading.rtdserver",, "CSAN3_B_0", "VAR") -> -1.348098219 | H56: =RTD("rtdtrading.rtdserver",, "CSAN3_B_0", "VARPTS") -> -0.28 | I56: =RTD("rtdtrading.rtdserver",, "CSAN3_B_0", "184") -> 326.700,00 | J56: =RTD("rtdtrading.rtdserver",, "CSAN3_B_0", "100") -> -57.400 | K56: =RTD("rtdtrading.rtdserver",, "CSAN3_B_0", "103") -> -57.400,00
B57: VIIA3 | C57: =RTD("rtdtrading.rtdserver",, "VIIA3_B_0", "ULT") -> 3.28 | D57: =RTD("rtdtrading.rtdserver",, "VIIA3_B_0", "ABE") -> 3.41 | E57: =RTD("rtdtrading.rtdserver",, "VIIA3_B_0", "MAX") -> 3.43 | F57: =RTD("rtdtrading.rtdserver",, "VIIA3_B_0", "MIN") -> 3.26 | G57: =RTD("rtdtrading.rtdserver",, "VIIA3_B_0", "VAR") -> -2.958579882 | H57: =RTD("rtdtrading.rtdserver",, "VIIA3_B_0", "VARPTS") -> -0.1 | I57: =RTD("rtdtrading.rtdserver",, "VIIA3_B_0", "184") -> 10.272.300,00 | J57: =RTD("rtdtrading.rtdserver",, "VIIA3_B_0", "100") -> -3.777.100 | K57: =RTD("rtdtrading.rtdserver",, "VIIA3_B_0", "103") -> -3.777.100,00
B58: BPAN4 | C58: =RTD("rtdtrading.rtdserver",, "BPAN4_B_0", "ULT") -> 7.13 | D58: =RTD("rtdtrading.rtdserver",, "BPAN4_B_0", "ABE") -> 7.36 | E58: =RTD("rtdtrading.rtdserver",, "BPAN4_B_0", "MAX") -> 7.36 | F58: =RTD("rtdtrading.rtdserver",, "BPAN4_B_0", "MIN") -> 7.13 | G58: =RTD("rtdtrading.rtdserver",, "BPAN4_B_0", "VAR") -> -2.595628415 | H58: =RTD("rtdtrading.rtdserver",, "BPAN4_B_0", "VARPTS") -> -0.19 | I58: =RTD("rtdtrading.rtdserver",, "BPAN4_B_0", "184") -> 335.900,00 | J58: =RTD("rtdtrading.rtdserver",, "BPAN4_B_0", "100") -> -188.800 | K58: =RTD("rtdtrading.rtdserver",, "BPAN4_B_0", "103") -> -188.800,00
B59: JBSS3 | C59: =RTD("rtdtrading.rtdserver",, "JBSS3_B_0", "ULT") -> 29.92 | D59: =RTD("rtdtrading.rtdserver",, "JBSS3_B_0", "ABE") -> 30.88 | E59: =RTD("rtdtrading.rtdserver",, "JBSS3_B_0", "MAX") -> 30.94 | F59: =RTD("rtdtrading.rtdserver",, "JBSS3_B_0", "MIN") -> 29.9 | G59: =RTD("rtdtrading.rtdserver",, "JBSS3_B_0", "VAR") -> -2.604166667 | H59: =RTD("rtdtrading.rtdserver",, "JBSS3_B_0", "VARPTS") -> -0.8 | I59: =RTD("rtdtrading.rtdserver",, "JBSS3_B_0", "184") -> 268.000,00 | J59: =RTD("rtdtrading.rtdserver",, "JBSS3_B_0", "100") -> -231.800 | K59: =RTD("rtdtrading.rtdserver",, "JBSS3_B_0", "103") -> -231.800,00
B60: UGPA3 | C60: =RTD("rtdtrading.rtdserver",, "UGPA3_B_0", "ULT") -> 13.99 | D60: =RTD("rtdtrading.rtdserver",, "UGPA3_B_0", "ABE") -> 14.11 | E60: =RTD("rtdtrading.rtdserver",, "UGPA3_B_0", "MAX") -> 14.2 | F60: =RTD("rtdtrading.rtdserver",, "UGPA3_B_0", "MIN") -> 13.95 | G60: =RTD("rtdtrading.rtdserver",, "UGPA3_B_0", "VAR") -> -0.4270462633 | H60: =RTD("rtdtrading.rtdserver",, "UGPA3_B_0", "VARPTS") -> -0.06 | I60: =RTD("rtdtrading.rtdserver",, "UGPA3_B_0", "184") -> 132.500,00 | J60: =RTD("rtdtrading.rtdserver",, "UGPA3_B_0", "100") -> -132.500 | K60: =RTD("rtdtrading.rtdserver",, "UGPA3_B_0", "103") -> -132.500,00
B61: ITSA4 | C61: =RTD("rtdtrading.rtdserver",, "ITSA4_B_0", "ULT") -> 9.32 | D61: =RTD("rtdtrading.rtdserver",, "ITSA4_B_0", "ABE") -> 9.39 | E61: =RTD("rtdtrading.rtdserver",, "ITSA4_B_0", "MAX") -> 9.46 | F61: =RTD("rtdtrading.rtdserver",, "ITSA4_B_0", "MIN") -> 9.32 | G61: =RTD("rtdtrading.rtdserver",, "ITSA4_B_0", "VAR") -> -0.6396588486 | H61: =RTD("rtdtrading.rtdserver",, "ITSA4_B_0", "VARPTS") -> -0.06 | I61: =RTD("rtdtrading.rtdserver",, "ITSA4_B_0", "184") -> 727.600,00 | J61: =RTD("rtdtrading.rtdserver",, "ITSA4_B_0", "100") -> -727.600 | K61: =RTD("rtdtrading.rtdserver",, "ITSA4_B_0", "103") -> -727.600,00
B62: MGLU3 | C62: =RTD("rtdtrading.rtdserver",, "MGLU3_B_0", "ULT") -> 4.51 | D62: =RTD("rtdtrading.rtdserver",, "MGLU3_B_0", "ABE") -> 4.73 | E62: =RTD("rtdtrading.rtdserver",, "MGLU3_B_0", "MAX") -> 4.76 | F62: =RTD("rtdtrading.rtdserver",, "MGLU3_B_0", "MIN") -> 4.49 | G62: =RTD("rtdtrading.rtdserver",, "MGLU3_B_0", "VAR") -> -3.632478632 | H62: =RTD("rtdtrading.rtdserver",, "MGLU3_B_0", "VARPTS") -> -0.17 | I62: =RTD("rtdtrading.rtdserver",, "MGLU3_B_0", "184") -> 10.411.100,00 | J62: =RTD("rtdtrading.rtdserver",, "MGLU3_B_0", "100") -> -10.411.100 | K62: =RTD("rtdtrading.rtdserver",, "MGLU3_B_0", "103") -> -10.411.100,00
B63: BBAS3 | C63: =RTD("rtdtrading.rtdserver",, "BBAS3_B_0", "ULT") -> 41.38 | D63: =RTD("rtdtrading.rtdserver",, "BBAS3_B_0", "ABE") -> 41.88 | E63: =RTD("rtdtrading.rtdserver",, "BBAS3_B_0", "MAX") -> 42.03 | F63: =RTD("rtdtrading.rtdserver",, "BBAS3_B_0", "MIN") -> 41.12 | G63: =RTD("rtdtrading.rtdserver",, "BBAS3_B_0", "VAR") -> -1.004784689 | H63: =RTD("rtdtrading.rtdserver",, "BBAS3_B_0", "VARPTS") -> -0.42 | I63: =RTD("rtdtrading.rtdserver",, "BBAS3_B_0", "184") -> 5.130.500,00 | J63: =RTD("rtdtrading.rtdserver",, "BBAS3_B_0", "100") -> -451.900 | K63: =RTD("rtdtrading.rtdserver",, "BBAS3_B_0", "103") -> -451.900,00
B64: CRFB3 | C64: =RTD("rtdtrading.rtdserver",, "CRFB3_B_0", "ULT") -> 20.03 | D64: =RTD("rtdtrading.rtdserver",, "CRFB3_B_0", "ABE") -> 20.18 | E64: =RTD("rtdtrading.rtdserver",, "CRFB3_B_0", "MAX") -> 20.37 | F64: =RTD("rtdtrading.rtdserver",, "CRFB3_B_0", "MIN") -> 19.96 | G64: =RTD("rtdtrading.rtdserver",, "CRFB3_B_0", "VAR") -> -0.2490039841 | H64: =RTD("rtdtrading.rtdserver",, "CRFB3_B_0", "VARPTS") -> -0.05 | I64: =RTD("rtdtrading.rtdserver",, "CRFB3_B_0", "184") -> 93.500,00 | J64: =RTD("rtdtrading.rtdserver",, "CRFB3_B_0", "100") -> -93.500 | K64: =RTD("rtdtrading.rtdserver",, "CRFB3_B_0", "103") -> -93.500,00
B65: MRVE3 | C65: =RTD("rtdtrading.rtdserver",, "MRVE3_B_0", "ULT") -> 10.25 | D65: =RTD("rtdtrading.rtdserver",, "MRVE3_B_0", "ABE") -> 10.31 | E65: =RTD("rtdtrading.rtdserver",, "MRVE3_B_0", "MAX") -> 10.65 | F65: =RTD("rtdtrading.rtdserver",, "MRVE3_B_0", "MIN") -> 10.18 | G65: =RTD("rtdtrading.rtdserver",, "MRVE3_B_0", "VAR") -> -0.09746588694 | H65: =RTD("rtdtrading.rtdserver",, "MRVE3_B_0", "VARPTS") -> -0.01 | I65: =RTD("rtdtrading.rtdserver",, "MRVE3_B_0", "184") -> 3.435.500,00 | J65: =RTD("rtdtrading.rtdserver",, "MRVE3_B_0", "100") -> 383.800 | K65: =RTD("rtdtrading.rtdserver",, "MRVE3_B_0", "103") -> 383.800,00
B66: TIMS3 | C66: =RTD("rtdtrading.rtdserver",, "TIMS3_B_0", "ULT") -> 12.02 | D66: =RTD("rtdtrading.rtdserver",, "TIMS3_B_0", "ABE") -> 12.1 | E66: =RTD("rtdtrading.rtdserver",, "TIMS3_B_0", "MAX") -> 12.12 | F66: =RTD("rtdtrading.rtdserver",, "TIMS3_B_0", "MIN") -> 11.98 | G66: =RTD("rtdtrading.rtdserver",, "TIMS3_B_0", "VAR") -> -0.3316749585 | H66: =RTD("rtdtrading.rtdserver",, "TIMS3_B_0", "VARPTS") -> -0.04 | I66: =RTD("rtdtrading.rtdserver",, "TIMS3_B_0", "184") -> 1.178.800,00 | J66: =RTD("rtdtrading.rtdserver",, "TIMS3_B_0", "100") -> 233.500 | K66: =RTD("rtdtrading.rtdserver",, "TIMS3_B_0", "103") -> 233.500,00
B67: CMIG4 | C67: =RTD("rtdtrading.rtdserver",, "CMIG4_B_0", "ULT") -> 12.44 | D67: =RTD("rtdtrading.rtdserver",, "CMIG4_B_0", "ABE") -> 12.65 | E67: =RTD("rtdtrading.rtdserver",, "CMIG4_B_0", "MAX") -> 12.66 | F67: =RTD("rtdtrading.rtdserver",, "CMIG4_B_0", "MIN") -> 12.35 | G67: =RTD("rtdtrading.rtdserver",, "CMIG4_B_0", "VAR") -> -1.504354711 | H67: =RTD("rtdtrading.rtdserver",, "CMIG4_B_0", "VARPTS") -> -0.19 | I67: =RTD("rtdtrading.rtdserver",, "CMIG4_B_0", "184") -> 1.653.300,00 | J67: =RTD("rtdtrading.rtdserver",, "CMIG4_B_0", "100") -> 226.700 | K67: =RTD("rtdtrading.rtdserver",, "CMIG4_B_0", "103") -> 226.700,00
B68: MULT3 | C68: =RTD("rtdtrading.rtdserver",, "MULT3_B_0", "ULT") -> 25.48 | D68: =RTD("rtdtrading.rtdserver",, "MULT3_B_0", "ABE") -> 25.61 | E68: =RTD("rtdtrading.rtdserver",, "MULT3_B_0", "MAX") -> 25.8 | F68: =RTD("rtdtrading.rtdserver",, "MULT3_B_0", "MIN") -> 25.41 | G68: =RTD("rtdtrading.rtdserver",, "MULT3_B_0", "VAR") -> -0.07843137255 | H68: =RTD("rtdtrading.rtdserver",, "MULT3_B_0", "VARPTS") -> -0.02 | I68: =RTD("rtdtrading.rtdserver",, "MULT3_B_0", "184") -> 139.200,00 | J68: =RTD("rtdtrading.rtdserver",, "MULT3_B_0", "100") -> -37.400 | K68: =RTD("rtdtrading.rtdserver",, "MULT3_B_0", "103") -> -37.400,00
B69: HYPE3 | C69: =RTD("rtdtrading.rtdserver",, "HYPE3_B_0", "ULT") -> 43.91 | D69: =RTD("rtdtrading.rtdserver",, "HYPE3_B_0", "ABE") -> 44.06 | E69: =RTD("rtdtrading.rtdserver",, "HYPE3_B_0", "MAX") -> 44.25 | F69: =RTD("rtdtrading.rtdserver",, "HYPE3_B_0", "MIN") -> 43.64 | G69: =RTD("rtdtrading.rtdserver",, "HYPE3_B_0", "VAR") -> 0.02277904328 | H69: =RTD("rtdtrading.rtdserver",, "HYPE3_B_0", "VARPTS") -> 0.01 | I69: =RTD("rtdtrading.rtdserver",, "HYPE3_B_0", "184") -> 126.300,00 | J69: =RTD("rtdtrading.rtdserver",, "HYPE3_B_0", "100") -> 10.200 | K69: =RTD("rtdtrading.rtdserver",, "HYPE3_B_0", "103") -> 10.200,00
B70: LREN3 | C70: =RTD("rtdtrading.rtdserver",, "LREN3_B_0", "ULT") -> 27.6 | D70: =RTD("rtdtrading.rtdserver",, "LREN3_B_0", "ABE") -> 27.67 | E70: =RTD("rtdtrading.rtdserver",, "LREN3_B_0", "MAX") -> 27.99 | F70: =RTD("rtdtrading.rtdserver",, "LREN3_B_0", "MIN") -> 27.42 | G70: =RTD("rtdtrading.rtdserver",, "LREN3_B_0", "VAR") -> 4.263256415e-14 | H70: =RTD("rtdtrading.rtdserver",, "LREN3_B_0", "VARPTS") -> 1.421085472e-14 | I70: =RTD("rtdtrading.rtdserver",, "LREN3_B_0", "184") -> 848.500,00 | J70: =RTD("rtdtrading.rtdserver",, "LREN3_B_0", "100") -> -449.500 | K70: =RTD("rtdtrading.rtdserver",, "LREN3_B_0", "103") -> -449.500,00
B71: PETZ3 | C71: =RTD("rtdtrading.rtdserver",, "PETZ3_B_0", "ULT") -> 10.64 | D71: =RTD("rtdtrading.rtdserver",, "PETZ3_B_0", "ABE") -> 10.97 | E71: =RTD("rtdtrading.rtdserver",, "PETZ3_B_0", "MAX") -> 11.15 | F71: =RTD("rtdtrading.rtdserver",, "PETZ3_B_0", "MIN") -> 10.5 | G71: =RTD("rtdtrading.rtdserver",, "PETZ3_B_0", "VAR") -> -2.653247941 | H71: =RTD("rtdtrading.rtdserver",, "PETZ3_B_0", "VARPTS") -> -0.29 | I71: =RTD("rtdtrading.rtdserver",, "PETZ3_B_0", "184") -> 254.500,00 | J71: =RTD("rtdtrading.rtdserver",, "PETZ3_B_0", "100") -> -254.500 | K71: =RTD("rtdtrading.rtdserver",, "PETZ3_B_0", "103") -> -254.500,00
B72: B3SA3 | C72: =RTD("rtdtrading.rtdserver",, "B3SA3_B_0", "ULT") -> 12.52 | D72: =RTD("rtdtrading.rtdserver",, "B3SA3_B_0", "ABE") -> 12.82 | E72: =RTD("rtdtrading.rtdserver",, "B3SA3_B_0", "MAX") -> 12.85 | F72: =RTD("rtdtrading.rtdserver",, "B3SA3_B_0", "MIN") -> 12.5 | G72: =RTD("rtdtrading.rtdserver",, "B3SA3_B_0", "VAR") -> -1.957713391 | H72: =RTD("rtdtrading.rtdserver",, "B3SA3_B_0", "VARPTS") -> -0.25 | I72: =RTD("rtdtrading.rtdserver",, "B3SA3_B_0", "184") -> 303.800,00 | J72: =RTD("rtdtrading.rtdserver",, "B3SA3_B_0", "100") -> -303.800 | K72: =RTD("rtdtrading.rtdserver",, "B3SA3_B_0", "103") -> -303.800,00
B73: VIVT3 | C73: =RTD("rtdtrading.rtdserver",, "VIVT3_B_0", "ULT") -> 42.68 | D73: =RTD("rtdtrading.rtdserver",, "VIVT3_B_0", "ABE") -> 43.02 | E73: =RTD("rtdtrading.rtdserver",, "VIVT3_B_0", "MAX") -> 43.06 | F73: =RTD("rtdtrading.rtdserver",, "VIVT3_B_0", "MIN") -> 42.61 | G73: =RTD("rtdtrading.rtdserver",, "VIVT3_B_0", "VAR") -> -0.3967327888 | H73: =RTD("rtdtrading.rtdserver",, "VIVT3_B_0", "VARPTS") -> -0.17 | I73: =RTD("rtdtrading.rtdserver",, "VIVT3_B_0", "184") -> 1.635.400,00 | J73: =RTD("rtdtrading.rtdserver",, "VIVT3_B_0", "100") -> 10.800 | K73: =RTD("rtdtrading.rtdserver",, "VIVT3_B_0", "103") -> 10.800,00
B74: RENT3 | C74: =RTD("rtdtrading.rtdserver",, "RENT3_B_0", "ULT") -> 61.76 | D74: =RTD("rtdtrading.rtdserver",, "RENT3_B_0", "ABE") -> 63.4 | E74: =RTD("rtdtrading.rtdserver",, "RENT3_B_0", "MAX") -> 63.53 | F74: =RTD("rtdtrading.rtdserver",, "RENT3_B_0", "MIN") -> 61.53 | G74: =RTD("rtdtrading.rtdserver",, "RENT3_B_0", "VAR") -> -2.969363708 | H74: =RTD("rtdtrading.rtdserver",, "RENT3_B_0", "VARPTS") -> -1.89 | I74: =RTD("rtdtrading.rtdserver",, "RENT3_B_0", "184") -> 59.400,00 | J74: =RTD("rtdtrading.rtdserver",, "RENT3_B_0", "100") -> -59.400 | K74: =RTD("rtdtrading.rtdserver",, "RENT3_B_0", "103") -> -59.400,00
B75: RADL3 | C75: =RTD("rtdtrading.rtdserver",, "RADL3_B_0", "ULT") -> 22.31 | D75: =RTD("rtdtrading.rtdserver",, "RADL3_B_0", "ABE") -> 22.78 | E75: =RTD("rtdtrading.rtdserver",, "RADL3_B_0", "MAX") -> 22.85 | F75: =RTD("rtdtrading.rtdserver",, "RADL3_B_0", "MIN") -> 22.27 | G75: =RTD("rtdtrading.rtdserver",, "RADL3_B_0", "VAR") -> -1.370468612 | H75: =RTD("rtdtrading.rtdserver",, "RADL3_B_0", "VARPTS") -> -0.31 | I75: =RTD("rtdtrading.rtdserver",, "RADL3_B_0", "184") -> 22.500,00 | J75: =RTD("rtdtrading.rtdserver",, "RADL3_B_0", "100") -> -22.500 | K75: =RTD("rtdtrading.rtdserver",, "RADL3_B_0", "103") -> -22.500,00
B76: RDOR3 | C76: =RTD("rtdtrading.rtdserver",, "RDOR3_B_0", "ULT") -> 33.85 | D76: =RTD("rtdtrading.rtdserver",, "RDOR3_B_0", "ABE") -> 34.62 | E76: =RTD("rtdtrading.rtdserver",, "RDOR3_B_0", "MAX") -> 35.13 | F76: =RTD("rtdtrading.rtdserver",, "RDOR3_B_0", "MIN") -> 33.83 | G76: =RTD("rtdtrading.rtdserver",, "RDOR3_B_0", "VAR") -> -1.741654572 | H76: =RTD("rtdtrading.rtdserver",, "RDOR3_B_0", "VARPTS") -> -0.6 | I76: =RTD("rtdtrading.rtdserver",, "RDOR3_B_0", "184") -> 110.400,00 | J76: =RTD("rtdtrading.rtdserver",, "RDOR3_B_0", "100") -> -110.400 | K76: =RTD("rtdtrading.rtdserver",, "RDOR3_B_0", "103") -> -110.400,00
B77: COGN3 | C77: =RTD("rtdtrading.rtdserver",, "COGN3_B_0", "ULT") -> 2.62 | D77: =RTD("rtdtrading.rtdserver",, "COGN3_B_0", "ABE") -> 2.69 | E77: =RTD("rtdtrading.rtdserver",, "COGN3_B_0", "MAX") -> 2.73 | F77: =RTD("rtdtrading.rtdserver",, "COGN3_B_0", "MIN") -> 2.62 | G77: =RTD("rtdtrading.rtdserver",, "COGN3_B_0", "VAR") -> -1.872659176 | H77: =RTD("rtdtrading.rtdserver",, "COGN3_B_0", "VARPTS") -> -0.05 | I77: =RTD("rtdtrading.rtdserver",, "COGN3_B_0", "184") -> 653.000,00 | J77: =RTD("rtdtrading.rtdserver",, "COGN3_B_0", "100") -> -653.000 | K77: =RTD("rtdtrading.rtdserver",, "COGN3_B_0", "103") -> -653.000,00
B78: WEGE3 | C78: =RTD("rtdtrading.rtdserver",, "WEGE3_B_0", "ULT") -> 28.83 | D78: =RTD("rtdtrading.rtdserver",, "WEGE3_B_0", "ABE") -> 29.18 | E78: =RTD("rtdtrading.rtdserver",, "WEGE3_B_0", "MAX") -> 29.23 | F78: =RTD("rtdtrading.rtdserver",, "WEGE3_B_0", "MIN") -> 28.61 | G78: =RTD("rtdtrading.rtdserver",, "WEGE3_B_0", "VAR") -> -0.414507772 | H78: =RTD("rtdtrading.rtdserver",, "WEGE3_B_0", "VARPTS") -> -0.12 | I78: =RTD("rtdtrading.rtdserver",, "WEGE3_B_0", "184") -> 283.200,00 | J78: =RTD("rtdtrading.rtdserver",, "WEGE3_B_0", "100") -> -283.200 | K78: =RTD("rtdtrading.rtdserver",, "WEGE3_B_0", "103") -> -283.200,00
B79: ITUB4 | C79: =RTD("rtdtrading.rtdserver",, "ITUB4_B_0", "ULT") -> 26.71 | D79: =RTD("rtdtrading.rtdserver",, "ITUB4_B_0", "ABE") -> 26.9 | E79: =RTD("rtdtrading.rtdserver",, "ITUB4_B_0", "MAX") -> 27.14 | F79: =RTD("rtdtrading.rtdserver",, "ITUB4_B_0", "MIN") -> 26.71 | G79: =RTD("rtdtrading.rtdserver",, "ITUB4_B_0", "VAR") -> -0.52141527 | H79: =RTD("rtdtrading.rtdserver",, "ITUB4_B_0", "VARPTS") -> -0.14 | I79: =RTD("rtdtrading.rtdserver",, "ITUB4_B_0", "184") -> 196.400,00 | J79: =RTD("rtdtrading.rtdserver",, "ITUB4_B_0", "100") -> -196.400 | K79: =RTD("rtdtrading.rtdserver",, "ITUB4_B_0", "103") -> -196.400,00
B80: BBDC4 | C80: =RTD("rtdtrading.rtdserver",, "BBDC4_B_0", "ULT") -> 19.5 | D80: =RTD("rtdtrading.rtdserver",, "BBDC4_B_0", "ABE") -> 19.6 | E80: =RTD("rtdtrading.rtdserver",, "BBDC4_B_0", "MAX") -> 19.82 | F80: =RTD("rtdtrading.rtdserver",, "BBDC4_B_0", "MIN") -> 19.5 | G80: =RTD("rtdtrading.rtdserver",, "BBDC4_B_0", "VAR") -> -0.05125576627 | H80: =RTD("rtdtrading.rtdserver",, "BBDC4_B_0", "VARPTS") -> -0.01 | I80: =RTD("rtdtrading.rtdserver",, "BBDC4_B_0", "184") -> 6.801.200,00 | J80: =RTD("rtdtrading.rtdserver",, "BBDC4_B_0", "100") -> 1.894.000 | K80: =RTD("rtdtrading.rtdserver",, "BBDC4_B_0", "103") -> 1.894.000,00
B81: BBDC3 | C81: =RTD("rtdtrading.rtdserver",, "BBDC3_B_0", "ULT") -> 16.12 | D81: =RTD("rtdtrading.rtdserver",, "BBDC3_B_0", "ABE") -> 16.19 | E81: =RTD("rtdtrading.rtdserver",, "BBDC3_B_0", "MAX") -> 16.37 | F81: =RTD("rtdtrading.rtdserver",, "BBDC3_B_0", "MIN") -> 16.12 | G81: =RTD("rtdtrading.rtdserver",, "BBDC3_B_0", "VAR") -> -0.3092145949 | H81: =RTD("rtdtrading.rtdserver",, "BBDC3_B_0", "VARPTS") -> -0.05 | I81: =RTD("rtdtrading.rtdserver",, "BBDC3_B_0", "184") -> 2.449.500,00 | J81: =RTD("rtdtrading.rtdserver",, "BBDC3_B_0", "100") -> -387.000 | K81: =RTD("rtdtrading.rtdserver",, "BBDC3_B_0", "103") -> -387.000,00
B82: KLBN11 | C82: =RTD("rtdtrading.rtdserver",, "KLBN11_B_0", "ULT") -> 19.76 | D82: =RTD("rtdtrading.rtdserver",, "KLBN11_B_0", "ABE") -> 20.13 | E82: =RTD("rtdtrading.rtdserver",, "KLBN11_B_0", "MAX") -> 20.34 | F82: =RTD("rtdtrading.rtdserver",, "KLBN11_B_0", "MIN") -> 19.72 | G82: =RTD("rtdtrading.rtdserver",, "KLBN11_B_0", "VAR") -> -1.642608263 | H82: =RTD("rtdtrading.rtdserver",, "KLBN11_B_0", "VARPTS") -> -0.33 | I82: =RTD("rtdtrading.rtdserver",, "KLBN11_B_0", "184") -> 646.800,00 | J82: =RTD("rtdtrading.rtdserver",, "KLBN11_B_0", "100") -> -646.800 | K82: =RTD("rtdtrading.rtdserver",, "KLBN11_B_0", "103") -> -646.800,00
B83: BPAC11 | C83: =RTD("rtdtrading.rtdserver",, "BPAC11_B_0", "ULT") -> 25.61 | D83: =RTD("rtdtrading.rtdserver",, "BPAC11_B_0", "ABE") -> 26 | E83: =RTD("rtdtrading.rtdserver",, "BPAC11_B_0", "MAX") -> 26.11 | F83: =RTD("rtdtrading.rtdserver",, "BPAC11_B_0", "MIN") -> 25.57 | G83: =RTD("rtdtrading.rtdserver",, "BPAC11_B_0", "VAR") -> -1.043276662 | H83: =RTD("rtdtrading.rtdserver",, "BPAC11_B_0", "VARPTS") -> -0.27 | I83: =RTD("rtdtrading.rtdserver",, "BPAC11_B_0", "184") -> 2.126.500,00 | J83: =RTD("rtdtrading.rtdserver",, "BPAC11_B_0", "100") -> -199.100 | K83: =RTD("rtdtrading.rtdserver",, "BPAC11_B_0", "103") -> -199.100,00
B84: TOTS3 | C84: =RTD("rtdtrading.rtdserver",, "TOTS3_B_0", "ULT") -> 30.27 | D84: =RTD("rtdtrading.rtdserver",, "TOTS3_B_0", "ABE") -> 31 | E84: =RTD("rtdtrading.rtdserver",, "TOTS3_B_0", "MAX") -> 31 | F84: =RTD("rtdtrading.rtdserver",, "TOTS3_B_0", "MIN") -> 30.27 | G84: =RTD("rtdtrading.rtdserver",, "TOTS3_B_0", "VAR") -> -2.13385063 | H84: =RTD("rtdtrading.rtdserver",, "TOTS3_B_0", "VARPTS") -> -0.66 | I84: =RTD("rtdtrading.rtdserver",, "TOTS3_B_0", "184") -> 36.200,00 | J84: =RTD("rtdtrading.rtdserver",, "TOTS3_B_0", "100") -> -36.200 | K84: =RTD("rtdtrading.rtdserver",, "TOTS3_B_0", "103") -> -36.200,00
B85: CIEL3 | C85: =RTD("rtdtrading.rtdserver",, "CIEL3_B_0", "ULT") -> 5.94 | D85: =RTD("rtdtrading.rtdserver",, "CIEL3_B_0", "ABE") -> 5.87 | E85: =RTD("rtdtrading.rtdserver",, "CIEL3_B_0", "MAX") -> 6.22 | F85: =RTD("rtdtrading.rtdserver",, "CIEL3_B_0", "MIN") -> 5.86 | G85: =RTD("rtdtrading.rtdserver",, "CIEL3_B_0", "VAR") -> 2.590673575 | H85: =RTD("rtdtrading.rtdserver",, "CIEL3_B_0", "VARPTS") -> 0.15 | I85: =RTD("rtdtrading.rtdserver",, "CIEL3_B_0", "184") -> 1.404.500,00 | J85: =RTD("rtdtrading.rtdserver",, "CIEL3_B_0", "100") -> 1.404.500 | K85: =RTD("rtdtrading.rtdserver",, "CIEL3_B_0", "103") -> 1.404.500,00
B86: PETR3 | C86: =RTD("rtdtrading.rtdserver",, "PETR3_B_0", "ULT") -> 36.94 | D86: =RTD("rtdtrading.rtdserver",, "PETR3_B_0", "ABE") -> 37.21 | E86: =RTD("rtdtrading.rtdserver",, "PETR3_B_0", "MAX") -> 37.21 | F86: =RTD("rtdtrading.rtdserver",, "PETR3_B_0", "MIN") -> 36.37 | G86: =RTD("rtdtrading.rtdserver",, "PETR3_B_0", "VAR") -> -0.404421677 | H86: =RTD("rtdtrading.rtdserver",, "PETR3_B_0", "VARPTS") -> -0.15 | I86: =RTD("rtdtrading.rtdserver",, "PETR3_B_0", "184") -> 122.000,00 | J86: =RTD("rtdtrading.rtdserver",, "PETR3_B_0", "100") -> 122.000 | K86: =RTD("rtdtrading.rtdserver",, "PETR3_B_0", "103") -> 122.000,00
B87: PETR4 | C87: =RTD("rtdtrading.rtdserver",, "PETR4_B_0", "ULT") -> 33.02 | D87: =RTD("rtdtrading.rtdserver",, "PETR4_B_0", "ABE") -> 33.28 | E87: =RTD("rtdtrading.rtdserver",, "PETR4_B_0", "MAX") -> 33.39 | F87: =RTD("rtdtrading.rtdserver",, "PETR4_B_0", "MIN") -> 32.57 | G87: =RTD("rtdtrading.rtdserver",, "PETR4_B_0", "VAR") -> -0.78125 | H87: =RTD("rtdtrading.rtdserver",, "PETR4_B_0", "VARPTS") -> -0.26 | I87: =RTD("rtdtrading.rtdserver",, "PETR4_B_0", "184") -> 55.766.500,00 | J87: =RTD("rtdtrading.rtdserver",, "PETR4_B_0", "100") -> 814.700 | K87: =RTD("rtdtrading.rtdserver",, "PETR4_B_0", "103") -> 814.700,00
B88: VALE3 | C88: =RTD("rtdtrading.rtdserver",, "VALE3_B_0", "ULT") -> 68.82 | D88: =RTD("rtdtrading.rtdserver",, "VALE3_B_0", "ABE") -> 69.65 | E88: =RTD("rtdtrading.rtdserver",, "VALE3_B_0", "MAX") -> 71.2 | F88: =RTD("rtdtrading.rtdserver",, "VALE3_B_0", "MIN") -> 68.71 | G88: =RTD("rtdtrading.rtdserver",, "VALE3_B_0", "VAR") -> -0.6496318753 | H88: =RTD("rtdtrading.rtdserver",, "VALE3_B_0", "VARPTS") -> -0.45 | I88: =RTD("rtdtrading.rtdserver",, "VALE3_B_0", "184") -> 244.400,00 | J88: =RTD("rtdtrading.rtdserver",, "VALE3_B_0", "100") -> -244.400 | K88: =RTD("rtdtrading.rtdserver",, "VALE3_B_0", "103") -> -244.400,00
B89: SANB11 | C89: =RTD("rtdtrading.rtdserver",, "SANB11_B_0", "ULT") -> 30.25 | D89: =RTD("rtdtrading.rtdserver",, "SANB11_B_0", "ABE") -> 30.38 | E89: =RTD("rtdtrading.rtdserver",, "SANB11_B_0", "MAX") -> 30.65 | F89: =RTD("rtdtrading.rtdserver",, "SANB11_B_0", "MIN") -> 30.25 | G89: =RTD("rtdtrading.rtdserver",, "SANB11_B_0", "VAR") -> 0.06615944426 | H89: =RTD("rtdtrading.rtdserver",, "SANB11_B_0", "VARPTS") -> 0.02 | I89: =RTD("rtdtrading.rtdserver",, "SANB11_B_0", "184") -> 462.700,00 | J89: =RTD("rtdtrading.rtdserver",, "SANB11_B_0", "100") -> 96.200 | K89: =RTD("rtdtrading.rtdserver",, "SANB11_B_0", "103") -> 96.200,00
B90: GGBR4 | C90: =RTD("rtdtrading.rtdserver",, "GGBR4_B_0", "ULT") -> 24.22 | D90: =RTD("rtdtrading.rtdserver",, "GGBR4_B_0", "ABE") -> 24.99 | E90: =RTD("rtdtrading.rtdserver",, "GGBR4_B_0", "MAX") -> 25.11 | F90: =RTD("rtdtrading.rtdserver",, "GGBR4_B_0", "MIN") -> 24.16 | G90: =RTD("rtdtrading.rtdserver",, "GGBR4_B_0", "VAR") -> -1.824077827 | H90: =RTD("rtdtrading.rtdserver",, "GGBR4_B_0", "VARPTS") -> -0.45 | I90: =RTD("rtdtrading.rtdserver",, "GGBR4_B_0", "184") -> 1.436.000,00 | J90: =RTD("rtdtrading.rtdserver",, "GGBR4_B_0", "100") -> -452.600 | K90: =RTD("rtdtrading.rtdserver",, "GGBR4_B_0", "103") -> -452.600,00
B91: GOAU4 | C91: =RTD("rtdtrading.rtdserver",, "GOAU4_B_0", "ULT") -> 10.13 | D91: =RTD("rtdtrading.rtdserver",, "GOAU4_B_0", "ABE") -> 10.38 | E91: =RTD("rtdtrading.rtdserver",, "GOAU4_B_0", "MAX") -> 10.48 | F91: =RTD("rtdtrading.rtdserver",, "GOAU4_B_0", "MIN") -> 10.12 | G91: =RTD("rtdtrading.rtdserver",, "GOAU4_B_0", "VAR") -> -1.841085271 | H91: =RTD("rtdtrading.rtdserver",, "GOAU4_B_0", "VARPTS") -> -0.19 | I91: =RTD("rtdtrading.rtdserver",, "GOAU4_B_0", "184") -> 83.300,00 | J91: =RTD("rtdtrading.rtdserver",, "GOAU4_B_0", "100") -> 8.700 | K91: =RTD("rtdtrading.rtdserver",, "GOAU4_B_0", "103") -> 8.700,00
B92: TAEE11 | C92: =RTD("rtdtrading.rtdserver",, "TAEE11_B_0", "ULT") -> 40.59 | D92: =RTD("rtdtrading.rtdserver",, "TAEE11_B_0", "ABE") -> 40.38 | E92: =RTD("rtdtrading.rtdserver",, "TAEE11_B_0", "MAX") -> 40.66 | F92: =RTD("rtdtrading.rtdserver",, "TAEE11_B_0", "MIN") -> 40.36 | G92: =RTD("rtdtrading.rtdserver",, "TAEE11_B_0", "VAR") -> 0.5449591281 | H92: =RTD("rtdtrading.rtdserver",, "TAEE11_B_0", "VARPTS") -> 0.22 | I92: =RTD("rtdtrading.rtdserver",, "TAEE11_B_0", "184") -> 112.300,00 | J92: =RTD("rtdtrading.rtdserver",, "TAEE11_B_0", "100") -> 54.800 | K92: =RTD("rtdtrading.rtdserver",, "TAEE11_B_0", "103") -> 54.800,00
B93: EZTC3 | C93: =RTD("rtdtrading.rtdserver",, "EZTC3_B_0", "ULT") -> 18.26 | D93: =RTD("rtdtrading.rtdserver",, "EZTC3_B_0", "ABE") -> 18.47 | E93: =RTD("rtdtrading.rtdserver",, "EZTC3_B_0", "MAX") -> 18.69 | F93: =RTD("rtdtrading.rtdserver",, "EZTC3_B_0", "MIN") -> 18.19 | G93: =RTD("rtdtrading.rtdserver",, "EZTC3_B_0", "VAR") -> -1.136978885 | H93: =RTD("rtdtrading.rtdserver",, "EZTC3_B_0", "VARPTS") -> -0.21 | I93: =RTD("rtdtrading.rtdserver",, "EZTC3_B_0", "184") -> 66.500,00 | J93: =RTD("rtdtrading.rtdserver",, "EZTC3_B_0", "100") -> 41.900 | K93: =RTD("rtdtrading.rtdserver",, "EZTC3_B_0", "103") -> 41.900,00
B94: EGIE3 | C94: =RTD("rtdtrading.rtdserver",, "EGIE3_B_0", "ULT") -> 40.71 | D94: =RTD("rtdtrading.rtdserver",, "EGIE3_B_0", "ABE") -> 40.65 | E94: =RTD("rtdtrading.rtdserver",, "EGIE3_B_0", "MAX") -> 40.75 | F94: =RTD("rtdtrading.rtdserver",, "EGIE3_B_0", "MIN") -> 40.25 | G94: =RTD("rtdtrading.rtdserver",, "EGIE3_B_0", "VAR") -> 0.2462447673 | H94: =RTD("rtdtrading.rtdserver",, "EGIE3_B_0", "VARPTS") -> 0.1 | I94: =RTD("rtdtrading.rtdserver",, "EGIE3_B_0", "184") -> 257.000,00 | J94: =RTD("rtdtrading.rtdserver",, "EGIE3_B_0", "100") -> 18.800 | K94: =RTD("rtdtrading.rtdserver",, "EGIE3_B_0", "103") -> 18.800,00

Sheet TESTES (hidden)
F6: PETR4
D8: 1 | E8: BTG | F8: =RTD("srv.rtd","","PLAYERSRANKING","PETR4","85","SALDO","QUANTITY") -> 638 | G8: =RTD("srv.rtd","","PLAYERSRANKING","PETR4","85","SALDO","VOLQ") -> -615500 | H8: =RTD("srv.rtd","","PLAYERSRANKING","PETR4","85","SALDO","VOLF") -> -20342161 | I8: =RTD("srv.rtd","","PLAYERSRANKING","PETR4","85","SALDO","AVG_PRICE") -> 32.95205572 | J8: =RTD("srv.rtd","","PLAYERSRANKING","PETR4","85","SALDO","AVG_PRICE_2") -> 33.04981478
D9: 2 | E9: CREDIT SUISSE | F9: =RTD("srv.rtd","","PLAYERSRANKING","PETR4","45","SALDO","QUANTITY") -> -93 | G9: =RTD("srv.rtd","","PLAYERSRANKING","PETR4","45","SALDO","VOLQ") -> -112300 | H9: =RTD("srv.rtd","","PLAYERSRANKING","PETR4","45","SALDO","VOLF") -> -3633251 | I9: =RTD("srv.rtd","","PLAYERSRANKING","PETR4","45","SALDO","AVG_PRICE") -> 32.85064893 | J9: =RTD("srv.rtd","","PLAYERSRANKING","PETR4","45","SALDO","AVG_PRICE_2") -> 32.35308103
D10: 3 | E10: SAFRA | F10: =RTD("srv.rtd","","PLAYERSRANKING","PETR4","59","SALDO","QUANTITY") -> 63 | G10: =RTD("srv.rtd","","PLAYERSRANKING","PETR4","59","SALDO","VOLQ") -> -300 | H10: =RTD("srv.rtd","","PLAYERSRANKING","PETR4","59","SALDO","VOLF") -> -14468 | I10: =RTD("srv.rtd","","PLAYERSRANKING","PETR4","59","SALDO","AVG_PRICE") -> 32.93177806 | J10: =RTD("srv.rtd","","PLAYERSRANKING","PETR4","59","SALDO","AVG_PRICE_2") -> 48.22666667
D11: 4 | E11: TERRA | F11: =RTD("srv.rtd","","PLAYERSRANKING","PETR4","107","SALDO","QUANTITY") -> -25 | G11: =RTD("srv.rtd","","PLAYERSRANKING","PETR4","107","SALDO","VOLQ") -> 19700 | H11: =RTD("srv.rtd","","PLAYERSRANKING","PETR4","107","SALDO","VOLF") -> 668290 | I11: =RTD("srv.rtd","","PLAYERSRANKING","PETR4","107","SALDO","AVG_PRICE") -> 32.93250479 | J11: =RTD("srv.rtd","","PLAYERSRANKING","PETR4","107","SALDO","AVG_PRICE_2") -> 33.92335025
D12: 5 | E12: BRADESCO | F12: =RTD("srv.rtd","","PLAYERSRANKING","PETR4","72","SALDO","QUANTITY") -> 171 | G12: =RTD("srv.rtd","","PLAYERSRANKING","PETR4","72","SALDO","VOLQ") -> 284800 | H12: =RTD("srv.rtd","","PLAYERSRANKING","PETR4","72","SALDO","VOLF") -> 9418998 | I12: =RTD("srv.rtd","","PLAYERSRANKING","PETR4","72","SALDO","AVG_PRICE") -> 32.90577023 | J12: =RTD("srv.rtd","","PLAYERSRANKING","PETR4","72","SALDO","AVG_PRICE_2") -> 33.07232444
D13: 6 | E13: BGC | F13: =RTD("srv.rtd","","PLAYERSRANKING","PETR4","122","SALDO","QUANTITY") -> -4956 | G13: =RTD("srv.rtd","","PLAYERSRANKING","PETR4","122","SALDO","VOLQ") -> -496700 | H13: =RTD("srv.rtd","","PLAYERSRANKING","PETR4","122","SALDO","VOLF") -> -16259749 | I13: =RTD("srv.rtd","","PLAYERSRANKING","PETR4","122","SALDO","AVG_PRICE") -> 32.73497989 | J13: =RTD("srv.rtd","","PLAYERSRANKING","PETR4","122","SALDO","AVG_PRICE_2") -> 32.73555265
D14: 7 | E14: GENIAL | F14: =RTD("srv.rtd","","PLAYERSRANKING","PETR4","120","SALDO","QUANTITY") -> 1526 | G14: =RTD("srv.rtd","","PLAYERSRANKING","PETR4","120","SALDO","VOLQ") -> 224000 | H14: =RTD("srv.rtd","","PLAYERSRANKING","PETR4","120","SALDO","VOLF") -> 7287218 | I14: =RTD("srv.rtd","","PLAYERSRANKING","PETR4","120","SALDO","AVG_PRICE") -> 32.89212333 | J14: =RTD("srv.rtd","","PLAYERSRANKING","PETR4","120","SALDO","AVG_PRICE_2") -> 32.53222321
D15: 8 | E15: MERRILL LYNCH | F15: =RTD("srv.rtd","","PLAYERSRANKING","PETR4","13","SALDO","QUANTITY") -> -557 | G15: =RTD("srv.rtd","","PLAYERSRANKING","PETR4","13","SALDO","VOLQ") -> -1335900 | H15: =RTD("srv.rtd","","PLAYERSRANKING","PETR4","13","SALDO","VOLF") -> -43828336 | I15: =RTD("srv.rtd","","PLAYERSRANKING","PETR4","13","SALDO","AVG_PRICE") -> 32.78854853 | J15: =RTD("srv.rtd","","PLAYERSRANKING","PETR4","13","SALDO","AVG_PRICE_2") -> 32.80809641
D16: 9 | E16: UBS | F16: =RTD("srv.rtd","","PLAYERSRANKING","PETR4","8","SALDO","QUANTITY") -> 1441 | G16: =RTD("srv.rtd","","PLAYERSRANKING","PETR4","8","SALDO","VOLQ") -> 1976300 | H16: =RTD("srv.rtd","","PLAYERSRANKING","PETR4","8","SALDO","VOLF") -> 65141219 | I16: =RTD("srv.rtd","","PLAYERSRANKING","PETR4","8","SALDO","AVG_PRICE") -> 32.91357986 | J16: =RTD("srv.rtd","","PLAYERSRANKING","PETR4","8","SALDO","AVG_PRICE_2") -> 32.96119972
D17: 10 | E17: ITAU | F17: =RTD("srv.rtd","","PLAYERSRANKING","PETR4","114","SALDO","QUANTITY") -> -352 | G17: =RTD("srv.rtd","","PLAYERSRANKING","PETR4","114","SALDO","VOLQ") -> -534400 | H17: =RTD("srv.rtd","","PLAYERSRANKING","PETR4","114","SALDO","VOLF") -> -17957673 | I17: =RTD("srv.rtd","","PLAYERSRANKING","PETR4","114","SALDO","AVG_PRICE") -> 32.96124296 | J17: =RTD("srv.rtd","","PLAYERSRANKING","PETR4","114","SALDO","AVG_PRICE_2") -> 33.60343001
D18: 11 | E18: FC STONE | F18: =RTD("srv.rtd","","PLAYERSRANKING","PETR4","1130","SALDO","QUANTITY") -> 91 | G18: =RTD("srv.rtd","","PLAYERSRANKING","PETR4","1130","SALDO","VOLQ") -> -40000 | H18: =RTD("srv.rtd","","PLAYERSRANKING","PETR4","1130","SALDO","VOLF") -> -1364092 | I18: =RTD("srv.rtd","","PLAYERSRANKING","PETR4","1130","SALDO","AVG_PRICE") -> 32.97826471 | J18: =RTD("srv.rtd","","PLAYERSRANKING","PETR4","1130","SALDO","AVG_PRICE_2") -> 34.1023
D19: 12 | E19: PLANNER | F19: =RTD("srv.rtd","","PLAYERSRANKING","PETR4","129","SALDO","QUANTITY") -> 70 | G19: =RTD("srv.rtd","","PLAYERSRANKING","PETR4","129","SALDO","VOLQ") -> 47000 | H19: =RTD("srv.rtd","","PLAYERSRANKING","PETR4","129","SALDO","VOLF") -> 1542602 | I19: =RTD("srv.rtd","","PLAYERSRANKING","PETR4","129","SALDO","AVG_PRICE") -> 32.86802198 | J19: =RTD("srv.rtd","","PLAYERSRANKING","PETR4","129","SALDO","AVG_PRICE_2") -> 32.82131915
D20: 13 | E20: ELITE | F20: =RTD("srv.rtd","","PLAYERSRANKING","PETR4","174","SALDO","QUANTITY") -> 7 | G20: =RTD("srv.rtd","","PLAYERSRANKING","PETR4","174","SALDO","VOLQ") -> 100 | H20: =RTD("srv.rtd","","PLAYERSRANKING","PETR4","174","SALDO","VOLF") -> 3265 | I20: =RTD("srv.rtd","","PLAYERSRANKING","PETR4","174","SALDO","AVG_PRICE") -> 32.87340426 | J20: =RTD("srv.rtd","","PLAYERSRANKING","PETR4","174","SALDO","AVG_PRICE_2") -> 32.65
D21: 14 | E21: SITA | F21: =RTD("srv.rtd","","PLAYERSRANKING","PETR4","187","SALDO","QUANTITY") -> -2 | G21: =RTD("srv.rtd","","PLAYERSRANKING","PETR4","187","SALDO","VOLQ") -> -10000 | H21: =RTD("srv.rtd","","PLAYERSRANKING","PETR4","187","SALDO","VOLF") -> -330000 | I21: =RTD("srv.rtd","","PLAYERSRANKING","PETR4","187","SALDO","AVG_PRICE") -> 33 | J21: =RTD("srv.rtd","","PLAYERSRANKING","PETR4","187","SALDO","AVG_PRICE_2") -> 33
D22: 15 | E22: INTER | F22: =RTD("srv.rtd","","PLAYERSRANKING","PETR4","1099","SALDO","QUANTITY") -> 48 | G22: =RTD("srv.rtd","","PLAYERSRANKING","PETR4","1099","SALDO","VOLQ") -> -500 | H22: =RTD("srv.rtd","","PLAYERSRANKING","PETR4","1099","SALDO","VOLF") -> -58027 | I22: =RTD("srv.rtd","","PLAYERSRANKING","PETR4","1099","SALDO","AVG_PRICE") -> 32.89328944 | J22: =RTD("srv.rtd","","PLAYERSRANKING","PETR4","1099","SALDO","AVG_PRICE_2") -> 116.054
D23: 16 | E23: C6 BANK | F23: =RTD("srv.rtd","","PLAYERSRANKING","PETR4","6003","SALDO","QUANTITY") -> 115 | G23: =RTD("srv.rtd","","PLAYERSRANKING","PETR4","6003","SALDO","VOLQ") -> 101700 | H23: =RTD("srv.rtd","","PLAYERSRANKING","PETR4","6003","SALDO","VOLF") -> 3328944 | I23: =RTD("srv.rtd","","PLAYERSRANKING","PETR4","6003","SALDO","AVG_PRICE") -> 32.74642097 | J23: =RTD("srv.rtd","","PLAYERSRANKING","PETR4","6003","SALDO","AVG_PRICE_2") -> 32.73297935
D24: 17 | E24: ICAP | F24: =RTD("srv.rtd","","PLAYERSRANKING","PETR4","735","SALDO","QUANTITY") -> -27 | G24: =RTD("srv.rtd","","PLAYERSRANKING","PETR4","735","SALDO","VOLQ") -> 400 | H24: =RTD("srv.rtd","","PLAYERSRANKING","PETR4","735","SALDO","VOLF") -> 10141 | I24: =RTD("srv.rtd","","PLAYERSRANKING","PETR4","735","SALDO","AVG_PRICE") -> 33.02089958 | J24: =RTD("srv.rtd","","PLAYERSRANKING","PETR4","735","SALDO","AVG_PRICE_2") -> 25.3525
D25: 18 | E25: AMARIL FRANKLIN | F25: =RTD("srv.rtd","","PLAYERSRANKING","PETR4","226","SALDO","QUANTITY") -> 0 | G25: =RTD("srv.rtd","","PLAYERSRANKING","PETR4","226","SALDO","VOLQ") -> 0 | H25: =RTD("srv.rtd","","PLAYERSRANKING","PETR4","226","SALDO","VOLF") -> 0 | I25: =RTD("srv.rtd","","PLAYERSRANKING","PETR4","226","SALDO","AVG_PRICE") -> 0 | J25: =RTD("srv.rtd","","PLAYERSRANKING","PETR4","226","SALDO","AVG_PRICE_2") -> 0
D26: 19 | E26: SOCOPA | F26: =RTD("srv.rtd","","PLAYERSRANKING","PETR4","58","SALDO","QUANTITY") -> 0 | G26: =RTD("srv.rtd","","PLAYERSRANKING","PETR4","58","SALDO","VOLQ") -> 0 | H26: =RTD("srv.rtd","","PLAYERSRANKING","PETR4","58","SALDO","VOLF") -> 0 | I26: =RTD("srv.rtd","","PLAYERSRANKING","PETR4","58","SALDO","AVG_PRICE") -> 0 | J26: =RTD("srv.rtd","","PLAYERSRANKING","PETR4","58","SALDO","AVG_PRICE_2") -> 0
D27: 20 | E27: CORRETORA GERAL | F27: =RTD("srv.rtd","","PLAYERSRANKING","PETR4","186","SALDO","QUANTITY") -> 0 | G27: =RTD("srv.rtd","","PLAYERSRANKING","PETR4","186","SALDO","VOLQ") -> 0 | H27: =RTD("srv.rtd","","PLAYERSRANKING","PETR4","186","SALDO","VOLF") -> 0 | I27: =RTD("srv.rtd","","PLAYERSRANKING","PETR4","186","SALDO","AVG_PRICE") -> 0 | J27: =RTD("srv.rtd","","PLAYERSRANKING","PETR4","186","SALDO","AVG_PRICE_2") -> 0
D28: 21 | E28: MERC. DO BRASIL | F28: =RTD("srv.rtd","","PLAYERSRANKING","PETR4","106","SALDO","QUANTITY") -> 1 | G28: =RTD("srv.rtd","","PLAYERSRANKING","PETR4","106","SALDO","VOLQ") -> 900 | H28: =RTD("srv.rtd","","PLAYERSRANKING","PETR4","106","SALDO","VOLF") -> 29880 | I28: =RTD("srv.rtd","","PLAYERSRANKING","PETR4","106","SALDO","AVG_PRICE") -> 33.2 | J28: =RTD("srv.rtd","","PLAYERSRANKING","PETR4","106","SALDO","AVG_PRICE_2") -> 33.2
D29: 22 | E29: ALFA | F29: =RTD("srv.rtd","","PLAYERSRANKING","PETR4","4","SALDO","QUANTITY") -> -3 | G29: =RTD("srv.rtd","","PLAYERSRANKING","PETR4","4","SALDO","VOLQ") -> -1900 | H29: =RTD("srv.rtd","","PLAYERSRANKING","PETR4","4","SALDO","VOLF") -> -63242 | I29: =RTD("srv.rtd","","PLAYERSRANKING","PETR4","4","SALDO","AVG_PRICE") -> 32.79896907 | J29: =RTD("srv.rtd","","PLAYERSRANKING","PETR4","4","SALDO","AVG_PRICE_2") -> 33.28526316
D30: 23 | E30: COMMCOR | F30: =RTD("srv.rtd","","PLAYERSRANKING","PETR4","115","SALDO","QUANTITY") -> -185 | G30: =RTD("srv.rtd","","PLAYERSRANKING","PETR4","115","SALDO","VOLQ") -> -299600 | H30: =RTD("srv.rtd","","PLAYERSRANKING","PETR4","115","SALDO","VOLF") -> -9850977 | I30: =RTD("srv.rtd","","PLAYERSRANKING","PETR4","115","SALDO","AVG_PRICE") -> 32.88032269 | J30: =RTD("srv.rtd","","PLAYERSRANKING","PETR4","115","SALDO","AVG_PRICE_2") -> 32.88043057
D31: 24 | E31: VITREO | F31: =RTD("srv.rtd","","PLAYERSRANKING","PETR4","1855","SALDO","QUANTITY") -> 32 | G31: =RTD("srv.rtd","","PLAYERSRANKING","PETR4","1855","SALDO","VOLQ") -> 20200 | H31: =RTD("srv.rtd","","PLAYERSRANKING","PETR4","1855","SALDO","VOLF") -> 661252 | I31: =RTD("srv.rtd","","PLAYERSRANKING","PETR4","1855","SALDO","AVG_PRICE") -> 32.84537445 | J31: =RTD("srv.rtd","","PLAYERSRANKING","PETR4","1855","SALDO","AVG_PRICE_2") -> 32.73524752
D32: 25 | E32: WARREN | F32: =RTD("srv.rtd","","PLAYERSRANKING","PETR4","190","SALDO","QUANTITY") -> 1 | G32: =RTD("srv.rtd","","PLAYERSRANKING","PETR4","190","SALDO","VOLQ") -> 100 | H32: =RTD("srv.rtd","","PLAYERSRANKING","PETR4","190","SALDO","VOLF") -> 3285 | I32: =RTD("srv.rtd","","PLAYERSRANKING","PETR4","190","SALDO","AVG_PRICE") -> 32.85 | J32: =RTD("srv.rtd","","PLAYERSRANKING","PETR4","190","SALDO","AVG_PRICE_2") -> 32.85
D33: 26 | E33: EASYNVEST | F33: =RTD("srv.rtd","","PLAYERSRANKING","PETR4","90","SALDO","QUANTITY") -> -13 | G33: =RTD("srv.rtd","","PLAYERSRANKING","PETR4","90","SALDO","VOLQ") -> -18000 | H33: =RTD("srv.rtd","","PLAYERSRANKING","PETR4","90","SALDO","VOLF") -> -605004 | I33: =RTD("srv.rtd","","PLAYERSRANKING","PETR4","90","SALDO","AVG_PRICE") -> 32.89311682 | J33: =RTD("srv.rtd","","PLAYERSRANKING","PETR4","90","SALDO","AVG_PRICE_2") -> 33.61133333
D34: 27 | E34: SCOTIABANK | F34: =RTD("srv.rtd","","PLAYERSRANKING","PETR4","7078","SALDO","QUANTITY") -> 0 | G34: =RTD("srv.rtd","","PLAYERSRANKING","PETR4","7078","SALDO","VOLQ") -> 0 | H34: =RTD("srv.rtd","","PLAYERSRANKING","PETR4","7078","SALDO","VOLF") -> 0 | I34: =RTD("srv.rtd","","PLAYERSRANKING","PETR4","7078","SALDO","AVG_PRICE") -> 0 | J34: =RTD("srv.rtd","","PLAYERSRANKING","PETR4","7078","SALDO","AVG_PRICE_2") -> 0
D35: 28 | E35: TORO | F35: =RTD("srv.rtd","","PLAYERSRANKING","PETR4","4090","SALDO","QUANTITY") -> -96 | G35: =RTD("srv.rtd","","PLAYERSRANKING","PETR4","4090","SALDO","VOLQ") -> -5800 | H35: =RTD("srv.rtd","","PLAYERSRANKING","PETR4","4090","SALDO","VOLF") -> -222621 | I35: =RTD("srv.rtd","","PLAYERSRANKING","PETR4","4090","SALDO","AVG_PRICE") -> 32.84295541 | J35: =RTD("srv.rtd","","PLAYERSRANKING","PETR4","4090","SALDO","AVG_PRICE_2") -> 38.38293103
D36: 29 | E36: MORGAN STANLEY | F36: =RTD("srv.rtd","","PLAYERSRANKING","PETR4","40","SALDO","QUANTITY") -> 3256 | G36: =RTD("srv.rtd","","PLAYERSRANKING","PETR4","40","SALDO","VOLQ") -> 1204200 | H36: =RTD("srv.rtd","","PLAYERSRANKING","PETR4","40","SALDO","VOLF") -> 39692215 | I36: =RTD("srv.rtd","","PLAYERSRANKING","PETR4","40","SALDO","AVG_PRICE") -> 32.86582039 | J36: =RTD("srv.rtd","","PLAYERSRANKING","PETR4","40","SALDO","AVG_PRICE_2") -> 32.96148065
D37: 30 | E37: BANRISUL | F37: =RTD("srv.rtd","","PLAYERSRANKING","PETR4","172","SALDO","QUANTITY") -> 28 | G37: =RTD("srv.rtd","","PLAYERSRANKING","PETR4","172","SALDO","VOLQ") -> 8900 | H37: =RTD("srv.rtd","","PLAYERSRANKING","PETR4","172","SALDO","VOLF") -> 291293 | I37: =RTD("srv.rtd","","PLAYERSRANKING","PETR4","172","SALDO","AVG_PRICE") -> 32.92371429 | J37: =RTD("srv.rtd","","PLAYERSRANKING","PETR4","172","SALDO","AVG_PRICE_2") -> 32.72955056
D38: 31 | E38: AGORA | F38: =RTD("srv.rtd","","PLAYERSRANKING","PETR4","39","SALDO","QUANTITY") -> 471 | G38: =RTD("srv.rtd","","PLAYERSRANKING","PETR4","39","SALDO","VOLQ") -> 414400 | H38: =RTD("srv.rtd","","PLAYERSRANKING","PETR4","39","SALDO","VOLF") -> 13438374 | I38: =RTD("srv.rtd","","PLAYERSRANKING","PETR4","39","SALDO","AVG_PRICE") -> 32.92980115 | J38: =RTD("srv.rtd","","PLAYERSRANKING","PETR4","39","SALDO","AVG_PRICE_2") -> 32.42850869
D39: 32 | E39: MIRAE | F39: =RTD("srv.rtd","","PLAYERSRANKING","PETR4","262","SALDO","QUANTITY") -> -38 | G39: =RTD("srv.rtd","","PLAYERSRANKING","PETR4","262","SALDO","VOLQ") -> 61300 | H39: =RTD("srv.rtd","","PLAYERSRANKING","PETR4","262","SALDO","VOLF") -> 2013588 | I39: =RTD("srv.rtd","","PLAYERSRANKING","PETR4","262","SALDO","AVG_PRICE") -> 32.91972003 | J39: =RTD("srv.rtd","","PLAYERSRANKING","PETR4","262","SALDO","AVG_PRICE_2") -> 32.84809135
D40: 33 | E40: ORAMA | F40: =RTD("srv.rtd","","PLAYERSRANKING","PETR4","3701","SALDO","QUANTITY") -> 100 | G40: =RTD("srv.rtd","","PLAYERSRANKING","PETR4","3701","SALDO","VOLQ") -> 18700 | H40: =RTD("srv.rtd","","PLAYERSRANKING","PETR4","3701","SALDO","VOLF") -> 613563 | I40: =RTD("srv.rtd","","PLAYERSRANKING","PETR4","3701","SALDO","AVG_PRICE") -> 33.06798299 | J40: =RTD("srv.rtd","","PLAYERSRANKING","PETR4","3701","SALDO","AVG_PRICE_2") -> 32.81085561
D41: 34 | E41: CLEAR | F41: =RTD("srv.rtd","","PLAYERSRANKING","PETR4","308","SALDO","QUANTITY") -> 102 | G41: =RTD("srv.rtd","","PLAYERSRANKING","PETR4","308","SALDO","VOLQ") -> 65200 | H41: =RTD("srv.rtd","","PLAYERSRANKING","PETR4","308","SALDO","VOLF") -> 2114465 | I41: =RTD("srv.rtd","","PLAYERSRANKING","PETR4","308","SALDO","AVG_PRICE") -> 32.9036493 | J41: =RTD("srv.rtd","","PLAYERSRANKING","PETR4","308","SALDO","AVG_PRICE_2") -> 32.43044479
D42: 35 | E42: CM CAPITAL | F42: =RTD("srv.rtd","","PLAYERSRANKING","PETR4","88","SALDO","QUANTITY") -> -55 | G42: =RTD("srv.rtd","","PLAYERSRANKING","PETR4","88","SALDO","VOLQ") -> -41900 | H42: =RTD("srv.rtd","","PLAYERSRANKING","PETR4","88","SALDO","VOLF") -> -1385658 | I42: =RTD("srv.rtd","","PLAYERSRANKING","PETR4","88","SALDO","AVG_PRICE") -> 33.02711864 | J42: =RTD("srv.rtd","","PLAYERSRANKING","PETR4","88","SALDO","AVG_PRICE_2") -> 33.07059666
D43: 36 | E43: SANTANDER | F43: =RTD("srv.rtd","","PLAYERSRANKING","PETR4","27","SALDO","QUANTITY") -> 1842 | G43: =RTD("srv.rtd","","PLAYERSRANKING","PETR4","27","SALDO","VOLQ") -> 690200 | H43: =RTD("srv.rtd","","PLAYERSRANKING","PETR4","27","SALDO","VOLF") -> 22694794 | I43: =RTD("srv.rtd","","PLAYERSRANKING","PETR4","27","SALDO","AVG_PRICE") -> 32.88580631 | J43: =RTD("srv.rtd","","PLAYERSRANKING","PETR4","27","SALDO","AVG_PRICE_2") -> 32.88147493
D44: 37 | E44: NECTON | F44: =RTD("srv.rtd","","PLAYERSRANKING","PETR4","23","SALDO","QUANTITY") -> -179 | G44: =RTD("srv.rtd","","PLAYERSRANKING","PETR4","23","SALDO","VOLQ") -> -15800 | H44: =RTD("srv.rtd","","PLAYERSRANKING","PETR4","23","SALDO","VOLF") -> -516574 | I44: =RTD("srv.rtd","","PLAYERSRANKING","PETR4","23","SALDO","AVG_PRICE") -> 32.84495868 | J44: =RTD("srv.rtd","","PLAYERSRANKING","PETR4","23","SALDO","AVG_PRICE_2") -> 32.69455696
D45: 38 | E45: NOVA FUTURA | F45: =RTD("srv.rtd","","PLAYERSRANKING","PETR4","93","SALDO","QUANTITY") -> 5 | G45: =RTD("srv.rtd","","PLAYERSRANKING","PETR4","93","SALDO","VOLQ") -> 91500 | H45: =RTD("srv.rtd","","PLAYERSRANKING","PETR4","93","SALDO","VOLF") -> 3007381 | I45: =RTD("srv.rtd","","PLAYERSRANKING","PETR4","93","SALDO","AVG_PRICE") -> 32.87036574 | J45: =RTD("srv.rtd","","PLAYERSRANKING","PETR4","93","SALDO","AVG_PRICE_2") -> 32.86755191
D46: 39 | E46: IDEAL | F46: =RTD("srv.rtd","","PLAYERSRANKING","PETR4","1618","SALDO","QUANTITY") -> 211 | G46: =RTD("srv.rtd","","PLAYERSRANKING","PETR4","1618","SALDO","VOLQ") -> 617100 | H46: =RTD("srv.rtd","","PLAYERSRANKING","PETR4","1618","SALDO","VOLF") -> 20353244 | I46: =RTD("srv.rtd","","PLAYERSRANKING","PETR4","1618","SALDO","AVG_PRICE") -> 32.86813601 | J46: =RTD("srv.rtd","","PLAYERSRANKING","PETR4","1618","SALDO","AVG_PRICE_2") -> 32.98208394
D47: 40 | E47: GUIDE | F47: =RTD("srv.rtd","","PLAYERSRANKING","PETR4","15","SALDO","QUANTITY") -> -28 | G47: =RTD("srv.rtd","","PLAYERSRANKING","PETR4","15","SALDO","VOLQ") -> 87400 | H47: =RTD("srv.rtd","","PLAYERSRANKING","PETR4","15","SALDO","VOLF") -> 2845168 | I47: =RTD("srv.rtd","","PLAYERSRANKING","PETR4","15","SALDO","AVG_PRICE") -> 32.85806924 | J47: =RTD("srv.rtd","","PLAYERSRANKING","PETR4","15","SALDO","AVG_PRICE_2") -> 32.55340961
D48: 41 | E48: MODAL | F48: =RTD("srv.rtd","","PLAYERSRANKING","PETR4","1982","SALDO","QUANTITY") -> -2535 | G48: =RTD("srv.rtd","","PLAYERSRANKING","PETR4","1982","SALDO","VOLQ") -> -2249600 | H48: =RTD("srv.rtd","","PLAYERSRANKING","PETR4","1982","SALDO","VOLF") -> -73977128 | I48: =RTD("srv.rtd","","PLAYERSRANKING","PETR4","1982","SALDO","AVG_PRICE") -> 32.90221578 | J48: =RTD("srv.rtd","","PLAYERSRANKING","PETR4","1982","SALDO","AVG_PRICE_2") -> 32.8845697 | M48: POSI | N48: CORRETORA | O48: QTD | P48: VOL(Q) | Q48: VOL($) | R48: PT.MED(T) | S48: PR.MED(Saldo)
D49: 42 | E49: GOLDMAN SACHS | F49: =RTD("srv.rtd","","PLAYERSRANKING","PETR4","238","SALDO","QUANTITY") -> -8 | G49: =RTD("srv.rtd","","PLAYERSRANKING","PETR4","238","SALDO","VOLQ") -> 1800 | H49: =RTD("srv.rtd","","PLAYERSRANKING","PETR4","238","SALDO","VOLF") -> 113366 | I49: =RTD("srv.rtd","","PLAYERSRANKING","PETR4","238","SALDO","AVG_PRICE") -> 32.81090207 | J49: =RTD("srv.rtd","","PLAYERSRANKING","PETR4","238","SALDO","AVG_PRICE_2") -> 62.98111111 | M49: 42 | N49: GOLDMAN SACHS | O49: =RTD("srv.rtd","","PLAYERSRANKING","PETR4","238","SALDO","QUANTITY") -> -8 | P49: =RTD("srv.rtd","","PLAYERSRANKING","PETR4","238","SALDO","VOLQ") -> 1800 | Q49: =RTD("srv.rtd","","PLAYERSRANKING","PETR4","238","SALDO","VOLF") -> 113366 | R49: =RTD("srv.rtd","","PLAYERSRANKING","PETR4","238","SALDO","AVG_PRICE") -> 32.81090207 | S49: =RTD("srv.rtd","","PLAYERSRANKING","PETR4","238","SALDO","AVG_PRICE_2") -> 62.98111111
D50: 43 | E50: ATIVA | F50: =RTD("srv.rtd","","PLAYERSRANKING","PETR4","147","SALDO","QUANTITY") -> -87 | G50: =RTD("srv.rtd","","PLAYERSRANKING","PETR4","147","SALDO","VOLQ") -> -67800 | H50: =RTD("srv.rtd","","PLAYERSRANKING","PETR4","147","SALDO","VOLF") -> -2221830 | I50: =RTD("srv.rtd","","PLAYERSRANKING","PETR4","147","SALDO","AVG_PRICE") -> 32.82370994 | J50: =RTD("srv.rtd","","PLAYERSRANKING","PETR4","147","SALDO","AVG_PRICE_2") -> 32.77035398 | N50: JP MORGAN | O50: =RTD("srv.rtd","","PLAYERSRANKING","PETR4","16","SALDO","QUANTITY") -> -911 | P50: =RTD("srv.rtd","","PLAYERSRANKING","PETR4","16","SALDO","VOLQ") -> -1102100 | Q50: =RTD("srv.rtd","","PLAYERSRANKING","PETR4","16","SALDO","VOLF") -> -35926121 | R50: =RTD("srv.rtd","","PLAYERSRANKING","PETR4","16","SALDO","AVG_PRICE") -> 32.80135198 | S50: =RTD("srv.rtd","","PLAYERSRANKING","PETR4","16","SALDO","AVG_PRICE_2") -> 32.59787769
D51: 44 | E51: CITIGROUP | F51: =RTD("srv.rtd","","PLAYERSRANKING","PETR4","77","SALDO","QUANTITY") -> 2081 | G51: =RTD("srv.rtd","","PLAYERSRANKING","PETR4","77","SALDO","VOLQ") -> 655600 | H51: =RTD("srv.rtd","","PLAYERSRANKING","PETR4","77","SALDO","VOLF") -> 21508574 | I51: =RTD("srv.rtd","","PLAYERSRANKING","PETR4","77","SALDO","AVG_PRICE") -> 32.80005004 | J51: =RTD("srv.rtd","","PLAYERSRANKING","PETR4","77","SALDO","AVG_PRICE_2") -> 32.80746492 | N51: TULLETT | O51: =RTD("srv.rtd","","PLAYERSRANKING","PETR4","127","SALDO","QUANTITY") -> -638 | P51: =RTD("srv.rtd","","PLAYERSRANKING","PETR4","127","SALDO","VOLQ") -> 237100 | Q51: =RTD("srv.rtd","","PLAYERSRANKING","PETR4","127","SALDO","VOLF") -> 7974357 | R51: =RTD("srv.rtd","","PLAYERSRANKING","PETR4","127","SALDO","AVG_PRICE") -> 33.07606067 | S51: =RTD("srv.rtd","","PLAYERSRANKING","PETR4","127","SALDO","AVG_PRICE_2") -> 33.63288486
D52: 45 | E52: JP MORGAN | F52: =RTD("srv.rtd","","PLAYERSRANKING","PETR4","16","SALDO","QUANTITY") -> -911 | G52: =RTD("srv.rtd","","PLAYERSRANKING","PETR4","16","SALDO","VOLQ") -> -1102100 | H52: =RTD("srv.rtd","","PLAYERSRANKING","PETR4","16","SALDO","VOLF") -> -35926121 | I52: =RTD("srv.rtd","","PLAYERSRANKING","PETR4","16","SALDO","AVG_PRICE") -> 32.80135198 | J52: =RTD("srv.rtd","","PLAYERSRANKING","PETR4","16","SALDO","AVG_PRICE_2") -> 32.59787769 | N52: MORGAN STANLEY | O52: =RTD("srv.rtd","","PLAYERSRANKING","PETR4","40","SALDO","QUANTITY") -> 3256 | P52: =RTD("srv.rtd","","PLAYERSRANKING","PETR4","40","SALDO","VOLQ") -> 1204200 | Q52: =RTD("srv.rtd","","PLAYERSRANKING","PETR4","40","SALDO","VOLF") -> 39692215 | R52: =RTD("srv.rtd","","PLAYERSRANKING","PETR4","40","SALDO","AVG_PRICE") -> 32.86582039 | S52: =RTD("srv.rtd","","PLAYERSRANKING","PETR4","40","SALDO","AVG_PRICE_2") -> 32.96148065
D53: 46 | E53: TULLETT | F53: =RTD("srv.rtd","","PLAYERSRANKING","PETR4","127","SALDO","QUANTITY") -> -638 | G53: =RTD("srv.rtd","","PLAYERSRANKING","PETR4","127","SALDO","VOLQ") -> 237100 | H53: =RTD("srv.rtd","","PLAYERSRANKING","PETR4","127","SALDO","VOLF") -> 7974357 | I53: =RTD("srv.rtd","","PLAYERSRANKING","PETR4","127","SALDO","AVG_PRICE") -> 33.07606067 | J53: =RTD("srv.rtd","","PLAYERSRANKING","PETR4","127","SALDO","AVG_PRICE_2") -> 33.63288486 | N53: MERRILL LYNCH | O53: =RTD("srv.rtd","","PLAYERSRANKING","PETR4","13","SALDO","QUANTITY") -> -557 | P53: =RTD("srv.rtd","","PLAYERSRANKING","PETR4","13","SALDO","VOLQ") -> -1335900 | Q53: =RTD("srv.rtd","","PLAYERSRANKING","PETR4","13","SALDO","VOLF") -> -43828336 | R53: =RTD("srv.rtd","","PLAYERSRANKING","PETR4","13","SALDO","AVG_PRICE") -> 32.78854853 | S53: =RTD("srv.rtd","","PLAYERSRANKING","PETR4","13","SALDO","AVG_PRICE_2") -> 32.80809641
D54: 47 | E54: XP | F54: =RTD("srv.rtd","","PLAYERSRANKING","PETR4","3","SALDO","QUANTITY") -> -1671 | G54: =RTD("srv.rtd","","PLAYERSRANKING","PETR4","3","SALDO","VOLQ") -> -49200 | H54: =RTD("srv.rtd","","PLAYERSRANKING","PETR4","3","SALDO","VOLF") -> -1665154 | I54: =RTD("srv.rtd","","PLAYERSRANKING","PETR4","3","SALDO","AVG_PRICE") -> 32.89683056 | J54: =RTD("srv.rtd","","PLAYERSRANKING","PETR4","3","SALDO","AVG_PRICE_2") -> 33.8445935 | N54: UBS | O54: =RTD("srv.rtd","","PLAYERSRANKING","PETR4","8","SALDO","QUANTITY") -> 1441 | P54: =RTD("srv.rtd","","PLAYERSRANKING","PETR4","8","SALDO","VOLQ") -> 1976300 | Q54: =RTD("srv.rtd","","PLAYERSRANKING","PETR4","8","SALDO","VOLF") -> 65141219 | R54: =RTD("srv.rtd","","PLAYERSRANKING","PETR4","8","SALDO","AVG_PRICE") -> 32.91357986 | S54: =RTD("srv.rtd","","PLAYERSRANKING","PETR4","8","SALDO","AVG_PRICE_2") -> 32.96119972
N55: IDEAL | O55: =RTD("srv.rtd","","PLAYERSRANKING","PETR4","1618","SALDO","QUANTITY") -> 211 | P55: =RTD("srv.rtd","","PLAYERSRANKING","PETR4","1618","SALDO","VOLQ") -> 617100 | Q55: =RTD("srv.rtd","","PLAYERSRANKING","PETR4","1618","SALDO","VOLF") -> 20353244 | R55: =RTD("srv.rtd","","PLAYERSRANKING","PETR4","1618","SALDO","AVG_PRICE") -> 32.86813601 | S55: =RTD("srv.rtd","","PLAYERSRANKING","PETR4","1618","SALDO","AVG_PRICE_2") -> 32.98208394
P58: =SUM(Q49:Q55) -> 53519944 | Q58: =SUM(O49:O55) -> 2794
P61: =SUM(P49:P55) -> 1598500
G63: VALE3
D65: 1 | E65: NECTON | F65: =RTD("srv.rtd","","PLAYERSRANKING","VALE3","23","SALDO","QUANTITY") -> 12 | G65: =RTD("srv.rtd","","PLAYERSRANKING","VALE3","23","SALDO","VOLQ") -> 19800 | H65: =RTD("srv.rtd","","PLAYERSRANKING","VALE3","23","SALDO","VOLF") -> 1371986 | I65: =RTD("srv.rtd","","PLAYERSRANKING","VALE3","23","SALDO","AVG_PRICE") -> 69.2951 | J65: =RTD("srv.rtd","","PLAYERSRANKING","VALE3","23","SALDO","AVG_PRICE_2") -> 69.29222222
D66: 2 | E66: JP MORGAN | F66: =RTD("srv.rtd","","PLAYERSRANKING","VALE3","16","SALDO","QUANTITY") -> -1136 | G66: =RTD("srv.rtd","","PLAYERSRANKING","VALE3","16","SALDO","VOLQ") -> -538400 | H66: =RTD("srv.rtd","","PLAYERSRANKING","VALE3","16","SALDO","VOLF") -> -37820678 | I66: =RTD("srv.rtd","","PLAYERSRANKING","VALE3","16","SALDO","AVG_PRICE") -> 70.16941805 | J66: =RTD("srv.rtd","","PLAYERSRANKING","VALE3","16","SALDO","AVG_PRICE_2") -> 70.24643016 | M66: POSI | N66: CORRETORA | O66: QTD | P66: VOL(Q) | Q66: VOL($) | R66: PT.MED(T) | S66: PR.MED(Saldo)
D67: 3 | E67: GUIDE | F67: =RTD("srv.rtd","","PLAYERSRANKING","VALE3","15","SALDO","QUANTITY") -> -513 | G67: =RTD("srv.rtd","","PLAYERSRANKING","VALE3","15","SALDO","VOLQ") -> -282100 | H67: =RTD("srv.rtd","","PLAYERSRANKING","VALE3","15","SALDO","VOLF") -> -20036279 | I67: =RTD("srv.rtd","","PLAYERSRANKING","VALE3","15","SALDO","AVG_PRICE") -> 70.49917336 | J67: =RTD("srv.rtd","","PLAYERSRANKING","VALE3","15","SALDO","AVG_PRICE_2") -> 71.02544842 | N67: MERRILL LYNCH | O67: =RTD("srv.rtd","","PLAYERSRANKING","VALE3","13","SALDO","QUANTITY") -> -398 | P67: =RTD("srv.rtd","","PLAYERSRANKING","VALE3","13","SALDO","VOLQ") -> -141100 | Q67: =RTD("srv.rtd","","PLAYERSRANKING","VALE3","13","SALDO","VOLF") -> -9382306 | R67: =RTD("srv.rtd","","PLAYERSRANKING","VALE3","13","SALDO","AVG_PRICE") -> 70.06790931 | S67: =RTD("srv.rtd","","PLAYERSRANKING","VALE3","13","SALDO","AVG_PRICE_2") -> 66.49401843
D68: 4 | E68: UBS | F68: =RTD("srv.rtd","","PLAYERSRANKING","VALE3","8","SALDO","QUANTITY") -> 261 | G68: =RTD("srv.rtd","","PLAYERSRANKING","VALE3","8","SALDO","VOLQ") -> -268500 | H68: =RTD("srv.rtd","","PLAYERSRANKING","VALE3","8","SALDO","VOLF") -> -18353085 | I68: =RTD("srv.rtd","","PLAYERSRANKING","VALE3","8","SALDO","AVG_PRICE") -> 70.14600442 | J68: =RTD("srv.rtd","","PLAYERSRANKING","VALE3","8","SALDO","AVG_PRICE_2") -> 68.35413408 | N68: JP MORGAN | O68: =RTD("srv.rtd","","PLAYERSRANKING","VALE3","16","SALDO","QUANTITY") -> -1136 | P68: =RTD("srv.rtd","","PLAYERSRANKING","VALE3","16","SALDO","VOLQ") -> -538400 | Q68: =RTD("srv.rtd","","PLAYERSRANKING","VALE3","16","SALDO","VOLF") -> -37820678 | R68: =RTD("srv.rtd","","PLAYERSRANKING","VALE3","16","SALDO","AVG_PRICE") -> 70.16941805 | S68: =RTD("srv.rtd","","PLAYERSRANKING","VALE3","16","SALDO","AVG_PRICE_2") -> 70.24643016
D69: 5 | E69: BGC | F69: =RTD("srv.rtd","","PLAYERSRANKING","VALE3","122","SALDO","QUANTITY") -> -340 | G69: =RTD("srv.rtd","","PLAYERSRANKING","VALE3","122","SALDO","VOLQ") -> -53300 | H69: =RTD("srv.rtd","","PLAYERSRANKING","VALE3","122","SALDO","VOLF") -> -3782752 | I69: =RTD("srv.rtd","","PLAYERSRANKING","VALE3","122","SALDO","AVG_PRICE") -> 69.5648114 | J69: =RTD("srv.rtd","","PLAYERSRANKING","VALE3","122","SALDO","AVG_PRICE_2") -> 70.97095685 | N69: UBS | O69: =RTD("srv.rtd","","PLAYERSRANKING","VALE3","8","SALDO","QUANTITY") -> 261 | P69: =RTD("srv.rtd","","PLAYERSRANKING","VALE3","8","SALDO","VOLQ") -> -268500 | Q69: =RTD("srv.rtd","","PLAYERSRANKING","VALE3","8","SALDO","VOLF") -> -18353085 | R69: =RTD("srv.rtd","","PLAYERSRANKING","VALE3","8","SALDO","AVG_PRICE") -> 70.14600442 | S69: =RTD("srv.rtd","","PLAYERSRANKING","VALE3","8","SALDO","AVG_PRICE_2") -> 68.35413408
D70: 6 | E70: CREDIT SUISSE | F70: =RTD("srv.rtd","","PLAYERSRANKING","VALE3","45","SALDO","QUANTITY") -> -410 | G70: =RTD("srv.rtd","","PLAYERSRANKING","VALE3","45","SALDO","VOLQ") -> -202100 | H70: =RTD("srv.rtd","","PLAYERSRANKING","VALE3","45","SALDO","VOLF") -> -14316586 | I70: =RTD("srv.rtd","","PLAYERSRANKING","VALE3","45","SALDO","AVG_PRICE") -> 70.34786086 | J70: =RTD("srv.rtd","","PLAYERSRANKING","VALE3","45","SALDO","AVG_PRICE_2") -> 70.83911925 | N70: IDEAL | O70: =RTD("srv.rtd","","PLAYERSRANKING","VALE3","1618","SALDO","QUANTITY") -> -1203 | P70: =RTD("srv.rtd","","PLAYERSRANKING","VALE3","1618","SALDO","VOLQ") -> -837700 | Q70: =RTD("srv.rtd","","PLAYERSRANKING","VALE3","1618","SALDO","VOLF") -> -58995770 | R70: =RTD("srv.rtd","","PLAYERSRANKING","VALE3","1618","SALDO","AVG_PRICE") -> 70.15295841 | S70: =RTD("srv.rtd","","PLAYERSRANKING","VALE3","1618","SALDO","AVG_PRICE_2") -> 70.42589232
D71: 7 | E71: XP | F71: =RTD("srv.rtd","","PLAYERSRANKING","VALE3","3","SALDO","QUANTITY") -> 82 | G71: =RTD("srv.rtd","","PLAYERSRANKING","VALE3","3","SALDO","VOLQ") -> 364900 | H71: =RTD("srv.rtd","","PLAYERSRANKING","VALE3","3","SALDO","VOLF") -> 25385786 | I71: =RTD("srv.rtd","","PLAYERSRANKING","VALE3","3","SALDO","AVG_PRICE") -> 70.03683903 | J71: =RTD("srv.rtd","","PLAYERSRANKING","VALE3","3","SALDO","AVG_PRICE_2") -> 69.56915867 | N71: TULLETT | O71: =RTD("srv.rtd","","PLAYERSRANKING","VALE3","127","SALDO","QUANTITY") -> 1657 | P71: =RTD("srv.rtd","","PLAYERSRANKING","VALE3","127","SALDO","VOLQ") -> 1086800 | Q71: =RTD("srv.rtd","","PLAYERSRANKING","VALE3","127","SALDO","VOLF") -> 76640794 | R71: =RTD("srv.rtd","","PLAYERSRANKING","VALE3","127","SALDO","AVG_PRICE") -> 70.54841959 | S71: =RTD("srv.rtd","","PLAYERSRANKING","VALE3","127","SALDO","AVG_PRICE_2") -> 70.51968531
D72: 8 | E72: CITIGROUP | F72: =RTD("srv.rtd","","PLAYERSRANKING","VALE3","77","SALDO","QUANTITY") -> 118 | G72: =RTD("srv.rtd","","PLAYERSRANKING","VALE3","77","SALDO","VOLQ") -> 123100 | H72: =RTD("srv.rtd","","PLAYERSRANKING","VALE3","77","SALDO","VOLF") -> 8737092 | I72: =RTD("srv.rtd","","PLAYERSRANKING","VALE3","77","SALDO","AVG_PRICE") -> 70.82394976 | J72: =RTD("srv.rtd","","PLAYERSRANKING","VALE3","77","SALDO","AVG_PRICE_2") -> 70.97556458 | N72: GOLDMAN SACHS | O72: =RTD("srv.rtd","","PLAYERSRANKING","VALE3","238","SALDO","QUANTITY") -> 713 | P72: =RTD("srv.rtd","","PLAYERSRANKING","VALE3","238","SALDO","VOLQ") -> 196100 | Q72: =RTD("srv.rtd","","PLAYERSRANKING","VALE3","238","SALDO","VOLF") -> 13697335 | R72: =RTD("srv.rtd","","PLAYERSRANKING","VALE3","238","SALDO","AVG_PRICE") -> 69.92300899 | S72: =RTD("srv.rtd","","PLAYERSRANKING","VALE3","238","SALDO","AVG_PRICE_2") -> 69.84872514
D73: 9 | E73: ATIVA | F73: =RTD("srv.rtd","","PLAYERSRANKING","VALE3","147","SALDO","QUANTITY") -> 206 | G73: =RTD("srv.rtd","","PLAYERSRANKING","VALE3","147","SALDO","VOLQ") -> 142600 | H73: =RTD("srv.rtd","","PLAYERSRANKING","VALE3","147","SALDO","VOLF") -> 10128254 | I73: =RTD("srv.rtd","","PLAYERSRANKING","VALE3","147","SALDO","AVG_PRICE") -> 70.7280449 | J73: =RTD("srv.rtd","","PLAYERSRANKING","VALE3","147","SALDO","AVG_PRICE_2") -> 71.02562412 | N73: MORGAN STANLEY | O73: =RTD("srv.rtd","","PLAYERSRANKING","VALE3","40","SALDO","QUANTITY") -> -2125 | P73: =RTD("srv.rtd","","PLAYERSRANKING","VALE3","40","SALDO","VOLQ") -> -724600 | Q73: =RTD("srv.rtd","","PLAYERSRANKING","VALE3","40","SALDO","VOLF") -> -50815042 | R73: =RTD("srv.rtd","","PLAYERSRANKING","VALE3","40","SALDO","AVG_PRICE") -> 70.02321001 | S73: =RTD("srv.rtd","","PLAYERSRANKING","VALE3","40","SALDO","AVG_PRICE_2") -> 70.12840464
D74: 10 | E74: IDEAL | F74: =RTD("srv.rtd","","PLAYERSRANKING","VALE3","1618","SALDO","QUANTITY") -> -1203 | G74: =RTD("srv.rtd","","PLAYERSRANKING","VALE3","1618","SALDO","VOLQ") -> -837700 | H74: =RTD("srv.rtd","","PLAYERSRANKING","VALE3","1618","SALDO","VOLF") -> -58995770 | I74: =RTD("srv.rtd","","PLAYERSRANKING","VALE3","1618","SALDO","AVG_PRICE") -> 70.15295841 | J74: =RTD("srv.rtd","","PLAYERSRANKING","VALE3","1618","SALDO","AVG_PRICE_2") -> 70.42589232
D75: 11 | E75: AGORA | F75: =RTD("srv.rtd","","PLAYERSRANKING","VALE3","39","SALDO","QUANTITY") -> 25 | G75: =RTD("srv.rtd","","PLAYERSRANKING","VALE3","39","SALDO","VOLQ") -> -146100 | H75: =RTD("srv.rtd","","PLAYERSRANKING","VALE3","39","SALDO","VOLF") -> -10318734 | I75: =RTD("srv.rtd","","PLAYERSRANKING","VALE3","39","SALDO","AVG_PRICE") -> 70.00861743 | J75: =RTD("srv.rtd","","PLAYERSRANKING","VALE3","39","SALDO","AVG_PRICE_2") -> 70.62788501 | N75: =SUM(O67:O73) -> -2231
D76: 12 | E76: TULLETT | F76: =RTD("srv.rtd","","PLAYERSRANKING","VALE3","127","SALDO","QUANTITY") -> 1657 | G76: =RTD("srv.rtd","","PLAYERSRANKING","VALE3","127","SALDO","VOLQ") -> 1086800 | H76: =RTD("srv.rtd","","PLAYERSRANKING","VALE3","127","SALDO","VOLF") -> 76640794 | I76: =RTD("srv.rtd","","PLAYERSRANKING","VALE3","127","SALDO","AVG_PRICE") -> 70.54841959 | J76: =RTD("srv.rtd","","PLAYERSRANKING","VALE3","127","SALDO","AVG_PRICE_2") -> 70.51968531
D77: 13 | E77: PLANNER | F77: =RTD("srv.rtd","","PLAYERSRANKING","VALE3","129","SALDO","QUANTITY") -> -118 | G77: =RTD("srv.rtd","","PLAYERSRANKING","VALE3","129","SALDO","VOLQ") -> -42200 | H77: =RTD("srv.rtd","","PLAYERSRANKING","VALE3","129","SALDO","VOLF") -> -2976316 | I77: =RTD("srv.rtd","","PLAYERSRANKING","VALE3","129","SALDO","AVG_PRICE") -> 70.53030837 | J77: =RTD("srv.rtd","","PLAYERSRANKING","VALE3","129","SALDO","AVG_PRICE_2") -> 70.52881517 | P77: =SUM(P67:P74) -> -1227400 | Q77: =SUM(Q67:Q74) -> -85028752
D78: 14 | E78: CLEAR | F78: =RTD("srv.rtd","","PLAYERSRANKING","VALE3","308","SALDO","QUANTITY") -> 59 | G78: =RTD("srv.rtd","","PLAYERSRANKING","VALE3","308","SALDO","VOLQ") -> 6900 | H78: =RTD("srv.rtd","","PLAYERSRANKING","VALE3","308","SALDO","VOLF") -> 468887 | I78: =RTD("srv.rtd","","PLAYERSRANKING","VALE3","308","SALDO","AVG_PRICE") -> 70.07371649 | J78: =RTD("srv.rtd","","PLAYERSRANKING","VALE3","308","SALDO","AVG_PRICE_2") -> 67.95463768
D79: 15 | E79: TERRA | F79: =RTD("srv.rtd","","PLAYERSRANKING","VALE3","107","SALDO","QUANTITY") -> -60 | G79: =RTD("srv.rtd","","PLAYERSRANKING","VALE3","107","SALDO","VOLQ") -> -7100 | H79: =RTD("srv.rtd","","PLAYERSRANKING","VALE3","107","SALDO","VOLF") -> -506183 | I79: =RTD("srv.rtd","","PLAYERSRANKING","VALE3","107","SALDO","AVG_PRICE") -> 69.77484349 | J79: =RTD("srv.rtd","","PLAYERSRANKING","VALE3","107","SALDO","AVG_PRICE_2") -> 71.29338028
D80: 16 | E80: INTER | F80: =RTD("srv.rtd","","PLAYERSRANKING","VALE3","1099","SALDO","QUANTITY") -> 63 | G80: =RTD("srv.rtd","","PLAYERSRANKING","VALE3","1099","SALDO","VOLQ") -> 7400 | H80: =RTD("srv.rtd","","PLAYERSRANKING","VALE3","1099","SALDO","VOLF") -> 493726 | I80: =RTD("srv.rtd","","PLAYERSRANKING","VALE3","1099","SALDO","AVG_PRICE") -> 70.17907204 | J80: =RTD("srv.rtd","","PLAYERSRANKING","VALE3","1099","SALDO","AVG_PRICE_2") -> 66.71972973
D81: 17 | E81: EASYNVEST | F81: =RTD("srv.rtd","","PLAYERSRANKING","VALE3","90","SALDO","QUANTITY") -> 16 | G81: =RTD("srv.rtd","","PLAYERSRANKING","VALE3","90","SALDO","VOLQ") -> 16200 | H81: =RTD("srv.rtd","","PLAYERSRANKING","VALE3","90","SALDO","VOLF") -> 1094012 | I81: =RTD("srv.rtd","","PLAYERSRANKING","VALE3","90","SALDO","AVG_PRICE") -> 70.02432383 | J81: =RTD("srv.rtd","","PLAYERSRANKING","VALE3","90","SALDO","AVG_PRICE_2") -> 67.53160494
D82: 18 | E82: MIRAE | F82: =RTD("srv.rtd","","PLAYERSRANKING","VALE3","262","SALDO","QUANTITY") -> -92 | G82: =RTD("srv.rtd","","PLAYERSRANKING","VALE3","262","SALDO","VOLQ") -> -13100 | H82: =RTD("srv.rtd","","PLAYERSRANKING","VALE3","262","SALDO","VOLF") -> -924710 | I82: =RTD("srv.rtd","","PLAYERSRANKING","VALE3","262","SALDO","AVG_PRICE") -> 70.43793103 | J82: =RTD("srv.rtd","","PLAYERSRANKING","VALE3","262","SALDO","AVG_PRICE_2") -> 70.58854962
D83: 19 | E83: FC STONE | F83: =RTD("srv.rtd","","PLAYERSRANKING","VALE3","1130","SALDO","QUANTITY") -> -178 | G83: =RTD("srv.rtd","","PLAYERSRANKING","VALE3","1130","SALDO","VOLQ") -> -90000 | H83: =RTD("srv.rtd","","PLAYERSRANKING","VALE3","1130","SALDO","VOLF") -> -6281252 | I83: =RTD("srv.rtd","","PLAYERSRANKING","VALE3","1130","SALDO","AVG_PRICE") -> 69.80641538 | J83: =RTD("srv.rtd","","PLAYERSRANKING","VALE3","1130","SALDO","AVG_PRICE_2") -> 69.79168889
D84: 20 | E84: VOTORANTIM | F84: =RTD("srv.rtd","","PLAYERSRANKING","VALE3","21","SALDO","QUANTITY") -> -52 | G84: =RTD("srv.rtd","","PLAYERSRANKING","VALE3","21","SALDO","VOLQ") -> -27500 | H84: =RTD("srv.rtd","","PLAYERSRANKING","VALE3","21","SALDO","VOLF") -> -1987405 | I84: =RTD("srv.rtd","","PLAYERSRANKING","VALE3","21","SALDO","AVG_PRICE") -> 70.20433809 | J84: =RTD("srv.rtd","","PLAYERSRANKING","VALE3","21","SALDO","AVG_PRICE_2") -> 72.26927273
D85: 21 | E85: ELITE | F85: =RTD("srv.rtd","","PLAYERSRANKING","VALE3","174","SALDO","QUANTITY") -> 5 | G85: =RTD("srv.rtd","","PLAYERSRANKING","VALE3","174","SALDO","VOLQ") -> -2300 | H85: =RTD("srv.rtd","","PLAYERSRANKING","VALE3","174","SALDO","VOLF") -> -167897 | I85: =RTD("srv.rtd","","PLAYERSRANKING","VALE3","174","SALDO","AVG_PRICE") -> 69.99917127 | J85: =RTD("srv.rtd","","PLAYERSRANKING","VALE3","174","SALDO","AVG_PRICE_2") -> 72.99869565
D86: 22 | E86: GENIAL | F86: =RTD("srv.rtd","","PLAYERSRANKING","VALE3","120","SALDO","QUANTITY") -> 129 | G86: =RTD("srv.rtd","","PLAYERSRANKING","VALE3","120","SALDO","VOLQ") -> -113900 | H86: =RTD("srv.rtd","","PLAYERSRANKING","VALE3","120","SALDO","VOLF") -> -8105568 | I86: =RTD("srv.rtd","","PLAYERSRANKING","VALE3","120","SALDO","AVG_PRICE") -> 70.14683982 | J86: =RTD("srv.rtd","","PLAYERSRANKING","VALE3","120","SALDO","AVG_PRICE_2") -> 71.16389816
D87: 23 | E87: NOVA FUTURA | F87: =RTD("srv.rtd","","PLAYERSRANKING","VALE3","93","SALDO","QUANTITY") -> 46 | G87: =RTD("srv.rtd","","PLAYERSRANKING","VALE3","93","SALDO","VOLQ") -> 115700 | H87: =RTD("srv.rtd","","PLAYERSRANKING","VALE3","93","SALDO","VOLF") -> 8031587 | I87: =RTD("srv.rtd","","PLAYERSRANKING","VALE3","93","SALDO","AVG_PRICE") -> 69.86572244 | J87: =RTD("srv.rtd","","PLAYERSRANKING","VALE3","93","SALDO","AVG_PRICE_2") -> 69.41734659
D88: 24 | E88: COMMCOR | F88: =RTD("srv.rtd","","PLAYERSRANKING","VALE3","115","SALDO","QUANTITY") -> -4 | G88: =RTD("srv.rtd","","PLAYERSRANKING","VALE3","115","SALDO","VOLQ") -> -500 | H88: =RTD("srv.rtd","","PLAYERSRANKING","VALE3","115","SALDO","VOLF") -> -36835 | I88: =RTD("srv.rtd","","PLAYERSRANKING","VALE3","115","SALDO","AVG_PRICE") -> 70.00156627 | J88: =RTD("srv.rtd","","PLAYERSRANKING","VALE3","115","SALDO","AVG_PRICE_2") -> 73.67
D89: 25 | E89: GOLDMAN SACHS | F89: =RTD("srv.rtd","","PLAYERSRANKING","VALE3","238","SALDO","QUANTITY") -> 713 | G89: =RTD("srv.rtd","","PLAYERSRANKING","VALE3","238","SALDO","VOLQ") -> 196100 | H89: =RTD("srv.rtd","","PLAYERSRANKING","VALE3","238","SALDO","VOLF") -> 13697335 | I89: =RTD("srv.rtd","","PLAYERSRANKING","VALE3","238","SALDO","AVG_PRICE") -> 69.92300899 | J89: =RTD("srv.rtd","","PLAYERSRANKING","VALE3","238","SALDO","AVG_PRICE_2") -> 69.84872514
D90: 26 | E90: BANRISUL | F90: =RTD("srv.rtd","","PLAYERSRANKING","VALE3","172","SALDO","QUANTITY") -> 0 | G90: =RTD("srv.rtd","","PLAYERSRANKING","VALE3","172","SALDO","VOLQ") -> 0 | H90: =RTD("srv.rtd","","PLAYERSRANKING","VALE3","172","SALDO","VOLF") -> -1329 | I90: =RTD("srv.rtd","","PLAYERSRANKING","VALE3","172","SALDO","AVG_PRICE") -> 70.019375 | J90: =RTD("srv.rtd","","PLAYERSRANKING","VALE3","172","SALDO","AVG_PRICE_2") -> 82.03
D91: 27 | E91: SENSO | F91: =RTD("srv.rtd","","PLAYERSRANKING","VALE3","191","SALDO","QUANTITY") -> 0 | G91: =RTD("srv.rtd","","PLAYERSRANKING","VALE3","191","SALDO","VOLQ") -> 0 | H91: =RTD("srv.rtd","","PLAYERSRANKING","VALE3","191","SALDO","VOLF") -> 0 | I91: =RTD("srv.rtd","","PLAYERSRANKING","VALE3","191","SALDO","AVG_PRICE") -> 0 | J91: =RTD("srv.rtd","","PLAYERSRANKING","VALE3","191","SALDO","AVG_PRICE_2") -> 0
D92: 28 | E92: ORAMA | F92: =RTD("srv.rtd","","PLAYERSRANKING","VALE3","3701","SALDO","QUANTITY") -> -4 | G92: =RTD("srv.rtd","","PLAYERSRANKING","VALE3","3701","SALDO","VOLQ") -> 4400 | H92: =RTD("srv.rtd","","PLAYERSRANKING","VALE3","3701","SALDO","VOLF") -> 308709 | I92: =RTD("srv.rtd","","PLAYERSRANKING","VALE3","3701","SALDO","AVG_PRICE") -> 70.16554348 | J92: =RTD("srv.rtd","","PLAYERSRANKING","VALE3","3701","SALDO","AVG_PRICE_2") -> 70.16113636
D93: 29 | E93: AMARIL FRANKLIN | F93: =RTD("srv.rtd","","PLAYERSRANKING","VALE3","226","SALDO","QUANTITY") -> 0 | G93: =RTD("srv.rtd","","PLAYERSRANKING","VALE3","226","SALDO","VOLQ") -> 0 | H93: =RTD("srv.rtd","","PLAYERSRANKING","VALE3","226","SALDO","VOLF") -> 0 | I93: =RTD("srv.rtd","","PLAYERSRANKING","VALE3","226","SALDO","AVG_PRICE") -> 0 | J93: =RTD("srv.rtd","","PLAYERSRANKING","VALE3","226","SALDO","AVG_PRICE_2") -> 0
D94: 30 | E94: ICAP | F94: =RTD("srv.rtd","","PLAYERSRANKING","VALE3","735","SALDO","QUANTITY") -> -1 | G94: =RTD("srv.rtd","","PLAYERSRANKING","VALE3","735","SALDO","VOLQ") -> -1700 | H94: =RTD("srv.rtd","","PLAYERSRANKING","VALE3","735","SALDO","VOLF") -> -123905 | I94: =RTD("srv.rtd","","PLAYERSRANKING","VALE3","735","SALDO","AVG_PRICE") -> 70.29134831 | J94: =RTD("srv.rtd","","PLAYERSRANKING","VALE3","735","SALDO","AVG_PRICE_2") -> 72.88529412
D95: 31 | E95: CODEPE | F95: =RTD("srv.rtd","","PLAYERSRANKING","VALE3","234","SALDO","QUANTITY") -> 0 | G95: =RTD("srv.rtd","","PLAYERSRANKING","VALE3","234","SALDO","VOLQ") -> 0 | H95: =RTD("srv.rtd","","PLAYERSRANKING","VALE3","234","SALDO","VOLF") -> 0 | I95: =RTD("srv.rtd","","PLAYERSRANKING","VALE3","234","SALDO","AVG_PRICE") -> 0 | J95: =RTD("srv.rtd","","PLAYERSRANKING","VALE3","234","SALDO","AVG_PRICE_2") -> 0
D96: 32 | E96: SOCOPA | F96: =RTD("srv.rtd","","PLAYERSRANKING","VALE3","58","SALDO","QUANTITY") -> 0 | G96: =RTD("srv.rtd","","PLAYERSRANKING","VALE3","58","SALDO","VOLQ") -> 0 | H96: =RTD("srv.rtd","","PLAYERSRANKING","VALE3","58","SALDO","VOLF") -> 0 | I96: =RTD("srv.rtd","","PLAYERSRANKING","VALE3","58","SALDO","AVG_PRICE") -> 0 | J96: =RTD("srv.rtd","","PLAYERSRANKING","VALE3","58","SALDO","AVG_PRICE_2") -> 0
D97: 33 | E97: CORRETORA GERAL | F97: =RTD("srv.rtd","","PLAYERSRANKING","VALE3","186","SALDO","QUANTITY") -> 0 | G97: =RTD("srv.rtd","","PLAYERSRANKING","VALE3","186","SALDO","VOLQ") -> 0 | H97: =RTD("srv.rtd","","PLAYERSRANKING","VALE3","186","SALDO","VOLF") -> 0 | I97: =RTD("srv.rtd","","PLAYERSRANKING","VALE3","186","SALDO","AVG_PRICE") -> 0 | J97: =RTD("srv.rtd","","PLAYERSRANKING","VALE3","186","SALDO","AVG_PRICE_2") -> 0
D98: 34 | E98: SITA | F98: =RTD("srv.rtd","","PLAYERSRANKING","VALE3","187","SALDO","QUANTITY") -> 11 | G98: =RTD("srv.rtd","","PLAYERSRANKING","VALE3","187","SALDO","VOLQ") -> 13200 | H98: =RTD("srv.rtd","","PLAYERSRANKING","VALE3","187","SALDO","VOLF") -> 920360 | I98: =RTD("srv.rtd","","PLAYERSRANKING","VALE3","187","SALDO","AVG_PRICE") -> 69.72424242 | J98: =RTD("srv.rtd","","PLAYERSRANKING","VALE3","187","SALDO","AVG_PRICE_2") -> 69.72424242
D99: 35 | E99: MERC. DO BRASIL | F99: =RTD("srv.rtd","","PLAYERSRANKING","VALE3","106","SALDO","QUANTITY") -> 1 | G99: =RTD("srv.rtd","","PLAYERSRANKING","VALE3","106","SALDO","VOLQ") -> 500 | H99: =RTD("srv.rtd","","PLAYERSRANKING","VALE3","106","SALDO","VOLF") -> 34850 | I99: =RTD("srv.rtd","","PLAYERSRANKING","VALE3","106","SALDO","AVG_PRICE") -> 69.7 | J99: =RTD("srv.rtd","","PLAYERSRANKING","VALE3","106","SALDO","AVG_PRICE_2") -> 69.7
D100: 36 | E100: MODAL | F100: =RTD("srv.rtd","","PLAYERSRANKING","VALE3","1982","SALDO","QUANTITY") -> -79 | G100: =RTD("srv.rtd","","PLAYERSRANKING","VALE3","1982","SALDO","VOLQ") -> -12700 | H100: =RTD("srv.rtd","","PLAYERSRANKING","VALE3","1982","SALDO","VOLF") -> -905701 | I100: =RTD("srv.rtd","","PLAYERSRANKING","VALE3","1982","SALDO","AVG_PRICE") -> 70.14595445 | J100: =RTD("srv.rtd","","PLAYERSRANKING","VALE3","1982","SALDO","AVG_PRICE_2") -> 71.31503937
D101: 37 | E101: WARREN | F101: =RTD("srv.rtd","","PLAYERSRANKING","VALE3","190","SALDO","QUANTITY") -> 0 | G101: =RTD("srv.rtd","","PLAYERSRANKING","VALE3","190","SALDO","VOLQ") -> -100 | H101: =RTD("srv.rtd","","PLAYERSRANKING","VALE3","190","SALDO","VOLF") -> -6810 | I101: =RTD("srv.rtd","","PLAYERSRANKING","VALE3","190","SALDO","AVG_PRICE") -> 69.48857143 | J101: =RTD("srv.rtd","","PLAYERSRANKING","VALE3","190","SALDO","AVG_PRICE_2") -> 68.1
D102: 38 | E102: TORO | F102: =RTD("srv.rtd","","PLAYERSRANKING","VALE3","4090","SALDO","QUANTITY") -> 15 | G102: =RTD("srv.rtd","","PLAYERSRANKING","VALE3","4090","SALDO","VOLQ") -> 5300 | H102: =RTD("srv.rtd","","PLAYERSRANKING","VALE3","4090","SALDO","VOLF") -> 366547 | I102: =RTD("srv.rtd","","PLAYERSRANKING","VALE3","4090","SALDO","AVG_PRICE") -> 70.09371574 | J102: =RTD("srv.rtd","","PLAYERSRANKING","VALE3","4090","SALDO","AVG_PRICE_2") -> 69.15981132
D103: 39 | E103: SCOTIABANK | F103: =RTD("srv.rtd","","PLAYERSRANKING","VALE3","7078","SALDO","QUANTITY") -> 0 | G103: =RTD("srv.rtd","","PLAYERSRANKING","VALE3","7078","SALDO","VOLQ") -> 0 | H103: =RTD("srv.rtd","","PLAYERSRANKING","VALE3","7078","SALDO","VOLF") -> 0 | I103: =RTD("srv.rtd","","PLAYERSRANKING","VALE3","7078","SALDO","AVG_PRICE") -> 0 | J103: =RTD("srv.rtd","","PLAYERSRANKING","VALE3","7078","SALDO","AVG_PRICE_2") -> 0
D104: 40 | E104: SANTANDER | F104: =RTD("srv.rtd","","PLAYERSRANKING","VALE3","27","SALDO","QUANTITY") -> -11 | G104: =RTD("srv.rtd","","PLAYERSRANKING","VALE3","27","SALDO","VOLQ") -> 158500 | H104: =RTD("srv.rtd","","PLAYERSRANKING","VALE3","27","SALDO","VOLF") -> 11312027 | I104: =RTD("srv.rtd","","PLAYERSRANKING","VALE3","27","SALDO","AVG_PRICE") -> 70.36144651 | J104: =RTD("srv.rtd","","PLAYERSRANKING","VALE3","27","SALDO","AVG_PRICE_2") -> 71.36925552
D105: 41 | E105: VITREO | F105: =RTD("srv.rtd","","PLAYERSRANKING","VALE3","1855","SALDO","QUANTITY") -> 5 | G105: =RTD("srv.rtd","","PLAYERSRANKING","VALE3","1855","SALDO","VOLQ") -> -300 | H105: =RTD("srv.rtd","","PLAYERSRANKING","VALE3","1855","SALDO","VOLF") -> -21055 | I105: =RTD("srv.rtd","","PLAYERSRANKING","VALE3","1855","SALDO","AVG_PRICE") -> 70.19666667 | J105: =RTD("srv.rtd","","PLAYERSRANKING","VALE3","1855","SALDO","AVG_PRICE_2") -> 70.18333333
D106: 42 | E106: BRADESCO | F106: =RTD("srv.rtd","","PLAYERSRANKING","VALE3","72","SALDO","QUANTITY") -> -253 | G106: =RTD("srv.rtd","","PLAYERSRANKING","VALE3","72","SALDO","VOLQ") -> -124400 | H106: =RTD("srv.rtd","","PLAYERSRANKING","VALE3","72","SALDO","VOLF") -> -8763520 | I106: =RTD("srv.rtd","","PLAYERSRANKING","VALE3","72","SALDO","AVG_PRICE") -> 70.05592891 | J106: =RTD("srv.rtd","","PLAYERSRANKING","VALE3","72","SALDO","AVG_PRICE_2") -> 70.44630225
D107: 43 | E107: CM CAPITAL | F107: =RTD("srv.rtd","","PLAYERSRANKING","VALE3","88","SALDO","QUANTITY") -> -38 | G107: =RTD("srv.rtd","","PLAYERSRANKING","VALE3","88","SALDO","VOLQ") -> -16300 | H107: =RTD("srv.rtd","","PLAYERSRANKING","VALE3","88","SALDO","VOLF") -> -1129301 | I107: =RTD("srv.rtd","","PLAYERSRANKING","VALE3","88","SALDO","AVG_PRICE") -> 69.78943343 | J107: =RTD("srv.rtd","","PLAYERSRANKING","VALE3","88","SALDO","AVG_PRICE_2") -> 69.28226994
D108: 44 | E108: C6 BANK | F108: =RTD("srv.rtd","","PLAYERSRANKING","VALE3","6003","SALDO","QUANTITY") -> -50 | G108: =RTD("srv.rtd","","PLAYERSRANKING","VALE3","6003","SALDO","VOLQ") -> 38800 | H108: =RTD("srv.rtd","","PLAYERSRANKING","VALE3","6003","SALDO","VOLF") -> 2740133 | I108: =RTD("srv.rtd","","PLAYERSRANKING","VALE3","6003","SALDO","AVG_PRICE") -> 70.69102513 | J108: =RTD("srv.rtd","","PLAYERSRANKING","VALE3","6003","SALDO","AVG_PRICE_2") -> 70.62198454
D109: 45 | E109: ITAU | F109: =RTD("srv.rtd","","PLAYERSRANKING","VALE3","114","SALDO","QUANTITY") -> 1462 | G109: =RTD("srv.rtd","","PLAYERSRANKING","VALE3","114","SALDO","VOLQ") -> 679300 | H109: =RTD("srv.rtd","","PLAYERSRANKING","VALE3","114","SALDO","VOLF") -> 47649031 | I109: =RTD("srv.rtd","","PLAYERSRANKING","VALE3","114","SALDO","AVG_PRICE") -> 70.26287011 | J109: =RTD("srv.rtd","","PLAYERSRANKING","VALE3","114","SALDO","AVG_PRICE_2") -> 70.14431179
D110: 46 | E110: SAFRA | F110: =RTD("srv.rtd","","PLAYERSRANKING","VALE3","59","SALDO","QUANTITY") -> 1274 | G110: =RTD("srv.rtd","","PLAYERSRANKING","VALE3","59","SALDO","VOLQ") -> 248000 | H110: =RTD("srv.rtd","","PLAYERSRANKING","VALE3","59","SALDO","VOLF") -> 17467115 | I110: =RTD("srv.rtd","","PLAYERSRANKING","VALE3","59","SALDO","AVG_PRICE") -> 70.51865683 | J110: =RTD("srv.rtd","","PLAYERSRANKING","VALE3","59","SALDO","AVG_PRICE_2") -> 70.43191532
D111: 47 | E111: MORGAN STANLEY | F111: =RTD("srv.rtd","","PLAYERSRANKING","VALE3","40","SALDO","QUANTITY") -> -2125 | G111: =RTD("srv.rtd","","PLAYERSRANKING","VALE3","40","SALDO","VOLQ") -> -724600 | H111: =RTD("srv.rtd","","PLAYERSRANKING","VALE3","40","SALDO","VOLF") -> -50815042 | I111: =RTD("srv.rtd","","PLAYERSRANKING","VALE3","40","SALDO","AVG_PRICE") -> 70.02321001 | J111: =RTD("srv.rtd","","PLAYERSRANKING","VALE3","40","SALDO","AVG_PRICE_2") -> 70.12840464
D112: 48 | E112: BTG | F112: =RTD("srv.rtd","","PLAYERSRANKING","VALE3","85","SALDO","QUANTITY") -> 905 | G112: =RTD("srv.rtd","","PLAYERSRANKING","VALE3","85","SALDO","VOLQ") -> 418500 | H112: =RTD("srv.rtd","","PLAYERSRANKING","VALE3","85","SALDO","VOLF") -> 28910788 | I112: =RTD("srv.rtd","","PLAYERSRANKING","VALE3","85","SALDO","AVG_PRICE") -> 69.83415436 | J112: =RTD("srv.rtd","","PLAYERSRANKING","VALE3","85","SALDO","AVG_PRICE_2") -> 69.0819307
D113: 49 | E113: MERRILL LYNCH | F113: =RTD("srv.rtd","","PLAYERSRANKING","VALE3","13","SALDO","QUANTITY") -> -398 | G113: =RTD("srv.rtd","","PLAYERSRANKING","VALE3","13","SALDO","VOLQ") -> -141100 | H113: =RTD("srv.rtd","","PLAYERSRANKING","VALE3","13","SALDO","VOLF") -> -9382306 | I113: =RTD("srv.rtd","","PLAYERSRANKING","VALE3","13","SALDO","AVG_PRICE") -> 70.06790931 | J113: =RTD("srv.rtd","","PLAYERSRANKING","VALE3","13","SALDO","AVG_PRICE_2") -> 66.49401843
G119: ITUB4
D122: 1 | E122: MERRILL LYNCH | F122: =RTD("srv.rtd","","PLAYERSRANKING","ITUB4","13","SALDO","QUANTITY") -> 68 | G122: =RTD("srv.rtd","","PLAYERSRANKING","ITUB4","13","SALDO","VOLQ") -> 17600 | H122: =RTD("srv.rtd","","PLAYERSRANKING","ITUB4","13","SALDO","VOLF") -> 475234 | I122: =RTD("srv.rtd","","PLAYERSRANKING","ITUB4","13","SALDO","AVG_PRICE") -> 27.09714286 | J122: =RTD("srv.rtd","","PLAYERSRANKING","ITUB4","13","SALDO","AVG_PRICE_2") -> 27.00193182 | N122: CORRETORA | O122: QTD | P122: VOL(Q) | Q122: VOL($) | R122: PT.MED(T) | S122: PR.MED(Saldo)
D123: 2 | E123: BTG | F123: =RTD("srv.rtd","","PLAYERSRANKING","ITUB4","85","SALDO","QUANTITY") -> -106 | G123: =RTD("srv.rtd","","PLAYERSRANKING","ITUB4","85","SALDO","VOLQ") -> 83700 | H123: =RTD("srv.rtd","","PLAYERSRANKING","ITUB4","85","SALDO","VOLF") -> 2265991 | I123: =RTD("srv.rtd","","PLAYERSRANKING","ITUB4","85","SALDO","AVG_PRICE") -> 26.93590898 | J123: =RTD("srv.rtd","","PLAYERSRANKING","ITUB4","85","SALDO","AVG_PRICE_2") -> 27.0727718 | N123: MERRILL LYNCH | O123: =RTD("srv.rtd","","PLAYERSRANKING","ITUB4","13","SALDO","QUANTITY") -> 68 | P123: =RTD("srv.rtd","","PLAYERSRANKING","ITUB4","13","SALDO","VOLQ") -> 17600 | Q123: =RTD("srv.rtd","","PLAYERSRANKING","ITUB4","13","SALDO","VOLF") -> 475234 | R123: =RTD("srv.rtd","","PLAYERSRANKING","ITUB4","13","SALDO","AVG_PRICE") -> 27.09714286 | S123: =RTD("srv.rtd","","PLAYERSRANKING","ITUB4","13","SALDO","AVG_PRICE_2") -> 27.00193182
D124: 3 | E124: MORGAN STANLEY | F124: =RTD("srv.rtd","","PLAYERSRANKING","ITUB4","40","SALDO","QUANTITY") -> -309 | G124: =RTD("srv.rtd","","PLAYERSRANKING","ITUB4","40","SALDO","VOLQ") -> -74800 | H124: =RTD("srv.rtd","","PLAYERSRANKING","ITUB4","40","SALDO","VOLF") -> -1991692 | I124: =RTD("srv.rtd","","PLAYERSRANKING","ITUB4","40","SALDO","AVG_PRICE") -> 26.918697 | J124: =RTD("srv.rtd","","PLAYERSRANKING","ITUB4","40","SALDO","AVG_PRICE_2") -> 26.6268984 | N124: MORGAN STANLEY | O124: =RTD("srv.rtd","","PLAYERSRANKING","ITUB4","40","SALDO","QUANTITY") -> -309 | P124: =RTD("srv.rtd","","PLAYERSRANKING","ITUB4","40","SALDO","VOLQ") -> -74800 | Q124: =RTD("srv.rtd","","PLAYERSRANKING","ITUB4","40","SALDO","VOLF") -> -1991692 | R124: =RTD("srv.rtd","","PLAYERSRANKING","ITUB4","40","SALDO","AVG_PRICE") -> 26.918697 | S124: =RTD("srv.rtd","","PLAYERSRANKING","ITUB4","40","SALDO","AVG_PRICE_2") -> 26.6268984
D125: 4 | E125: XP | F125: =RTD("srv.rtd","","PLAYERSRANKING","ITUB4","3","SALDO","QUANTITY") -> 953 | G125: =RTD("srv.rtd","","PLAYERSRANKING","ITUB4","3","SALDO","VOLQ") -> 232400 | H125: =RTD("srv.rtd","","PLAYERSRANKING","ITUB4","3","SALDO","VOLF") -> 6268203 | I125: =RTD("srv.rtd","","PLAYERSRANKING","ITUB4","3","SALDO","AVG_PRICE") -> 26.93205226 | J125: =RTD("srv.rtd","","PLAYERSRANKING","ITUB4","3","SALDO","AVG_PRICE_2") -> 26.9716136 | N125: GOLDMAN SACHS | O125: =RTD("srv.rtd","","PLAYERSRANKING","ITUB4","238","SALDO","QUANTITY") -> -123 | P125: =RTD("srv.rtd","","PLAYERSRANKING","ITUB4","238","SALDO","VOLQ") -> -91300 | Q125: =RTD("srv.rtd","","PLAYERSRANKING","ITUB4","238","SALDO","VOLF") -> -2460394 | R125: =RTD("srv.rtd","","PLAYERSRANKING","ITUB4","238","SALDO","AVG_PRICE") -> 26.95265176 | S125: =RTD("srv.rtd","","PLAYERSRANKING","ITUB4","238","SALDO","AVG_PRICE_2") -> 26.94845564
D126: 5 | E126: GOLDMAN SACHS | F126: =RTD("srv.rtd","","PLAYERSRANKING","ITUB4","238","SALDO","QUANTITY") -> -123 | G126: =RTD("srv.rtd","","PLAYERSRANKING","ITUB4","238","SALDO","VOLQ") -> -91300 | H126: =RTD("srv.rtd","","PLAYERSRANKING","ITUB4","238","SALDO","VOLF") -> -2460394 | I126: =RTD("srv.rtd","","PLAYERSRANKING","ITUB4","238","SALDO","AVG_PRICE") -> 26.95265176 | J126: =RTD("srv.rtd","","PLAYERSRANKING","ITUB4","238","SALDO","AVG_PRICE_2") -> 26.94845564 | N126: JP MORGAN | O126: =RTD("srv.rtd","","PLAYERSRANKING","ITUB4","16","SALDO","QUANTITY") -> 2649 | P126: =RTD("srv.rtd","","PLAYERSRANKING","ITUB4","16","SALDO","VOLQ") -> 1243400 | Q126: =RTD("srv.rtd","","PLAYERSRANKING","ITUB4","16","SALDO","VOLF") -> 33467969 | R126: =RTD("srv.rtd","","PLAYERSRANKING","ITUB4","16","SALDO","AVG_PRICE") -> 26.91680275 | S126: =RTD("srv.rtd","","PLAYERSRANKING","ITUB4","16","SALDO","AVG_PRICE_2") -> 26.91649429
D127: 6 | E127: BGC | F127: =RTD("srv.rtd","","PLAYERSRANKING","ITUB4","122","SALDO","QUANTITY") -> 36 | G127: =RTD("srv.rtd","","PLAYERSRANKING","ITUB4","122","SALDO","VOLQ") -> 2900 | H127: =RTD("srv.rtd","","PLAYERSRANKING","ITUB4","122","SALDO","VOLF") -> 78114 | I127: =RTD("srv.rtd","","PLAYERSRANKING","ITUB4","122","SALDO","AVG_PRICE") -> 26.95490196 | J127: =RTD("srv.rtd","","PLAYERSRANKING","ITUB4","122","SALDO","AVG_PRICE_2") -> 26.93586207 | N127: TULLETT | O127: =RTD("srv.rtd","","PLAYERSRANKING","ITUB4","127","SALDO","QUANTITY") -> -195 | P127: =RTD("srv.rtd","","PLAYERSRANKING","ITUB4","127","SALDO","VOLQ") -> -67900 | Q127: =RTD("srv.rtd","","PLAYERSRANKING","ITUB4","127","SALDO","VOLF") -> -1822146 | R127: =RTD("srv.rtd","","PLAYERSRANKING","ITUB4","127","SALDO","AVG_PRICE") -> 26.94479723 | S127: =RTD("srv.rtd","","PLAYERSRANKING","ITUB4","127","SALDO","AVG_PRICE_2") -> 26.83572901
D128: 7 | E128: FC STONE | F128: =RTD("srv.rtd","","PLAYERSRANKING","ITUB4","1130","SALDO","QUANTITY") -> 0 | G128: =RTD("srv.rtd","","PLAYERSRANKING","ITUB4","1130","SALDO","VOLQ") -> 0 | H128: =RTD("srv.rtd","","PLAYERSRANKING","ITUB4","1130","SALDO","VOLF") -> 0 | I128: =RTD("srv.rtd","","PLAYERSRANKING","ITUB4","1130","SALDO","AVG_PRICE") -> 0 | J128: =RTD("srv.rtd","","PLAYERSRANKING","ITUB4","1130","SALDO","AVG_PRICE_2") -> 0 | N128: UBS | O128: =RTD("srv.rtd","","PLAYERSRANKING","ITUB4","8","SALDO","QUANTITY") -> -77 | P128: =RTD("srv.rtd","","PLAYERSRANKING","ITUB4","8","SALDO","VOLQ") -> -567200 | Q128: =RTD("srv.rtd","","PLAYERSRANKING","ITUB4","8","SALDO","VOLF") -> -15265422 | R128: =RTD("srv.rtd","","PLAYERSRANKING","ITUB4","8","SALDO","AVG_PRICE") -> 26.91913236 | S128: =RTD("srv.rtd","","PLAYERSRANKING","ITUB4","8","SALDO","AVG_PRICE_2") -> 26.91364951
D129: 8 | E129: ATIVA | F129: =RTD("srv.rtd","","PLAYERSRANKING","ITUB4","147","SALDO","QUANTITY") -> 45 | G129: =RTD("srv.rtd","","PLAYERSRANKING","ITUB4","147","SALDO","VOLQ") -> 40000 | H129: =RTD("srv.rtd","","PLAYERSRANKING","ITUB4","147","SALDO","VOLF") -> 1078458 | I129: =RTD("srv.rtd","","PLAYERSRANKING","ITUB4","147","SALDO","AVG_PRICE") -> 26.96145 | J129: =RTD("srv.rtd","","PLAYERSRANKING","ITUB4","147","SALDO","AVG_PRICE_2") -> 26.96145 | N129: IDEAL | O129: =RTD("srv.rtd","","PLAYERSRANKING","ITUB4","1618","SALDO","QUANTITY") -> 155 | P129: =RTD("srv.rtd","","PLAYERSRANKING","ITUB4","1618","SALDO","VOLQ") -> -108900 | Q129: =RTD("srv.rtd","","PLAYERSRANKING","ITUB4","1618","SALDO","VOLF") -> -2947288 | R129: =RTD("srv.rtd","","PLAYERSRANKING","ITUB4","1618","SALDO","AVG_PRICE") -> 26.95329845 | S129: =RTD("srv.rtd","","PLAYERSRANKING","ITUB4","1618","SALDO","AVG_PRICE_2") -> 27.06416896
D130: 9 | E130: CITIGROUP | F130: =RTD("srv.rtd","","PLAYERSRANKING","ITUB4","77","SALDO","QUANTITY") -> -5 | G130: =RTD("srv.rtd","","PLAYERSRANKING","ITUB4","77","SALDO","VOLQ") -> -12200 | H130: =RTD("srv.rtd","","PLAYERSRANKING","ITUB4","77","SALDO","VOLF") -> -328813 | I130: =RTD("srv.rtd","","PLAYERSRANKING","ITUB4","77","SALDO","AVG_PRICE") -> 26.95188525 | J130: =RTD("srv.rtd","","PLAYERSRANKING","ITUB4","77","SALDO","AVG_PRICE_2") -> 26.95188525
D131: 10 | E131: VITREO | F131: =RTD("srv.rtd","","PLAYERSRANKING","ITUB4","1855","SALDO","QUANTITY") -> 3 | G131: =RTD("srv.rtd","","PLAYERSRANKING","ITUB4","1855","SALDO","VOLQ") -> 2000 | H131: =RTD("srv.rtd","","PLAYERSRANKING","ITUB4","1855","SALDO","VOLF") -> 53900 | I131: =RTD("srv.rtd","","PLAYERSRANKING","ITUB4","1855","SALDO","AVG_PRICE") -> 26.95 | J131: =RTD("srv.rtd","","PLAYERSRANKING","ITUB4","1855","SALDO","AVG_PRICE_2") -> 26.95 | P131: =SUM(P123:P129) -> 350900 | Q131: =SUM(Q123:Q129) -> 9456261
D132: 11 | E132: C6 BANK | F132: =RTD("srv.rtd","","PLAYERSRANKING","ITUB4","6003","SALDO","QUANTITY") -> -10 | G132: =RTD("srv.rtd","","PLAYERSRANKING","ITUB4","6003","SALDO","VOLQ") -> -9000 | H132: =RTD("srv.rtd","","PLAYERSRANKING","ITUB4","6003","SALDO","VOLF") -> -243000 | I132: =RTD("srv.rtd","","PLAYERSRANKING","ITUB4","6003","SALDO","AVG_PRICE") -> 27 | J132: =RTD("srv.rtd","","PLAYERSRANKING","ITUB4","6003","SALDO","AVG_PRICE_2") -> 27
D133: 12 | E133: 7029 | F133: =RTD("srv.rtd","","PLAYERSRANKING","ITUB4","7029","SALDO","QUANTITY") -> 0 | G133: =RTD("srv.rtd","","PLAYERSRANKING","ITUB4","7029","SALDO","VOLQ") -> 0 | H133: =RTD("srv.rtd","","PLAYERSRANKING","ITUB4","7029","SALDO","VOLF") -> 0 | I133: =RTD("srv.rtd","","PLAYERSRANKING","ITUB4","7029","SALDO","AVG_PRICE") -> 0 | J133: =RTD("srv.rtd","","PLAYERSRANKING","ITUB4","7029","SALDO","AVG_PRICE_2") -> 0
D134: 13 | E134: BANRISUL | F134: =RTD("srv.rtd","","PLAYERSRANKING","ITUB4","172","SALDO","QUANTITY") -> 0 | G134: =RTD("srv.rtd","","PLAYERSRANKING","ITUB4","172","SALDO","VOLQ") -> 0 | H134: =RTD("srv.rtd","","PLAYERSRANKING","ITUB4","172","SALDO","VOLF") -> 0 | I134: =RTD("srv.rtd","","PLAYERSRANKING","ITUB4","172","SALDO","AVG_PRICE") -> 0 | J134: =RTD("srv.rtd","","PLAYERSRANKING","ITUB4","172","SALDO","AVG_PRICE_2") -> 0 | N134: =SUM(O123:O129) -> 2168
D135: 14 | E135: SITA | F135: =RTD("srv.rtd","","PLAYERSRANKING","ITUB4","187","SALDO","QUANTITY") -> 0 | G135: =RTD("srv.rtd","","PLAYERSRANKING","ITUB4","187","SALDO","VOLQ") -> 0 | H135: =RTD("srv.rtd","","PLAYERSRANKING","ITUB4","187","SALDO","VOLF") -> 0 | I135: =RTD("srv.rtd","","PLAYERSRANKING","ITUB4","187","SALDO","AVG_PRICE") -> 0 | J135: =RTD("srv.rtd","","PLAYERSRANKING","ITUB4","187","SALDO","AVG_PRICE_2") -> 0
D136: 15 | E136: COMMCOR | F136: =RTD("srv.rtd","","PLAYERSRANKING","ITUB4","115","SALDO","QUANTITY") -> 0 | G136: =RTD("srv.rtd","","PLAYERSRANKING","ITUB4","115","SALDO","VOLQ") -> 0 | H136: =RTD("srv.rtd","","PLAYERSRANKING","ITUB4","115","SALDO","VOLF") -> 0 | I136: =RTD("srv.rtd","","PLAYERSRANKING","ITUB4","115","SALDO","AVG_PRICE") -> 0 | J136: =RTD("srv.rtd","","PLAYERSRANKING","ITUB4","115","SALDO","AVG_PRICE_2") -> 0
D137: 16 | E137: RENASCENCA | F137: =RTD("srv.rtd","","PLAYERSRANKING","ITUB4","92","SALDO","QUANTITY") -> 0 | G137: =RTD("srv.rtd","","PLAYERSRANKING","ITUB4","92","SALDO","VOLQ") -> 0 | H137: =RTD("srv.rtd","","PLAYERSRANKING","ITUB4","92","SALDO","VOLF") -> 0 | I137: =RTD("srv.rtd","","PLAYERSRANKING","ITUB4","92","SALDO","AVG_PRICE") -> 0 | J137: =RTD("srv.rtd","","PLAYERSRANKING","ITUB4","92","SALDO","AVG_PRICE_2") -> 0
D138: 17 | E138: TORO | F138: =RTD("srv.rtd","","PLAYERSRANKING","ITUB4","4090","SALDO","QUANTITY") -> 87 | G138: =RTD("srv.rtd","","PLAYERSRANKING","ITUB4","4090","SALDO","VOLQ") -> 100100 | H138: =RTD("srv.rtd","","PLAYERSRANKING","ITUB4","4090","SALDO","VOLF") -> 2683648 | I138: =RTD("srv.rtd","","PLAYERSRANKING","ITUB4","4090","SALDO","AVG_PRICE") -> 26.823705 | J138: =RTD("srv.rtd","","PLAYERSRANKING","ITUB4","4090","SALDO","AVG_PRICE_2") -> 26.80967033
D139: 18 | E139: ELITE | F139: =RTD("srv.rtd","","PLAYERSRANKING","ITUB4","174","SALDO","QUANTITY") -> -17 | G139: =RTD("srv.rtd","","PLAYERSRANKING","ITUB4","174","SALDO","VOLQ") -> -5000 | H139: =RTD("srv.rtd","","PLAYERSRANKING","ITUB4","174","SALDO","VOLF") -> -134500 | I139: =RTD("srv.rtd","","PLAYERSRANKING","ITUB4","174","SALDO","AVG_PRICE") -> 26.9 | J139: =RTD("srv.rtd","","PLAYERSRANKING","ITUB4","174","SALDO","AVG_PRICE_2") -> 26.9
D140: 19 | E140: SENSO | F140: =RTD("srv.rtd","","PLAYERSRANKING","ITUB4","191","SALDO","QUANTITY") -> 0 | G140: =RTD("srv.rtd","","PLAYERSRANKING","ITUB4","191","SALDO","VOLQ") -> 0 | H140: =RTD("srv.rtd","","PLAYERSRANKING","ITUB4","191","SALDO","VOLF") -> 0 | I140: =RTD("srv.rtd","","PLAYERSRANKING","ITUB4","191","SALDO","AVG_PRICE") -> 0 | J140: =RTD("srv.rtd","","PLAYERSRANKING","ITUB4","191","SALDO","AVG_PRICE_2") -> 0
D141: 20 | E141: ICAP | F141: =RTD("srv.rtd","","PLAYERSRANKING","ITUB4","735","SALDO","QUANTITY") -> 2 | G141: =RTD("srv.rtd","","PLAYERSRANKING","ITUB4","735","SALDO","VOLQ") -> 1000 | H141: =RTD("srv.rtd","","PLAYERSRANKING","ITUB4","735","SALDO","VOLF") -> 26919 | I141: =RTD("srv.rtd","","PLAYERSRANKING","ITUB4","735","SALDO","AVG_PRICE") -> 26.919 | J141: =RTD("srv.rtd","","PLAYERSRANKING","ITUB4","735","SALDO","AVG_PRICE_2") -> 26.919
D142: 21 | E142: EASYNVEST | F142: =RTD("srv.rtd","","PLAYERSRANKING","ITUB4","90","SALDO","QUANTITY") -> -6 | G142: =RTD("srv.rtd","","PLAYERSRANKING","ITUB4","90","SALDO","VOLQ") -> -5700 | H142: =RTD("srv.rtd","","PLAYERSRANKING","ITUB4","90","SALDO","VOLF") -> -154319 | I142: =RTD("srv.rtd","","PLAYERSRANKING","ITUB4","90","SALDO","AVG_PRICE") -> 26.99384977 | J142: =RTD("srv.rtd","","PLAYERSRANKING","ITUB4","90","SALDO","AVG_PRICE_2") -> 27.07350877
D143: 22 | E143: ORAMA | F143: =RTD("srv.rtd","","PLAYERSRANKING","ITUB4","3701","SALDO","QUANTITY") -> 23 | G143: =RTD("srv.rtd","","PLAYERSRANKING","ITUB4","3701","SALDO","VOLQ") -> 12900 | H143: =RTD("srv.rtd","","PLAYERSRANKING","ITUB4","3701","SALDO","VOLF") -> 348777 | I143: =RTD("srv.rtd","","PLAYERSRANKING","ITUB4","3701","SALDO","AVG_PRICE") -> 26.99024896 | J143: =RTD("srv.rtd","","PLAYERSRANKING","ITUB4","3701","SALDO","AVG_PRICE_2") -> 27.03697674
D144: 23 | E144: WARREN | F144: =RTD("srv.rtd","","PLAYERSRANKING","ITUB4","190","SALDO","QUANTITY") -> 0 | G144: =RTD("srv.rtd","","PLAYERSRANKING","ITUB4","190","SALDO","VOLQ") -> 0 | H144: =RTD("srv.rtd","","PLAYERSRANKING","ITUB4","190","SALDO","VOLF") -> 0 | I144: =RTD("srv.rtd","","PLAYERSRANKING","ITUB4","190","SALDO","AVG_PRICE") -> 0 | J144: =RTD("srv.rtd","","PLAYERSRANKING","ITUB4","190","SALDO","AVG_PRICE_2") -> 0
D145: 24 | E145: GENIAL | F145: =RTD("srv.rtd","","PLAYERSRANKING","ITUB4","120","SALDO","QUANTITY") -> 310 | G145: =RTD("srv.rtd","","PLAYERSRANKING","ITUB4","120","SALDO","VOLQ") -> -191500 | H145: =RTD("srv.rtd","","PLAYERSRANKING","ITUB4","120","SALDO","VOLF") -> -5181205 | I145: =RTD("srv.rtd","","PLAYERSRANKING","ITUB4","120","SALDO","AVG_PRICE") -> 26.94356663 | J145: =RTD("srv.rtd","","PLAYERSRANKING","ITUB4","120","SALDO","AVG_PRICE_2") -> 27.05590078
D146: 25 | E146: INTER | F146: =RTD("srv.rtd","","PLAYERSRANKING","ITUB4","1099","SALDO","QUANTITY") -> 17 | G146: =RTD("srv.rtd","","PLAYERSRANKING","ITUB4","1099","SALDO","VOLQ") -> 1800 | H146: =RTD("srv.rtd","","PLAYERSRANKING","ITUB4","1099","SALDO","VOLF") -> 48381 | I146: =RTD("srv.rtd","","PLAYERSRANKING","ITUB4","1099","SALDO","AVG_PRICE") -> 26.8997 | J146: =RTD("srv.rtd","","PLAYERSRANKING","ITUB4","1099","SALDO","AVG_PRICE_2") -> 26.87833333
D147: 26 | E147: PLANNER | F147: =RTD("srv.rtd","","PLAYERSRANKING","ITUB4","129","SALDO","QUANTITY") -> 0 | G147: =RTD("srv.rtd","","PLAYERSRANKING","ITUB4","129","SALDO","VOLQ") -> 0 | H147: =RTD("srv.rtd","","PLAYERSRANKING","ITUB4","129","SALDO","VOLF") -> 0 | I147: =RTD("srv.rtd","","PLAYERSRANKING","ITUB4","129","SALDO","AVG_PRICE") -> 0 | J147: =RTD("srv.rtd","","PLAYERSRANKING","ITUB4","129","SALDO","AVG_PRICE_2") -> 0
D148: 27 | E148: CLEAR | F148: =RTD("srv.rtd","","PLAYERSRANKING","ITUB4","308","SALDO","QUANTITY") -> 9 | G148: =RTD("srv.rtd","","PLAYERSRANKING","ITUB4","308","SALDO","VOLQ") -> -1100 | H148: =RTD("srv.rtd","","PLAYERSRANKING","ITUB4","308","SALDO","VOLF") -> -29564 | I148: =RTD("srv.rtd","","PLAYERSRANKING","ITUB4","308","SALDO","AVG_PRICE") -> 26.93868477 | J148: =RTD("srv.rtd","","PLAYERSRANKING","ITUB4","308","SALDO","AVG_PRICE_2") -> 26.87636364
D149: 28 | E149: JP MORGAN | F149: =RTD("srv.rtd","","PLAYERSRANKING","ITUB4","16","SALDO","QUANTITY") -> 2649 | G149: =RTD("srv.rtd","","PLAYERSRANKING","ITUB4","16","SALDO","VOLQ") -> 1243400 | H149: =RTD("srv.rtd","","PLAYERSRANKING","ITUB4","16","SALDO","VOLF") -> 33467969 | I149: =RTD("srv.rtd","","PLAYERSRANKING","ITUB4","16","SALDO","AVG_PRICE") -> 26.91680275 | J149: =RTD("srv.rtd","","PLAYERSRANKING","ITUB4","16","SALDO","AVG_PRICE_2") -> 26.91649429
D150: 29 | E150: MIRAE | F150: =RTD("srv.rtd","","PLAYERSRANKING","ITUB4","262","SALDO","QUANTITY") -> -14 | G150: =RTD("srv.rtd","","PLAYERSRANKING","ITUB4","262","SALDO","VOLQ") -> -3200 | H150: =RTD("srv.rtd","","PLAYERSRANKING","ITUB4","262","SALDO","VOLF") -> -86612 | I150: =RTD("srv.rtd","","PLAYERSRANKING","ITUB4","262","SALDO","AVG_PRICE") -> 26.90966102 | J150: =RTD("srv.rtd","","PLAYERSRANKING","ITUB4","262","SALDO","AVG_PRICE_2") -> 27.06625
D151: 30 | E151: MODAL | F151: =RTD("srv.rtd","","PLAYERSRANKING","ITUB4","1982","SALDO","QUANTITY") -> -33 | G151: =RTD("srv.rtd","","PLAYERSRANKING","ITUB4","1982","SALDO","VOLQ") -> -3800 | H151: =RTD("srv.rtd","","PLAYERSRANKING","ITUB4","1982","SALDO","VOLF") -> -101874 | I151: =RTD("srv.rtd","","PLAYERSRANKING","ITUB4","1982","SALDO","AVG_PRICE") -> 26.91536082 | J151: =RTD("srv.rtd","","PLAYERSRANKING","ITUB4","1982","SALDO","AVG_PRICE_2") -> 26.80894737
D152: 31 | E152: TULLETT | F152: =RTD("srv.rtd","","PLAYERSRANKING","ITUB4","127","SALDO","QUANTITY") -> -195 | G152: =RTD("srv.rtd","","PLAYERSRANKING","ITUB4","127","SALDO","VOLQ") -> -67900 | H152: =RTD("srv.rtd","","PLAYERSRANKING","ITUB4","127","SALDO","VOLF") -> -1822146 | I152: =RTD("srv.rtd","","PLAYERSRANKING","ITUB4","127","SALDO","AVG_PRICE") -> 26.94479723 | J152: =RTD("srv.rtd","","PLAYERSRANKING","ITUB4","127","SALDO","AVG_PRICE_2") -> 26.83572901
D153: 32 | E153: TERRA | F153: =RTD("srv.rtd","","PLAYERSRANKING","ITUB4","107","SALDO","QUANTITY") -> -4 | G153: =RTD("srv.rtd","","PLAYERSRANKING","ITUB4","107","SALDO","VOLQ") -> -1000 | H153: =RTD("srv.rtd","","PLAYERSRANKING","ITUB4","107","SALDO","VOLF") -> -26950 | I153: =RTD("srv.rtd","","PLAYERSRANKING","ITUB4","107","SALDO","AVG_PRICE") -> 26.95 | J153: =RTD("srv.rtd","","PLAYERSRANKING","ITUB4","107","SALDO","AVG_PRICE_2") -> 26.95
D154: 33 | E154: AGORA | F154: =RTD("srv.rtd","","PLAYERSRANKING","ITUB4","39","SALDO","QUANTITY") -> -95 | G154: =RTD("srv.rtd","","PLAYERSRANKING","ITUB4","39","SALDO","VOLQ") -> -12700 | H154: =RTD("srv.rtd","","PLAYERSRANKING","ITUB4","39","SALDO","VOLF") -> -360566 | I154: =RTD("srv.rtd","","PLAYERSRANKING","ITUB4","39","SALDO","AVG_PRICE") -> 26.93552093 | J154: =RTD("srv.rtd","","PLAYERSRANKING","ITUB4","39","SALDO","AVG_PRICE_2") -> 28.39102362
D155: 34 | E155: NOVA FUTURA | F155: =RTD("srv.rtd","","PLAYERSRANKING","ITUB4","93","SALDO","QUANTITY") -> -3 | G155: =RTD("srv.rtd","","PLAYERSRANKING","ITUB4","93","SALDO","VOLQ") -> -700 | H155: =RTD("srv.rtd","","PLAYERSRANKING","ITUB4","93","SALDO","VOLF") -> -18909 | I155: =RTD("srv.rtd","","PLAYERSRANKING","ITUB4","93","SALDO","AVG_PRICE") -> 26.89222222 | J155: =RTD("srv.rtd","","PLAYERSRANKING","ITUB4","93","SALDO","AVG_PRICE_2") -> 27.01285714
D156: 35 | E156: GUIDE | F156: =RTD("srv.rtd","","PLAYERSRANKING","ITUB4","15","SALDO","QUANTITY") -> 42 | G156: =RTD("srv.rtd","","PLAYERSRANKING","ITUB4","15","SALDO","VOLQ") -> 46800 | H156: =RTD("srv.rtd","","PLAYERSRANKING","ITUB4","15","SALDO","VOLF") -> 1260865 | I156: =RTD("srv.rtd","","PLAYERSRANKING","ITUB4","15","SALDO","AVG_PRICE") -> 26.95417772 | J156: =RTD("srv.rtd","","PLAYERSRANKING","ITUB4","15","SALDO","AVG_PRICE_2") -> 26.94155983
D157: 36 | E157: NECTON | F157: =RTD("srv.rtd","","PLAYERSRANKING","ITUB4","23","SALDO","QUANTITY") -> 58 | G157: =RTD("srv.rtd","","PLAYERSRANKING","ITUB4","23","SALDO","VOLQ") -> 8100 | H157: =RTD("srv.rtd","","PLAYERSRANKING","ITUB4","23","SALDO","VOLF") -> 217918 | I157: =RTD("srv.rtd","","PLAYERSRANKING","ITUB4","23","SALDO","AVG_PRICE") -> 26.90474227 | J157: =RTD("srv.rtd","","PLAYERSRANKING","ITUB4","23","SALDO","AVG_PRICE_2") -> 26.90345679
D158: 37 | E158: UBS | F158: =RTD("srv.rtd","","PLAYERSRANKING","ITUB4","8","SALDO","QUANTITY") -> -77 | G158: =RTD("srv.rtd","","PLAYERSRANKING","ITUB4","8","SALDO","VOLQ") -> -567200 | H158: =RTD("srv.rtd","","PLAYERSRANKING","ITUB4","8","SALDO","VOLF") -> -15265422 | I158: =RTD("srv.rtd","","PLAYERSRANKING","ITUB4","8","SALDO","AVG_PRICE") -> 26.91913236 | J158: =RTD("srv.rtd","","PLAYERSRANKING","ITUB4","8","SALDO","AVG_PRICE_2") -> 26.91364951
D159: 38 | E159: IDEAL | F159: =RTD("srv.rtd","","PLAYERSRANKING","ITUB4","1618","SALDO","QUANTITY") -> 155 | G159: =RTD("srv.rtd","","PLAYERSRANKING","ITUB4","1618","SALDO","VOLQ") -> -108900 | H159: =RTD("srv.rtd","","PLAYERSRANKING","ITUB4","1618","SALDO","VOLF") -> -2947288 | I159: =RTD("srv.rtd","","PLAYERSRANKING","ITUB4","1618","SALDO","AVG_PRICE") -> 26.95329845 | J159: =RTD("srv.rtd","","PLAYERSRANKING","ITUB4","1618","SALDO","AVG_PRICE_2") -> 27.06416896
D160: 39 | E160: CM CAPITAL | F160: =RTD("srv.rtd","","PLAYERSRANKING","ITUB4","88","SALDO","QUANTITY") -> 0 | G160: =RTD("srv.rtd","","PLAYERSRANKING","ITUB4","88","SALDO","VOLQ") -> 0 | H160: =RTD("srv.rtd","","PLAYERSRANKING","ITUB4","88","SALDO","VOLF") -> -21 | I160: =RTD("srv.rtd","","PLAYERSRANKING","ITUB4","88","SALDO","AVG_PRICE") -> 26.95416667 | J160: =RTD("srv.rtd","","PLAYERSRANKING","ITUB4","88","SALDO","AVG_PRICE_2") -> 26.97166667
D161: 40 | E161: SANTANDER | F161: =RTD("srv.rtd","","PLAYERSRANKING","ITUB4","27","SALDO","QUANTITY") -> 116 | G161: =RTD("srv.rtd","","PLAYERSRANKING","ITUB4","27","SALDO","VOLQ") -> 18200 | H161: =RTD("srv.rtd","","PLAYERSRANKING","ITUB4","27","SALDO","VOLF") -> 487242 | I161: =RTD("srv.rtd","","PLAYERSRANKING","ITUB4","27","SALDO","AVG_PRICE") -> 26.87853535 | J161: =RTD("srv.rtd","","PLAYERSRANKING","ITUB4","27","SALDO","AVG_PRICE_2") -> 26.77153846
D162: 41 | E162: SAFRA | F162: =RTD("srv.rtd","","PLAYERSRANKING","ITUB4","59","SALDO","QUANTITY") -> -28 | G162: =RTD("srv.rtd","","PLAYERSRANKING","ITUB4","59","SALDO","VOLQ") -> 6000 | H162: =RTD("srv.rtd","","PLAYERSRANKING","ITUB4","59","SALDO","VOLF") -> 161561 | I162: =RTD("srv.rtd","","PLAYERSRANKING","ITUB4","59","SALDO","AVG_PRICE") -> 26.94251445 | J162: =RTD("srv.rtd","","PLAYERSRANKING","ITUB4","59","SALDO","AVG_PRICE_2") -> 26.92683333
D163: 42 | E163: BRADESCO | F163: =RTD("srv.rtd","","PLAYERSRANKING","ITUB4","72","SALDO","QUANTITY") -> -134 | G163: =RTD("srv.rtd","","PLAYERSRANKING","ITUB4","72","SALDO","VOLQ") -> -34100 | H163: =RTD("srv.rtd","","PLAYERSRANKING","ITUB4","72","SALDO","VOLF") -> -898746 | I163: =RTD("srv.rtd","","PLAYERSRANKING","ITUB4","72","SALDO","AVG_PRICE") -> 26.9001593 | J163: =RTD("srv.rtd","","PLAYERSRANKING","ITUB4","72","SALDO","AVG_PRICE_2") -> 26.35618768
D164: 43 | E164: ITAU | F164: =RTD("srv.rtd","","PLAYERSRANKING","ITUB4","114","SALDO","QUANTITY") -> -166 | G164: =RTD("srv.rtd","","PLAYERSRANKING","ITUB4","114","SALDO","VOLQ") -> 155800 | H164: =RTD("srv.rtd","","PLAYERSRANKING","ITUB4","114","SALDO","VOLF") -> 4218025 | I164: =RTD("srv.rtd","","PLAYERSRANKING","ITUB4","114","SALDO","AVG_PRICE") -> 26.90767024 | J164: =RTD("srv.rtd","","PLAYERSRANKING","ITUB4","114","SALDO","AVG_PRICE_2") -> 27.07333119
D165: 44 | E165: CREDIT SUISSE | F165: =RTD("srv.rtd","","PLAYERSRANKING","ITUB4","45","SALDO","QUANTITY") -> 343 | G165: =RTD("srv.rtd","","PLAYERSRANKING","ITUB4","45","SALDO","VOLQ") -> 28600 | H165: =RTD("srv.rtd","","PLAYERSRANKING","ITUB4","45","SALDO","VOLF") -> 768479 | I165: =RTD("srv.rtd","","PLAYERSRANKING","ITUB4","45","SALDO","AVG_PRICE") -> 26.92303075 | J165: =RTD("srv.rtd","","PLAYERSRANKING","ITUB4","45","SALDO","AVG_PRICE_2") -> 26.8698951
D170: Asset | E170: Último | F170: Abertura | G170: Máximo | H170: Mínimo | I170: Fechamento Anterior | J170: Strike | K170: Variação | L170: Variação(pts) | M170: Média | N170: Negócios | O170: Quantidade | P170: Volume | Q170: Of. Compra | R170: Of. Venda | S170: Aj. Anterior | T170: Preço Teórico | U170: Qtd. Teórica | V170: Volume Projetado | W170: Agente de Compra | X170: Agente de Venda | Y170: Validade | Z170: Limite Max | AA170: Limite Min | AB170: Delta | AC170: Prior Cote | AD170: Prior Cote Ajuste | AE170: TR - Acúmulo de Agressão - Saldo | AF170: TR - Histograma de Agressão | AG170: Volume de Agr - Compra | AH170: TR - Volume de Agressão - Saldo | AI170: Volume de Agr - Venda | AJ170: Volatilidade Histórica
D171: WINQ22 | E171: =RTD("rtdtrading.rtdserver",, "WINQ22_F_0", "ULT") -> 113720 | F171: =RTD("rtdtrading.rtdserver",, "WINQ22_F_0", "ABE") -> 112900 | G171: =RTD("rtdtrading.rtdserver",, "WINQ22_F_0", "MAX") -> 114000 | H171: =RTD("rtdtrading.rtdserver",, "WINQ22_F_0", "MIN") -> 112255 | I171: =RTD("rtdtrading.rtdserver",, "WINQ22_F_0", "FEC") -> 113785 | J171: =RTD("rtdtrading.rtdserver",, "WINQ22_F_0", "PEX") -> 0 | K171: =RTD("rtdtrading.rtdserver",, "WINQ22_F_0", "VAR") -> -0.05712528013 | L171: =RTD("rtdtrading.rtdserver",, "WINQ22_F_0", "VARPTS") -> -65 | M171: =RTD("rtdtrading.rtdserver",, "WINQ22_F_0", "MED") -> 113216.6609 | N171: =RTD("rtdtrading.rtdserver",, "WINQ22_F_0", "NEG") -> 788688 | O171: =RTD("rtdtrading.rtdserver",, "WINQ22_F_0", "QTT") -> 1976739 | P171: =RTD("rtdtrading.rtdserver",, "WINQ22_F_0", "VOL") -> 44759957817 | Q171: =RTD("rtdtrading.rtdserver",, "WINQ22_F_0", "OCP") -> 0 | R171: =RTD("rtdtrading.rtdserver",, "WINQ22_F_0", "OVD") -> 0 | S171: =RTD("rtdtrading.rtdserver",, "WINQ22_F_0", "AJA") -> 0 | T171: =RTD("rtdtrading.rtdserver",, "WINQ22_F_0", "PRT") -> 0 | U171: =RTD("rtdtrading.rtdserver",, "WINQ22_F_0", "QTE") -> 0 | V171: =RTD("rtdtrading.rtdserver",, "WINQ22_F_0", "VPJ") -> 0 | W171: =RTD("rtdtrading.rtdserver",, "WINQ22_F_0", "ACP") -> - | X171: =RTD("rtdtrading.rtdserver",, "WINQ22_F_0", "AVD") -> - | Y171: =RTD("rtdtrading.rtdserver",, "WINQ22_F_0", "VAL") -> 17/08/2022 | Z171: =RTD("rtdtrading.rtdserver",, "WINQ22_F_0", "LMAX") -> 0 | AA171: =RTD("rtdtrading.rtdserver",, "WINQ22_F_0", "LMIN") -> 0 | AB171: =RTD("rtdtrading.rtdserver",, "WINQ22_F_0", "DELTA") -> - | AC171: =RTD("rtdtrading.rtdserver",, "WINQ22_F_0", "86") -> Atributo Inválido | AD171: =RTD("rtdtrading.rtdserver",, "WINQ22_F_0", "190") -> Atributo Inválido | AE171: =RTD("rtdtrading.rtdserver",, "WINQ22_F_0", "103") -> 16.716,00 | AF171: =RTD("rtdtrading.rtdserver",, "WINQ22_F_0", "184") -> 645.718,00 | AG171: =RTD("rtdtrading.rtdserver",, "WINQ22_F_0", "98") -> 944.136 | AH171: =RTD("rtdtrading.rtdserver",, "WINQ22_F_0", "100") -> 16.716 | AI171: =RTD("rtdtrading.rtdserver",, "WINQ22_F_0", "99") -> 927.420 | AJ171: =RTD("rtdtrading.rtdserver",, "WINQ22_F_0", "45") -> Atributo Inválido
D178: Asset | E178: Máximo | F178: Mínimo | G178: Fechamento Anterior | H178: Variação | I178: Variação(pts) | J178: Média | K178: NEGÓCIOS | L178: Quantidade | M178: Volume | N178: Qtd. Teórica | O178: Limite Max | P178: Limite Min | Q178: Delta | R178: Acumulação/Distribuição | S178: DI+/DI-/ADX | T178: Estocástico Pleno | U178: FORCE INDEX | V178: Fura-Chão | W178: Fura-Teto | X178: TR - Acúmulo de Agressão - Saldo | Y178: TR - Histograma de Agressão | Z178: TR - Volume de Agressão - Compra | AA178: TR - Volume de Agressão - Saldo | AB178: TR - Volume de Agressão - Venda
D179: IBOV | E179: =RTD("rtdtrading.rtdserver",, "IBOV_B_0", "MAX") -> 114091.4 | F179: =RTD("rtdtrading.rtdserver",, "IBOV_B_0", "MIN") -> 112433.8 | G179: =RTD("rtdtrading.rtdserver",, "IBOV_B_0", "FEC") -> 113531.72 | H179: =RTD("rtdtrading.rtdserver",, "IBOV_B_0", "VAR") -> -0.9323209408 | I179: =RTD("rtdtrading.rtdserver",, "IBOV_B_0", "VARPTS") -> -1058.48 | J179: =RTD("rtdtrading.rtdserver",, "IBOV_B_0", "MED") -> 113132.745 | K179: =RTD("rtdtrading.rtdserver",, "IBOV_B_0", "NEG") -> 587471 | L179: =RTD("rtdtrading.rtdserver",, "IBOV_B_0", "QTT") -> 494920900 | M179: =RTD("rtdtrading.rtdserver",, "IBOV_B_0", "VOL") -> 7355060301 | N179: =RTD("rtdtrading.rtdserver",, "IBOV_B_0", "QTE") -> 0 | O179: =RTD("rtdtrading.rtdserver",, "IBOV_B_0", "LMAX") -> 0 | P179: =RTD("rtdtrading.rtdserver",, "IBOV_B_0", "LMIN") -> 0 | Q179: =RTD("rtdtrading.rtdserver",, "IBOV_B_0", "DELTA") -> - | R179: =RTD("rtdtrading.rtdserver",, "IBOV_B_0", "8") -> Atributo Inválido | S179: =RTD("rtdtrading.rtdserver",, "IBOV_B_0", "38") -> Atributo Inválido | T179: =RTD("rtdtrading.rtdserver",, "IBOV_B_0", "15") -> Atributo Inválido | U179: =RTD("rtdtrading.rtdserver",, "IBOV_B_0", "29") -> Atributo Inválido | V179: =RTD("rtdtrading.rtdserver",, "IBOV_B_0", "63") -> Atributo Inválido | W179: =RTD("rtdtrading.rtdserver",, "IBOV_B_0", "62") -> Atributo Inválido | X179: =RTD("rtdtrading.rtdserver",, "IBOV_B_0", "103") -> 0,00 | Y179: =RTD("rtdtrading.rtdserver",, "IBOV_B_0", "184") -> 0,00 | Z179: =RTD("rtdtrading.rtdserver",, "IBOV_B_0", "98") -> 0 | AA179: =RTD("rtdtrading.rtdserver",, "IBOV_B_0", "100") -> 0 | AB179: =RTD("rtdtrading.rtdserver",, "IBOV_B_0", "99") -> 0

Sheet MUNDIAIS
B5: =RTD("srv.rtd","","SQT","FTSE100-CFD","ARROWVAR") -> 0 | C5: FTSE100-CFD | D5: =RTD("srv.rtd","","SQT","FTSE100-CFD","FLAG") -> 4 | E5: =RTD("srv.rtd","","SQT","FTSE100-CFD","DESC") -> FTSE 100 (CFD) | F5: =RTD("srv.rtd","","SQT","FTSE100-CFD","LAST") -> 7439.2 | G5: =RTD("srv.rtd","","SQT","FTSE100-CFD","VAR") -> -0.5419974491 | H5: =RTD("srv.rtd","","SQT","FTSE100-CFD","TICK") -> - | I5: =RTD("srv.rtd","","SQT","FTSE100-CFD","HIGH") -> 7529.6 | J5: =RTD("srv.rtd","","SQT","FTSE100-CFD","LOW") -> 7420.5 | K5: =RTD("srv.rtd","","SQT","FTSE100-CFD","OPEN") -> 7506.1 | L5: =RTD("srv.rtd","","SQT","FTSE100-CFD","CLOSE") -> 7479.74 | M5: =RTD("srv.rtd","","SQT","FTSE100-CFD","DATE") -> 44799 | N5: =RTD("srv.rtd","","SQT","FTSE100-CFD","TIME") -> 0.505462963
B6: =RTD("srv.rtd","","SQT","CAC40-CFD","ARROWVAR") -> 0 | C6: CAC40-CFD | D6: =RTD("srv.rtd","","SQT","CAC40-CFD","FLAG") -> 6 | E6: =RTD("srv.rtd","","SQT","CAC40-CFD","DESC") -> CAC 40 - PARIS (CFD) | F6: =RTD("srv.rtd","","SQT","CAC40-CFD","LAST") -> 6274.3 | G6: =RTD("srv.rtd","","SQT","CAC40-CFD","VAR") -> -1.680780248 | H6: =RTD("srv.rtd","","SQT","CAC40-CFD","TICK") -> - | I6: =RTD("srv.rtd","","SQT","CAC40-CFD","HIGH") -> 6423.4 | J6: =RTD("srv.rtd","","SQT","CAC40-CFD","LOW") -> 6261.3 | K6: =RTD("srv.rtd","","SQT","CAC40-CFD","OPEN") -> 6409.2 | L6: =RTD("srv.rtd","","SQT","CAC40-CFD","CLOSE") -> 6381.56 | M6: =RTD("srv.rtd","","SQT","CAC40-CFD","DATE") -> 44799 | N6: =RTD("srv.rtd","","SQT","CAC40-CFD","TIME") -> 0.5054513889
B7: =RTD("srv.rtd","","SQT","DAX30-CFD","ARROWVAR") -> 0 | C7: DAX30-CFD | D7: =RTD("srv.rtd","","SQT","DAX30-CFD","FLAG") -> 7 | E7: =RTD("srv.rtd","","SQT","DAX30-CFD","DESC") -> DAX 30 (CFD) | F7: =RTD("srv.rtd","","SQT","DAX30-CFD","LAST") -> 12981.4 | G7: =RTD("srv.rtd","","SQT","DAX30-CFD","VAR") -> -2.189277243 | H7: =RTD("srv.rtd","","SQT","DAX30-CFD","TICK") -> - | I7: =RTD("srv.rtd","","SQT","DAX30-CFD","HIGH") -> 13367.7 | J7: =RTD("srv.rtd","","SQT","DAX30-CFD","LOW") -> 12974.9 | K7: =RTD("srv.rtd","","SQT","DAX30-CFD","OPEN") -> 13330.9 | L7: =RTD("srv.rtd","","SQT","DAX30-CFD","CLOSE") -> 13271.96 | M7: =RTD("srv.rtd","","SQT","DAX30-CFD","DATE") -> 44799 | N7: =RTD("srv.rtd","","SQT","DAX30-CFD","TIME") -> 0.505474537
B8: =RTD("srv.rtd","","SQT","PSI20-CFD","ARROWVAR") -> 2 | C8: PSI20-CFD | D8: =RTD("srv.rtd","","SQT","PSI20-CFD","FLAG") -> 8 | E8: =RTD("srv.rtd","","SQT","PSI20-CFD","DESC") -> PSI 20 - LISBOA (CFD) | F8: =RTD("srv.rtd","","SQT","PSI20-CFD","LAST") -> 6190.5 | G8: =RTD("srv.rtd","","SQT","PSI20-CFD","VAR") -> 6.67813206 | H8: =RTD("srv.rtd","","SQT","PSI20-CFD","TICK") -> - | I8: =RTD("srv.rtd","","SQT","PSI20-CFD","HIGH") -> 6262.5 | J8: =RTD("srv.rtd","","SQT","PSI20-CFD","LOW") -> 6185.4 | K8: =RTD("srv.rtd","","SQT","PSI20-CFD","OPEN") -> 6260.9 | L8: =RTD("srv.rtd","","SQT","PSI20-CFD","CLOSE") -> 5802.97 | M8: =RTD("srv.rtd","","SQT","PSI20-CFD","DATE") -> 44799 | N8: =RTD("srv.rtd","","SQT","PSI20-CFD","TIME") -> 0.5054398148
B9: =RTD("srv.rtd","","SQT","IBEX35-CFD","ARROWVAR") -> 0 | C9: IBEX35-CFD | D9: =RTD("srv.rtd","","SQT","IBEX35-CFD","FLAG") -> 20 | E9: =RTD("srv.rtd","","SQT","IBEX35-CFD","DESC") -> IBEX 35 - MADRI (CFD) | F9: =RTD("srv.rtd","","SQT","IBEX35-CFD","LAST") -> 8061.1 | G9: =RTD("srv.rtd","","SQT","IBEX35-CFD","VAR") -> -1.543816794 | H9: =RTD("srv.rtd","","SQT","IBEX35-CFD","TICK") -> + | I9: =RTD("srv.rtd","","SQT","IBEX35-CFD","HIGH") -> 8237.7 | J9: =RTD("srv.rtd","","SQT","IBEX35-CFD","LOW") -> 8042.1 | K9: =RTD("srv.rtd","","SQT","IBEX35-CFD","OPEN") -> 8228 | L9: =RTD("srv.rtd","","SQT","IBEX35-CFD","CLOSE") -> 8187.5 | M9: =RTD("srv.rtd","","SQT","IBEX35-CFD","DATE") -> 44799 | N9: =RTD("srv.rtd","","SQT","IBEX35-CFD","TIME") -> 0.505462963
B10: =RTD("srv.rtd","","SQT","MIB40-CFD","ARROWVAR") -> 0 | C10: MIB40-CFD | D10: =RTD("srv.rtd","","SQT","MIB40-CFD","FLAG") -> 11 | E10: =RTD("srv.rtd","","SQT","MIB40-CFD","DESC") -> ITALIA MIB 40 (CFD) | F10: =RTD("srv.rtd","","SQT","MIB40-CFD","LAST") -> 21924.4 | G10: =RTD("srv.rtd","","SQT","MIB40-CFD","VAR") -> -2.832881278 | H10: =RTD("srv.rtd","","SQT","MIB40-CFD","TICK") -> - | I10: =RTD("srv.rtd","","SQT","MIB40-CFD","HIGH") -> 22576.2 | J10: =RTD("srv.rtd","","SQT","MIB40-CFD","LOW") -> 21911.9 | K10: =RTD("srv.rtd","","SQT","MIB40-CFD","OPEN") -> 22557.6 | L10: =RTD("srv.rtd","","SQT","MIB40-CFD","CLOSE") -> 22563.6 | M10: =RTD("srv.rtd","","SQT","MIB40-CFD","DATE") -> 44799 | N10: =RTD("srv.rtd","","SQT","MIB40-CFD","TIME") -> 0.5054513889
B11: =RTD("srv.rtd","","SQT","OMX30-CFD","ARROWVAR") -> 0 | C11: OMX30-CFD | D11: =RTD("srv.rtd","","SQT","OMX30-CFD","FLAG") -> 13 | E11: =RTD("srv.rtd","","SQT","OMX30-CFD","DESC") -> OMX 30 STOCKHOLM (CFD) | F11: =RTD("srv.rtd","","SQT","OMX30-CFD","LAST") -> 1955.18 | G11: =RTD("srv.rtd","","SQT","OMX30-CFD","VAR") -> -1.617253386 | H11: =RTD("srv.rtd","","SQT","OMX30-CFD","TICK") -> - | I11: =RTD("srv.rtd","","SQT","OMX30-CFD","HIGH") -> 1999.6 | J11: =RTD("srv.rtd","","SQT","OMX30-CFD","LOW") -> 1955.06 | K11: =RTD("srv.rtd","","SQT","OMX30-CFD","OPEN") -> 1995.69 | L11: =RTD("srv.rtd","","SQT","OMX30-CFD","CLOSE") -> 1987.32 | M11: =RTD("srv.rtd","","SQT","OMX30-CFD","DATE") -> 44799 | N11: =RTD("srv.rtd","","SQT","OMX30-CFD","TIME") -> 0.505462963
B12: =RTD("srv.rtd","","SQT","SSMI-CFD","ARROWVAR") -> 0 | C12: SSMI-CFD | D12: =RTD("srv.rtd","","SQT","SSMI-CFD","FLAG") -> 12 | E12: =RTD("srv.rtd","","SQT","SSMI-CFD","DESC") -> SWISS MARKET (CFD) | F12: =RTD("srv.rtd","","SQT","SSMI-CFD","LAST") -> 10945.7 | G12: =RTD("srv.rtd","","SQT","SSMI-CFD","VAR") -> -1.068160537 | H12: =RTD("srv.rtd","","SQT","SSMI-CFD","TICK") -> - | I12: =RTD("srv.rtd","","SQT","SSMI-CFD","HIGH") -> 11105 | J12: =RTD("srv.rtd","","SQT","SSMI-CFD","LOW") -> 10942.7 | K12: =RTD("srv.rtd","","SQT","SSMI-CFD","OPEN") -> 11102.3 | L12: =RTD("srv.rtd","","SQT","SSMI-CFD","CLOSE") -> 11063.88 | M12: =RTD("srv.rtd","","SQT","SSMI-CFD","DATE") -> 44799 | N12: =RTD("srv.rtd","","SQT","SSMI-CFD","TIME") -> 0.505462963
B13: =RTD("srv.rtd","","SQT","AEX-CFD","ARROWVAR") -> 0 | C13: AEX-CFD | D13: =RTD("srv.rtd","","SQT","AEX-CFD","FLAG") -> 15 | E13: =RTD("srv.rtd","","SQT","AEX-CFD","DESC") -> AMSTERDAM AEX (CFD) | F13: =RTD("srv.rtd","","SQT","AEX-CFD","LAST") -> 705.24 | G13: =RTD("srv.rtd","","SQT","AEX-CFD","VAR") -> -12.67891635 | H13: =RTD("srv.rtd","","SQT","AEX-CFD","TICK") -> + | I13: =RTD("srv.rtd","","SQT","AEX-CFD","HIGH") -> 722.32 | J13: =RTD("srv.rtd","","SQT","AEX-CFD","LOW") -> 703.24 | K13: =RTD("srv.rtd","","SQT","AEX-CFD","OPEN") -> 721.72 | L13: =RTD("srv.rtd","","SQT","AEX-CFD","CLOSE") -> 807.64 | M13: =RTD("srv.rtd","","SQT","AEX-CFD","DATE") -> 44799 | N13: =RTD("srv.rtd","","SQT","AEX-CFD","TIME") -> 0.5054398148
B15: =RTD("srv.rtd","","SQT","","ARROWVAR") ->  | C15: =-ASIA/OCEANIA ->  | D15: =RTD("srv.rtd","","SQT","","FLAG") ->  | E15: =RTD("srv.rtd","","SQT","","DESC") ->  | F15: =RTD("srv.rtd","","SQT","","LAST") ->  | G15: =RTD("srv.rtd","","SQT","","VAR") ->  | H15: =RTD("srv.rtd","","SQT","","TICK") ->  | I15: =RTD("srv.rtd","","SQT","","HIGH") ->  | J15: =RTD("srv.rtd","","SQT","","LOW") ->  | K15: =RTD("srv.rtd","","SQT","","OPEN") ->  | L15: =RTD("srv.rtd","","SQT","","CLOSE") ->  | M15: =RTD("srv.rtd","","SQT","","DATE") ->  | N15: =RTD("srv.rtd","","SQT","","TIME") -> 
B16: =RTD("srv.rtd","","SQT","NI225-CFD","ARROWVAR") -> 0 | C16: NI225-CFD | D16: =RTD("srv.rtd","","SQT","NI225-CFD","FLAG") -> 9 | E16: =RTD("srv.rtd","","SQT","NI225-CFD","DESC") -> NIKKEI 225 (CFD) | F16: =RTD("srv.rtd","","SQT","NI225-CFD","LAST") -> 28370.3 | G16: =RTD("srv.rtd","","SQT","NI225-CFD","VAR") -> -0.3817197297 | H16: =RTD("srv.rtd","","SQT","NI225-CFD","TICK") -> - | I16: =RTD("srv.rtd","","SQT","NI225-CFD","HIGH") -> 28760.3 | J16: =RTD("srv.rtd","","SQT","NI225-CFD","LOW") -> 28355.3 | K16: =RTD("srv.rtd","","SQT","NI225-CFD","OPEN") -> 28737.8 | L16: =RTD("srv.rtd","","SQT","NI225-CFD","CLOSE") -> 28479.01 | M16: =RTD("srv.rtd","","SQT","NI225-CFD","DATE") -> 44799 | N16: =RTD("srv.rtd","","SQT","NI225-CFD","TIME") -> 0.5054282407
B17: =RTD("srv.rtd","","SQT","HSI-CFD","ARROWVAR") -> 2 | C17: HSI-CFD | D17: =RTD("srv.rtd","","SQT","HSI-CFD","FLAG") -> 10 | E17: =RTD("srv.rtd","","SQT","HSI-CFD","DESC") -> HANG SENG (CFD) | F17: =RTD("srv.rtd","","SQT","HSI-CFD","LAST") -> 20226.5 | G17: =RTD("srv.rtd","","SQT","HSI-CFD","VAR") -> 1.29264367 | H17: =RTD("srv.rtd","","SQT","HSI-CFD","TICK") -> - | I17: =RTD("srv.rtd","","SQT","HSI-CFD","HIGH") -> 20672 | J17: =RTD("srv.rtd","","SQT","HSI-CFD","LOW") -> 20051.6 | K17: =RTD("srv.rtd","","SQT","HSI-CFD","OPEN") -> 20074.6 | L17: =RTD("srv.rtd","","SQT","HSI-CFD","CLOSE") -> 19968.38 | M17: =RTD("srv.rtd","","SQT","HSI-CFD","DATE") -> 44799 | N17: =RTD("srv.rtd","","SQT","HSI-CFD","TIME") -> 0.505462963
B18: =RTD("srv.rtd","","SQT","AORD-CFD","ARROWVAR") -> 0 | C18: AORD-CFD | D18: =RTD("srv.rtd","","SQT","AORD-CFD","FLAG") -> 14 | E18: =RTD("srv.rtd","","SQT","AORD-CFD","DESC") -> AUSTRALIA ALL ORDS (CFD) | F18: =RTD("srv.rtd","","SQT","AORD-CFD","LAST") -> 7044.7 | G18: =RTD("srv.rtd","","SQT","AORD-CFD","VAR") -> -3.390062947 | H18: =RTD("srv.rtd","","SQT","AORD-CFD","TICK") -> - | I18: =RTD("srv.rtd","","SQT","AORD-CFD","HIGH") -> 7132.2 | J18: =RTD("srv.rtd","","SQT","AORD-CFD","LOW") -> 7042.2 | K18: =RTD("srv.rtd","","SQT","AORD-CFD","OPEN") -> 7115.4 | L18: =RTD("srv.rtd","","SQT","AORD-CFD","CLOSE") -> 7291.9 | M18: =RTD("srv.rtd","","SQT","AORD-CFD","DATE") -> 44799 | N18: =RTD("srv.rtd","","SQT","AORD-CFD","TIME") -> 0.505462963
B21: =RTD("srv.rtd","","SQT","IRISCOBR","FLAG") -> 0 | C21: =RTD("srv.rtd","","SQT","IRISCOBR","DESC") -> RISCO BRASIL | D21: =RTD("srv.rtd","","SQT","IRISCOBR","LAST") -> 288 | E21: =RTD("srv.rtd","","SQT","IRISCOBR","DATE") -> 44799 | F21: =RTD("srv.rtd","","SQT","IRISCOBR","TIME") -> 0.4166666667 | G21: =RTD("srv.rtd","","SQT","IRISCOBR","VAR") -> -1.030927835
B24: =RTD("srv.rtd","","SQT","DJIA-CFD","ARROWVAR") -> 0 | C24: DJIA-CFD | D24: =RTD("srv.rtd","","SQT","DJIA-CFD","FLAG") -> 1 | E24: =RTD("srv.rtd","","SQT","DJIA-CFD","DESC") -> DOW JONES (CFD) | G24: =RTD("srv.rtd","","SQT","DJIA-CFD","VAR") -> -1.534853348 | H24: =RTD("srv.rtd","","SQT","DJIA-CFD","TICK") -> -
B25: =RTD("srv.rtd","","SQT","SP500-CFD","ARROWVAR") -> 0 | C25: SP500-CFD | D25: =RTD("srv.rtd","","SQT","SP500-CFD","FLAG") -> 1 | E25: =RTD("srv.rtd","","SQT","SP500-CFD","DESC") -> SP500 (CFD) | G25: =RTD("srv.rtd","","SQT","SP500-CFD","VAR") -> -1.905637372 | H25: =RTD("srv.rtd","","SQT","SP500-CFD","TICK") -> -
B26: =RTD("srv.rtd","","SQT","NASDAQ-CFD","ARROWVAR") -> 2 | C26: NASDAQ-CFD | D26: =RTD("srv.rtd","","SQT","NASDAQ-CFD","FLAG") -> 1 | E26: =RTD("srv.rtd","","SQT","NASDAQ-CFD","DESC") -> NASDAQ 100 (CFD) | G26: =RTD("srv.rtd","","SQT","NASDAQ-CFD","VAR") -> 1.400634689 | H26: =RTD("srv.rtd","","SQT","NASDAQ-CFD","TICK") -> -
B29: WINQ22 | C29: =RTD("srv.rtd","","SQT","WINQ22","FLAG") -> 0 | D29: =RTD("srv.rtd","","SQT","WINQ22","DESC") -> MINI INDICE AGO/22 | E29: =RTD("srv.rtd","","SQT","WINQ22","LAST") -> 0 | F29: =RTD("srv.rtd","","SQT","WINQ22","VAR") -> 0
B33: GOLD-CFD | C33: =RTD("srv.rtd","","SQT","GOLD-CFD","FLAG") -> 4 | D33: =RTD("srv.rtd","","SQT","GOLD-CFD","DESC") -> GOLD (CFD) | E33: =RTD("srv.rtd","","SQT","GOLD-CFD","LAST") -> 1740.33 | F33: =RTD("srv.rtd","","SQT","GOLD-CFD","VAR") -> -0.8607528597 | G33: =RTD("srv.rtd","","SQT","GOLD-CFD","TICK") -> - | H33: =RTD("srv.rtd","","SQT","GOLD-CFD","HIGH") -> 1758.7 | I33: =RTD("srv.rtd","","SQT","GOLD-CFD","LOW") -> 1739.04 | J33: =RTD("srv.rtd","","SQT","GOLD-CFD","OPEN") -> 1755.47 | K33: =RTD("srv.rtd","","SQT","GOLD-CFD","CLOSE") -> 1755.44 | L33: =RTD("srv.rtd","","SQT","GOLD-CFD","DATE") -> 44799 | M33: =RTD("srv.rtd","","SQT","GOLD-CFD","TIME") -> 0.505462963
B34: SILVER-CFD | C34: =RTD("srv.rtd","","SQT","SILVER-CFD","FLAG") -> 4 | D34: =RTD("srv.rtd","","SQT","SILVER-CFD","DESC") -> SILVER (CFD) | E34: =RTD("srv.rtd","","SQT","SILVER-CFD","LAST") -> 19.04 | F34: =RTD("srv.rtd","","SQT","SILVER-CFD","VAR") -> -1.029213016 | G34: =RTD("srv.rtd","","SQT","SILVER-CFD","TICK") -> + | H34: =RTD("srv.rtd","","SQT","SILVER-CFD","HIGH") -> 19.41 | I34: =RTD("srv.rtd","","SQT","SILVER-CFD","LOW") -> 19.02 | J34: =RTD("srv.rtd","","SQT","SILVER-CFD","OPEN") -> 19.23 | K34: =RTD("srv.rtd","","SQT","SILVER-CFD","CLOSE") -> 19.238 | L34: =RTD("srv.rtd","","SQT","SILVER-CFD","DATE") -> 44799 | M34: =RTD("srv.rtd","","SQT","SILVER-CFD","TIME") -> 0.505474537
B37: BRENT-CFD | C37: =RTD("srv.rtd","","SQT","BRENT-CFD","FLAG") -> 4 | D37: =RTD("srv.rtd","","SQT","BRENT-CFD","DESC") -> BRENT OIL(CFD) | E37: =RTD("srv.rtd","","SQT","BRENT-CFD","LAST") -> 98.13 | F37: =RTD("srv.rtd","","SQT","BRENT-CFD","VAR") -> -1.402648554 | G37: =RTD("srv.rtd","","SQT","BRENT-CFD","TICK") -> - | H37: =RTD("srv.rtd","","SQT","BRENT-CFD","HIGH") -> 100.19 | I37: =RTD("srv.rtd","","SQT","BRENT-CFD","LOW") -> 97.14 | J37: =RTD("srv.rtd","","SQT","BRENT-CFD","OPEN") -> 99.5 | K37: =RTD("srv.rtd","","SQT","BRENT-CFD","CLOSE") -> 99.526 | L37: =RTD("srv.rtd","","SQT","BRENT-CFD","DATE") -> 44799 | M37: =RTD("srv.rtd","","SQT","BRENT-CFD","TIME") -> 0.505474537
B38: CRUDE-CFD | C38: =RTD("srv.rtd","","SQT","CRUDE-CFD","FLAG") -> 4 | D38: =RTD("srv.rtd","","SQT","CRUDE-CFD","DESC") -> CRUDE OIL (CFD) | E38: =RTD("srv.rtd","","SQT","CRUDE-CFD","LAST") -> 92.1 | F38: =RTD("srv.rtd","","SQT","CRUDE-CFD","VAR") -> -1.357010507 | G38: =RTD("srv.rtd","","SQT","CRUDE-CFD","TICK") -> - | H38: =RTD("srv.rtd","","SQT","CRUDE-CFD","HIGH") -> 93.9 | I38: =RTD("srv.rtd","","SQT","CRUDE-CFD","LOW") -> 91.07 | J38: =RTD("srv.rtd","","SQT","CRUDE-CFD","OPEN") -> 93.35 | K38: =RTD("srv.rtd","","SQT","CRUDE-CFD","CLOSE") -> 93.367 | L38: =RTD("srv.rtd","","SQT","CRUDE-CFD","DATE") -> 44799 | M38: =RTD("srv.rtd","","SQT","CRUDE-CFD","TIME") -> 0.505474537
B39: COFFEE-CFD | C39: =RTD("srv.rtd","","SQT","COFFEE-CFD","FLAG") -> 4 | D39: =RTD("srv.rtd","","SQT","COFFEE-CFD","DESC") -> COFFEE (CFD) | E39: =RTD("srv.rtd","","SQT","COFFEE-CFD","LAST") -> 238.67 | F39: =RTD("srv.rtd","","SQT","COFFEE-CFD","VAR") -> -0.4542060986 | G39: =RTD("srv.rtd","","SQT","COFFEE-CFD","TICK") -> + | H39: =RTD("srv.rtd","","SQT","COFFEE-CFD","HIGH") -> 238.67 | I39: =RTD("srv.rtd","","SQT","COFFEE-CFD","LOW") -> 238.67 | J39: =RTD("srv.rtd","","SQT","COFFEE-CFD","OPEN") -> 238.67 | K39: =RTD("srv.rtd","","SQT","COFFEE-CFD","CLOSE") -> 239.759 | L39: =RTD("srv.rtd","","SQT","COFFEE-CFD","DATE") -> 44799 | M39: =RTD("srv.rtd","","SQT","COFFEE-CFD","TIME") -> 0.5051388889

Sheet CORRETORAS-DL (hidden)
F5: CPF | H5: BANCOS | I5: ESTRANGEIROS
F7: ORAMA | H7: BRADESCO | I7: MORGAN STANLEY | O7: 1 | P7: TULLETT | Q7: =RTD("srv.rtd","","PLAYERSRANKING","WDOU22","127","SALDO","QUANTITY") -> 3556 | R7: =RTD("srv.rtd","","PLAYERSRANKING","WDOU22","127","SALDO","VOLQ") -> 21632 | S7: =RTD("srv.rtd","","PLAYERSRANKING","WDOU22","127","SALDO","VOLF") -> 110217387 | T7: =RTD("srv.rtd","","PLAYERSRANKING","WDOU22","127","SALDO","AVG_PRICE") -> 5092.715729 | U7: =RTD("srv.rtd","","PLAYERSRANKING","WDOU22","127","SALDO","AVG_PRICE_2") -> 5095.108497
F8: GENIAL | H8: TERRA | I8: GOLDMAN SACHS | O8: 2 | P8: JP MORGAN | Q8: =RTD("srv.rtd","","PLAYERSRANKING","WDOU22","16","SALDO","QUANTITY") -> 364 | R8: =RTD("srv.rtd","","PLAYERSRANKING","WDOU22","16","SALDO","VOLQ") -> 1656 | S8: =RTD("srv.rtd","","PLAYERSRANKING","WDOU22","16","SALDO","VOLF") -> 8415148.5 | T8: =RTD("srv.rtd","","PLAYERSRANKING","WDOU22","16","SALDO","AVG_PRICE") -> 5092.557903 | U8: =RTD("srv.rtd","","PLAYERSRANKING","WDOU22","16","SALDO","AVG_PRICE_2") -> 5081.611413
F9: NOVA FUTURA | H9: ATIVA | I9: TULLET | O9: 3 | P9: CM CAPITAL | Q9: =RTD("srv.rtd","","PLAYERSRANKING","WDOU22","88","SALDO","QUANTITY") -> 415 | R9: =RTD("srv.rtd","","PLAYERSRANKING","WDOU22","88","SALDO","VOLQ") -> -1600 | S9: =RTD("srv.rtd","","PLAYERSRANKING","WDOU22","88","SALDO","VOLF") -> -8110835.5 | T9: =RTD("srv.rtd","","PLAYERSRANKING","WDOU22","88","SALDO","AVG_PRICE") -> 5095.132639 | U9: =RTD("srv.rtd","","PLAYERSRANKING","WDOU22","88","SALDO","AVG_PRICE_2") -> 5069.272187
F10: RICO | H10: ITAU | I10: MERRILL LYCH | O10: 4 | P10: UBS | Q10: =RTD("srv.rtd","","PLAYERSRANKING","WDOU22","8","SALDO","QUANTITY") -> -1574 | R10: =RTD("srv.rtd","","PLAYERSRANKING","WDOU22","8","SALDO","VOLQ") -> -9565 | S10: =RTD("srv.rtd","","PLAYERSRANKING","WDOU22","8","SALDO","VOLF") -> -48518352 | T10: =RTD("srv.rtd","","PLAYERSRANKING","WDOU22","8","SALDO","AVG_PRICE") -> 5095.713621 | U10: =RTD("srv.rtd","","PLAYERSRANKING","WDOU22","8","SALDO","AVG_PRICE_2") -> 5072.488447
F11: AGORA | H11: RENASCENCA | I11: ICAP | O11: 5 | P11: ITAU | Q11: =RTD("srv.rtd","","PLAYERSRANKING","WDOU22","114","SALDO","QUANTITY") -> -969 | R11: =RTD("srv.rtd","","PLAYERSRANKING","WDOU22","114","SALDO","VOLQ") -> -7407 | S11: =RTD("srv.rtd","","PLAYERSRANKING","WDOU22","114","SALDO","VOLF") -> -37842699 | T11: =RTD("srv.rtd","","PLAYERSRANKING","WDOU22","114","SALDO","AVG_PRICE") -> 5092.262196 | U11: =RTD("srv.rtd","","PLAYERSRANKING","WDOU22","114","SALDO","AVG_PRICE_2") -> 5109.045362
F12: CM CAPITAL | H12: BTG | I12: JP MORGAN | O12: 6 | P12: GOLDMAN SACHS | Q12: =RTD("srv.rtd","","PLAYERSRANKING","WDOU22","238","SALDO","QUANTITY") -> -757 | R12: =RTD("srv.rtd","","PLAYERSRANKING","WDOU22","238","SALDO","VOLQ") -> -431 | S12: =RTD("srv.rtd","","PLAYERSRANKING","WDOU22","238","SALDO","VOLF") -> -2260638.5 | T12: =RTD("srv.rtd","","PLAYERSRANKING","WDOU22","238","SALDO","AVG_PRICE") -> 5091.000552 | U12: =RTD("srv.rtd","","PLAYERSRANKING","WDOU22","238","SALDO","AVG_PRICE_2") -> 5245.100928
F13: MODAL | H13: FC STONE | I13: CREDIT SUISSE | O13: 7 | P13: IDEAL | Q13: =RTD("srv.rtd","","PLAYERSRANKING","WDOU22","1618","SALDO","QUANTITY") -> -795 | R13: =RTD("srv.rtd","","PLAYERSRANKING","WDOU22","1618","SALDO","VOLQ") -> 18644 | S13: =RTD("srv.rtd","","PLAYERSRANKING","WDOU22","1618","SALDO","VOLF") -> 95041644 | T13: =RTD("srv.rtd","","PLAYERSRANKING","WDOU22","1618","SALDO","AVG_PRICE") -> 5094.449044 | U13: =RTD("srv.rtd","","PLAYERSRANKING","WDOU22","1618","SALDO","AVG_PRICE_2") -> 5097.706715
F14: CLEAR | H14: COMMCOR | I14: UBS | O14: 8 | P14: BTG | Q14: =RTD("srv.rtd","","PLAYERSRANKING","WDOU22","85","SALDO","QUANTITY") -> 2606 | R14: =RTD("srv.rtd","","PLAYERSRANKING","WDOU22","85","SALDO","VOLQ") -> -8855 | S14: =RTD("srv.rtd","","PLAYERSRANKING","WDOU22","85","SALDO","VOLF") -> -45096042.5 | T14: =RTD("srv.rtd","","PLAYERSRANKING","WDOU22","85","SALDO","AVG_PRICE") -> 5096.077856 | U14: =RTD("srv.rtd","","PLAYERSRANKING","WDOU22","85","SALDO","AVG_PRICE_2") -> 5092.720779
F15: TORO | H15: ELITE | I15: IDEAL | O15: 9 | P15: MODAL | Q15: =RTD("srv.rtd","","PLAYERSRANKING","WDOU22","1982","SALDO","QUANTITY") -> 159 | R15: =RTD("srv.rtd","","PLAYERSRANKING","WDOU22","1982","SALDO","VOLQ") -> 1116 | S15: =RTD("srv.rtd","","PLAYERSRANKING","WDOU22","1982","SALDO","VOLF") -> 5715242.5 | T15: =RTD("srv.rtd","","PLAYERSRANKING","WDOU22","1982","SALDO","AVG_PRICE") -> 5095.463774 | U15: =RTD("srv.rtd","","PLAYERSRANKING","WDOU22","1982","SALDO","AVG_PRICE_2") -> 5121.185036
H16: SAFRA | O16: 10 | P16: AGORA | Q16: =RTD("srv.rtd","","PLAYERSRANKING","WDOU22","39","SALDO","QUANTITY") -> -41 | R16: =RTD("srv.rtd","","PLAYERSRANKING","WDOU22","39","SALDO","VOLQ") -> 90 | S16: =RTD("srv.rtd","","PLAYERSRANKING","WDOU22","39","SALDO","VOLF") -> 454656 | T16: =RTD("srv.rtd","","PLAYERSRANKING","WDOU22","39","SALDO","AVG_PRICE") -> 5098.94082 | U16: =RTD("srv.rtd","","PLAYERSRANKING","WDOU22","39","SALDO","AVG_PRICE_2") -> 5051.733333
H17: INTER | O17: 11 | P17: MORGAN STANLEY | Q17: =RTD("srv.rtd","","PLAYERSRANKING","WDOU22","40","SALDO","QUANTITY") -> -4751 | R17: =RTD("srv.rtd","","PLAYERSRANKING","WDOU22","40","SALDO","VOLQ") -> -35457 | S17: =RTD("srv.rtd","","PLAYERSRANKING","WDOU22","40","SALDO","VOLF") -> -180711011 | T17: =RTD("srv.rtd","","PLAYERSRANKING","WDOU22","40","SALDO","AVG_PRICE") -> 5095.522608 | U17: =RTD("srv.rtd","","PLAYERSRANKING","WDOU22","40","SALDO","AVG_PRICE_2") -> 5096.62439
H18: C6 BANK | O18: 12 | P18: TORO | Q18: =RTD("srv.rtd","","PLAYERSRANKING","WDOU22","4090","SALDO","QUANTITY") -> 471 | R18: =RTD("srv.rtd","","PLAYERSRANKING","WDOU22","4090","SALDO","VOLQ") -> 910 | S18: =RTD("srv.rtd","","PLAYERSRANKING","WDOU22","4090","SALDO","VOLF") -> 4635963 | T18: =RTD("srv.rtd","","PLAYERSRANKING","WDOU22","4090","SALDO","AVG_PRICE") -> 5096.822662 | U18: =RTD("srv.rtd","","PLAYERSRANKING","WDOU22","4090","SALDO","AVG_PRICE_2") -> 5094.464835
H19: SANTANDER | O19: 13 | P19: VOTORANTIM | Q19: =RTD("srv.rtd","","PLAYERSRANKING","WDOU22","21","SALDO","QUANTITY") -> 0 | R19: =RTD("srv.rtd","","PLAYERSRANKING","WDOU22","21","SALDO","VOLQ") -> 0 | S19: =RTD("srv.rtd","","PLAYERSRANKING","WDOU22","21","SALDO","VOLF") -> 0 | T19: =RTD("srv.rtd","","PLAYERSRANKING","WDOU22","21","SALDO","AVG_PRICE") -> 0 | U19: =RTD("srv.rtd","","PLAYERSRANKING","WDOU22","21","SALDO","AVG_PRICE_2") -> 0
H20: MIRAE | O20: 14 | P20: PLANNER | Q20: =RTD("srv.rtd","","PLAYERSRANKING","WDOU22","129","SALDO","QUANTITY") -> 6 | R20: =RTD("srv.rtd","","PLAYERSRANKING","WDOU22","129","SALDO","VOLQ") -> -12 | S20: =RTD("srv.rtd","","PLAYERSRANKING","WDOU22","129","SALDO","VOLF") -> -60846 | T20: =RTD("srv.rtd","","PLAYERSRANKING","WDOU22","129","SALDO","AVG_PRICE") -> 5100.294118 | U20: =RTD("srv.rtd","","PLAYERSRANKING","WDOU22","129","SALDO","AVG_PRICE_2") -> 5070.5
H21: GUIDE | O21: 15 | P21: INTER | Q21: =RTD("srv.rtd","","PLAYERSRANKING","WDOU22","1099","SALDO","QUANTITY") -> -13 | R21: =RTD("srv.rtd","","PLAYERSRANKING","WDOU22","1099","SALDO","VOLQ") -> -146 | S21: =RTD("srv.rtd","","PLAYERSRANKING","WDOU22","1099","SALDO","VOLF") -> -742453 | T21: =RTD("srv.rtd","","PLAYERSRANKING","WDOU22","1099","SALDO","AVG_PRICE") -> 5099.225758 | U21: =RTD("srv.rtd","","PLAYERSRANKING","WDOU22","1099","SALDO","AVG_PRICE_2") -> 5085.294521
H22: BTG | O22: 16 | P22: ICAP | Q22: =RTD("srv.rtd","","PLAYERSRANKING","WDOU22","735","SALDO","QUANTITY") -> -37 | R22: =RTD("srv.rtd","","PLAYERSRANKING","WDOU22","735","SALDO","VOLQ") -> -39 | S22: =RTD("srv.rtd","","PLAYERSRANKING","WDOU22","735","SALDO","VOLF") -> -200111 | T22: =RTD("srv.rtd","","PLAYERSRANKING","WDOU22","735","SALDO","AVG_PRICE") -> 5098.86114 | U22: =RTD("srv.rtd","","PLAYERSRANKING","WDOU22","735","SALDO","AVG_PRICE_2") -> 5131.051282
H23: NECTON | O23: 17 | P23: SAFRA | Q23: =RTD("srv.rtd","","PLAYERSRANKING","WDOU22","59","SALDO","QUANTITY") -> 4 | R23: =RTD("srv.rtd","","PLAYERSRANKING","WDOU22","59","SALDO","VOLQ") -> 4 | S23: =RTD("srv.rtd","","PLAYERSRANKING","WDOU22","59","SALDO","VOLF") -> 20191.5 | T23: =RTD("srv.rtd","","PLAYERSRANKING","WDOU22","59","SALDO","AVG_PRICE") -> 5095.065789 | U23: =RTD("srv.rtd","","PLAYERSRANKING","WDOU22","59","SALDO","AVG_PRICE_2") -> 5047.875
O24: 18 | P24: CLEAR | Q24: =RTD("srv.rtd","","PLAYERSRANKING","WDOU22","308","SALDO","QUANTITY") -> -275 | R24: =RTD("srv.rtd","","PLAYERSRANKING","WDOU22","308","SALDO","VOLQ") -> 170 | S24: =RTD("srv.rtd","","PLAYERSRANKING","WDOU22","308","SALDO","VOLF") -> 778023 | T24: =RTD("srv.rtd","","PLAYERSRANKING","WDOU22","308","SALDO","AVG_PRICE") -> 5096.631644 | U24: =RTD("srv.rtd","","PLAYERSRANKING","WDOU22","308","SALDO","AVG_PRICE_2") -> 4576.605882
O25: 19 | P25: ELITE | Q25: =RTD("srv.rtd","","PLAYERSRANKING","WDOU22","174","SALDO","QUANTITY") -> -18 | R25: =RTD("srv.rtd","","PLAYERSRANKING","WDOU22","174","SALDO","VOLQ") -> -33 | S25: =RTD("srv.rtd","","PLAYERSRANKING","WDOU22","174","SALDO","VOLF") -> -168221.5 | T25: =RTD("srv.rtd","","PLAYERSRANKING","WDOU22","174","SALDO","AVG_PRICE") -> 5088.356716 | U25: =RTD("srv.rtd","","PLAYERSRANKING","WDOU22","174","SALDO","AVG_PRICE_2") -> 5097.621212
O26: 20 | P26: MIRAE | Q26: =RTD("srv.rtd","","PLAYERSRANKING","WDOU22","262","SALDO","QUANTITY") -> 121 | R26: =RTD("srv.rtd","","PLAYERSRANKING","WDOU22","262","SALDO","VOLQ") -> 4 | S26: =RTD("srv.rtd","","PLAYERSRANKING","WDOU22","262","SALDO","VOLF") -> 18617 | T26: =RTD("srv.rtd","","PLAYERSRANKING","WDOU22","262","SALDO","AVG_PRICE") -> 5096.991467 | U26: =RTD("srv.rtd","","PLAYERSRANKING","WDOU22","262","SALDO","AVG_PRICE_2") -> 4654.25
O27: 21 | P27: COMMCOR | Q27: =RTD("srv.rtd","","PLAYERSRANKING","WDOU22","115","SALDO","QUANTITY") -> 163 | R27: =RTD("srv.rtd","","PLAYERSRANKING","WDOU22","115","SALDO","VOLQ") -> 957 | S27: =RTD("srv.rtd","","PLAYERSRANKING","WDOU22","115","SALDO","VOLF") -> 4859180.5 | T27: =RTD("srv.rtd","","PLAYERSRANKING","WDOU22","115","SALDO","AVG_PRICE") -> 5093.472533 | U27: =RTD("srv.rtd","","PLAYERSRANKING","WDOU22","115","SALDO","AVG_PRICE_2") -> 5077.513584
O28: 22 | P28: VITREO | Q28: =RTD("srv.rtd","","PLAYERSRANKING","WDOU22","1855","SALDO","QUANTITY") -> 68 | R28: =RTD("srv.rtd","","PLAYERSRANKING","WDOU22","1855","SALDO","VOLQ") -> 17 | S28: =RTD("srv.rtd","","PLAYERSRANKING","WDOU22","1855","SALDO","VOLF") -> 83869 | T28: =RTD("srv.rtd","","PLAYERSRANKING","WDOU22","1855","SALDO","AVG_PRICE") -> 5096.649025 | U28: =RTD("srv.rtd","","PLAYERSRANKING","WDOU22","1855","SALDO","AVG_PRICE_2") -> 4933.470588
O29: 23 | P29: WARREN | Q29: =RTD("srv.rtd","","PLAYERSRANKING","WDOU22","190","SALDO","QUANTITY") -> -59 | R29: =RTD("srv.rtd","","PLAYERSRANKING","WDOU22","190","SALDO","VOLQ") -> -55 | S29: =RTD("srv.rtd","","PLAYERSRANKING","WDOU22","190","SALDO","VOLF") -> -286547 | T29: =RTD("srv.rtd","","PLAYERSRANKING","WDOU22","190","SALDO","AVG_PRICE") -> 5094.660321 | U29: =RTD("srv.rtd","","PLAYERSRANKING","WDOU22","190","SALDO","AVG_PRICE_2") -> 5209.945455
O30: 24 | P30: EASYNVEST | Q30: =RTD("srv.rtd","","PLAYERSRANKING","WDOU22","90","SALDO","QUANTITY") -> -3 | R30: =RTD("srv.rtd","","PLAYERSRANKING","WDOU22","90","SALDO","VOLQ") -> -193 | S30: =RTD("srv.rtd","","PLAYERSRANKING","WDOU22","90","SALDO","VOLF") -> -985553.5 | T30: =RTD("srv.rtd","","PLAYERSRANKING","WDOU22","90","SALDO","AVG_PRICE") -> 5096.835161 | U30: =RTD("srv.rtd","","PLAYERSRANKING","WDOU22","90","SALDO","AVG_PRICE_2") -> 5106.494819
O31: 25 | P31: CREDIT SUISSE | Q31: =RTD("srv.rtd","","PLAYERSRANKING","WDOU22","45","SALDO","QUANTITY") -> -219 | R31: =RTD("srv.rtd","","PLAYERSRANKING","WDOU22","45","SALDO","VOLQ") -> -368 | S31: =RTD("srv.rtd","","PLAYERSRANKING","WDOU22","45","SALDO","VOLF") -> -1823925.5 | T31: =RTD("srv.rtd","","PLAYERSRANKING","WDOU22","45","SALDO","AVG_PRICE") -> 5090.932207 | U31: =RTD("srv.rtd","","PLAYERSRANKING","WDOU22","45","SALDO","AVG_PRICE_2") -> 4956.319293
O32: 26 | P32: FC STONE | Q32: =RTD("srv.rtd","","PLAYERSRANKING","WDOU22","1130","SALDO","QUANTITY") -> 8 | R32: =RTD("srv.rtd","","PLAYERSRANKING","WDOU22","1130","SALDO","VOLQ") -> 75 | S32: =RTD("srv.rtd","","PLAYERSRANKING","WDOU22","1130","SALDO","VOLF") -> 379902.5 | T32: =RTD("srv.rtd","","PLAYERSRANKING","WDOU22","1130","SALDO","AVG_PRICE") -> 5093.586331 | U32: =RTD("srv.rtd","","PLAYERSRANKING","WDOU22","1130","SALDO","AVG_PRICE_2") -> 5065.366667
O33: 27 | P33: GUIDE | Q33: =RTD("srv.rtd","","PLAYERSRANKING","WDOU22","15","SALDO","QUANTITY") -> 771 | R33: =RTD("srv.rtd","","PLAYERSRANKING","WDOU22","15","SALDO","VOLQ") -> 4403 | S33: =RTD("srv.rtd","","PLAYERSRANKING","WDOU22","15","SALDO","VOLF") -> 22451271 | T33: =RTD("srv.rtd","","PLAYERSRANKING","WDOU22","15","SALDO","AVG_PRICE") -> 5097.460629 | U33: =RTD("srv.rtd","","PLAYERSRANKING","WDOU22","15","SALDO","AVG_PRICE_2") -> 5099.084942
O34: 28 | P34: NOVA FUTURA | Q34: =RTD("srv.rtd","","PLAYERSRANKING","WDOU22","93","SALDO","QUANTITY") -> -42 | R34: =RTD("srv.rtd","","PLAYERSRANKING","WDOU22","93","SALDO","VOLQ") -> 1002 | S34: =RTD("srv.rtd","","PLAYERSRANKING","WDOU22","93","SALDO","VOLF") -> 5113122 | T34: =RTD("srv.rtd","","PLAYERSRANKING","WDOU22","93","SALDO","AVG_PRICE") -> 5096.309672 | U34: =RTD("srv.rtd","","PLAYERSRANKING","WDOU22","93","SALDO","AVG_PRICE_2") -> 5102.916168
O35: 29 | P35: GENIAL | Q35: =RTD("srv.rtd","","PLAYERSRANKING","WDOU22","120","SALDO","QUANTITY") -> 2076 | R35: =RTD("srv.rtd","","PLAYERSRANKING","WDOU22","120","SALDO","VOLQ") -> 3199 | S35: =RTD("srv.rtd","","PLAYERSRANKING","WDOU22","120","SALDO","VOLF") -> 16360492.5 | T35: =RTD("srv.rtd","","PLAYERSRANKING","WDOU22","120","SALDO","AVG_PRICE") -> 5095.538345 | U35: =RTD("srv.rtd","","PLAYERSRANKING","WDOU22","120","SALDO","AVG_PRICE_2") -> 5114.25211
O36: 30 | P36: XP | Q36: =RTD("srv.rtd","","PLAYERSRANKING","WDOU22","3","SALDO","QUANTITY") -> -259 | R36: =RTD("srv.rtd","","PLAYERSRANKING","WDOU22","3","SALDO","VOLQ") -> -3510 | S36: =RTD("srv.rtd","","PLAYERSRANKING","WDOU22","3","SALDO","VOLF") -> -18022634 | T36: =RTD("srv.rtd","","PLAYERSRANKING","WDOU22","3","SALDO","AVG_PRICE") -> 5095.192415 | U36: =RTD("srv.rtd","","PLAYERSRANKING","WDOU22","3","SALDO","AVG_PRICE_2") -> 5134.653561
